Workbook

Sheet Title
D3: =UPPER(Setup!I8) -> NCC WATER
R4: DASH | T4: Summary of NCC outcomes and main data inputs
R5: USER GUIDE | T5: User guidance
R6: SETUP | T6: Input sheet for timing assumptions
R7: LEGEND | T7: Modelling conventions and validation lists
R8: DataOPEX | T8: Input sheet for base year operating and maintenance expenditure
R9: DataCAPEX | T9: Input sheet for capital expenditure
R10: DataCON&ASSUMPTIONS | T10: Input sheet for new customer connections and finance assumptions
R11: =Setup!E63 -> Warragul Drouin | T11: ="NCC calculation sheet for "&Legend!E46 -> NCC calculation sheet for Warragul Drouin
R12: =Setup!E64 -> Traralgon | T12: ="NCC calculation sheet for "&Legend!E47 -> NCC calculation sheet for Traralgon
R13: =Setup!E65 -> Morwell | T13: ="NCC calculation sheet for "&Legend!E48 -> NCC calculation sheet for Morwell
R14: =Setup!E66 -> Moe Newborough | T14: ="NCC calculation sheet for "&Legend!E49 -> NCC calculation sheet for Moe Newborough
D15: =Setup!W41&" to "&Setup!AP41 -> 2023-24 to 2042-43 | R15: =Setup!E67 -> Sale | T15: ="NCC calculation sheet for "&Legend!E50 -> NCC calculation sheet for Sale
D16: Version | E16: =Setup!I9 -> 0.2 | F16: =Setup!I10 -> 2022-04-01 | R16: =Setup!E68 -> System6 | T16: ="NCC calculation sheet for "&Legend!E51 -> NCC calculation sheet for System6
R17: =Setup!E69 -> System7 | T17: ="NCC calculation sheet for "&Legend!E52 -> NCC calculation sheet for System7
R18: =Setup!E70 -> System8 | T18: ="NCC calculation sheet for "&Legend!E53 -> NCC calculation sheet for System8
R19: =Setup!E71 -> System9 | T19: ="NCC calculation sheet for "&Legend!E54 -> NCC calculation sheet for System9
R20: =Setup!E72 -> System10 | T20: ="NCC calculation sheet for "&Legend!E55 -> NCC calculation sheet for System10
R21: IFC | T21: Incremental Financing Costs
R26: Note - The A1 cell in each sheet has been linked to the title page to allow for navigation to table of contents

Sheet DASH
A1: Title!A1
C3: NCC - 20 YEAR | I3: CAPEX
C4: ="$"&Setup!U41 -> $2021-22 | I4: =C4&" million" -> $2021-22 million | J4: 20 year NPV
C6: System | I6: System
C7: =Setup!E63 -> Warragul Drouin | D7: Per con | E7: =IF('Warragul Drouin'!$Q$79="Off",'Warragul Drouin'!$Q$74,'Warragul Drouin'!$Q$83) -> 3814.019947 | I7: =C7 -> Warragul Drouin | J7: $NPV | K7: ='Warragul Drouin'!$Q$34/1000000 -> 38.79131499
C8: =Setup!E64 -> Traralgon | D8: Per con | E8: =IF(Traralgon!$Q$79="Off",Traralgon!$Q$74,Traralgon!$Q$83) -> 3000.734126 | I8: =C8 -> Traralgon | J8: $NPV | K8: =Traralgon!$Q$34/1000000 -> 7.953867608
C9: =Setup!E65 -> Morwell | D9: Per con | E9: =IF(Morwell!$Q$79="Off",Morwell!$Q$74,Morwell!$Q$83) -> 3474.388582 | I9: Morwell | J9: $NPV | K9: =Morwell!$Q$34/1000000 -> 2.793849368
C10: =Setup!E66 -> Moe Newborough | D10: Per con | E10: =IF('Moe Newborough'!$Q$79="Off",'Moe Newborough'!$Q$74,'Moe Newborough'!$Q$83) -> 2563.75 | I10: Moe Newborough | J10: $NPV | K10: ='Moe Newborough'!$Q$34/1000000 -> 1.247903144
C11: =Setup!E67 -> Sale | D11: Per con | E11: =IF(Sale!$Q$79="Off",Sale!$Q$74,Sale!$Q$83) -> 451.8014742 | I11: Sale | J11: $NPV | K11: =Sale!$Q$34/1000000 -> 0.4642239822
C12: =Setup!E68 -> System6 | D12: Per con | E12: =IF(#REF!="Off",#REF!,#REF!) ->  | I12: System6 | J12: $NPV | K12: =#REF!/1000000 -> 
C13: =Setup!E69 -> System7 | D13: Per con | E13: =IF(#REF!="Off",#REF!,#REF!) ->  | I13: System7 | J13: $NPV | K13: =#REF!/1000000 -> 
C14: =Setup!E70 -> System8 | D14: Per con | E14: =IF(#REF!="Off",#REF!,#REF!) ->  | I14: System8 | J14: $NPV | K14: =#REF!/1000000 -> 
C15: =Setup!E71 -> System9 | D15: Per con | E15: =IF(#REF!="Off",#REF!,#REF!) ->  | I15: System9 | J15: $NPV | K15: =#REF!/1000000 -> 
C16: =Setup!E72 -> System10 | D16: Per con | E16: =IF(#REF!="Off",#REF!,#REF!) ->  | I16: =C16 -> System10 | J16: $NPV | K16: =#REF!/1000000 -> 
C21: NEW CUSTOMERS | I21: OPEX
C22: Connections | D22: 20 years | I22: =I4 -> $2021-22 million | J22: 20 year NPV
C24: System | I24: System
C25: =C7 -> Warragul Drouin | D25: Con | E25: =SUM('Warragul Drouin'!$W$63:$AP$63) -> 13660 | I25: =C7 -> Warragul Drouin | J25: $NPV | K25: ='Warragul Drouin'!$Q$38/1000000 -> 0
C26: =C8 -> Traralgon | D26: Con | E26: =SUM(Traralgon!$W$63:$AP$63) -> 3560 | I26: =C8 -> Traralgon | J26: $NPV | K26: =Traralgon!$Q$38/1000000 -> 0
C27: Morwell | D27: Con | E27: =SUM(Morwell!$W$63:$AP$63) -> 1080 | I27: Morwell | J27: $NPV | K27: =Morwell!$Q$38/1000000 -> 0
C28: Moe Newborough | D28: Con | E28: =SUM('Moe Newborough'!$W$63:$AP$63) -> 2280 | I28: Moe Newborough | J28: $NPV | K28: ='Moe Newborough'!$Q$38/1000000 -> 0
C29: Sale | D29: Con | E29: =SUM(Sale!$W$63:$AP$63) -> 1380 | I29: Sale | J29: $NPV | K29: =Sale!$Q$38/1000000 -> 0
C30: System6 | D30: Con | E30: =SUM(#REF!) ->  | I30: System6 | J30: $NPV | K30: =#REF!/1000000 -> 
C31: System7 | D31: Con | E31: =SUM(#REF!) ->  | I31: System7 | J31: $NPV | K31: =#REF!/1000000 -> 
C32: System8 | D32: Con | E32: =SUM(#REF!) ->  | I32: System8 | J32: $NPV | K32: =#REF!/1000000 -> 
C33: System9 | D33: Con | E33: =SUM(#REF!) ->  | I33: System9 | J33: $NPV | K33: =#REF!/1000000 -> 
C34: System10 | D34: Con | E34: =SUM(#REF!) ->  | I34: =C16 -> System10 | J34: $NPV | K34: =#REF!/1000000 -> 

Sheet User Guide
A1: =UPPER(WorkBookTitle) -> GIPPSLAND WATER - NCC WATER
A2: =MID(CELL("filename",A1),FIND("]",CELL("filename",A1))+1,255) -> User Guide
A3: =YEAR(Setup!$I$25)&" price period" -> 2023 price period
B5: User Guide
E7: Description | F7: Details | G7: Screenshots
D8: Contact details
D9: The model contact | E9: [INSERT MODEL OWNER] | F9: [INSERT CONTACT DETAILS]
D10: Statement of purpose
D11: This model has been developed to provide businesses with a regulatory pricing model for the determination of NCCs.
D12: Modelling Conventions
D13: Inputs | F13: All input cells in the model are yellow. Users should only input data in these cells.
D14: Goal seek macros | F14: The model has a single goal seek that is used to identify the residual expenditure not recovered through NCCs where a business instutues a cap on the NCC.
D15: Administrative Sheets
D16: User Guide | F16: This user guide outlines the steps that users will need to undertake in order to run the model successfully. The guide does not include a detailed description of the functionality of the calculation sheets or cells.
D17: Legend | E17: Key model details and definitions. | F17: Sheet includes validation lists. Rows 22 to 35 should be populated with the asset classes used in the NCC calculations.
D18: User Guide - INPUT SHEETS
D19: Setup | E19: The first major inputs in the model are in the Setup tab. This tab establishes the timing that flows through to the rest of the model. | F19: In rows 14 and 15, populate the yellow cells with NPV base date, model base date, first pricing period start and pricing period length. Care should be taken to ensure that the periods entered into rows 12 to 13 are internally consistent and align with the intended length of the pricing period. As a general guide the NPV base date is the year preceding the regulatory pricing period and the Model base date is the first year of the pricing period. Rows 63 to 72 should be populated with the systems that NCCs are being determned for.
D20: DataOPEX | E20: The DataOPEX tab is the input tab for raw opex data. | F20: Populate rows 13 to 88 with direct opex associated with connecting new customers. The tables include the system the opex relates to, a description of the opex and the corresponding opex values over the 20 year forecast period. The opex captured in this table should be directly attributable to connecting cusotmers and not to the ongoing provision of water or wastewater services.
D21: DataCAPEX | E21: The DataCAPEX tab is the input tab for capex data for the NCC period. | F21: Populate rows 13 to 218 with growth capex for each of the systems the NCCs are beinng levied on. The data should include the system, a escription of the expenditure or project the expenditure relates to and the asset class. The capex data should extend overr the full twenty year forecasting period.
D22: DataCON&ASSUMPTIONS | E22: The DataCON&ASSUMPTIONS tab is the input tab used to establish the forward new customer connections and the financing assumptions necesssary to calcuate NCCs. | F22: Populated rows 13 to 43 with forecasted new customer connections for each of the styems. The sheet also includes - an input cell (F48) for the WACC asumptiion used to determine discount rates for the NPV calcualations. - an input cell (F53) for the corporate tax rate used in the tax allowance. - an input cell (F58) for the value of franking credits. - rows 62 to 72 for gifted assets by system over each year of the forecasting period. - row76 to 86 for annual tax depreciation by system.
D23: User Guide - CALCULATION SHEETS
D24: System based NCC sheets | E24: These sheets outlline the NCC for each systems (the sheets or model will need to be run seperately for water and wastewater. The NCC is outline in cell Q74. | F24: Rows 76 onwards provide an indicative quantification of the residual capex and opex associated with NCCs, where a cap has been applied. Caps may be appled where businesses believe the cost reflective NCC conflicts with other objectives such as affordablity. Where a cap has been applied the user will need the cap swith in Q79 to on and then populate Q83 wiith the cap value. The user will then need to run the pring macro button iin row 80.
D25: IFC sheet | E25: The incremental fianance cost (IFC) sheet allows businesses to generate a IFC consisttent with the ESC's established approach.
D26: Password
D27: Password | E27: XXX | F27: The final model has been provided with each sheet formated to provide for sheet protection. Note that excel passwords can't be retrieved if they are lost. The business should keep a separate register of its current passwords.

Sheet Setup
A1: =UPPER(WorkBookTitle) -> GIPPSLAND WATER - NCC WATER
A2: =MID(CELL("filename",A1),FIND("]",CELL("filename",A1))+1,255) -> Setup
A3: =YEAR(Setup!$I$25)&" price period" -> 2023 price period
B5: Model details
E7: Client | I7: Gippsland Water
E8: Model type | I8: NCC Water
E9: Version | I9: 0.2
E10: Version date | I10: 2022-04-01
B12: Timing
C13: Inputs
E14: NPV base date | G14: date | I14: 2022-01-01
E15: Model base date | G15: date | I15: 2023-07-01
E16: First pricing period start | G16: date | I16: =DATE(YEAR(BaseDate)-I17,MONTH(BaseDate),DAY(BaseDate)) -> 2018-07-01
E17: Pricing period length | G17: years | I17: 5
C19: Key dates
E21: Opex Base financial year | G21: date | I21: =INDEX($R$41:$AF$41,MATCH(I25,R34:AF34,0)-2) -> 2021-22
E22: Tariff base financial year | G22: date | I22: =INDEX($R$41:$AF$41,MATCH(I25,R34:AF34,0)-1) -> 2022-23
E23: First pricing period end date | G23: date | I23: =EDATE(I16,I17*Months_yr)-1 -> 2023-06-30
E24: First pricing period end year | G24: date | I24: =INDEX($R$41:$AF$41,1,MATCH(I23,R35:AF35,0)) -> 2022-23
E25: Pricing setting date | G25: date | I25: =I23+1 -> 2023-07-01
E26: Pricing period 2 start date | G26: date | I26: =I23+1 -> 2023-07-01
E27: Pricing period 2 end date | G27: date | I27: =EOMONTH(I26,$I$17*Months_yr-1) -> 2028-06-30
E28: Pricing period 2 | G28: date | I28: =YEAR(I26)&"-"&RIGHT(YEAR(I27),2) -> 2023-28
E29: Pricing period 3 start date | G29: date | I29: =I27+1 -> 2028-07-01
E30: Pricing period 3 end date | G30: date | I30: =EOMONTH(I29,$I$17*Months_yr-1) -> 2033-06-30
E31: Pricing period 3 | G31: date | I31: =YEAR(I29)&"-"&RIGHT(YEAR(I30),2) -> 2028-33
C33: Flags
E34: Period start | P34: date | R34: =Q35+1 -> 2018-07-01 | S34: 2019-07-01 | T34: 2020-07-01 | U34: 2021-07-01 | V34: 2022-07-01 | W34: 2023-07-01 | X34: 2024-07-01 | Y34: 2025-07-01 | Z34: 2026-07-01 | AA34: 2027-07-01 | AB34: 2028-07-01 | AC34: 2029-07-01 | AD34: 2030-07-01 | AE34: 2031-07-01 | AF34: 2032-07-01 | AG34: =AF35+1 -> 2033-07-01 | AH34: =AG35+1 -> 2034-07-01 | AI34: =AH35+1 -> 2035-07-01 | AJ34: =AI35+1 -> 2036-07-01 | AK34: =AJ35+1 -> 2037-07-01 | AL34: =AK35+1 -> 2038-07-01 | AM34: =AL35+1 -> 2039-07-01 | AN34: =AM35+1 -> 2040-07-01 | AO34: =AN35+1 -> 2041-07-01 | AP34: =AO35+1 -> 2042-07-01
E35: Period end | P35: date | Q35: =Setup!I16-1 -> 2018-06-30 | R35: =EOMONTH(R34,Months_yr-1) -> 2019-06-30 | S35: 2020-06-30 | T35: 2021-06-30 | U35: 2022-06-30 | V35: 2023-06-30 | W35: 2024-06-30 | X35: 2025-06-30 | Y35: 2026-06-30 | Z35: 2027-06-30 | AA35: 2028-06-30 | AB35: 2029-06-30 | AC35: 2030-06-30 | AD35: 2031-06-30 | AE35: 2032-06-30 | AF35: 2033-06-30 | AG35: =EOMONTH(AG34,Months_yr-1) -> 2034-06-30 | AH35: 2035-06-30 | AI35: 2036-06-30 | AJ35: 2037-06-30 | AK35: 2038-06-30 | AL35: 2039-06-30 | AM35: 2040-06-30 | AN35: 2041-06-30 | AO35: 2042-06-30 | AP35: 2043-06-30
E37: Year counter | P37: num | R37: =Q37+1 -> 1 | S37: 2 | T37: 3 | U37: 4 | V37: 5 | W37: 6 | X37: 7 | Y37: 8 | Z37: 9 | AA37: 10 | AB37: 11 | AC37: 12 | AD37: 13 | AE37: 14 | AF37: 15 | AG37: =AF37+1 -> 16 | AH37: =AG37+1 -> 17 | AI37: =AH37+1 -> 18 | AJ37: =AI37+1 -> 19 | AK37: =AJ37+1 -> 20 | AL37: =AK37+1 -> 21 | AM37: =AL37+1 -> 22 | AN37: =AM37+1 -> 23 | AO37: =AN37+1 -> 24 | AP37: =AO37+1 -> 25
E39: Calendar year | P39: year | R39: =YEAR(R34) -> 2018 | S39: 2019 | T39: 2020 | U39: 2021 | V39: 2022 | W39: 2023 | X39: 2024 | Y39: 2025 | Z39: 2026 | AA39: 2027 | AB39: 2028 | AC39: 2029 | AD39: 2030 | AE39: 2031 | AF39: 2032 | AG39: =YEAR(AG34) -> 2033 | AH39: 2034 | AI39: 2035 | AJ39: 2036 | AK39: 2037 | AL39: 2038 | AM39: 2039 | AN39: 2040 | AO39: 2041 | AP39: 2042
E40: Financial year | P40: year | R40: =IF(MONTH(R35)>FY_month,YEAR(R35)+1,YEAR(R35)) -> 2019 | S40: 2020 | T40: 2021 | U40: 2022 | V40: 2023 | W40: 2024 | X40: 2025 | Y40: 2026 | Z40: 2027 | AA40: 2028 | AB40: 2029 | AC40: 2030 | AD40: 2031 | AE40: 2032 | AF40: 2033 | AG40: =IF(MONTH(AG35)>FY_month,YEAR(AG35)+1,YEAR(AG35)) -> 2034 | AH40: 2035 | AI40: 2036 | AJ40: 2037 | AK40: 2038 | AL40: 2039 | AM40: 2040 | AN40: 2041 | AO40: 2042 | AP40: 2043
E41: Financial year | P41: year | R41: =R39&"-"&RIGHT(R40,2) -> 2018-19 | S41: =S39&"-"&RIGHT(S40,2) -> 2019-20 | T41: 2020-21 | U41: 2021-22 | V41: 2022-23 | W41: 2023-24 | X41: 2024-25 | Y41: 2025-26 | Z41: 2026-27 | AA41: 2027-28 | AB41: 2028-29 | AC41: 2029-30 | AD41: 2030-31 | AE41: 2031-32 | AF41: 2032-33 | AG41: =AG39&"-"&RIGHT(AG40,2) -> 2033-34 | AH41: 2034-35 | AI41: 2035-36 | AJ41: 2036-37 | AK41: 2037-38 | AL41: 2038-39 | AM41: 2039-40 | AN41: 2040-41 | AO41: 2041-42 | AP41: 2042-43
E42: Pre model start calendar year | P42: year | R42: =R39-$AF$37 -> 2003 | S42: =S39-$AF$37 -> 2004 | T42: 2005 | U42: 2006 | V42: 2007 | W42: 2008 | X42: 2009 | Y42: 2010 | Z42: 2011 | AA42: 2012 | AB42: 2013 | AC42: 2014 | AD42: 2015 | AE42: 2016 | AF42: 2017 | AG42: =AG39-$AF$37 -> 2018 | AH42: 2019 | AI42: 2020 | AJ42: 2021 | AK42: 2022 | AL42: 2023 | AM42: 2024 | AN42: 2025 | AO42: 2026 | AP42: 2027
E43: Pre model start financial year | P43: year | R43: =R40-$AF$37 -> 2004 | S43: =S40-$AF$37 -> 2005 | T43: 2006 | U43: 2007 | V43: 2008 | W43: 2009 | X43: 2010 | Y43: 2011 | Z43: 2012 | AA43: 2013 | AB43: 2014 | AC43: 2015 | AD43: 2016 | AE43: 2017 | AF43: 2018 | AG43: =AG40-$AF$37 -> 2019 | AH43: 2020 | AI43: 2021 | AJ43: 2022 | AK43: 2023 | AL43: 2024 | AM43: 2025 | AN43: 2026 | AO43: 2027 | AP43: 2028
E44: Pre model start financial year | P44: year | R44: =R42&"-"&RIGHT(R43,2) -> 2003-04 | S44: =S42&"-"&RIGHT(S43,2) -> 2004-05 | T44: 2005-06 | U44: 2006-07 | V44: 2007-08 | W44: 2008-09 | X44: 2009-10 | Y44: 2010-11 | Z44: 2011-12 | AA44: 2012-13 | AB44: 2013-14 | AC44: 2014-15 | AD44: 2015-16 | AE44: 2016-17 | AF44: 2017-18 | AG44: =AG42&"-"&RIGHT(AG43,2) -> 2018-19 | AH44: 2019-20 | AI44: 2020-21 | AJ44: 2021-22 | AK44: 2022-23 | AL44: 2023-24 | AM44: 2024-25 | AN44: 2025-26 | AO44: 2026-27 | AP44: 2027-28
E46: Pricing period | P46: num | R46: =ROUNDUP(R37/$I$17,0) -> 1 | S46: =ROUNDUP(S37/$I$17,0) -> 1 | T46: 1 | U46: 1 | V46: 1 | W46: 2 | X46: 2 | Y46: 2 | Z46: 2 | AA46: 2 | AB46: 3 | AC46: 3 | AD46: 3 | AE46: 3 | AF46: 3 | AG46: =ROUNDUP(AG37/$I$17,0) -> 4 | AH46: 4 | AI46: 4 | AJ46: 4 | AK46: 4 | AL46: 5 | AM46: 5 | AN46: 5 | AO46: 5 | AP46: 5
E47: NPV base date | P47: yes/no | R47: =IF($I$15=R$34,1,0) -> 0 | S47: 0 | T47: 0 | U47: 0 | V47: 0 | W47: 1 | X47: 0 | Y47: 0 | Z47: 0 | AA47: 0 | AB47: 0 | AC47: 0 | AD47: 0 | AE47: 0 | AF47: 0 | AG47: 0 | AH47: 0 | AI47: 0 | AJ47: 0 | AK47: 0 | AL47: 0 | AM47: 0 | AN47: 0 | AO47: 0 | AP47: 0
E48: NPV discount year | P48: num | R48: =IF(SUM($Q$47:Q47)=0,0,Q48+1) -> 0 | S48: =IF(SUM($Q$47:R47)=0,0,R48+1) -> 0 | T48: =IF(SUM($Q$47:S47)=0,0,S48+1) -> 0 | U48: =IF(SUM($Q$47:T47)=0,0,T48+1) -> 0 | V48: =IF(SUM($Q$47:U47)=0,0,U48+1) -> 0 | W48: =IF(SUM($Q$47:V47)=0,0,V48+1) -> 0 | X48: =IF(SUM($Q$47:W47)=0,0,W48+1) -> 1 | Y48: =IF(SUM($Q$47:X47)=0,0,X48+1) -> 2 | Z48: =IF(SUM($Q$47:Y47)=0,0,Y48+1) -> 3 | AA48: =IF(SUM($Q$47:Z47)=0,0,Z48+1) -> 4 | AB48: =IF(SUM($Q$47:AA47)=0,0,AA48+1) -> 5 | AC48: =IF(SUM($Q$47:AB47)=0,0,AB48+1) -> 6 | AD48: =IF(SUM($Q$47:AC47)=0,0,AC48+1) -> 7 | AE48: =IF(SUM($Q$47:AD47)=0,0,AD48+1) -> 8 | AF48: =IF(SUM($Q$47:AE47)=0,0,AE48+1) -> 9 | AG48: =IF(SUM($Q$47:AF47)=0,0,AF48+1) -> 10 | AH48: =IF(SUM($Q$47:AG47)=0,0,AG48+1) -> 11 | AI48: =IF(SUM($Q$47:AH47)=0,0,AH48+1) -> 12 | AJ48: =IF(SUM($Q$47:AI47)=0,0,AI48+1) -> 13 | AK48: =IF(SUM($Q$47:AJ47)=0,0,AJ48+1) -> 14 | AL48: =IF(SUM($Q$47:AK47)=0,0,AK48+1) -> 15 | AM48: =IF(SUM($Q$47:AL47)=0,0,AL48+1) -> 16 | AN48: =IF(SUM($Q$47:AM47)=0,0,AM48+1) -> 17 | AO48: =IF(SUM($Q$47:AN47)=0,0,AN48+1) -> 18 | AP48: =IF(SUM($Q$47:AO47)=0,0,AO48+1) -> 19
E49: NPV year adjustment | P49: num | R49: =ROUND(((BaseDate-$I$14)/R58)*SUM($Q$47:Q47),2) -> 0 | S49: =ROUND(((BaseDate-$I$14)/S58)*SUM($Q$47:R47),2) -> 0 | T49: =ROUND(((BaseDate-$I$14)/T58)*SUM($Q$47:S47),2) -> 0 | U49: =ROUND(((BaseDate-$I$14)/U58)*SUM($Q$47:T47),2) -> 0 | V49: =ROUND(((BaseDate-$I$14)/V58)*SUM($Q$47:U47),2) -> 0 | W49: =ROUND(((BaseDate-$I$14)/W58)*SUM($Q$47:V47),2) -> 0 | X49: =ROUND(((BaseDate-$I$14)/X58)*SUM($Q$47:W47),2) -> 1.5 | Y49: =ROUND(((BaseDate-$I$14)/Y58)*SUM($Q$47:X47),2) -> 1.5 | Z49: =ROUND(((BaseDate-$I$14)/Z58)*SUM($Q$47:Y47),2) -> 1.5 | AA49: =ROUND(((BaseDate-$I$14)/AA58)*SUM($Q$47:Z47),2) -> 1.49 | AB49: =ROUND(((BaseDate-$I$14)/AB58)*SUM($Q$47:AA47),2) -> 1.5 | AC49: =ROUND(((BaseDate-$I$14)/AC58)*SUM($Q$47:AB47),2) -> 1.5 | AD49: =ROUND(((BaseDate-$I$14)/AD58)*SUM($Q$47:AC47),2) -> 1.5 | AE49: =ROUND(((BaseDate-$I$14)/AE58)*SUM($Q$47:AD47),2) -> 1.49 | AF49: =ROUND(((BaseDate-$I$14)/AF58)*SUM($Q$47:AE47),2) -> 1.5 | AG49: =ROUND(((BaseDate-$I$14)/AG58)*SUM($Q$47:AF47),2) -> 1.5 | AH49: =ROUND(((BaseDate-$I$14)/AH58)*SUM($Q$47:AG47),2) -> 1.5 | AI49: =ROUND(((BaseDate-$I$14)/AI58)*SUM($Q$47:AH47),2) -> 1.49 | AJ49: =ROUND(((BaseDate-$I$14)/AJ58)*SUM($Q$47:AI47),2) -> 1.5 | AK49: =ROUND(((BaseDate-$I$14)/AK58)*SUM($Q$47:AJ47),2) -> 1.5 | AL49: =ROUND(((BaseDate-$I$14)/AL58)*SUM($Q$47:AK47),2) -> 1.5 | AM49: =ROUND(((BaseDate-$I$14)/AM58)*SUM($Q$47:AL47),2) -> 1.49 | AN49: =ROUND(((BaseDate-$I$14)/AN58)*SUM($Q$47:AM47),2) -> 1.5 | AO49: =ROUND(((BaseDate-$I$14)/AO58)*SUM($Q$47:AN47),2) -> 1.5 | AP49: =ROUND(((BaseDate-$I$14)/AP58)*SUM($Q$47:AO47),2) -> 1.5
E50: NPV adjusted discount year | P50: num | R50: =SUM(R48:R49) -> 0 | S50: =SUM(S48:S49) -> 0 | T50: 0 | U50: 0 | V50: 0 | W50: 0 | X50: 2.5 | Y50: 3.5 | Z50: 4.5 | AA50: 5.49 | AB50: 6.5 | AC50: 7.5 | AD50: 8.5 | AE50: 9.49 | AF50: 10.5 | AG50: =SUM(AG48:AG49) -> 11.5 | AH50: 12.5 | AI50: 13.49 | AJ50: 14.5 | AK50: 15.5 | AL50: 16.5 | AM50: 17.49 | AN50: 18.5 | AO50: 19.5 | AP50: 20.5
E51: Price setting year | P51: yes/no | R51: =IF($I$25=R$34,1,0) -> 0 | S51: 0 | T51: 0 | U51: 0 | V51: =IF($I$25=V$34,1,0) -> 0 | W51: 1 | X51: 0 | Y51: 0 | Z51: 0 | AA51: 0 | AB51: 0 | AC51: 0 | AD51: 0 | AE51: 0 | AF51: 0 | AG51: 0 | AH51: 0 | AI51: 0 | AJ51: 0 | AK51: 0 | AL51: 0 | AM51: 0 | AN51: 0 | AO51: 0 | AP51: 0
E52: Asset base depreciation flag | P52: yes/no | R52: =IF(Q52=1,1,R51) -> 0 | S52: =IF(R52=1,1,S51) -> 0 | T52: 0 | U52: 0 | V52: 0 | W52: 1 | X52: 1 | Y52: 1 | Z52: 1 | AA52: 1 | AB52: 1 | AC52: 1 | AD52: 1 | AE52: 1 | AF52: 1 | AG52: =IF(AF52=1,1,AG51) -> 1 | AH52: =IF(AG52=1,1,AH51) -> 1 | AI52: =IF(AH52=1,1,AI51) -> 1 | AJ52: =IF(AI52=1,1,AJ51) -> 1 | AK52: =IF(AJ52=1,1,AK51) -> 1 | AL52: =IF(AK52=1,1,AL51) -> 1 | AM52: =IF(AL52=1,1,AM51) -> 1 | AN52: =IF(AM52=1,1,AN51) -> 1 | AO52: =IF(AN52=1,1,AO51) -> 1 | AP52: =IF(AO52=1,1,AP51) -> 1
E53: Forecast year | P53: yes/no | R53: =IF(Q53=1,1,R51) -> 0 | S53: =IF(R53=1,1,S51) -> 0 | T53: 0 | U53: 0 | V53: 0 | W53: 1 | X53: 1 | Y53: 1 | Z53: 1 | AA53: 1 | AB53: 1 | AC53: 1 | AD53: 1 | AE53: 1 | AF53: 1 | AG53: =IF(AF53=1,1,AG51) -> 1 | AH53: =IF(AG53=1,1,AH51) -> 1 | AI53: =IF(AH53=1,1,AI51) -> 1 | AJ53: =IF(AI53=1,1,AJ51) -> 1 | AK53: =IF(AJ53=1,1,AK51) -> 1 | AL53: =IF(AK53=1,1,AL51) -> 1 | AM53: =IF(AL53=1,1,AM51) -> 1 | AN53: =IF(AM53=1,1,AN51) -> 1 | AO53: =IF(AN53=1,1,AO51) -> 1 | AP53: =IF(AO53=1,1,AP51) -> 1
E54: Tariff base year flag | P54: yes/no | R54: =IF($I$22=R41,1,0) -> 0 | S54: 0 | T54: 0 | U54: 0 | V54: 1 | W54: 0 | X54: 0 | Y54: 0 | Z54: 0 | AA54: 0 | AB54: 0 | AC54: 0 | AD54: 0 | AE54: 0 | AF54: 0 | AG54: =IF($I$22=AG41,1,0) -> 0 | AH54: 0 | AI54: 0 | AJ54: 0 | AK54: 0 | AL54: 0 | AM54: 0 | AN54: 0 | AO54: 0 | AP54: 0
E55: Tariff demand forecast flag | P55: yes/no | R55: =IF(Q55=1,1,R54) -> 0 | S55: =IF(R55=1,1,S54) -> 0 | T55: 0 | U55: 0 | V55: 1 | W55: 1 | X55: =IF(W55=1,1,X54) -> 1 | Y55: 1 | Z55: 1 | AA55: 1 | AB55: 1 | AC55: 1 | AD55: 1 | AE55: 1 | AF55: 1 | AG55: =IF(AF55=1,1,AG54) -> 1 | AH55: =IF(AG55=1,1,AH54) -> 1 | AI55: =IF(AH55=1,1,AI54) -> 1 | AJ55: =IF(AI55=1,1,AJ54) -> 1 | AK55: =IF(AJ55=1,1,AK54) -> 1 | AL55: =IF(AK55=1,1,AL54) -> 1 | AM55: =IF(AL55=1,1,AM54) -> 1 | AN55: =IF(AM55=1,1,AN54) -> 1 | AO55: =IF(AN55=1,1,AO54) -> 1 | AP55: =IF(AO55=1,1,AP54) -> 1
E56: Tariff base year demand growth flag | P56: yes/no | R56: =IF(Q56=1,1,Q54) -> 0 | S56: =IF(R56=1,1,R54) -> 0 | T56: 0 | U56: 0 | V56: 0 | W56: 1 | X56: 1 | Y56: 1 | Z56: 1 | AA56: 1 | AB56: 1 | AC56: 1 | AD56: 1 | AE56: 1 | AF56: 1 | AG56: =IF(AF56=1,1,AF54) -> 1 | AH56: =IF(AG56=1,1,AG54) -> 1 | AI56: =IF(AH56=1,1,AH54) -> 1 | AJ56: =IF(AI56=1,1,AI54) -> 1 | AK56: =IF(AJ56=1,1,AJ54) -> 1 | AL56: =IF(AK56=1,1,AK54) -> 1 | AM56: =IF(AL56=1,1,AL54) -> 1 | AN56: =IF(AM56=1,1,AM54) -> 1 | AO56: =IF(AN56=1,1,AN54) -> 1 | AP56: =IF(AO56=1,1,AO54) -> 1
E58: Days in period | P58: days | R58: =(R35-R34+1) -> 365 | S58: 366 | T58: 365 | U58: 365 | V58: 365 | W58: 366 | X58: 365 | Y58: 365 | Z58: 365 | AA58: 366 | AB58: 365 | AC58: 365 | AD58: 365 | AE58: 366 | AF58: 365 | AG58: =(AG35-AG34+1) -> 365 | AH58: 365 | AI58: 366 | AJ58: 365 | AK58: 365 | AL58: 365 | AM58: 366 | AN58: 365 | AO58: 365 | AP58: 365
E59: Year fraction per period | P59: % | R59: =(R58)/Days_yr -> 1 | S59: 1.002739726 | T59: 1 | U59: 1 | V59: 1 | W59: 1.002739726 | X59: 1 | Y59: 1 | Z59: 1 | AA59: 1.002739726 | AB59: 1 | AC59: 1 | AD59: 1 | AE59: 1.002739726 | AF59: 1 | AG59: =(AG58)/Days_yr -> 1 | AH59: 1 | AI59: 1.002739726 | AJ59: 1 | AK59: 1 | AL59: 1 | AM59: 1.002739726 | AN59: 1 | AO59: 1 | AP59: 1
C61: Towns/systems
E63: Warragul Drouin
E64: Traralgon
E65: Morwell
E66: Moe Newborough
E67: Sale
E68: System6
E69: System7
E70: System8
E71: System9
E72: System10
A75: End

Sheet Legend
A1: =UPPER(WorkBookTitle) -> GIPPSLAND WATER - NCC WATER
A2: =MID(CELL("filename",A1),FIND("]",CELL("filename",A1))+1,255) -> Legend
A3: =YEAR(Setup!$I$25)&" price period" -> 2023 price period
B5: Name ranges
E7: Description | H7: Description | K7: Range name
C9: General
E10: WorkBook title | H10: =Setup!I7&" - "&Setup!I8 -> Gippsland Water - NCC Water | K10: WorkBookTitle
C12: Timing
E13: Days in years | H13: 365 | K13: Days_yr
E14: Months per quarter | H14: 3 | K14: Months_qtr
E15: Months per half year | H15: 6 | K15: Months_hyr
E16: Quarters per year | H16: 4 | K16: Quarters_yr
E17: Months per year | H17: 12 | K17: Months_yr
E18: FY end month | H18: 6 | K18: FY_month
B20: Lists
C21: Asset classes
E22: Basin
E23: Bores
E24: Branch Sewer
E25: Disinfection
E26: Distribution Main
E27: Reservoir
E28: Sewer Emergency Basin
E29: Sewer Rising Main
E30: SPS
E31: Tank
E32: Transfer Main
E33: WPS
E34: WTP
E35: WWTP
C37: ESC Drivers
E38: Business Efficiency
E39: Compliance
E40: Growth
E41: Renewal
E42: Service Improvement
E43: Unregulated
C45: Towns/systems
E46: =Setup!E63 -> Warragul Drouin
E47: =Setup!E64 -> Traralgon
E48: =Setup!E65 -> Morwell
E49: =Setup!E66 -> Moe Newborough
E50: =Setup!E67 -> Sale
E51: =Setup!E68 -> System6
E52: =Setup!E69 -> System7
E53: =Setup!E70 -> System8
E54: =Setup!E71 -> System9
E55: =Setup!E72 -> System10
C57: Customer class
E58: Residential
E59: Non-residential
E60: Industrial
C62: Cap Switch
E63: On
E64: Off
B66: Cell styles
C67: Header 2
D68: Header 3
E69: [INPUT CELLS]
A78: End

Sheet DataOPEX
A1: =UPPER(WorkBookTitle) -> GIPPSLAND WATER - NCC WATER
A2: =MID(CELL("filename",A1),FIND("]",CELL("filename",A1))+1,255) -> DataOPEX
A3: =YEAR(Setup!$I$25)&" price period" -> 2023 price period
B5: Timing flags
E7: =Setup!E37 -> Year counter | F7: num | R7: =Setup!R37 -> 1 | S7: =Setup!S37 -> 2 | T7: =Setup!T37 -> 3 | U7: =Setup!U37 -> 4 | V7: =Setup!V37 -> 5 | W7: =Setup!W37 -> 6 | X7: =Setup!X37 -> 7 | Y7: =Setup!Y37 -> 8 | Z7: =Setup!Z37 -> 9 | AA7: =Setup!AA37 -> 10 | AB7: =Setup!AB37 -> 11 | AC7: =Setup!AC37 -> 12 | AD7: =Setup!AD37 -> 13 | AE7: =Setup!AE37 -> 14 | AF7: =Setup!AF37 -> 15 | AG7: =Setup!AG37 -> 16 | AH7: =Setup!AH37 -> 17 | AI7: =Setup!AI37 -> 18 | AJ7: =Setup!AJ37 -> 19 | AK7: =Setup!AK37 -> 20 | AL7: =Setup!AL37 -> 21 | AM7: =Setup!AM37 -> 22 | AN7: =Setup!AN37 -> 23 | AO7: =Setup!AO37 -> 24 | AP7: =Setup!AP37 -> 25
E8: =Setup!E41 -> Financial year | F8: year | R8: =Setup!R41 -> 2018-19 | S8: =Setup!S41 -> 2019-20 | T8: =Setup!T41 -> 2020-21 | U8: =Setup!U41 -> 2021-22 | V8: =Setup!V41 -> 2022-23 | W8: =Setup!W41 -> 2023-24 | X8: =Setup!X41 -> 2024-25 | Y8: =Setup!Y41 -> 2025-26 | Z8: =Setup!Z41 -> 2026-27 | AA8: =Setup!AA41 -> 2027-28 | AB8: =Setup!AB41 -> 2028-29 | AC8: =Setup!AC41 -> 2029-30 | AD8: =Setup!AD41 -> 2030-31 | AE8: =Setup!AE41 -> 2031-32 | AF8: =Setup!AF41 -> 2032-33 | AG8: =Setup!AG41 -> 2033-34 | AH8: =Setup!AH41 -> 2034-35 | AI8: =Setup!AI41 -> 2035-36 | AJ8: =Setup!AJ41 -> 2036-37 | AK8: =Setup!AK41 -> 2037-38 | AL8: =Setup!AL41 -> 2038-39 | AM8: =Setup!AM41 -> 2039-40 | AN8: =Setup!AN41 -> 2040-41 | AO8: =Setup!AO41 -> 2041-42 | AP8: =Setup!AP41 -> 2042-43
B10: OPEX
C11: Connections opex
D12: Operating expenditure directly attributable to connecting new cusmtomers
E13: System/Town | F13: Desciption
Q14: $
Q15: $
Q16: $
Q17: $
Q18: $
Q19: $
Q20: $
Q21: $
Q22: $
Q23: $
Q24: $
Q25: $
Q26: $
Q27: $
Q28: $
Q29: $
Q30: $
Q31: $
Q32: $
Q33: $
Q34: $
Q35: $
Q36: $
Q37: $
Q38: $
Q39: $
Q40: $
Q41: $
Q42: $
Q43: $
Q44: $
Q45: $
Q46: $
Q47: $
Q48: $
Q49: $
Q50: $
Q51: $
Q52: $
Q53: $
Q54: $
Q55: $
Q56: $
Q57: $
Q58: $
Q59: $
Q60: $
Q61: $
Q62: $
Q63: $
Q64: $
Q65: $
Q66: $
Q67: $
Q68: $
Q69: $
Q70: $
Q71: $
Q72: $
Q73: $
Q74: $
Q75: $
Q76: $
Q77: $
Q78: $
Q79: $
Q80: $
Q81: $
Q82: $
Q83: $
Q84: $
Q85: $
Q86: $
Q87: $
Q88: $
R89: =SUM(R14:R88) -> 0 | S89: =SUM(S14:S88) -> 0 | T89: 0 | U89: 0 | V89: 0 | W89: 0 | X89: 0 | Y89: 0 | Z89: 0 | AA89: 0 | AB89: 0 | AC89: 0 | AD89: 0 | AE89: 0 | AF89: =SUM(AF14:AF88) -> 0 | AG89: =SUM(AG14:AG88) -> 0 | AH89: 0 | AI89: 0 | AJ89: 0 | AK89: 0 | AL89: 0 | AM89: 0 | AN89: 0 | AO89: 0 | AP89: 0
A91: End

Sheet DataCAPEX
A1: =UPPER(WorkBookTitle) -> GIPPSLAND WATER - NCC WATER
A2: =MID(CELL("filename",A1),FIND("]",CELL("filename",A1))+1,255) -> DataCAPEX
A3: =YEAR(Setup!$I$25)&" price period" -> 2023 price period
B5: Timing flags
E7: =Setup!E37 -> Year counter | F7: num | R7: =Setup!R37 -> 1 | S7: =Setup!S37 -> 2 | T7: =Setup!T37 -> 3 | U7: =Setup!U37 -> 4 | V7: =Setup!V37 -> 5 | W7: =Setup!W37 -> 6 | X7: =Setup!X37 -> 7 | Y7: =Setup!Y37 -> 8 | Z7: =Setup!Z37 -> 9 | AA7: =Setup!AA37 -> 10 | AB7: =Setup!AB37 -> 11 | AC7: =Setup!AC37 -> 12 | AD7: =Setup!AD37 -> 13 | AE7: =Setup!AE37 -> 14 | AF7: =Setup!AF37 -> 15 | AG7: =Setup!AG37 -> 16 | AH7: =Setup!AH37 -> 17 | AI7: =Setup!AI37 -> 18 | AJ7: =Setup!AJ37 -> 19 | AK7: =Setup!AK37 -> 20 | AL7: =Setup!AL37 -> 21 | AM7: =Setup!AM37 -> 22 | AN7: =Setup!AN37 -> 23 | AO7: =Setup!AO37 -> 24 | AP7: =Setup!AP37 -> 25
E8: =Setup!E41 -> Financial year | F8: year | R8: =Setup!R41 -> 2018-19 | S8: =Setup!S41 -> 2019-20 | T8: =Setup!T41 -> 2020-21 | U8: =Setup!U41 -> 2021-22 | V8: =Setup!V41 -> 2022-23 | W8: =Setup!W41 -> 2023-24 | X8: =Setup!X41 -> 2024-25 | Y8: =Setup!Y41 -> 2025-26 | Z8: =Setup!Z41 -> 2026-27 | AA8: =Setup!AA41 -> 2027-28 | AB8: =Setup!AB41 -> 2028-29 | AC8: =Setup!AC41 -> 2029-30 | AD8: =Setup!AD41 -> 2030-31 | AE8: =Setup!AE41 -> 2031-32 | AF8: =Setup!AF41 -> 2032-33 | AG8: =Setup!AG41 -> 2033-34 | AH8: =Setup!AH41 -> 2034-35 | AI8: =Setup!AI41 -> 2035-36 | AJ8: =Setup!AJ41 -> 2036-37 | AK8: =Setup!AK41 -> 2037-38 | AL8: =Setup!AL41 -> 2038-39 | AM8: =Setup!AM41 -> 2039-40 | AN8: =Setup!AN41 -> 2040-41 | AO8: =Setup!AO41 -> 2041-42 | AP8: =Setup!AP41 -> 2042-43
B10: CAPEX
C11: Growth Capex by system by asset class
E13: System/Town | F13: Desciption | G13: Asset Class
E14: Warragul Drouin | F14: Drouin | G14: WTP | Q14: $ | W14: ='PS23 Growth Capex - NCCs'!D13*'Connections Data'!$X$8 -> 115404.5864 | X14: ='PS23 Growth Capex - NCCs'!E13*'Connections Data'!$X$8 -> 113028.944 | Y14: ='PS23 Growth Capex - NCCs'!F13*'Connections Data'!$X$8 -> 619617.4121 | Z14: ='PS23 Growth Capex - NCCs'!G13*'Connections Data'!$X$8 -> 954416.4033 | AA14: ='PS23 Growth Capex - NCCs'!H13*'Connections Data'!$X$8 -> 23799.39254 | AB14: ='PS23 Growth Capex - NCCs'!I13*'Connections Data'!$X$8 -> 0 | AC14: ='PS23 Growth Capex - NCCs'!J13*'Connections Data'!$X$8 -> 24564.14185 | AD14: ='PS23 Growth Capex - NCCs'!K13*'Connections Data'!$X$8 -> 196370.5963 | AE14: ='PS23 Growth Capex - NCCs'!L13*'Connections Data'!$X$8 -> 0 | AF14: ='PS23 Growth Capex - NCCs'!M13*'Connections Data'!$X$8 -> 0 | AG14: ='PS23 Growth Capex - NCCs'!N13*'Connections Data'!$X$8 -> 0 | AH14: ='PS23 Growth Capex - NCCs'!O13*'Connections Data'!$X$8 -> 0 | AI14: ='PS23 Growth Capex - NCCs'!P13*'Connections Data'!$X$8 -> 0 | AJ14: ='PS23 Growth Capex - NCCs'!Q13*'Connections Data'!$X$8 -> 0 | AK14: ='PS23 Growth Capex - NCCs'!R13*'Connections Data'!$X$8 -> 0 | AL14: ='PS23 Growth Capex - NCCs'!S13*'Connections Data'!$X$8 -> 0 | AM14: ='PS23 Growth Capex - NCCs'!T13*'Connections Data'!$X$8 -> 0 | AN14: ='PS23 Growth Capex - NCCs'!U13*'Connections Data'!$X$8 -> 0 | AO14: ='PS23 Growth Capex - NCCs'!V13*'Connections Data'!$X$8 -> 0 | AP14: ='PS23 Growth Capex - NCCs'!W13*'Connections Data'!$X$8 -> 0
E15: Moe Newborough | F15: Moe | G15: WTP | Q15: $ | W15: ='PS23 Growth Capex - NCCs'!D14*'Connections Data'!$X$15 -> 11521.79226 | X15: ='PS23 Growth Capex - NCCs'!E14*'Connections Data'!$X$15 -> 0 | Y15: ='PS23 Growth Capex - NCCs'!F14*'Connections Data'!$X$15 -> 0 | Z15: ='PS23 Growth Capex - NCCs'!G14*'Connections Data'!$X$15 -> 0 | AA15: ='PS23 Growth Capex - NCCs'!H14*'Connections Data'!$X$15 -> 9323.894482 | AB15: ='PS23 Growth Capex - NCCs'!I14*'Connections Data'!$X$15 -> 54123.23279 | AC15: ='PS23 Growth Capex - NCCs'!J14*'Connections Data'!$X$15 -> 34737.08754 | AD15: ='PS23 Growth Capex - NCCs'!K14*'Connections Data'!$X$15 -> 0 | AE15: ='PS23 Growth Capex - NCCs'!L14*'Connections Data'!$X$15 -> 0 | AF15: ='PS23 Growth Capex - NCCs'!M14*'Connections Data'!$X$15 -> 0 | AG15: ='PS23 Growth Capex - NCCs'!N14*'Connections Data'!$X$15 -> 0 | AH15: ='PS23 Growth Capex - NCCs'!O14*'Connections Data'!$X$15 -> 86816.96225 | AI15: ='PS23 Growth Capex - NCCs'!P14*'Connections Data'!$X$15 -> 434050.4691 | AJ15: ='PS23 Growth Capex - NCCs'!Q14*'Connections Data'!$X$15 -> 434050.4691 | AK15: ='PS23 Growth Capex - NCCs'!R14*'Connections Data'!$X$15 -> 0 | AL15: ='PS23 Growth Capex - NCCs'!S14*'Connections Data'!$X$15 -> 0 | AM15: ='PS23 Growth Capex - NCCs'!T14*'Connections Data'!$X$15 -> 0 | AN15: ='PS23 Growth Capex - NCCs'!U14*'Connections Data'!$X$15 -> 868083.7671 | AO15: ='PS23 Growth Capex - NCCs'!V14*'Connections Data'!$X$15 -> 0 | AP15: ='PS23 Growth Capex - NCCs'!W14*'Connections Data'!$X$15 -> 0
E16: Morwell | F16: Morwell | G16: WTP | Q16: $ | W16: ='PS23 Growth Capex - NCCs'!D26*'Connections Data'!$X$22 -> 32859.641 | X16: ='PS23 Growth Capex - NCCs'!E26*'Connections Data'!$X$22 -> 52772.58344 | Y16: ='PS23 Growth Capex - NCCs'!F26*'Connections Data'!$X$22 -> 0 | Z16: ='PS23 Growth Capex - NCCs'!G26*'Connections Data'!$X$22 -> 0 | AA16: ='PS23 Growth Capex - NCCs'!H26*'Connections Data'!$X$22 -> 18992.8725 | AB16: ='PS23 Growth Capex - NCCs'!I26*'Connections Data'!$X$22 -> 164917.8439 | AC16: ='PS23 Growth Capex - NCCs'!J26*'Connections Data'!$X$22 -> 241433.8651 | AD16: ='PS23 Growth Capex - NCCs'!K26*'Connections Data'!$X$22 -> 196594.5378 | AE16: ='PS23 Growth Capex - NCCs'!L26*'Connections Data'!$X$22 -> 526214.2909 | AF16: ='PS23 Growth Capex - NCCs'!M26*'Connections Data'!$X$22 -> 103273.1574 | AG16: ='PS23 Growth Capex - NCCs'!N26*'Connections Data'!$X$22 -> 93884.68856 | AH16: ='PS23 Growth Capex - NCCs'!O26*'Connections Data'!$X$22 -> 93884.68856 | AI16: ='PS23 Growth Capex - NCCs'!P26*'Connections Data'!$X$22 -> 95865.65549 | AJ16: ='PS23 Growth Capex - NCCs'!Q26*'Connections Data'!$X$22 -> 118660.8579 | AK16: ='PS23 Growth Capex - NCCs'!R26*'Connections Data'!$X$22 -> 474634.043 | AL16: ='PS23 Growth Capex - NCCs'!S26*'Connections Data'!$X$22 -> 474634.043 | AM16: ='PS23 Growth Capex - NCCs'!T26*'Connections Data'!$X$22 -> 474634.043 | AN16: ='PS23 Growth Capex - NCCs'!U26*'Connections Data'!$X$22 -> 949268.086 | AO16: ='PS23 Growth Capex - NCCs'!V26*'Connections Data'!$X$22 -> 0 | AP16: ='PS23 Growth Capex - NCCs'!W26*'Connections Data'!$X$22 -> 0
E17: Sale | F17: Sale | G17: WTP | Q17: $ | W17: ='PS23 Growth Capex - NCCs'!D16*'Connections Data'!$X$26 -> 9046.536237 | X17: ='PS23 Growth Capex - NCCs'!E16*'Connections Data'!$X$26 -> 49344.74311 | Y17: ='PS23 Growth Capex - NCCs'!F16*'Connections Data'!$X$26 -> 17769.37096 | Z17: ='PS23 Growth Capex - NCCs'!G16*'Connections Data'!$X$26 -> 172346.5487 | AA17: ='PS23 Growth Capex - NCCs'!H16*'Connections Data'!$X$26 -> 57448.95924 | AB17: ='PS23 Growth Capex - NCCs'!I16*'Connections Data'!$X$26 -> 5839.206193 | AC17: ='PS23 Growth Capex - NCCs'!J16*'Connections Data'!$X$26 -> 0 | AD17: ='PS23 Growth Capex - NCCs'!K16*'Connections Data'!$X$26 -> 0 | AE17: ='PS23 Growth Capex - NCCs'!L16*'Connections Data'!$X$26 -> 0 | AF17: ='PS23 Growth Capex - NCCs'!M16*'Connections Data'!$X$26 -> 0 | AG17: ='PS23 Growth Capex - NCCs'!N16*'Connections Data'!$X$26 -> 0 | AH17: ='PS23 Growth Capex - NCCs'!O16*'Connections Data'!$X$26 -> 0 | AI17: ='PS23 Growth Capex - NCCs'!P16*'Connections Data'!$X$26 -> 0 | AJ17: ='PS23 Growth Capex - NCCs'!Q16*'Connections Data'!$X$26 -> 0 | AK17: ='PS23 Growth Capex - NCCs'!R16*'Connections Data'!$X$26 -> 0 | AL17: ='PS23 Growth Capex - NCCs'!S16*'Connections Data'!$X$26 -> 0 | AM17: ='PS23 Growth Capex - NCCs'!T16*'Connections Data'!$X$26 -> 16645.62668 | AN17: ='PS23 Growth Capex - NCCs'!U16*'Connections Data'!$X$26 -> 297243.8894 | AO17: ='PS23 Growth Capex - NCCs'!V16*'Connections Data'!$X$26 -> 0 | AP17: ='PS23 Growth Capex - NCCs'!W16*'Connections Data'!$X$26 -> 0
E18: Traralgon | F18: Traralgon | G18: WTP | Q18: $ | W18: ='PS23 Growth Capex - NCCs'!D27*'Connections Data'!$X$24 -> 134706.987 | X18: ='PS23 Growth Capex - NCCs'!E27*'Connections Data'!$X$24 -> 567595.9504 | Y18: ='PS23 Growth Capex - NCCs'!F27*'Connections Data'!$X$24 -> 1112070.719 | Z18: ='PS23 Growth Capex - NCCs'!G27*'Connections Data'!$X$24 -> 182543.3205 | AA18: ='PS23 Growth Capex - NCCs'!H27*'Connections Data'!$X$24 -> 0 | AB18: ='PS23 Growth Capex - NCCs'!I27*'Connections Data'!$X$24 -> 46220.0028 | AC18: ='PS23 Growth Capex - NCCs'!J27*'Connections Data'!$X$24 -> 67843.00362 | AD18: ='PS23 Growth Capex - NCCs'!K27*'Connections Data'!$X$24 -> 67843.00362 | AE18: ='PS23 Growth Capex - NCCs'!L27*'Connections Data'!$X$24 -> 0 | AF18: ='PS23 Growth Capex - NCCs'!M27*'Connections Data'!$X$24 -> 0 | AG18: ='PS23 Growth Capex - NCCs'!N27*'Connections Data'!$X$24 -> 0 | AH18: ='PS23 Growth Capex - NCCs'!O27*'Connections Data'!$X$24 -> 0 | AI18: ='PS23 Growth Capex - NCCs'!P27*'Connections Data'!$X$24 -> 226091.1699 | AJ18: ='PS23 Growth Capex - NCCs'!Q27*'Connections Data'!$X$24 -> 327855.6754 | AK18: ='PS23 Growth Capex - NCCs'!R27*'Connections Data'!$X$24 -> 1243512.615 | AL18: ='PS23 Growth Capex - NCCs'!S27*'Connections Data'!$X$24 -> 2267933.396 | AM18: ='PS23 Growth Capex - NCCs'!T27*'Connections Data'!$X$24 -> 2267933.396 | AN18: ='PS23 Growth Capex - NCCs'!U27*'Connections Data'!$X$24 -> 3398495.635 | AO18: ='PS23 Growth Capex - NCCs'!V27*'Connections Data'!$X$24 -> 0 | AP18: ='PS23 Growth Capex - NCCs'!W27*'Connections Data'!$X$24 -> 0
E19: Morwell | F19: Traralgon South | G19: WTP | Q19: $ | W19: ='PS23 Growth Capex - NCCs'!D18*'Connections Data'!$X$28 -> 0 | X19: ='PS23 Growth Capex - NCCs'!E18*'Connections Data'!$X$28 -> 0 | Y19: ='PS23 Growth Capex - NCCs'!F18*'Connections Data'!$X$28 -> 0 | Z19: ='PS23 Growth Capex - NCCs'!G18*'Connections Data'!$X$28 -> 0 | AA19: ='PS23 Growth Capex - NCCs'!H18*'Connections Data'!$X$28 -> 0 | AB19: ='PS23 Growth Capex - NCCs'!I18*'Connections Data'!$X$28 -> 0 | AC19: ='PS23 Growth Capex - NCCs'!J18*'Connections Data'!$X$28 -> 0 | AD19: ='PS23 Growth Capex - NCCs'!K18*'Connections Data'!$X$28 -> 0 | AE19: ='PS23 Growth Capex - NCCs'!L18*'Connections Data'!$X$28 -> 0 | AF19: ='PS23 Growth Capex - NCCs'!M18*'Connections Data'!$X$28 -> 0 | AG19: ='PS23 Growth Capex - NCCs'!N18*'Connections Data'!$X$28 -> 0 | AH19: ='PS23 Growth Capex - NCCs'!O18*'Connections Data'!$X$28 -> 0 | AI19: ='PS23 Growth Capex - NCCs'!P18*'Connections Data'!$X$28 -> 0 | AJ19: ='PS23 Growth Capex - NCCs'!Q18*'Connections Data'!$X$28 -> 0 | AK19: ='PS23 Growth Capex - NCCs'!R18*'Connections Data'!$X$28 -> 0 | AL19: ='PS23 Growth Capex - NCCs'!S18*'Connections Data'!$X$28 -> 0 | AM19: ='PS23 Growth Capex - NCCs'!T18*'Connections Data'!$X$28 -> 0 | AN19: ='PS23 Growth Capex - NCCs'!U18*'Connections Data'!$X$28 -> 0 | AO19: ='PS23 Growth Capex - NCCs'!V18*'Connections Data'!$X$28 -> 0 | AP19: ='PS23 Growth Capex - NCCs'!W18*'Connections Data'!$X$28 -> 0
E20: Warragul Drouin | F20: Warragul | G20: WTP | Q20: $ | W20: ='PS23 Growth Capex - NCCs'!D19*'Connections Data'!$X$8 -> 6561133.634 | X20: ='PS23 Growth Capex - NCCs'!E19*'Connections Data'!$X$8 -> 183114.512 | Y20: ='PS23 Growth Capex - NCCs'!F19*'Connections Data'!$X$8 -> 441869.4762 | Z20: ='PS23 Growth Capex - NCCs'!G19*'Connections Data'!$X$8 -> 118782.1173 | AA20: ='PS23 Growth Capex - NCCs'!H19*'Connections Data'!$X$8 -> 109279.5479 | AB20: ='PS23 Growth Capex - NCCs'!I19*'Connections Data'!$X$8 -> 3165990.464 | AC20: ='PS23 Growth Capex - NCCs'!J19*'Connections Data'!$X$8 -> 2569162.171 | AD20: ='PS23 Growth Capex - NCCs'!K19*'Connections Data'!$X$8 -> 3275725.717 | AE20: ='PS23 Growth Capex - NCCs'!L19*'Connections Data'!$X$8 -> 1626697.34 | AF20: ='PS23 Growth Capex - NCCs'!M19*'Connections Data'!$X$8 -> 708701.6245 | AG20: ='PS23 Growth Capex - NCCs'!N19*'Connections Data'!$X$8 -> 2213100.896 | AH20: ='PS23 Growth Capex - NCCs'!O19*'Connections Data'!$X$8 -> 6793909.492 | AI20: ='PS23 Growth Capex - NCCs'!P19*'Connections Data'!$X$8 -> 5049522.831 | AJ20: ='PS23 Growth Capex - NCCs'!Q19*'Connections Data'!$X$8 -> 7208296.505 | AK20: ='PS23 Growth Capex - NCCs'!R19*'Connections Data'!$X$8 -> 4568670.608 | AL20: ='PS23 Growth Capex - NCCs'!S19*'Connections Data'!$X$8 -> 227681.5624 | AM20: ='PS23 Growth Capex - NCCs'!T19*'Connections Data'!$X$8 -> 1540523.48 | AN20: ='PS23 Growth Capex - NCCs'!U19*'Connections Data'!$X$8 -> 3583254.886 | AO20: ='PS23 Growth Capex - NCCs'!V19*'Connections Data'!$X$8 -> 0 | AP20: ='PS23 Growth Capex - NCCs'!W19*'Connections Data'!$X$8 -> 0
Q21: $
Q22: $
Q23: $
Q24: $
Q25: $
Q26: $
Q27: $
Q28: $
Q29: $
Q30: $
Q31: $
Q32: $
Q33: $
Q34: $
Q35: $
Q36: $
Q37: $
Q38: $
Q39: $
Q40: $
Q41: $
Q42: $
Q43: $
Q44: $
Q45: $
Q46: $
Q47: $
Q48: $
Q49: $
Q50: $
Q51: $
Q52: $
Q53: $
Q54: $
Q55: $
Q56: $
Q57: $
Q58: $
Q59: $
Q60: $
Q61: $
Q62: $
Q63: $
Q64: $
Q65: $
Q66: $
Q67: $
Q68: $
Q69: $
Q70: $
Q71: $
Q72: $
Q73: $
Q74: $
Q75: $
Q76: $
Q77: $
Q78: $
Q79: $
Q80: $
Q81: $
Q82: $
Q83: $
Q84: $
Q85: $
Q86: $
Q87: $
Q88: $
Q89: $
Q90: $
Q91: $
Q92: $
Q93: $
Q94: $
Q95: $
Q96: $
Q97: $
Q98: $
Q99: $
Q100: $
Q101: $
Q102: $
Q103: $
Q104: $
Q105: $
Q106: $
Q107: $
Q108: $
Q109: $
Q110: $
Q111: $
Q112: $
Q113: $
Q114: $
Q115: $
Q116: $
Q117: $
Q118: $
Q119: $
Q120: $
Q121: $
Q122: $
Q123: $
Q124: $
Q125: $
Q126: $
Q127: $
Q128: $
Q129: $
Q130: $
Q131: $
Q132: $
Q133: $
Q134: $
Q135: $
Q136: $
Q137: $
Q138: $
Q139: $
Q140: $
Q141: $
Q142: $
Q143: $
Q144: $
Q145: $
Q146: $
Q147: $
Q148: $
Q149: $
Q150: $
Q151: $
Q152: $
Q153: $
Q154: $
Q155: $
Q156: $
Q157: $
Q158: $
Q159: $
Q160: $
Q161: $
Q162: $
Q163: $
Q164: $
Q165: $
Q166: $
Q167: $
Q168: $
Q169: $
Q170: $
Q171: $
Q172: $
Q173: $
Q174: $
Q175: $
Q176: $
Q177: $
Q178: $
Q179: $
Q180: $
Q181: $
Q182: $
Q183: $
Q184: $
Q185: $
Q186: $
Q187: $
Q188: $
Q189: $
Q190: $
Q191: $
Q192: $
Q193: $
Q194: $
Q195: $
Q196: $
Q197: $
Q198: $
Q199: $
Q200: $
Q201: $
Q202: $
Q203: $
Q204: $
... 16 more rows

Sheet DataCON&ASSUMPTIONS
A1: =UPPER(WorkBookTitle) -> GIPPSLAND WATER - NCC WATER
A2: =MID(CELL("filename",A1),FIND("]",CELL("filename",A1))+1,255) -> DataCON&ASSUMPTIONS
A3: =YEAR(Setup!$I$25)&" price period" -> 2023 price period
B5: Timing flags
E7: =Setup!E37 -> Year counter | F7: num | R7: =Setup!R37 -> 1 | S7: =Setup!S37 -> 2 | T7: =Setup!T37 -> 3 | U7: =Setup!U37 -> 4 | V7: =Setup!V37 -> 5 | W7: =Setup!W37 -> 6 | X7: =Setup!X37 -> 7 | Y7: =Setup!Y37 -> 8 | Z7: =Setup!Z37 -> 9 | AA7: =Setup!AA37 -> 10 | AB7: =Setup!AB37 -> 11 | AC7: =Setup!AC37 -> 12 | AD7: =Setup!AD37 -> 13 | AE7: =Setup!AE37 -> 14 | AF7: =Setup!AF37 -> 15 | AG7: =Setup!AG37 -> 16 | AH7: =Setup!AH37 -> 17 | AI7: =Setup!AI37 -> 18 | AJ7: =Setup!AJ37 -> 19 | AK7: =Setup!AK37 -> 20 | AL7: =Setup!AL37 -> 21 | AM7: =Setup!AM37 -> 22 | AN7: =Setup!AN37 -> 23 | AO7: =Setup!AO37 -> 24 | AP7: =Setup!AP37 -> 25
E8: =Setup!E41 -> Financial year | F8: year | R8: =Setup!R41 -> 2018-19 | S8: =Setup!S41 -> 2019-20 | T8: =Setup!T41 -> 2020-21 | U8: =Setup!U41 -> 2021-22 | V8: =Setup!V41 -> 2022-23 | W8: =Setup!W41 -> 2023-24 | X8: =Setup!X41 -> 2024-25 | Y8: =Setup!Y41 -> 2025-26 | Z8: =Setup!Z41 -> 2026-27 | AA8: =Setup!AA41 -> 2027-28 | AB8: =Setup!AB41 -> 2028-29 | AC8: =Setup!AC41 -> 2029-30 | AD8: =Setup!AD41 -> 2030-31 | AE8: =Setup!AE41 -> 2031-32 | AF8: =Setup!AF41 -> 2032-33 | AG8: =Setup!AG41 -> 2033-34 | AH8: =Setup!AH41 -> 2034-35 | AI8: =Setup!AI41 -> 2035-36 | AJ8: =Setup!AJ41 -> 2036-37 | AK8: =Setup!AK41 -> 2037-38 | AL8: =Setup!AL41 -> 2038-39 | AM8: =Setup!AM41 -> 2039-40 | AN8: =Setup!AN41 -> 2040-41 | AO8: =Setup!AO41 -> 2041-42 | AP8: =Setup!AP41 -> 2042-43
B10: New Customers
C11: Water Connections
E13: System/Town | F13: Customer Class
E14: Warragul Drouin | F14: Residential | Q14: Con | W14: ='Connections Data'!D9 -> 683 | X14: ='Connections Data'!E9 -> 683 | Y14: ='Connections Data'!F9 -> 683 | Z14: ='Connections Data'!G9 -> 683 | AA14: ='Connections Data'!H9 -> 683 | AB14: ='Connections Data'!I9 -> 683 | AC14: ='Connections Data'!J9 -> 683 | AD14: ='Connections Data'!K9 -> 683 | AE14: ='Connections Data'!L9 -> 683 | AF14: ='Connections Data'!M9 -> 683 | AG14: ='Connections Data'!N9 -> 683 | AH14: ='Connections Data'!O9 -> 683 | AI14: ='Connections Data'!P9 -> 683 | AJ14: ='Connections Data'!Q9 -> 683 | AK14: ='Connections Data'!R9 -> 683 | AL14: ='Connections Data'!S9 -> 683 | AM14: ='Connections Data'!T9 -> 683 | AN14: ='Connections Data'!U9 -> 683 | AO14: ='Connections Data'!V9 -> 683 | AP14: ='Connections Data'!W9 -> 683
E15: Traralgon | F15: Residential | Q15: Con | W15: ='Connections Data'!D25 -> 178 | X15: ='Connections Data'!E25 -> 178 | Y15: ='Connections Data'!F25 -> 178 | Z15: ='Connections Data'!G25 -> 178 | AA15: ='Connections Data'!H25 -> 178 | AB15: ='Connections Data'!I25 -> 178 | AC15: ='Connections Data'!J25 -> 178 | AD15: ='Connections Data'!K25 -> 178 | AE15: ='Connections Data'!L25 -> 178 | AF15: ='Connections Data'!M25 -> 178 | AG15: ='Connections Data'!N25 -> 178 | AH15: ='Connections Data'!O25 -> 178 | AI15: ='Connections Data'!P25 -> 178 | AJ15: ='Connections Data'!Q25 -> 178 | AK15: ='Connections Data'!R25 -> 178 | AL15: ='Connections Data'!S25 -> 178 | AM15: ='Connections Data'!T25 -> 178 | AN15: ='Connections Data'!U25 -> 178 | AO15: ='Connections Data'!V25 -> 178 | AP15: ='Connections Data'!W25 -> 178
E16: Morwell | F16: Residential | Q16: Con | W16: ='Connections Data'!D23 -> 54 | X16: ='Connections Data'!E23 -> 54 | Y16: ='Connections Data'!F23 -> 54 | Z16: ='Connections Data'!G23 -> 54 | AA16: ='Connections Data'!H23 -> 54 | AB16: ='Connections Data'!I23 -> 54 | AC16: ='Connections Data'!J23 -> 54 | AD16: ='Connections Data'!K23 -> 54 | AE16: ='Connections Data'!L23 -> 54 | AF16: ='Connections Data'!M23 -> 54 | AG16: ='Connections Data'!N23 -> 54 | AH16: ='Connections Data'!O23 -> 54 | AI16: ='Connections Data'!P23 -> 54 | AJ16: ='Connections Data'!Q23 -> 54 | AK16: ='Connections Data'!R23 -> 54 | AL16: ='Connections Data'!S23 -> 54 | AM16: ='Connections Data'!T23 -> 54 | AN16: ='Connections Data'!U23 -> 54 | AO16: ='Connections Data'!V23 -> 54 | AP16: ='Connections Data'!W23 -> 54
E17: Moe Newborough | F17: Residential | Q17: Con | W17: ='Connections Data'!D16 -> 114 | X17: ='Connections Data'!E16 -> 114 | Y17: ='Connections Data'!F16 -> 114 | Z17: ='Connections Data'!G16 -> 114 | AA17: ='Connections Data'!H16 -> 114 | AB17: ='Connections Data'!I16 -> 114 | AC17: ='Connections Data'!J16 -> 114 | AD17: ='Connections Data'!K16 -> 114 | AE17: ='Connections Data'!L16 -> 114 | AF17: ='Connections Data'!M16 -> 114 | AG17: ='Connections Data'!N16 -> 114 | AH17: ='Connections Data'!O16 -> 114 | AI17: ='Connections Data'!P16 -> 114 | AJ17: ='Connections Data'!Q16 -> 114 | AK17: ='Connections Data'!R16 -> 114 | AL17: ='Connections Data'!S16 -> 114 | AM17: ='Connections Data'!T16 -> 114 | AN17: ='Connections Data'!U16 -> 114 | AO17: ='Connections Data'!V16 -> 114 | AP17: ='Connections Data'!W16 -> 114
E18: Sale | F18: Residential | Q18: Con | W18: ='Connections Data'!D27 -> 69 | X18: ='Connections Data'!E27 -> 69 | Y18: ='Connections Data'!F27 -> 69 | Z18: ='Connections Data'!G27 -> 69 | AA18: ='Connections Data'!H27 -> 69 | AB18: ='Connections Data'!I27 -> 69 | AC18: ='Connections Data'!J27 -> 69 | AD18: ='Connections Data'!K27 -> 69 | AE18: ='Connections Data'!L27 -> 69 | AF18: ='Connections Data'!M27 -> 69 | AG18: ='Connections Data'!N27 -> 69 | AH18: ='Connections Data'!O27 -> 69 | AI18: ='Connections Data'!P27 -> 69 | AJ18: ='Connections Data'!Q27 -> 69 | AK18: ='Connections Data'!R27 -> 69 | AL18: ='Connections Data'!S27 -> 69 | AM18: ='Connections Data'!T27 -> 69 | AN18: ='Connections Data'!U27 -> 69 | AO18: ='Connections Data'!V27 -> 69 | AP18: ='Connections Data'!W27 -> 69
Q19: Con
Q20: Con
Q21: Con
Q22: Con
Q23: Con
Q24: Con
Q25: Con
Q26: Con
Q27: Con
Q28: Con
Q29: Con
Q30: Con
Q31: Con
Q32: Con
Q33: Con
Q34: Con
Q35: Con
Q36: Con
Q37: Con
Q38: Con
Q39: Con
Q40: Con
Q41: Con
Q42: Con
Q43: Con
B45: Finance
C46: WACC
E48: WACC | F48: 0.0299
B50: Tax
C51: Tax rate
E53: Corporate tax rate
B55: Franking credits
C56: Value of franking credits
E58: Value of franking credits | F58: 0.5
C60: Gifted assets
E62: System/Town | F62: Customer Class
Q63: $ | R63: 100 | S63: 100 | T63: 100 | U63: 100 | V63: 100
Q64: $
Q65: $
Q66: $
Q67: $
Q68: $
Q69: $
Q70: $
Q71: $
Q72: $
C74: Tax depreciation
E76: System/Town | F76: Customer Class
E77: Warragul Drouin | Q77: $ | R77: 100 | S77: 100 | T77: 100 | U77: 100 | V77: 100 | W77: ='Warragul Drouin'!W21/80 -> 83456.72775 | X77: ='Warragul Drouin'!X21/80 -> 3701.7932 | Y77: ='Warragul Drouin'!Y21/80 -> 13268.5861 | Z77: ='Warragul Drouin'!Z21/80 -> 13414.98151 | AA77: ='Warragul Drouin'!AA21/80 -> 1663.486755 | AB77: ='Warragul Drouin'!AB21/80 -> 39574.8808 | AC77: ='Warragul Drouin'!AC21/80 -> 32421.57891 | AD77: ='Warragul Drouin'!AD21/80 -> 43401.20392 | AE77: ='Warragul Drouin'!AE21/80 -> 20333.71674 | AF77: ='Warragul Drouin'!AF21/80 -> 8858.770306 | AG77: ='Warragul Drouin'!AG21/80 -> 27663.7612 | AH77: ='Warragul Drouin'!AH21/80 -> 84923.86865 | AI77: ='Warragul Drouin'!AI21/80 -> 63119.03538 | AJ77: ='Warragul Drouin'!AJ21/80 -> 90103.70631 | AK77: ='Warragul Drouin'!AK21/80 -> 57108.38259 | AL77: ='Warragul Drouin'!AL21/80 -> 2846.01953 | AM77: ='Warragul Drouin'!AM21/80 -> 19256.5435 | AN77: ='Warragul Drouin'!AN21/80 -> 44790.68608 | AO77: ='Warragul Drouin'!AO21/80 -> 0 | AP77: ='Warragul Drouin'!AP21/80 -> 0
E78: Traralgon | Q78: $ | W78: =Traralgon!W21/80 -> 1683.837338 | X78: =Traralgon!X21/80 -> 7094.94938 | Y78: =Traralgon!Y21/80 -> 13900.88399 | Z78: =Traralgon!Z21/80 -> 2281.791506 | AA78: =Traralgon!AA21/80 -> 0 | AB78: =Traralgon!AB21/80 -> 577.750035 | AC78: =Traralgon!AC21/80 -> 848.0375453 | AD78: =Traralgon!AD21/80 -> 848.0375453 | AE78: =Traralgon!AE21/80 -> 0 | AF78: =Traralgon!AF21/80 -> 0 | AG78: =Traralgon!AG21/80 -> 0 | AH78: =Traralgon!AH21/80 -> 0 | AI78: =Traralgon!AI21/80 -> 2826.139624 | AJ78: =Traralgon!AJ21/80 -> 4098.195942 | AK78: =Traralgon!AK21/80 -> 15543.90769 | AL78: =Traralgon!AL21/80 -> 28349.16745 | AM78: =Traralgon!AM21/80 -> 28349.16745 | AN78: =Traralgon!AN21/80 -> 42481.19544 | AO78: =Traralgon!AO21/80 -> 0 | AP78: =Traralgon!AP21/80 -> 0
E79: Morwell | Q79: $ | W79: =Morwell!W21/80 -> 410.7455124 | X79: =Morwell!X21/80 -> 659.657293 | Y79: =Morwell!Y21/80 -> 0 | Z79: =Morwell!Z21/80 -> 0 | AA79: =Morwell!AA21/80 -> 237.4109062 | AB79: =Morwell!AB21/80 -> 2061.473049 | AC79: =Morwell!AC21/80 -> 3017.923314 | AD79: =Morwell!AD21/80 -> 2457.431723 | AE79: =Morwell!AE21/80 -> 6577.678636 | AF79: =Morwell!AF21/80 -> 1290.914468 | AG79: =Morwell!AG21/80 -> 1173.558607 | AH79: =Morwell!AH21/80 -> 1173.558607 | AI79: =Morwell!AI21/80 -> 1198.320694 | AJ79: =Morwell!AJ21/80 -> 1483.260723 | AK79: =Morwell!AK21/80 -> 5932.925538 | AL79: =Morwell!AL21/80 -> 5932.925538 | AM79: =Morwell!AM21/80 -> 5932.925538 | AN79: =Morwell!AN21/80 -> 11865.85108 | AO79: =Morwell!AO21/80 -> 0 | AP79: =Morwell!AP21/80 -> 0
E80: Moe Newborough | Q80: $ | W80: ='Moe Newborough'!W21/80 -> 144.0224033 | X80: ='Moe Newborough'!X21/80 -> 0 | Y80: ='Moe Newborough'!Y21/80 -> 0 | Z80: ='Moe Newborough'!Z21/80 -> 0 | AA80: ='Moe Newborough'!AA21/80 -> 116.548681 | AB80: ='Moe Newborough'!AB21/80 -> 676.5404099 | AC80: ='Moe Newborough'!AC21/80 -> 434.2135943 | AD80: ='Moe Newborough'!AD21/80 -> 0 | AE80: ='Moe Newborough'!AE21/80 -> 0 | AF80: ='Moe Newborough'!AF21/80 -> 0 | AG80: ='Moe Newborough'!AG21/80 -> 0 | AH80: ='Moe Newborough'!AH21/80 -> 1085.212028 | AI80: ='Moe Newborough'!AI21/80 -> 5425.630864 | AJ80: ='Moe Newborough'!AJ21/80 -> 5425.630864 | AK80: ='Moe Newborough'!AK21/80 -> 0 | AL80: ='Moe Newborough'!AL21/80 -> 0 | AM80: ='Moe Newborough'!AM21/80 -> 0 | AN80: ='Moe Newborough'!AN21/80 -> 10851.04709 | AO80: ='Moe Newborough'!AO21/80 -> 0 | AP80: ='Moe Newborough'!AP21/80 -> 0
E81: Sale | Q81: $ | W81: =Sale!W21/80 -> 113.081703 | X81: =Sale!X21/80 -> 616.8092889 | Y81: =Sale!Y21/80 -> 222.117137 | Z81: =Sale!Z21/80 -> 2154.331859 | AA81: =Sale!AA21/80 -> 718.1119904 | AB81: =Sale!AB21/80 -> 72.99007741 | AC81: =Sale!AC21/80 -> 0 | AD81: =Sale!AD21/80 -> 0 | AE81: =Sale!AE21/80 -> 0 | AF81: =Sale!AF21/80 -> 0 | AG81: =Sale!AG21/80 -> 0 | AH81: =Sale!AH21/80 -> 0 | AI81: =Sale!AI21/80 -> 0 | AJ81: =Sale!AJ21/80 -> 0 | AK81: =Sale!AK21/80 -> 0 | AL81: =Sale!AL21/80 -> 0 | AM81: =Sale!AM21/80 -> 208.0703334 | AN81: =Sale!AN21/80 -> 3715.548617 | AO81: =Sale!AO21/80 -> 0 | AP81: =Sale!AP21/80 -> 0
Q82: $
Q83: $
Q84: $
Q85: $
Q86: $
A89: End

Sheet Connections Data
A1: System | B1: Town | C1: 2022-23 | D1: ='[4]Warragul Drouin'!W8 -> 2023-24 | E1: ='[4]Warragul Drouin'!X8 -> 2024-25 | F1: ='[4]Warragul Drouin'!Y8 -> 2025-26 | G1: ='[4]Warragul Drouin'!Z8 -> 2026-27 | H1: ='[4]Warragul Drouin'!AA8 -> 2027-28 | I1: ='[4]Warragul Drouin'!AB8 -> 2028-29 | J1: ='[4]Warragul Drouin'!AC8 -> 2029-30 | K1: ='[4]Warragul Drouin'!AD8 -> 2030-31 | L1: ='[4]Warragul Drouin'!AE8 -> 2031-32 | M1: ='[4]Warragul Drouin'!AF8 -> 2032-33 | N1: ='[4]Warragul Drouin'!AG8 -> 2033-34 | O1: ='[4]Warragul Drouin'!AH8 -> 2034-35 | P1: ='[4]Warragul Drouin'!AI8 -> 2035-36 | Q1: ='[4]Warragul Drouin'!AJ8 -> 2036-37 | R1: ='[4]Warragul Drouin'!AK8 -> 2037-38 | S1: ='[4]Warragul Drouin'!AL8 -> 2038-39 | T1: ='[4]Warragul Drouin'!AM8 -> 2039-40 | U1: ='[4]Warragul Drouin'!AN8 -> 2040-41 | V1: ='[4]Warragul Drouin'!AO8 -> 2041-42 | W1: ='[4]Warragul Drouin'!AP8 -> 2042-43 | X1: Growth %
A2: Warragul Drouin | B2: BULN BULN | C2: 148.5 | D2: 149.5 | E2: 150.5 | F2: 151.5 | G2: 152.5 | H2: 153.5 | I2: 154.5 | J2: 155.5 | K2: 156.5 | L2: 157.5
A3: Warragul Drouin | B3: DARNUM | C3: 184.5 | D3: 184.5 | E3: 184.5 | F3: 184.5 | G3: 184.5 | H3: 184.5 | I3: 184.5 | J3: 184.5 | K3: 184.5 | L3: 184.5
A4: Warragul Drouin | B4: DROUIN | C4: 7158 | D4: 7586 | E4: 8014 | F4: 8442 | G4: 8870 | H4: 9298 | I4: 9726 | J4: 10154 | K4: 10582 | L4: 11010
A5: Warragul Drouin | B5: NILMA | C5: 122 | D5: 123 | E5: 124 | F5: 125 | G5: 126 | H5: 127 | I5: 128 | J5: 129 | K5: 130 | L5: 131
A6: Warragul Drouin | B6: ROKEBY | C6: 46 | D6: 46 | E6: 46 | F6: 46 | G6: 46 | H6: 46 | I6: 46 | J6: 46 | K6: 46 | L6: 46
A7: Warragul Drouin | B7: WARRAGUL | C7: 8894.5 | D7: 9147.5 | E7: 9400.5 | F7: 9653.5 | G7: 9906.5 | H7: 10159.5 | I7: 10412.5 | J7: 10665.5 | K7: 10918.5 | L7: 11171.5
C8: =SUM(C2:C7) -> 16553.5 | D8: =SUM(D2:D7) -> 17236.5 | E8: 17919.5 | F8: 18602.5 | G8: 19285.5 | H8: 19968.5 | I8: 20651.5 | J8: 21334.5 | K8: 22017.5 | L8: 22700.5 | M8: =L8+L9 -> 23383.5 | N8: =M8+M9 -> 24066.5 | O8: 24749.5 | P8: 25432.5 | Q8: 26115.5 | R8: 26798.5 | S8: 27481.5 | T8: 28164.5 | U8: 28847.5 | V8: 29530.5 | W8: 30213.5 | X8: =SUM(D9:W9)/W8 -> 0.4521157761
D9: =D8-C8 -> 683 | E9: =E8-D8 -> 683 | F9: 683 | G9: 683 | H9: 683 | I9: 683 | J9: 683 | K9: 683 | L9: 683 | M9: =L9 -> 683 | N9: =M9 -> 683 | O9: 683 | P9: 683 | Q9: 683 | R9: 683 | S9: 683 | T9: 683 | U9: 683 | V9: 683 | W9: 683
A10: Moe Newborough | B10: MOE | C10: 5085 | D10: 5121 | E10: 5157 | F10: 5193 | G10: 5229 | H10: 5265 | I10: 5301 | J10: 5337 | K10: 5373 | L10: 5409
A11: Moe Newborough | B11: NEWBOROUGH | C11: 3243 | D11: 3272 | E11: 3301 | F11: 3330 | G11: 3359 | H11: 3388 | I11: 3417 | J11: 3446 | K11: 3475 | L11: 3504
A12: Moe Newborough | B12: TRAFALGAR | C12: 1857.5 | D12: 1883.5 | E12: 1909.5 | F12: 1935.5 | G12: 1961.5 | H12: 1987.5 | I12: 2013.5 | J12: 2039.5 | K12: 2065.5 | L12: 2091.5
A13: Moe Newborough | B13: YALLOURN NORTH | C13: 674.5 | D13: 675.5 | E13: 676.5 | F13: 677.5 | G13: 678.5 | H13: 679.5 | I13: 680.5 | J13: 681.5 | K13: 682.5 | L13: 683.5
A14: Moe Newborough | B14: YARRAGON | C14: 814 | D14: 836 | E14: 858 | F14: 880 | G14: 902 | H14: 924 | I14: 946 | J14: 968 | K14: 990 | L14: 1012
C15: =SUM(C10:C14) -> 11674 | D15: =SUM(D10:D14) -> 11788 | E15: 11902 | F15: 12016 | G15: 12130 | H15: 12244 | I15: 12358 | J15: 12472 | K15: 12586 | L15: 12700 | M15: =L15+L16 -> 12814 | N15: =M15+M16 -> 12928 | O15: 13042 | P15: 13156 | Q15: 13270 | R15: 13384 | S15: 13498 | T15: 13612 | U15: 13726 | V15: 13840 | W15: 13954 | X15: =SUM(D16:W16)/W15 -> 0.1633940089
D16: =D15-C15 -> 114 | E16: =E15-D15 -> 114 | F16: 114 | G16: 114 | H16: 114 | I16: 114 | J16: 114 | K16: 114 | L16: 114 | M16: =L16 -> 114 | N16: =M16 -> 114 | O16: 114 | P16: 114 | Q16: 114 | R16: 114 | S16: 114 | T16: 114 | U16: 114 | V16: 114 | W16: 114
A17: Morwell | B17: CHURCHILL | C17: 2407.5 | D17: 2421.5 | E17: 2435.5 | F17: 2449.5 | G17: 2463.5 | H17: 2477.5 | I17: 2491.5 | J17: 2505.5 | K17: 2519.5 | L17: 2533.5
A18: Morwell | B18: HAZELWOOD NORTH | C18: 663.5 | D18: 665.5 | E18: 667.5 | F18: 669.5 | G18: 671.5 | H18: 673.5 | I18: 675.5 | J18: 677.5 | K18: 679.5 | L18: 681.5
A19: Morwell | B19: MORWELL | C19: 7205 | D19: 7235 | E19: 7265 | F19: 7295 | G19: 7325 | H19: 7355 | I19: 7385 | J19: 7415 | K19: 7445 | L19: 7475
A20: Morwell | B20: TRARALGON SOUTH | C20: 122 | D20: 122 | E20: 122 | F20: 122 | G20: 122 | H20: 122 | I20: 122 | J20: 122 | K20: 122 | L20: 122
A21: Morwell | B21: YINNAR | C21: 611 | D21: 619 | E21: 627 | F21: 635 | G21: 643 | H21: 651 | I21: 659 | J21: 667 | K21: 675 | L21: 683
C22: =SUM(C17:C21) -> 11009 | D22: =SUM(D17:D21) -> 11063 | E22: 11117 | F22: 11171 | G22: 11225 | H22: 11279 | I22: 11333 | J22: 11387 | K22: 11441 | L22: 11495 | M22: =L22+L23 -> 11549 | N22: =M22+M23 -> 11603 | O22: 11657 | P22: 11711 | Q22: 11765 | R22: 11819 | S22: 11873 | T22: 11927 | U22: 11981 | V22: 12035 | W22: 12089 | X22: =SUM(D23:W23)/W22 -> 0.08933741418
D23: =D22-C22 -> 54 | E23: =E22-D22 -> 54 | F23: 54 | G23: 54 | H23: 54 | I23: 54 | J23: 54 | K23: 54 | L23: 54 | M23: =L23 -> 54 | N23: =M23 -> 54 | O23: 54 | P23: 54 | Q23: 54 | R23: 54 | S23: 54 | T23: 54 | U23: 54 | V23: 54 | W23: 54
A24: Traralgon | B24: TRARALGON | C24: 13171 | D24: 13349 | E24: 13527 | F24: 13705 | G24: 13883 | H24: 14061 | I24: 14239 | J24: 14417 | K24: 14595 | L24: 14773 | M24: =L24+L25 -> 14951 | N24: =M24+M25 -> 15129 | O24: 15307 | P24: 15485 | Q24: 15663 | R24: 15841 | S24: 16019 | T24: 16197 | U24: 16375 | V24: 16553 | W24: 16731 | X24: =SUM(D25:W25)/W24 -> 0.2127786743
D25: =D24-C24 -> 178 | E25: =E24-D24 -> 178 | F25: 178 | G25: 178 | H25: 178 | I25: 178 | J25: 178 | K25: 178 | L25: 178 | M25: =L25 -> 178 | N25: =M25 -> 178 | O25: 178 | P25: 178 | Q25: 178 | R25: 178 | S25: 178 | T25: 178 | U25: 178 | V25: 178 | W25: 178
A26: Sale | B26: SALE | C26: 7437 | D26: 7506 | E26: 7575 | F26: 7644 | G26: 7713 | H26: 7782 | I26: 7851 | J26: 7920 | K26: 7989 | L26: 8058 | M26: =L26+L27 -> 8127 | N26: =M26+M27 -> 8196 | O26: 8265 | P26: 8334 | Q26: 8403 | R26: 8472 | S26: 8541 | T26: 8610 | U26: 8679 | V26: 8748 | W26: 8817 | X26: =SUM(D27:W27)/W26 -> 0.1565158217
D27: =D26-C26 -> 69 | E27: =E26-D26 -> 69 | F27: 69 | G27: 69 | H27: 69 | I27: 69 | J27: 69 | K27: 69 | L27: 69 | M27: =L27 -> 69 | N27: =M27 -> 69 | O27: 69 | P27: 69 | Q27: 69 | R27: 69 | S27: 69 | T27: 69 | U27: 69 | V27: 69 | W27: 69
A30: Residential Water connections - sourced from tariff based revenue file for price submission
A31: Price Submission 23 - Tariff Based Revenue Corp Plan 2223 - 10 Year Model Version 2 (Working Copy August 22) .xlsx

Sheet PS23 Growth Capex - NCCs
A3: WP Segment | B3: ESC Cost Driver | C3: Town | D3: Sum of Corp Plan 23/24 | E3: Sum of Corp Plan 24/25 | F3: Sum of Corp Plan 25/26 | G3: Sum of Corp Plan 26/27 | H3: Sum of Corp Plan 27/28 | I3: Sum of Corp Plan 28/29 | J3: Sum of Corp Plan 29/30 | K3: Sum of Corp Plan 30/31 | L3: Sum of Corp Plan 31/32 | M3: Sum of Corp Plan 32/33 | N3: Sum of Corp Plan 33/34 | O3: Sum of Corp Plan 34/35 | P3: Sum of Corp Plan 35/36 | Q3: Sum of Corp Plan 36/37 | R3: Sum of Corp Plan 37/38 | S3: Sum of Corp Plan 38/39 | T3: Sum of Corp Plan 39/40 | U3: Sum of Corp Plan 40/41
A4: Wastewater | B4: Growth | C4: Drouin | D4: 280509 | E4: 10929.36 | F4: 0 | G4: 0 | H4: 0 | I4: 15973.68 | J4: 53175.54 | K4: 576944.1 | L4: 183276.96 | M4: 0 | N4: 52545 | O4: 105090 | P4: 1050900 | Q4: 21018 | R4: 1062564.99 | S4: 0 | T4: 5312824.95 | U4: 26505124.75
C5: Moe | D5: 530704.5 | E5: 352545 | F5: 3798817.354 | G5: 7546082.714 | H5: 2203952.77 | I5: 10719.18 | J5: 0 | K5: 52545 | L5: 105090 | M5: 105090 | N5: 5254500 | O5: 3152700 | P5: 52545 | Q5: 0 | R5: 371913.51 | S5: 3187694.97 | T5: 4250259.96 | U5: 0
C6: Sale | D6: 0 | E6: 16183.86 | F6: 200000 | G6: 0 | H6: 0 | I6: 0 | J6: 105090 | K6: 1191405.33 | L6: 2146147.98 | M6: 1381408.05 | N6: 52545 | O6: 0 | P6: 0 | Q6: 0 | R6: 0 | S6: 0 | T6: 0 | U6: 0
C7: Trafalgar | D7: 126108 | E7: 573647.02 | F7: 417687.07 | G7: 1637288.538 | H7: 91720.73 | I7: 420990.54 | J7: 420360 | K7: 420360 | L7: 5100438.06 | M7: 3684035.04 | N7: 531335.04 | O7: 11688214.89 | P7: 7969289.97 | Q7: 210180 | R7: 0 | S7: 0 | T7: 0 | U7: 0
C8: Traralgon | D8: 5254.5 | E8: 21438.36 | F8: 57063.87 | G8: 171611.97 | H8: 0 | I8: 220794.09 | J8: 457982.22 | K8: 0 | L8: 0 | M8: 0 | N8: 0 | O8: 0 | P8: 531335.04 | Q8: 1062564.99 | R8: 1062564.99 | S8: 1062564.99 | T8: 5312824.95 | U8: 10509000
C9: Warragul | D9: 5884316.799 | E9: 7801162.077 | F9: 3031796.922 | G9: 977355.9162 | H9: 493000.8498 | I9: 683085 | J9: 13061864.88 | K9: 9870925.257 | L9: 1994249.685 | M9: 0 | N9: 0 | O9: 0 | P9: 0 | Q9: 0 | R9: 0 | S9: 0 | T9: 0 | U9: 0
C10: Yinnar | D10: 0 | E10: 10509 | F10: 0 | G10: 0 | H10: 0 | I10: 52545 | J10: 105090 | K10: 210180 | L10: 210180 | M10: 0 | N10: 0 | O10: 0 | P10: 0 | Q10: 0 | R10: 210180 | S10: 2101800 | T10: 52545 | U10: 0
A11: Wastewater Total | D11: 6826892.799 | E11: 8786414.677 | F11: 7505365.216 | G11: 10332339.14 | H11: 2788674.35 | I11: 1404107.49 | J11: 14203562.64 | K11: 12322359.69 | L11: 9739382.685 | M11: 5170533.09 | N11: 5890925.04 | O11: 14946004.89 | P11: 9604070.01 | Q11: 1293762.99 | R11: 2707223.49 | S11: 6352059.96 | T11: 14928454.86 | U11: 37014124.75
A12: Water | B12: Growth | C12: Darnum | D12: 0 | E12: 0 | F12: 0 | G12: 0 | H12: 0 | I12: 0 | J12: 0 | K12: 0 | L12: 0 | M12: 0 | N12: 0 | O12: 0 | P12: 0 | Q12: 0 | R12: 0 | S12: 0 | T12: 0 | U12: 0
C13: Drouin | D13: 255254.5 | E13: 250000 | F13: 1370483.944 | G13: 2111000 | H13: 52640.04 | I13: 0 | J13: 54331.53 | K13: 434336.97 | L13: 0 | M13: 0 | N13: 0 | O13: 0 | P13: 0 | Q13: 0 | R13: 0 | S13: 0 | T13: 0 | U13: 0
C14: Moe | D14: 70515.39 | E14: 0 | F14: 0 | G14: 0 | H14: 57063.87 | I14: 331243.68 | J14: 212597.07 | K14: 0 | L14: 0 | M14: 0 | N14: 0 | O14: 531335.04 | P14: 2656465.02 | Q14: 2656465.02 | R14: 0 | S14: 0 | T14: 0 | U14: 5312824.95
C15: Morwell | D15: 367815 | E15: 590710.89 | F15: 0 | G15: 0 | H15: 212597.07 | I15: 1846010.94 | J15: 2702494.44 | K15: 2200584.6 | L15: 5890189.41 | M15: 1155990 | N15: 1050900 | O15: 1050900 | P15: 2135638.98 | Q15: 2656465.02 | R15: 10625649.9 | S15: 10625649.9 | T15: 10625649.9 | U15: 21251299.8
C16: Sale | D16: 57799.5 | E16: 315270 | F16: 113530.8288 | G16: 1101144.58 | H16: 367048.8939 | I16: 37307.45 | J16: 0 | K16: 0 | L16: 0 | M16: 0 | N16: 0 | O16: 0 | P16: 0 | Q16: 0 | R16: 0 | S16: 0 | T16: 106351.08 | U16: 1899129.98
C17: Traralgon | D17: 633085 | E17: 2667541.53 | F17: 5226420 | G17: 857902.33 | H17: 0 | I17: 217221.03 | J17: 318843.06 | K17: 318843.06 | L17: 0 | M17: 0 | N17: 0 | O17: 0 | P17: 0 | Q17: 212597.07 | R17: 531335.04 | S17: 5345824.95 | T17: 5345824.95 | U17: 5346324.95
C18: Traralgon South | D18: 0 | E18: 0 | F18: 0 | G18: 0 | H18: 0 | I18: 42876.72 | J18: 0 | K18: 0 | L18: 0 | M18: 0 | N18: 0 | O18: 0 | P18: 345430.83 | Q18: 3187694.97 | R18: 3719030.01 | S18: 0 | T18: 0 | U18: 0
C19: Warragul | D19: 14512065.23 | E19: 405016.86 | F19: 977337 | G19: 262725 | H19: 241707 | I19: 7002610.02 | J19: 5682531.57 | K19: 7245324.96 | L19: 3597966.33 | M19: 1567522.44 | N19: 4894987.11 | O19: 15026924.19 | P19: 11168649.93 | Q19: 15943474.85 | R19: 10105090 | S19: 503591.28 | T19: 3407365.02 | U19: 7925525
A20: Water Total | D20: 15896534.62 | E20: 4228539.28 | F20: 7687771.773 | G20: 4332771.91 | H20: 931056.8739 | I20: 9477269.84 | J20: 8970797.67 | K20: 10199089.59 | L20: 9488155.74 | M20: 2723512.44 | N20: 5945887.11 | O20: 16609159.23 | P20: 16306184.76 | Q20: 24656696.93 | R20: 24981104.95 | S20: 16475066.13 | T20: 19485190.95 | U20: 41735104.68
A21: Grand Total | D21: 22723427.42 | E21: 13014953.96 | F21: 15193136.99 | G21: 14665111.05 | H21: 3719731.224 | I21: 10881377.33 | J21: 23174360.31 | K21: 22521449.28 | L21: 19227538.43 | M21: 7894045.53 | N21: 11836812.15 | O21: 31555164.12 | P21: 25910254.77 | Q21: 25950459.92 | R21: 27688328.44 | S21: 22827126.09 | T21: 34413645.81 | U21: 78749229.43
A24: Adjustment to split PKID 533 between Traralgon & Morwell | P24: 2125129.98 | Q24: 2656465.02 | R24: 10625649.9 | S24: 10625649.9 | T24: 10625649.9 | U24: 21251299.8 | V24: Total Capex for PKID 533
A25: Water
A26: Morwell | D26: =D15 -> 367815 | E26: =E15 -> 590710.89 | F26: 0 | G26: 0 | H26: 212597.07 | I26: 1846010.94 | J26: 2702494.44 | K26: 2200584.6 | L26: 5890189.41 | M26: 1155990 | N26: 1050900 | O26: 1050900 | P26: =P15-(P24*0.5) -> 1073073.99 | Q26: =Q15-(Q24*0.5) -> 1328232.51 | R26: 5312824.95 | S26: 5312824.95 | T26: 5312824.95 | U26: 10625649.9
A27: Traralgon | D27: =D17 -> 633085 | E27: =E17 -> 2667541.53 | F27: 5226420 | G27: 857902.33 | H27: 0 | I27: 217221.03 | J27: 318843.06 | K27: 318843.06 | L27: 0 | M27: 0 | N27: 0 | O27: 0 | P27: =P17+(P24*0.5) -> 1062564.99 | Q27: =Q17+(Q24*0.5) -> 1540829.58 | R27: 5844159.99 | S27: 10658649.9 | T27: 10658649.9 | U27: 15971974.85

Sheet Capping by Avg Land Cost
A1: Median Vacant Land Price - 2020
B2: 2010 | C2: 2011 | D2: 2012 | E2: 2013 | F2: 2014 | G2: 2015 | H2: 2016 | I2: 2017 | J2: 2018 | K2: 2019 | L2: 2020 | M2: prelim 2021 | N2: change | O2: change | P2: Growth PA
A3: locality | B3: Median | C3: Median | D3: Median | E3: Median | F3: Median | G3: Median | H3: Median | I3: Median | J3: Median | K3: Median | L3: Median | M3: Median | N3: 2019-2020 | O3: 2010-2020
A4: AINTREE | B4: 208000 | C4: - | D4: - | E4: - | F4: - | G4: 197500 | H4: 228000 | I4: 280000 | J4: 311500 | K4: 325000 | L4: 355000 | M4: 510500 | N4: 9 | O4: 71 | P4: 5.5
A5: ALEXANDRA | B5: 77000 | C5: 90000 | D5: 93500 | E5: 89000 | F5: 85000 | G5: 95000 | H5: 88000 | I5: 90000 | J5: 89000 | K5: 160000 | L5: 150000 | M5: 126000 | N5: -6 | O5: 95 | P5: 6.9
A6: ALFREDTON | B6: 125000 | C6: 145000 | D6: 190000 | E6: 170000 | F6: 161000 | G6: 180000 | H6: 183500 | I6: 152000 | J6: 155000 | K6: 170000 | L6: 200000 | M6: 220000 | N6: 18 | O6: 60 | P6: 4.8
A7: ANGLESEA | B7: 290000 | C7: 380000 | D7: 264000 | E7: 317500 | F7: 387500 | G7: 420000 | H7: 380000 | I7: 448000 | J7: 550000 | K7: 675000 | L7: 595000 | M7: 1120000 | N7: -12 | O7: 105 | P7: 7.5
A8: APOLLO BAY | B8: 197500 | C8: 221000 | D8: 197000 | E8: 190000 | F8: 185000 | G8: 190000 | H8: 182500 | I8: 185000 | J8: 225000 | K8: 245000 | L8: 280000 | M8: 315000 | N8: 14 | O8: 42 | P8: 3.6
A9: ARARAT | B9: 78000 | C9: 70000 | D9: 80000 | E9: 70000 | F9: 85000 | G9: 83500 | H9: 50000 | I9: 97500 | J9: 99500 | K9: 87000 | L9: 80000 | M9: 80000 | N9: -8 | O9: 3 | P9: 0.3
A10: ARMSTRONG CREEK | B10: 180000 | C10: 182000 | D10: 176000 | E10: 169000 | F10: 167500 | G10: 172000 | H10: 175000 | I10: 197500 | J10: 247000 | K10: 266500 | L10: 267000 | M10: 279000 | N10: 0 | O10: 48 | P10: 4.0
A11: ASCOT (GREATER BENDIGO) | B11: 86500 | C11: 99000 | D11: 104000 | E11: 104500 | F11: 152500 | G11: 147500 | H11: 148000 | I11: 147500 | J11: 139000 | K11: 155000 | L11: 166000 | M11: NA | N11: 7 | O11: 92 | P11: 6.7
A12: ASCOT VALE | B12: 466500 | C12: 513000 | D12: 472500 | E12: 475000 | F12: 595000 | G12: 832500 | H12: 832500 | I12: 832500 | J12: 1590500 | K12: 252500 | L12: 604000 | M12: 800000 | N12: 139 | O12: 29 | P12: 2.6
A13: AVENEL | B13: 92500 | C13: 87000 | D13: 77500 | E13: 86500 | F13: 105000 | G13: 80000 | H13: 105000 | I13: 95500 | J13: 100000 | K13: 100000 | L13: 212500 | M13: 200000 | N13: 113 | O13: 130 | P13: 8.7
A14: AXEDALE | B14: 73000 | C14: 70000 | D14: 87000 | E14: 90000 | F14: 90000 | G14: 88000 | H14: 169000 | I14: 187500 | J14: 157000 | K14: 158500 | L14: 185000 | M14: 225000 | N14: 17 | O14: 154 | P14: 9.8
A15: BACCHUS MARSH | B15: 115000 | C15: 136000 | D15: 155000 | E15: 135000 | F15: 150000 | G15: 152000 | H15: 148000 | I15: 165000 | J15: 215000 | K15: 225000 | L15: 250000 | M15: 300000 | N15: 11 | O15: 117 | P15: 8.1
A16: BAGSHOT | B16: - | C16: - | D16: - | E16: - | F16: - | G16: - | H16: - | I16: - | J16: 116000 | K16: 112500 | L16: 116000 | M16: 156500 | N16: 3 | O16: 0 | P16: NA
A17: BAIRNSDALE | B17: 99000 | C17: 95500 | D17: 91500 | E17: 98000 | F17: 95000 | G17: 100000 | H17: 112000 | I17: 110000 | J17: 118000 | K17: 117500 | L17: 125000 | M17: 165000 | N17: 6 | O17: 27 | P17: 2.4
A18: BALLAN | B18: 99500 | C18: 133500 | D18: 120000 | E18: 122500 | F18: 115000 | G18: 133000 | H18: 135000 | I18: 140000 | J18: 180000 | K18: 220000 | L18: 239000 | M18: 229000 | N18: 9 | O18: 140 | P18: 9.2
A19: BALLARAT NORTH | B19: 121000 | C19: 147500 | D19: 150000 | E19: 237500 | F19: 184500 | G19: 180000 | H19: 180000 | I19: 155000 | J19: 165000 | K19: 212500 | L19: 278000 | M19: NA | N19: 31 | O19: 129 | P19: 8.7
A20: BANNOCKBURN | B20: 125000 | C20: 140000 | D20: 139500 | E20: 150000 | F20: 149000 | G20: 146000 | H20: 155000 | I20: 165000 | J20: 215500 | K20: 279000 | L20: 267000 | M20: 380000 | N20: -4 | O20: 114 | P20: 7.9
A21: BARANDUDA | B21: 120000 | C21: 104500 | D21: 118000 | E21: 115000 | F21: 116500 | G21: 130000 | H21: 125000 | I21: 129000 | J21: 136500 | K21: 145000 | L21: 140000 | M21: 134000 | N21: -3 | O21: 17 | P21: 1.6
A22: BEACONSFIELD | B22: 280000 | C22: 289500 | D22: 248500 | E22: 188500 | F22: 165500 | G22: 191000 | H22: 205000 | I22: 263000 | J22: 277500 | K22: 291000 | L22: 327500 | M22: 355500 | N22: 13 | O22: 17 | P22: 1.6
A23: BEAUFORT | B23: 55000 | C23: 49000 | D23: 48000 | E23: 48000 | F23: 53000 | G23: 51500 | H23: 52000 | I23: 59000 | J23: 56000 | K23: 75000 | L23: 82500 | M23: NA | N23: 10 | O23: 50 | P23: 4.1
A24: BEECHWORTH | B24: 134500 | C24: 134500 | D24: 128000 | E24: 130000 | F24: 115000 | G24: 115500 | H24: 123000 | I24: 130000 | J24: 145000 | K24: 175000 | L24: 222500 | M24: 304500 | N24: 27 | O24: 65 | P24: 5.2
A25: BELLBRAE | B25: 322500 | C25: - | D25: - | E25: 350000 | F25: 350000 | G25: 335000 | H25: 415000 | I25: 491500 | J25: 652500 | K25: 600000 | L25: 640000 | M25: NA | N25: 7 | O25: 98 | P25: 7.1
A26: BELMONT | B26: 152500 | C26: 180000 | D26: 160000 | E26: 140000 | F26: 160000 | G26: 180000 | H26: 129500 | I26: 450000 | J26: 220000 | K26: 261500 | L26: 312000 | M26: 100000 | N26: 19 | O26: 105 | P26: 7.4
A27: BENALLA | B27: 86000 | C27: 81000 | D27: 88000 | E27: 95000 | F27: 88000 | G27: 104000 | H27: 100000 | I27: 96500 | J27: 113000 | K27: 129500 | L27: 142500 | M27: 174000 | N27: 10 | O27: 66 | P27: 5.2
A28: BERWICK | B28: 248500 | C28: 286500 | D28: 295000 | E28: 255000 | F28: 255000 | G28: 289000 | H28: 331000 | I28: 385000 | J28: 455000 | K28: 430000 | L28: 428000 | M28: 474000 | N28: 0 | O28: 72 | P28: 5.6
A29: BEVERIDGE | B29: 175000 | C29: 195000 | D29: 173500 | E29: 156000 | F29: 166000 | G29: 182000 | H29: 192000 | I29: 255000 | J29: 308000 | K29: 304000 | L29: 265000 | M29: 287000 | N29: -13 | O29: 51 | P29: 4.2
A30: BIRREGURRA | B30: 106500 | C30: 116000 | D30: 133500 | E30: 127500 | F30: 142000 | G30: 109500 | H30: 121500 | I30: 160000 | J30: 197500 | K30: 221500 | L30: 275000 | M30: 365000 | N30: 24 | O30: 158 | P30: 9.9
A31: BLAIRGOWRIE | B31: 335000 | C31: 360000 | D31: 351500 | E31: 352000 | F31: 367500 | G31: 375000 | H31: 505000 | I31: 530000 | J31: 655000 | K31: 577500 | L31: 735500 | M31: 550000 | N31: 27 | O31: 120 | P31: 8.2
A32: BONBEACH | B32: 325500 | C32: 165500 | D32: 320000 | E32: 320000 | F32: 387500 | G32: 10000 | H32: 10000 | I32: 935000 | J32: 935000 | K32: 502000 | L32: 500000 | M32: 990000 | N32: 0 | O32: 54 | P32: 4.4
A33: BONNIE BROOK | B33: - | C33: - | D33: 196500 | E33: 196500 | F33: 196500 | G33: 196500 | H33: 196500 | I33: 350500 | J33: 344000 | K33: 315000 | L33: 311500 | M33: 340000 | N33: -1 | O33: 0 | P33: NA
A34: BONSHAW | B34: - | C34: - | D34: - | E34: - | F34: 110500 | G34: 126000 | H34: 129000 | I34: 123000 | J34: 132000 | K34: 155000 | L34: 193000 | M34: 245000 | N34: 24 | O34: 0 | P34: NA
A35: BOTANIC RIDGE | B35: 228000 | C35: 261000 | D35: 257000 | E35: 261500 | F35: 245500 | G35: 230000 | H35: 254500 | I35: 338000 | J35: 382000 | K35: 355000 | L35: 381500 | M35: 569000 | N35: 7 | O35: 67 | P35: 5.3
A36: BRIGHT | B36: 140000 | C36: 125000 | D36: 140000 | E36: 139500 | F36: 185000 | G36: 177500 | H36: 209000 | I36: 229000 | J36: 270000 | K36: 287500 | L36: 355000 | M36: 300000 | N36: 23 | O36: 154 | P36: 9.8
A37: BROADFORD | B37: 86000 | C37: 89500 | D37: 107000 | E37: 112000 | F37: 117500 | G37: 130000 | H37: 125000 | I37: 140000 | J37: 147500 | K37: 195000 | L37: 239000 | M37: 245000 | N37: 23 | O37: 179 | P37: 10.8
A38: BROOKFIELD | B38: 123500 | C38: 149500 | D38: 150000 | E38: 139500 | F38: 130000 | G38: 142000 | H38: 150000 | I38: 162000 | J38: 218000 | K38: 237500 | L38: 273500 | M38: 284000 | N38: 15 | O38: 121 | P38: 8.3
A39: BROWN HILL | B39: 142500 | C39: 140000 | D39: 160000 | E39: 135000 | F39: 152500 | G39: 162500 | H39: 180000 | I39: 190000 | J39: 182500 | K39: 185000 | L39: 209500 | M39: 265000 | N39: 13 | O39: 47 | P39: 3.9
A40: BUNDALONG | B40: 110000 | C40: 86500 | D40: 96000 | E40: 95000 | F40: 87000 | G40: 102500 | H40: 124000 | I40: 138500 | J40: 242000 | K40: 160000 | L40: 185000 | M40: 295000 | N40: 16 | O40: 68 | P40: 5.3
A41: BUNINYONG | B41: 138000 | C41: 145000 | D41: 177000 | E41: 196000 | F41: 195000 | G41: 190000 | H41: 192500 | I41: 225000 | J41: 240000 | K41: 275000 | L41: 321500 | M41: 347000 | N41: 17 | O41: 133 | P41: 8.8
A42: BUNYIP | B42: 138000 | C42: 173000 | D42: 187000 | E42: 176500 | F42: 171500 | G42: 154000 | H42: 180000 | I42: 241500 | J42: 275000 | K42: 280000 | L42: 340000 | M42: 392500 | N42: 21 | O42: 146 | P42: 9.4
A43: BURNSIDE | B43: 240000 | C43: 275000 | D43: 260000 | E43: 295000 | F43: 282500 | G43: 302500 | H43: 307500 | I43: 416000 | J43: 487000 | K43: 454500 | L43: 456000 | M43: 421000 | N43: 0 | O43: 90 | P43: 6.6
A44: CALIFORNIA GULLY | B44: 71500 | C44: 86000 | D44: 86000 | E44: 120000 | F44: 119000 | G44: 110000 | H44: 109500 | I44: 125000 | J44: 145000 | K44: 164000 | L44: 119000 | M44: NA | N44: -27 | O44: 67 | P44: 5.2
A45: CAMPBELLS CREEK | B45: 89500 | C45: 88000 | D45: 119000 | E45: 126500 | F45: 115000 | G45: 119000 | H45: 130000 | I45: 135000 | J45: 154500 | K45: 202500 | L45: 170000 | M45: 397000 | N45: -16 | O45: 90 | P45: 6.6
A46: CAMPERDOWN | B46: 93500 | C46: 90000 | D46: 93000 | E46: 95000 | F46: 95000 | G46: 70000 | H46: 82500 | I46: 74500 | J46: 85000 | K46: 95000 | L46: 113500 | M46: NA | N46: 19 | O46: 21 | P46: 2.0
A47: CANADIAN | B47: 134500 | C47: 142000 | D47: 140000 | E47: 145000 | F47: 162500 | G47: 140000 | H47: 109500 | I47: 125000 | J47: 145000 | K47: 160000 | L47: 165000 | M47: 165000 | N47: 3 | O47: 23 | P47: 2.1
A48: CAPE PATERSON | B48: 240000 | C48: 232500 | D48: 210500 | E48: 215000 | F48: 238500 | G48: 224000 | H48: 220000 | I48: 280000 | J48: 250000 | K48: 250000 | L48: 280000 | M48: 345000 | N48: 12 | O48: 17 | P48: 1.6
A49: CARDIGAN | B49: - | C49: 205000 | D49: 205000 | E49: 170000 | F49: 205000 | G49: 210000 | H49: 220000 | I49: 220000 | J49: 210000 | K49: 277500 | L49: 340000 | M49: NA | N49: 23 | O49: 0 | P49: NA
A50: CARISBROOK | B50: 43500 | C50: 53500 | D50: 53500 | E50: 63000 | F50: 60000 | G50: 59000 | H50: 142500 | I50: 56500 | J50: 65000 | K50: 52500 | L50: 71500 | M50: 15000 | N50: 36 | O50: 65 | P50: 5.1
A51: CARRUM DOWNS | B51: 180500 | C51: 207000 | D51: 207500 | E51: 206000 | F51: 209000 | G51: 225000 | H51: 235000 | I51: 300500 | J51: 371000 | K51: 377500 | L51: 408000 | M51: NA | N51: 8 | O51: 126 | P51: 8.5
A52: CASTLEMAINE | B52: 124000 | C52: 120000 | D52: 139500 | E52: 139000 | F52: 130000 | G52: 130000 | H52: 150000 | I52: 181000 | J52: 190000 | K52: 267500 | L52: 225000 | M52: 232000 | N52: -16 | O52: 82 | P52: 6.2
A53: CHARLEMONT | B53: - | C53: 149000 | D53: 149000 | E53: 50000 | F53: 50000 | G53: 145000 | H53: 161000 | I53: 176500 | J53: 214000 | K53: 228000 | L53: 250000 | M53: 278000 | N53: 10 | O53: 0 | P53: NA
A54: CHEWTON | B54: 90000 | C54: 125000 | D54: 107500 | E54: 123000 | F54: 130000 | G54: 105000 | H54: 158500 | I54: 127500 | J54: 154000 | K54: 179500 | L54: 165000 | M54: NA | N54: -8 | O54: 83 | P54: 6.2
A55: CHIRNSIDE PARK | B55: 188000 | C55: 172500 | D55: 257000 | E55: 281500 | F55: 289500 | G55: 315500 | H55: 408000 | I55: 472000 | J55: 520000 | K55: 405000 | L55: 424000 | M55: 589000 | N55: 5 | O55: 125 | P55: 8.5
A56: CHURCHILL | B56: 88000 | C56: 104000 | D56: 110000 | E56: 120000 | F56: 122500 | G56: 124000 | H56: 144000 | I56: 151500 | J56: 139500 | K56: 105000 | L56: 105000 | M56: 108000 | N56: 0 | O56: 19 | P56: 1.8
A57: CLIFTON SPRINGS | B57: 155000 | C57: 182500 | D57: 175000 | E57: 169000 | F57: 165000 | G57: 175000 | H57: 177000 | I57: 182000 | J57: 210000 | K57: 280000 | L57: 285000 | M57: 266500 | N57: 2 | O57: 84 | P57: 6.3
A58: CLUNES | B58: 45000 | C58: 55000 | D58: 64500 | E58: 76500 | F58: 79000 | G58: 61000 | H58: 83500 | I58: 81500 | J58: 120000 | K58: 96500 | L58: 150000 | M58: 155000 | N58: 56 | O58: 233 | P58: 12.8
A59: CLYDE | B59: 215000 | C59: 213000 | D59: 200000 | E59: 195000 | F59: 186000 | G59: 208000 | H59: 221000 | I59: 277000 | J59: 325000 | K59: 310000 | L59: 320000 | M59: 357500 | N59: 3 | O59: 49 | P59: 4.1
A60: CLYDE NORTH | B60: 201000 | C60: 220000 | D60: 210000 | E60: 204000 | F60: 220000 | G60: 230000 | H60: 243000 | I60: 300000 | J60: 337500 | K60: 314000 | L60: 324000 | M60: 370000 | N60: 3 | O60: 61 | P60: 4.9
A61: COBBLEBANK | B61: - | C61: 152000 | D61: 155000 | E61: 136500 | F61: 140000 | G61: 140000 | H61: 161000 | I61: 187000 | J61: 183000 | K61: 250000 | L61: 255000 | M61: 185000 | N61: 2 | O61: 0 | P61: NA
A62: COBRAM | B62: 87500 | C62: 82500 | D62: 70000 | E62: 86000 | F62: 75000 | G62: 78000 | H62: 80500 | I62: 81500 | J62: 100500 | K62: 104500 | L62: 118000 | M62: 187500 | N62: 13 | O62: 35 | P62: 3.0
A63: COHUNA | B63: 52500 | C63: 92500 | D63: 62000 | E63: 111500 | F63: 63000 | G63: 84000 | H63: 97500 | I63: 119000 | J63: 120000 | K63: 160000 | L63: 88000 | M63: 87000 | N63: -45 | O63: 68 | P63: 5.3
A64: COLAC | B64: 95000 | C64: 93500 | D64: 92000 | E64: 99000 | F64: 99000 | G64: 99000 | H64: 97000 | I64: 110000 | J64: 150000 | K64: 147500 | L64: 150000 | M64: 157000 | N64: 2 | O64: 58 | P64: 4.7
A65: CONNEWARRE | B65: 350000 | C65: 390000 | D65: 395000 | E65: 395000 | F65: 370000 | G65: 380000 | H65: 377500 | I65: 415000 | J65: 480000 | K65: 545000 | L65: 595000 | M65: 685000 | N65: 9 | O65: 70 | P65: 5.4
A66: CORINELLA | B66: 142000 | C66: 172500 | D66: 174000 | E66: 165000 | F66: 150000 | G66: 149000 | H66: 143000 | I66: 145000 | J66: 185000 | K66: 200000 | L66: 230000 | M66: 255000 | N66: 15 | O66: 62 | P66: 4.9
A67: CORIO | B67: 140000 | C67: 192500 | D67: 188000 | E67: 194000 | F67: 126500 | G67: 170000 | H67: 152000 | I67: 148000 | J67: 174000 | K67: 217500 | L67: 220000 | M67: NA | N67: 1 | O67: 57 | P67: 4.6
A68: CORONET BAY | B68: 120000 | C68: 120000 | D68: 120000 | E68: 104000 | F68: 139000 | G68: 133500 | H68: 135000 | I68: 149000 | J68: 200000 | K68: 210000 | L68: 275000 | M68: 325000 | N68: 31 | O68: 129 | P68: 8.6
A69: COWES WEST | B69: 146000 | C69: 159000 | D69: 145000 | E69: 133500 | F69: 140000 | G69: 140000 | H69: 145000 | I69: 163000 | J69: 236000 | K69: 240000 | L69: 256000 | M69: 321500 | N69: 7 | O69: 75 | P69: 5.8
A70: CRAIGIEBURN | B70: 180000 | C70: 195000 | D70: 190000 | E70: 195000 | F70: 208000 | G70: 230000 | H70: 248000 | I70: 303500 | J70: 344000 | K70: 279000 | L70: 333000 | M70: 349500 | N70: 19 | O70: 85 | P70: 6.3
A71: CRANBOURNE | B71: 190000 | C71: 196000 | D71: 177000 | E71: 178000 | F71: 180000 | G71: 214000 | H71: 210500 | I71: 325000 | J71: 382000 | K71: 346000 | L71: 317000 | M71: 413000 | N71: -8 | O71: 67 | P71: 5.3
A72: CRANBOURNE EAST | B72: 198000 | C72: 199000 | D72: 209500 | E72: 196000 | F72: 202000 | G72: 211000 | H72: 232000 | I72: 295000 | J72: 345000 | K72: 295000 | L72: 295000 | M72: 344000 | N72: 0 | O72: 49 | P72: 4.1
A73: CRANBOURNE NORTH | B73: 197000 | C73: 224000 | D73: 202000 | E73: 205000 | F73: 225000 | G73: 249000 | H73: 269000 | I73: 284000 | J73: 300000 | K73: 367000 | L73: 380000 | M73: 300000 | N73: 4 | O73: 93 | P73: 6.8
A74: CRANBOURNE SOUTH | B74: - | C74: - | D74: - | E74: - | F74: 224000 | G74: 224000 | H74: 224000 | I74: 224000 | J74: 290000 | K74: 325000 | L74: 355500 | M74: 275500 | N74: 9 | O74: 0 | P74: NA
A75: CRANBOURNE WEST | B75: 199500 | C75: 210000 | D75: 205000 | E75: 198500 | F75: 208000 | G75: 221000 | H75: 236000 | I75: 292000 | J75: 295000 | K75: 238500 | L75: 183500 | M75: 372000 | N75: -23 | O75: -8 | P75: -0.8
A76: CRESWICK | B76: 105000 | C76: 90500 | D76: 100000 | E76: 80000 | F76: 70000 | G76: 109500 | H76: 125500 | I76: 110000 | J76: 125000 | K76: 135000 | L76: 155000 | M76: 256000 | N76: 15 | O76: 48 | P76: 4.0
A77: CROYDON | B77: 319000 | C77: 247000 | D77: 252000 | E77: 245000 | F77: 316000 | G77: 425000 | H77: 357500 | I77: 400000 | J77: 350000 | K77: 326000 | L77: 380000 | M77: 635000 | N77: 17 | O77: 19 | P77: 1.8
A78: CURLEWIS | B78: 149000 | C78: 155000 | D78: 155000 | E78: 159000 | F78: 160000 | G78: 157000 | H78: 165000 | I78: 180000 | J78: 210000 | K78: 249000 | L78: 315000 | M78: 337000 | N78: 27 | O78: 111 | P78: 7.8
A79: DALYSTON | B79: 114000 | C79: 119000 | D79: 125000 | E79: 129000 | F79: 107500 | G79: 89500 | H79: 89000 | I79: 109000 | J79: 122000 | K79: 139000 | L79: 169000 | M79: 220000 | N79: 22 | O79: 48 | P79: 4.0
A80: DARLEY | B80: 130000 | C80: 148000 | D80: 154000 | E80: 162000 | F80: 152000 | G80: 151500 | H80: 182000 | I80: 170000 | J80: 270000 | K80: 250000 | L80: 260000 | M80: 292500 | N80: 4 | O80: 100 | P80: 7.2
A81: DAYLESFORD | B81: 135000 | C81: 150000 | D81: 157000 | E81: 155000 | F81: 180000 | G81: 150000 | H81: 162500 | I81: 170000 | J81: 241000 | K81: 226500 | L81: 321500 | M81: 387500 | N81: 42 | O81: 138 | P81: 9.1
A82: DEANSIDE | B82: - | C82: - | D82: - | E82: - | F82: - | G82: - | H82: - | I82: 351000 | J82: 347000 | K82: 241000 | L82: 317000 | M82: 310000 | N82: 32 | O82: 0 | P82: NA
A83: DELACOMBE | B83: 102500 | C83: 115000 | D83: 120000 | E83: 120000 | F83: 130000 | G83: 135000 | H83: 130000 | I83: 137500 | J83: 150000 | K83: 169000 | L83: 182000 | M83: 183000 | N83: 8 | O83: 78 | P83: 5.9
A84: DENNINGTON | B84: 116500 | C84: 118000 | D84: 117500 | E84: 120000 | F84: 128500 | G84: 123000 | H84: 130000 | I84: 125000 | J84: 124000 | K84: 130000 | L84: 130000 | M84: NA | N84: 0 | O84: 12 | P84: 1.1
A85: DIAMOND CREEK | B85: 198000 | C85: 297500 | D85: 129000 | E85: 314000 | F85: 345000 | G85: 375000 | H85: 400000 | I85: 430000 | J85: 433000 | K85: 425000 | L85: 440000 | M85: 467500 | N85: 4 | O85: 122 | P85: 8.3
A86: DIGGERS REST | B86: 200000 | C86: 140000 | D86: 137000 | E86: 178500 | F86: 175000 | G86: 181000 | H86: 196500 | I86: 217000 | J86: 280000 | K86: 284000 | L86: 275000 | M86: 148500 | N86: -3 | O86: 38 | P86: 3.2
A87: DINNER PLAIN | B87: 149000 | C87: 85000 | D87: 98000 | E87: 59000 | F87: 60000 | G87: 59500 | H87: 63000 | I87: 84000 | J87: 90000 | K87: 115000 | L87: 130000 | M87: 91000 | N87: 13 | O87: -13 | P87: -1.4
A88: DONCASTER | B88: 850000 | C88: 270000 | D88: 300000 | E88: 112500 | F88: 702500 | G88: 795000 | H88: 907500 | I88: 1005000 | J88: 1010000 | K88: 1005000 | L88: 1030000 | M88: 950000 | N88: 2 | O88: 21 | P88: 1.9
A89: DONNYBROOK | B89: - | C89: - | D89: - | E89: - | F89: 182000 | G89: 182000 | H89: 182000 | I89: 250000 | J89: 300000 | K89: 279500 | L89: 293000 | M89: 318000 | N89: 5 | O89: 0 | P89: NA
A90: DOREEN | B90: 186500 | C90: 201500 | D90: 190000 | E90: 180000 | F90: 182000 | G90: 199000 | H90: 210000 | I90: 245000 | J90: 330000 | K90: 310000 | L90: 323500 | M90: 380000 | N90: 4 | O90: 73 | P90: 5.7
A91: DROMANA | B91: 267500 | C91: 293000 | D91: 240000 | E91: 283000 | F91: 285000 | G91: 294000 | H91: 420000 | I91: 475000 | J91: 557500 | K91: 405000 | L91: 535000 | M91: 687500 | N91: 32 | O91: 100 | P91: 7.2
A92: DROUIN | B92: 115000 | C92: 130000 | D92: 135000 | E92: 130000 | F92: 125000 | G92: 125000 | H92: 136500 | I92: 165000 | J92: 210000 | K92: 205000 | L92: 220000 | M92: 275000 | N92: 7 | O92: 91 | P92: 6.7
A93: DRYSDALE | B93: 150000 | C93: 165500 | D93: 157000 | E93: 170000 | F93: 169500 | G93: 164000 | H93: 157000 | I93: 180000 | J93: 225000 | K93: 290000 | L93: 250000 | M93: 285000 | N93: -14 | O93: 67 | P93: 5.2
A94: EAGLE POINT | B94: 99000 | C94: 112500 | D94: 99000 | E94: 132500 | F94: 109000 | G94: 223500 | H94: 110000 | I94: 108000 | J94: 135000 | K94: 133500 | L94: 132500 | M94: 140000 | N94: -1 | O94: 34 | P94: 3.0
A95: EAGLEHAWK | B95: 78000 | C95: 105000 | D95: 112000 | E95: 105500 | F95: 109500 | G95: 115000 | H95: 108000 | I95: 100000 | J95: 100000 | K95: 115000 | L95: 119500 | M95: 144000 | N95: 4 | O95: 53 | P95: 4.4
A96: EAST BAIRNSDALE | B96: 93000 | C96: 83000 | D96: 83000 | E96: 76000 | F96: 73500 | G96: 70000 | H96: 82500 | I96: 82500 | J96: 71000 | K96: 71000 | L96: 75000 | M96: NA | N96: 0 | O96: -19 | P96: -2.1
A97: EAST BENDIGO | B97: 150000 | C97: 135000 | D97: 154000 | E97: 125000 | F97: 223000 | G97: 200000 | H97: 185000 | I97: 236500 | J97: 216000 | K97: 203500 | L97: 165000 | M97: 155000 | N97: -19 | O97: 10 | P97: 1.0
A98: EASTWOOD | B98: 112500 | C98: 115500 | D98: 116500 | E98: 115000 | F98: 121500 | G98: 125000 | H98: 111500 | I98: 120000 | J98: 128000 | K98: 122000 | L98: 139500 | M98: 137000 | N98: 14 | O98: 24 | P98: 2.2
A99: ECHUCA | B99: 115000 | C99: 122500 | D99: 115500 | E99: 140000 | F99: 139000 | G99: 140000 | H99: 144500 | I99: 150500 | J99: 154000 | K99: 150500 | L99: 154500 | M99: 210000 | N99: 3 | O99: 34 | P99: 3.0
A100: ELLIMINYT | B100: 102500 | C100: 116500 | D100: 110000 | E100: 113000 | F100: 127000 | G100: 123000 | H100: 135000 | I100: 140000 | J100: 150000 | K100: 155000 | L100: 192000 | M100: 275000 | N100: 24 | O100: 87 | P100: 6.5
A101: ELMORE | B101: 82000 | C101: 64000 | D101: 71000 | E101: 93000 | F101: 92500 | G101: 65000 | H101: 75000 | I101: 80000 | J101: 87500 | K101: 69000 | L101: 82500 | M101: 77500 | N101: 20 | O101: 1 | P101: 0.1
A102: EPPING | B102: 179000 | C102: 192500 | D102: 190000 | E102: 193500 | F102: 195000 | G102: 220000 | H102: 275000 | I102: 245000 | J102: 315000 | K102: 240000 | L102: 313500 | M102: 407500 | N102: 31 | O102: 75 | P102: 5.8
A103: EPSOM | B103: 86500 | C103: 101500 | D103: 110000 | E103: 116000 | F103: 117500 | G103: 125000 | H103: 118000 | I103: 116500 | J103: 133000 | K103: 135000 | L103: 151000 | M103: 230000 | N103: 12 | O103: 75 | P103: 5.7
A104: EUROA | B104: 70000 | C104: 80000 | D104: 84000 | E104: 78000 | F104: 80000 | G104: 77500 | H104: 93000 | I104: 105000 | J104: 105000 | K104: 80000 | L104: 105000 | M104: 145000 | N104: 31 | O104: 50 | P104: 4.1
A105: EYNESBURY | B105: 151000 | C105: 178000 | D105: 163000 | E105: 149000 | F105: 143000 | G105: 165000 | H105: 180000 | I105: 244000 | J105: 288000 | K105: 257500 | L105: 273000 | M105: 308000 | N105: 6 | O105: 81 | P105: 6.1
A106: FLINDERS | B106: 447500 | C106: 1500000 | D106: 817000 | E106: 545000 | F106: 477000 | G106: 502000 | H106: 597500 | I106: 825000 | J106: 1075000 | K106: 811000 | L106: 970000 | M106: NA | N106: 20 | O106: 117 | P106: 8.0
A107: FLORA HILL | B107: 113000 | C107: 122000 | D107: 143500 | E107: 190000 | F107: 240000 | G107: 181500 | H107: 155000 | I107: 225000 | J107: 155000 | K107: 185000 | L107: 185000 | M107: 207500 | N107: 0 | O107: 63 | P107: 5.0
A108: FOSTER | B108: 97000 | C108: 89500 | D108: 121000 | E108: 125000 | F108: 126000 | G108: 132000 | H108: 165000 | I108: 140000 | J108: 129500 | K108: 127500 | L108: 125000 | M108: 122500 | N108: -2 | O108: 29 | P108: 2.6
A109: FRANKSTON | B109: 240000 | C109: 207500 | D109: 155000 | E109: 328000 | F109: 319500 | G109: 178000 | H109: 275000 | I109: 592500 | J109: 570500 | K109: 400000 | L109: 530000 | M109: NA | N109: 33 | O109: 121 | P109: 8.2
A110: FRASER RISE | B110: - | C110: 245000 | D110: 226000 | E110: 223000 | F110: 235000 | G110: 257000 | H110: 265000 | I110: 295000 | J110: 340000 | K110: 310000 | L110: 315000 | M110: 340500 | N110: 2 | O110: 0 | P110: NA
A111: FYANSFORD | B111: 285000 | C111: - | D111: - | E111: - | F111: 227000 | G111: 240000 | H111: 275000 | I111: 258500 | J111: 320000 | K111: 385000 | L111: 417500 | M111: 395000 | N111: 8 | O111: 46 | P111: 3.9
A112: GISBORNE | B112: 197000 | C112: 239000 | D112: 230000 | E112: 224000 | F112: 227000 | G112: 245000 | H112: 286000 | I112: 297500 | J112: 410000 | K112: 415000 | L112: 410000 | M112: 430000 | N112: -1 | O112: 108 | P112: 7.6
A113: GOLDEN BEACH | B113: 55000 | C113: 55000 | D113: 44000 | E113: 47000 | F113: 40000 | G113: 46000 | H113: 47000 | I113: 45000 | J113: 50500 | K113: 52000 | L113: 55000 | M113: 67000 | N113: 6 | O113: 0 | P113: NA
A114: GOLDEN SQUARE | B114: 106000 | C114: 116500 | D114: 129000 | E114: 148500 | F114: 156500 | G114: 178500 | H114: 175000 | I114: 173500 | J114: 139500 | K114: 161000 | L114: 169000 | M114: 176500 | N114: 5 | O114: 59 | P114: 4.8
A115: GRANTVILLE | B115: 130000 | C115: 134000 | D115: 126000 | E115: 122500 | F115: 115000 | G115: 139000 | H115: 135000 | I115: 140000 | J115: 175000 | K115: 265000 | L115: 202500 | M115: 240000 | N115: -24 | O115: 56 | P115: 4.5
A116: GREENVALE | B116: 274000 | C116: 262000 | D116: 244000 | E116: 228000 | F116: 248000 | G116: 260000 | H116: 292000 | I116: 342000 | J116: 415500 | K116: 379000 | L116: 399000 | M116: 449000 | N116: 5 | O116: 46 | P116: 3.8
A117: GROVEDALE | B117: 185000 | C117: 182000 | D117: 195000 | E117: 184000 | F117: 189000 | G117: 200000 | H117: 195000 | I117: 255000 | J117: 329000 | K117: 322500 | L117: 310000 | M117: 330000 | N117: -4 | O117: 68 | P117: 5.3
A118: HALLS GAP | B118: 88500 | C118: 110000 | D118: 95000 | E118: 84000 | F118: 112000 | G118: 125000 | H118: 85000 | I118: 84000 | J118: 92000 | K118: 93500 | L118: 130000 | M118: NA | N118: 39 | O118: 47 | P118: 3.9
A119: HAMILTON | B119: 81500 | C119: 94500 | D119: 83500 | E119: 91000 | F119: 87000 | G119: 88000 | H119: 98000 | I119: 76500 | J119: 91000 | K119: 82000 | L119: 100000 | M119: 245000 | N119: 22 | O119: 23 | P119: 2.1
A120: HAMPTON PARK | B120: 157500 | C120: 180000 | D120: 177500 | E120: 194000 | F120: 210000 | G120: 185500 | H120: 199500 | I120: 214500 | J120: 512500 | K120: 250000 | L120: 265000 | M120: 344000 | N120: 6 | O120: 68 | P120: 5.3
A121: HARCOURT | B121: 75000 | C121: 99000 | D121: 96500 | E121: 98000 | F121: 100000 | G121: 135000 | H121: 137000 | I121: 144000 | J121: 149500 | K121: 173500 | L121: 162500 | M121: 188000 | N121: -6 | O121: 117 | P121: 8.0
A122: HARKNESS | B122: 135000 | C122: 160000 | D122: 151000 | E122: 141000 | F122: 145000 | G122: 144000 | H122: 150000 | I122: 176000 | J122: 194000 | K122: 231000 | L122: 240000 | M122: 260000 | N122: 4 | O122: 78 | P122: 5.9
A123: HASTINGS | B123: 192000 | C123: 196000 | D123: 245000 | E123: 239000 | F123: 210000 | G123: 232500 | H123: 249000 | I123: 250000 | J123: 268000 | K123: 285000 | L123: 315000 | M123: 300000 | N123: 11 | O123: 64 | P123: 5.1
A124: HEALESVILLE | B124: 119500 | C124: 155000 | D124: 135000 | E124: 211000 | F124: 225500 | G124: 190000 | H124: 247500 | I124: 310000 | J124: 300000 | K124: 332500 | L124: 355000 | M124: 320000 | N124: 7 | O124: 198 | P124: 11.5
A125: HEATHCOTE | B125: 80500 | C125: 88500 | D125: 87000 | E125: 74500 | F125: 118500 | G125: 110000 | H125: 105000 | I125: 103500 | J125: 85000 | K125: 120000 | L125: 120000 | M125: 138000 | N125: 0 | O125: 49 | P125: 4.1
A126: HIGHTON | B126: 202000 | C126: 215000 | D126: 220000 | E126: 220500 | F126: 252500 | G126: 250000 | H126: 260000 | I126: 260000 | J126: 284000 | K126: 300000 | L126: 325000 | M126: 325000 | N126: 8 | O126: 61 | P126: 4.9
A127: HORSHAM | B127: 85000 | C127: 97000 | D127: 91500 | E127: 99500 | F127: 108500 | G127: 105000 | H127: 102000 | I127: 117000 | J127: 112000 | K127: 115000 | L127: 124500 | M127: 111500 | N127: 8 | O127: 46 | P127: 3.9
A128: HUNTLY | B128: 90000 | C128: 87000 | D128: 107000 | E128: 111000 | F128: 108500 | G128: 115000 | H128: 113000 | I128: 115000 | J128: 117000 | K128: 130000 | L128: 138000 | M128: 235000 | N128: 6 | O128: 53 | P128: 4.4
A129: HUON CREEK | B129: - | C129: - | D129: - | E129: - | F129: - | G129: - | H129: 267500 | I129: 265000 | J129: 270000 | K129: 293000 | L129: 330000 | M129: 330000 | N129: 13 | O129: 0 | P129: NA
A130: INVERLOCH | B130: 187500 | C130: 224000 | D130: 199000 | E130: 185000 | F130: 200000 | G130: 200000 | H130: 205000 | I130: 259000 | J130: 262500 | K130: 290000 | L130: 320000 | M130: 550000 | N130: 10 | O130: 71 | P130: 5.5
A131: INVERMAY PARK | B131: 173000 | C131: 391500 | D131: 391500 | E131: 391500 | F131: 187000 | G131: 187000 | H131: 187000 | I131: 187000 | J131: 201000 | K131: 279500 | L131: 257500 | M131: NA | N131: -8 | O131: 49 | P131: 4.1
A132: IRYMPLE | B132: 127500 | C132: 135000 | D132: 110000 | E132: 130000 | F132: 108000 | G132: 115000 | H132: 99500 | I132: 115000 | J132: 131500 | K132: 138000 | L132: 139000 | M132: 145000 | N132: 1 | O132: 9 | P132: 0.9
A133: JACKASS FLAT | B133: 86000 | C133: 97000 | D133: 119000 | E133: 118000 | F133: 121000 | G133: 128000 | H133: 130000 | I133: 133000 | J133: 135000 | K133: 138000 | L133: 141000 | M133: NA | N133: 2 | O133: 64 | P133: 5.1
A134: JUNCTION VILLAGE | B134: 140000 | C134: - | D134: - | E134: - | F134: - | G134: 205000 | H134: 205000 | I134: 205000 | J134: 205000 | K134: 205000 | L134: 325000 | M134: 386500 | N134: 0 | O134: 132 | P134: 8.8
A135: JUNORTOUN | B135: 125000 | C135: 139000 | D135: 145000 | E135: 154500 | F135: 184500 | G135: 207500 | H135: 194500 | I135: 195000 | J135: 180000 | K135: 195000 | L135: 194000 | M135: 295000 | N135: 0 | O135: 55 | P135: 4.5
A136: KALIMNA | B136: 74500 | C136: 75000 | D136: 78500 | E136: 116500 | F136: 80500 | G136: 105500 | H136: 93500 | I136: 85000 | J136: 135000 | K136: 93000 | L136: 105000 | M136: 187500 | N136: 13 | O136: 41 | P136: 3.5
A137: KALKALLO | B137: - | C137: - | D137: - | E137: 105500 | F137: 176000 | G137: 181000 | H137: 202000 | I137: 268000 | J137: 325000 | K137: 286500 | L137: 292000 | M137: 325000 | N137: 2 | O137: 0 | P137: NA
A138: KANGAROO FLAT | B138: 93000 | C138: 101500 | D138: 106000 | E138: 127000 | F138: 130000 | G138: 135500 | H138: 140000 | I138: 135000 | J138: 139000 | K138: 136000 | L138: 170000 | M138: 132500 | N138: 25 | O138: 83 | P138: 6.2
A139: KEILOR EAST | B139: 370000 | C139: 390000 | D139: 379000 | E139: 417500 | F139: 396500 | G139: 470000 | H139: 412500 | I139: 407500 | J139: 730000 | K139: 665000 | L139: 662500 | M139: NA | N139: 0 | O139: 79 | P139: 6.0
A140: KEILOR PARK | B140: 930500 | C140: 930500 | D140: 472500 | E140: 156000 | F140: 156000 | G140: 205000 | H140: 100000 | I140: 380000 | J140: 286000 | K140: 655000 | L140: 597000 | M140: NA | N140: -9 | O140: -36 | P140: -4.3
A141: KERANG | B141: 52000 | C141: 60000 | D141: 50000 | E141: 48000 | F141: 42000 | G141: 54500 | H141: 48500 | I141: 65000 | J141: 65000 | K141: 68000 | L141: 52500 | M141: 99000 | N141: -23 | O141: 1 | P141: 0.1
A142: KEYSBOROUGH | B142: 337000 | C142: 347000 | D142: 355000 | E142: 365000 | F142: 377500 | G142: 370000 | H142: 553000 | I142: 565000 | J142: 553500 | K142: 542000 | L142: 606500 | M142: 660000 | N142: 12 | O142: 80 | P142: 6.0
A143: KIALLA | B143: 117500 | C143: 122000 | D143: 118000 | E143: 121500 | F143: 124000 | G143: 126000 | H143: 130000 | I143: 128000 | J143: 131500 | K143: 136000 | L143: 150000 | M143: 150000 | N143: 10 | O143: 28 | P143: 2.5
A144: KILCUNDA | B144: 270000 | C144: 212000 | D144: 221500 | E144: 235000 | F144: 157000 | G144: 141000 | H144: 180000 | I144: 233500 | J144: 245000 | K144: 295000 | L144: 295000 | M144: 1025000 | N144: 0 | O144: 9 | P144: 0.9
A145: KILLARA (WODONGA) | B145: 102500 | C145: 118000 | D145: 117000 | E145: 121000 | F145: 129000 | G145: 135000 | H145: 137000 | I145: 140000 | J145: 145000 | K145: 147000 | L145: 150500 | M145: 184000 | N145: 2 | O145: 47 | P145: 3.9
A146: KILMORE | B146: 100000 | C146: 120000 | D146: 110000 | E146: 115000 | F146: 110000 | G146: 105000 | H146: 112500 | I146: 129500 | J146: 219000 | K146: 220000 | L146: 240000 | M146: 230000 | N146: 9 | O146: 140 | P146: 9.1
A147: KINGLAKE | B147: 110000 | C147: 110000 | D147: 110000 | E147: 110000 | F147: 120000 | G147: 128500 | H147: 135000 | I147: 185000 | J147: 145000 | K147: 205000 | L147: 225000 | M147: 195000 | N147: 10 | O147: 105 | P147: 7.4
A148: KOO WEE RUP | B148: 145000 | C148: 165000 | D148: 165000 | E148: 175000 | F148: 173000 | G148: 200000 | H148: 225000 | I148: 254000 | J148: 299000 | K148: 300000 | L148: 320000 | M148: NA | N148: 7 | O148: 121 | P148: 8.2
A149: KOONDROOK | B149: 37000 | C149: 48000 | D149: 48000 | E149: 65000 | F149: 57000 | G149: 66500 | H149: 71000 | I149: 63500 | J149: 58000 | K149: 69000 | L149: 80000 | M149: 100500 | N149: 16 | O149: 116 | P149: 8.0
A150: KOROIT | B150: 80000 | C150: 99500 | D150: 98500 | E150: 119000 | F150: 101500 | G150: 107500 | H150: 114000 | I150: 103500 | J150: 108500 | K150: 125000 | L150: 135000 | M150: NA | N150: 8 | O150: 69 | P150: 5.4
A151: KORONG VALE | B151: 70000 | C151: 30000 | D151: 30000 | E151: 6500 | F151: 9000 | G151: 6000 | H151: 10000 | I151: 6500 | J151: 9500 | K151: 15000 | L151: 20000 | M151: 24000 | N151: 33 | O151: -71 | P151: -11.8
A152: KORUMBURRA | B152: 99500 | C152: 100000 | D152: 90000 | E152: 115000 | F152: 107000 | G152: 110000 | H152: 123000 | I152: 129000 | J152: 150000 | K152: 180000 | L152: 201000 | M152: 212000 | N152: 12 | O152: 102 | P152: 7.3
A153: KURUNJANG | B153: 180000 | C153: 215000 | D153: 164500 | E153: 145000 | F153: 133500 | G153: 130000 | H153: 132500 | I153: 150500 | J153: 227500 | K153: 250000 | L153: 252000 | M153: 265000 | N153: 1 | O153: 40 | P153: 3.4
A154: KYABRAM | B154: 94000 | C154: 101000 | D154: 97000 | E154: 99000 | F154: 98000 | G154: 110000 | H154: 115000 | I154: 115000 | J154: 114000 | K154: 124000 | L154: 124500 | M154: 147500 | N154: 0 | O154: 32 | P154: 2.8
A155: KYNETON | B155: 111500 | C155: 137000 | D155: 166500 | E155: 177000 | F155: 170000 | G155: 178500 | H155: 195000 | I155: 211000 | J155: 230000 | K155: 311500 | L155: 329000 | M155: 490000 | N155: 6 | O155: 195 | P155: 11.4
A156: LAKE BOGA | B156: 102000 | C156: 73500 | D156: 110000 | E156: 73000 | F156: 40000 | G156: 45000 | H156: 35000 | I156: 42500 | J156: 257000 | K156: 67000 | L156: 72000 | M156: 69000 | N156: 8 | O156: -29 | P156: -3.4
A157: LAKE BUNGA | B157: 112500 | C157: 107500 | D157: 135000 | E157: 130000 | F157: 118500 | G157: 121000 | H157: 131000 | I157: 115000 | J157: 122500 | K157: 117000 | L157: 127000 | M157: 250000 | N157: 9 | O157: 13 | P157: 1.2
A158: LAKE TYERS BEACH | B158: 125000 | C158: 107500 | D158: 105000 | E158: 97500 | F158: 135000 | G158: 116000 | H158: 106000 | I158: 119000 | J158: 150000 | K158: 132000 | L158: 182500 | M158: 195000 | N158: 38 | O158: 46 | P158: 3.9
A159: LAKES ENTRANCE | B159: 107000 | C159: 117500 | D159: 94000 | E159: 94500 | F159: 89000 | G159: 79500 | H159: 98000 | I159: 101000 | J159: 96500 | K159: 96000 | L159: 125000 | M159: 119000 | N159: 30 | O159: 17 | P159: 1.6
A160: LALOR | B160: 256500 | C160: 268000 | D160: 249000 | E160: 255000 | F160: 275000 | G160: 282500 | H160: 330000 | I160: 405000 | J160: 475000 | K160: 495000 | L160: 540000 | M160: 542000 | N160: 9 | O160: 111 | P160: 7.7
A161: LANCEFIELD | B161: 97500 | C161: 96500 | D161: 115000 | E161: 115000 | F161: 138000 | G161: 144000 | H161: 128000 | I161: 135000 | J161: 205000 | K161: 220000 | L161: 215000 | M161: 280000 | N161: -2 | O161: 121 | P161: 8.2
A162: LANG LANG | B162: 139500 | C162: 155000 | D162: 165000 | E162: 169500 | F162: 150000 | G162: 165000 | H162: 160000 | I162: 195000 | J162: 266000 | K162: 265000 | L162: 270000 | M162: 302500 | N162: 2 | O162: 93 | P162: 6.8
A163: LANGWARRIN | B163: 230000 | C163: 253000 | D163: 233500 | E163: 227000 | F163: 246000 | G163: 250000 | H163: 365500 | I163: 297500 | J163: 352000 | K163: 407500 | L163: 400000 | M163: 317500 | N163: -2 | O163: 74 | P163: 5.7
A164: LARA | B164: 157000 | C164: 185000 | D164: 170000 | E164: 199000 | F164: 190000 | G164: 195000 | H164: 194000 | I164: 225000 | J164: 365000 | K164: 375000 | L164: 342500 | M164: 370000 | N164: -9 | O164: 118 | P164: 8.1
A165: LARA LAKE | B165: 166000 | C165: 171000 | D165: 185000 | E165: 186000 | F165: 194000 | G165: 190000 | H165: 185500 | I165: 193500 | J165: 252000 | K165: 275000 | L165: 269000 | M165: 345000 | N165: -2 | O165: 62 | P165: 4.9
A166: LAVERTON SOUTH | B166: 205000 | C166: 330000 | D166: 305500 | E166: 307500 | F166: 395000 | G166: 413000 | H166: 439000 | I166: 431000 | J166: 525000 | K166: 465000 | L166: 505000 | M166: 610000 | N166: 9 | O166: 146 | P166: 9.4
A167: LENEVA | B167: 115000 | C167: 114500 | D167: 109000 | E167: 130000 | F167: 130000 | G167: 112500 | H167: 148000 | I167: 142500 | J167: 135000 | K167: 147500 | L167: 150000 | M167: 142500 | N167: 2 | O167: 30 | P167: 2.7
A168: LEONGATHA | B168: 110000 | C168: 115500 | D168: 145000 | E168: 152000 | F168: 142000 | G168: 140500 | H168: 152500 | I168: 135000 | J168: 165000 | K168: 165000 | L168: 201500 | M168: 168000 | N168: 22 | O168: 83 | P168: 6.2
A169: LEOPOLD | B169: 156500 | C169: 175000 | D169: 171500 | E169: 166000 | F169: 165000 | G169: 178000 | H169: 179000 | I169: 225000 | J169: 243000 | K169: 275000 | L169: 265000 | M169: 285000 | N169: -4 | O169: 70 | P169: 5.4
A170: LETHBRIDGE | B170: 76000 | C170: 135000 | D170: 202500 | E170: 150000 | F170: 78500 | G170: 88000 | H170: 120000 | I170: 120000 | J170: 254500 | K170: 293500 | L170: 287500 | M170: NA | N170: -2 | O170: 278 | P170: 14.2
A171: LILYDALE | B171: 225000 | C171: 245000 | D171: 213500 | E171: 225000 | F171: 255000 | G171: 290000 | H171: 388000 | I171: 352500 | J171: 510000 | K171: 470000 | L171: 495000 | M171: 595000 | N171: 5 | O171: 120 | P171: 8.2
A172: LINTON | B172: 34000 | C172: 20000 | D172: 39500 | E172: 52000 | F172: 42000 | G172: 50500 | H172: 179000 | I172: 50000 | J172: 56000 | K172: 50000 | L172: 60000 | M172: 62500 | N172: 20 | O172: 77 | P172: 5.9
A173: LISMORE | B173: 25000 | C173: 28000 | D173: 36000 | E173: 20000 | F173: 24000 | G173: 24500 | H173: 19000 | I173: 28000 | J173: 25000 | K173: 40000 | L173: 35500 | M173: 38500 | N173: -11 | O173: 42 | P173: 3.6
A174: LOCH SPORT | B174: 52000 | C174: 46500 | D174: 50000 | E174: 44000 | F174: 48000 | G174: 53000 | H174: 40000 | I174: 42500 | J174: 48500 | K174: 60000 | L174: 55000 | M174: 75000 | N174: -8 | O174: 6 | P174: 0.6
A175: LONG GULLY | B175: 186000 | C175: 159000 | D175: 125000 | E175: 86500 | F175: 121500 | G175: 125500 | H175: 147500 | I175: 100000 | J175: 133500 | K175: 133500 | L175: 136000 | M175: NA | N175: 2 | O175: -27 | P175: -3.1
A176: LONGWARRY | B176: 110000 | C176: 130000 | D176: 110000 | E176: 115000 | F176: 111000 | G176: 123000 | H176: 134000 | I176: 160000 | J176: 200000 | K176: 227500 | L176: 204000 | M176: 100000 | N176: -10 | O176: 85 | P176: 6.4
A177: LOVELY BANKS | B177: 149000 | C177: 154500 | D177: 266500 | E177: 100000 | F177: 227500 | G177: 227500 | H177: 227500 | I177: 184500 | J177: 259500 | K177: 269500 | L177: 280500 | M177: 390000 | N177: 4 | O177: 88 | P177: 6.5
A178: LUCAS | B178: - | C178: 127500 | D178: 133500 | E178: 130000 | F178: 137000 | G178: 129000 | H178: 140000 | I178: 145500 | J178: 170000 | K178: 190000 | L178: 205000 | M178: 265000 | N178: 8 | O178: 0 | P178: NA
A179: LUCKNOW | B179: 75000 | C179: 145000 | D179: 88500 | E179: 77500 | F179: 77500 | G179: 90000 | H179: 81500 | I179: 113000 | J179: 112500 | K179: 115000 | L179: 115000 | M179: 135000 | N179: 0 | O179: 53 | P179: 4.4
A180: LYNDHURST | B180: 232000 | C180: 230000 | D180: 230000 | E180: 260000 | F180: 340000 | G180: 229000 | H180: 307500 | I180: 355000 | J180: 440000 | K180: 436000 | L180: 455000 | M180: 527500 | N180: 4 | O180: 96 | P180: 7.0
A181: MADDINGLEY | B181: 109000 | C181: 131000 | D181: 143000 | E181: 153000 | F181: 150000 | G181: 156000 | H181: 153000 | I181: 174500 | J181: 209000 | K181: 235000 | L181: 255000 | M181: 306000 | N181: 9 | O181: 134 | P181: 8.9
A182: MAFFRA | B182: 100000 | C182: 110000 | D182: 110000 | E182: 110000 | F182: 112000 | G182: 109000 | H182: 111500 | I182: 113000 | J182: 109000 | K182: 117000 | L182: 115000 | M182: 120000 | N182: -2 | O182: 15 | P182: 1.4
A183: MAIDEN GULLY | B183: 106000 | C183: 119000 | D183: 130000 | E183: 159000 | F183: 158000 | G183: 159500 | H183: 171000 | I183: 165000 | J183: 159500 | K183: 182500 | L183: 189000 | M183: 241000 | N183: 4 | O183: 79 | P183: 6.0
A184: MAIDSTONE | B184: 155000 | C184: 225000 | D184: 236000 | E184: 277500 | F184: 296000 | G184: 296000 | H184: 105000 | I184: 748000 | J184: 439500 | K184: 414500 | L184: 280000 | M184: NA | N184: -32 | O184: 81 | P184: 6.1
A185: MALDON | B185: 77000 | C185: 86000 | D185: 92500 | E185: 90000 | F185: 120000 | G185: 126500 | H185: 125000 | I185: 125000 | J185: 135000 | K185: 149000 | L185: 140500 | M185: 170000 | N185: -6 | O185: 82 | P185: 6.2
A186: MALLACOOTA | B186: 145000 | C186: 160000 | D186: 119000 | E186: 92000 | F186: 150000 | G186: 180500 | H186: 70500 | I186: 150000 | J186: 150000 | K186: 124500 | L186: 145000 | M186: 125000 | N186: 17 | O186: 0 | P186: NA
A187: MALMSBURY | B187: 92500 | C187: 100000 | D187: 107500 | E187: 124500 | F187: 136500 | G187: 160500 | H187: 155000 | I187: 157000 | J187: 190000 | K187: 244000 | L187: 260000 | M187: 160000 | N187: 7 | O187: 181 | P187: 10.9
A188: MAMBOURIN | B188: - | C188: - | D188: - | E188: - | F188: - | G188: - | H188: - | I188: 365000 | J188: 299500 | K188: 295000 | L188: 295000 | M188: 313500 | N188: 0 | O188: 0 | P188: NA
A189: MANOR LAKES | B189: 150000 | C189: 184500 | D189: 184000 | E189: 155000 | F189: 165000 | G189: 182500 | H189: 201000 | I189: 250500 | J189: 300000 | K189: 307500 | L189: 303000 | M189: 350000 | N189: -2 | O189: 102 | P189: 7.3
A190: MANSFIELD | B190: 121000 | C190: 145000 | D190: 147000 | E190: 167000 | F190: 165000 | G190: 160000 | H190: 180000 | I190: 172500 | J190: 172500 | K190: 172000 | L190: 185000 | M190: 230000 | N190: 8 | O190: 53 | P190: 4.3
A191: MARIBYRNONG | B191: 181500 | C191: 257500 | D191: 240500 | E191: 240000 | F191: 240000 | G191: 238000 | H191: 325000 | I191: 798000 | J191: 1057500 | K191: 327500 | L191: 500000 | M191: NA | N191: 53 | O191: 176 | P191: 10.7
A192: MARONG | B192: 78000 | C192: 90000 | D192: 94000 | E192: 103000 | F192: 112000 | G192: 113000 | H192: 137500 | I192: 128000 | J192: 134000 | K192: 137000 | L192: 147000 | M192: 208000 | N192: 7 | O192: 89 | P192: 6.6
A193: MARYBOROUGH | B193: 82000 | C193: 68000 | D193: 74000 | E193: 82000 | F193: 77000 | G193: 76000 | H193: 90000 | I193: 85000 | J193: 83000 | K193: 99000 | L193: 98000 | M193: 90000 | N193: -1 | O193: 20 | P193: 1.8
A194: MCCRAE | B194: 235000 | C194: 320000 | D194: 323500 | E194: 347500 | F194: 337000 | G194: 385000 | H194: 351500 | I194: 520000 | J194: 526500 | K194: 492500 | L194: 474500 | M194: 750000 | N194: -4 | O194: 102 | P194: 7.3
A195: MCKENZIE HILL | B195: 102500 | C195: 129000 | D195: 127500 | E195: 125000 | F195: 131500 | G195: 129000 | H195: 135000 | I195: 132500 | J195: 146000 | K195: 158500 | L195: 205000 | M195: 235000 | N195: 29 | O195: 100 | P195: 7.2
A196: MELTON SOUTH | B196: 124500 | C196: 163000 | D196: 162000 | E196: 135000 | F196: 143500 | G196: 150000 | H196: 160000 | I196: 194500 | J196: 229000 | K196: 230000 | L196: 223000 | M196: 250000 | N196: -3 | O196: 79 | P196: 6.0
A197: MERNDA | B197: 187500 | C197: 203000 | D197: 199000 | E197: 186000 | F197: 190000 | G197: 191000 | H197: 217000 | I197: 244000 | J197: 304000 | K197: 290000 | L197: 328000 | M197: 350000 | N197: 13 | O197: 75 | P197: 5.7
A198: METUNG | B198: 115000 | C198: 110000 | D198: 98500 | E198: 74000 | F198: 80500 | G198: 65000 | H198: 65000 | I198: 126500 | J198: 120000 | K198: 112500 | L198: 115000 | M198: 149000 | N198: 2 | O198: 0 | P198: NA
A199: MICKLEHAM | B199: 148000 | C199: 148000 | D199: 186500 | E199: 168000 | F199: 180000 | G199: 187000 | H199: 202000 | I199: 258000 | J199: 296000 | K199: 285000 | L199: 297000 | M199: 369000 | N199: 4 | O199: 101 | P199: 7.2
A200: MILDURA | B200: 84000 | C200: 81500 | D200: 84500 | E200: 89000 | F200: 89000 | G200: 95500 | H200: 96000 | I200: 108000 | J200: 131000 | K200: 135000 | L200: 135000 | M200: 185000 | N200: 0 | O200: 61 | P200: 4.9
... 130 more rows

Sheet Warragul Drouin
A1: =UPPER(WorkBookTitle) -> GIPPSLAND WATER - NCC WATER
A2: =MID(CELL("filename",A1),FIND("]",CELL("filename",A1))+1,255) -> Warragul Drouin
A3: =YEAR(Setup!$I$25)&" price period" -> 2023 price period
B5: Timing flags
E7: =Setup!E37 -> Year counter | P7: num | R7: =Setup!R37 -> 1 | S7: =Setup!S37 -> 2 | T7: =Setup!T37 -> 3 | U7: =Setup!U37 -> 4 | V7: =Setup!V37 -> 5 | W7: =Setup!W37 -> 6 | X7: =Setup!X37 -> 7 | Y7: =Setup!Y37 -> 8 | Z7: =Setup!Z37 -> 9 | AA7: =Setup!AA37 -> 10 | AB7: =Setup!AB37 -> 11 | AC7: =Setup!AC37 -> 12 | AD7: =Setup!AD37 -> 13 | AE7: =Setup!AE37 -> 14 | AF7: =Setup!AF37 -> 15 | AG7: =Setup!AG37 -> 16 | AH7: =Setup!AH37 -> 17 | AI7: =Setup!AI37 -> 18 | AJ7: =Setup!AJ37 -> 19 | AK7: =Setup!AK37 -> 20 | AL7: =Setup!AL37 -> 21 | AM7: =Setup!AM37 -> 22 | AN7: =Setup!AN37 -> 23 | AO7: =Setup!AO37 -> 24 | AP7: =Setup!AP37 -> 25
E8: =Setup!E41 -> Financial year | P8: year | R8: =Setup!R41 -> 2018-19 | S8: =Setup!S41 -> 2019-20 | T8: =Setup!T41 -> 2020-21 | U8: =Setup!U41 -> 2021-22 | V8: =Setup!V41 -> 2022-23 | W8: =Setup!W41 -> 2023-24 | X8: =Setup!X41 -> 2024-25 | Y8: =Setup!Y41 -> 2025-26 | Z8: =Setup!Z41 -> 2026-27 | AA8: =Setup!AA41 -> 2027-28 | AB8: =Setup!AB41 -> 2028-29 | AC8: =Setup!AC41 -> 2029-30 | AD8: =Setup!AD41 -> 2030-31 | AE8: =Setup!AE41 -> 2031-32 | AF8: =Setup!AF41 -> 2032-33 | AG8: =Setup!AG41 -> 2033-34 | AH8: =Setup!AH41 -> 2034-35 | AI8: =Setup!AI41 -> 2035-36 | AJ8: =Setup!AJ41 -> 2036-37 | AK8: =Setup!AK41 -> 2037-38 | AL8: =Setup!AL41 -> 2038-39 | AM8: =Setup!AM41 -> 2039-40 | AN8: =Setup!AN41 -> 2040-41 | AO8: =Setup!AO41 -> 2041-42 | AP8: =Setup!AP41 -> 2042-43
E9: =Setup!E46 -> Pricing period | P9: num | R9: =Setup!R46 -> 1 | S9: =Setup!S46 -> 1 | T9: =Setup!T46 -> 1 | U9: =Setup!U46 -> 1 | V9: =Setup!V46 -> 1 | W9: =Setup!W46 -> 2 | X9: =Setup!X46 -> 2 | Y9: =Setup!Y46 -> 2 | Z9: =Setup!Z46 -> 2 | AA9: =Setup!AA46 -> 2 | AB9: =Setup!AB46 -> 3 | AC9: =Setup!AC46 -> 3 | AD9: =Setup!AD46 -> 3 | AE9: =Setup!AE46 -> 3 | AF9: =Setup!AF46 -> 3 | AG9: =Setup!AG46 -> 4 | AH9: =Setup!AH46 -> 4 | AI9: =Setup!AI46 -> 4 | AJ9: =Setup!AJ46 -> 4 | AK9: =Setup!AK46 -> 4 | AL9: =Setup!AL46 -> 5 | AM9: =Setup!AM46 -> 5 | AN9: =Setup!AN46 -> 5 | AO9: =Setup!AO46 -> 5 | AP9: =Setup!AP46 -> 5
B11: Incremental cost
C12: Growth related capital expenditure
D13: Growth Capex | Q13: NPV
D14: =$A$2 -> Warragul Drouin | E14: Basin | P14: $ | Q14: =NPV('DataCON&ASSUMPTIONS'!$F$48,'Warragul Drouin'!W14:AP14) -> 0 | R14: =SUMPRODUCT(--($D14=DataCAPEX!$E$14:$E$218),--('Warragul Drouin'!$E14=DataCAPEX!$G$14:$G$218),--(DataCAPEX!R$14:R$218)) -> 0 | S14: =SUMPRODUCT(--($D14=DataCAPEX!$E$14:$E$218),--('Warragul Drouin'!$E14=DataCAPEX!$G$14:$G$218),--(DataCAPEX!S$14:S$218)) -> 0 | T14: =SUMPRODUCT(--($D14=DataCAPEX!$E$14:$E$218),--('Warragul Drouin'!$E14=DataCAPEX!$G$14:$G$218),--(DataCAPEX!T$14:T$218)) -> 0 | U14: =SUMPRODUCT(--($D14=DataCAPEX!$E$14:$E$218),--('Warragul Drouin'!$E14=DataCAPEX!$G$14:$G$218),--(DataCAPEX!U$14:U$218)) -> 0 | V14: =SUMPRODUCT(--($D14=DataCAPEX!$E$14:$E$218),--('Warragul Drouin'!$E14=DataCAPEX!$G$14:$G$218),--(DataCAPEX!V$14:V$218)) -> 0 | W14: =SUMPRODUCT(--($D14=DataCAPEX!$E$14:$E$218),--('Warragul Drouin'!$E14=DataCAPEX!$G$14:$G$218),--(DataCAPEX!W$14:W$218)) -> 0 | X14: =SUMPRODUCT(--($D14=DataCAPEX!$E$14:$E$218),--('Warragul Drouin'!$E14=DataCAPEX!$G$14:$G$218),--(DataCAPEX!X$14:X$218)) -> 0 | Y14: =SUMPRODUCT(--($D14=DataCAPEX!$E$14:$E$218),--('Warragul Drouin'!$E14=DataCAPEX!$G$14:$G$218),--(DataCAPEX!Y$14:Y$218)) -> 0 | Z14: =SUMPRODUCT(--($D14=DataCAPEX!$E$14:$E$218),--('Warragul Drouin'!$E14=DataCAPEX!$G$14:$G$218),--(DataCAPEX!Z$14:Z$218)) -> 0 | AA14: =SUMPRODUCT(--($D14=DataCAPEX!$E$14:$E$218),--('Warragul Drouin'!$E14=DataCAPEX!$G$14:$G$218),--(DataCAPEX!AA$14:AA$218)) -> 0 | AB14: =SUMPRODUCT(--($D14=DataCAPEX!$E$14:$E$218),--('Warragul Drouin'!$E14=DataCAPEX!$G$14:$G$218),--(DataCAPEX!AB$14:AB$218)) -> 0 | AC14: =SUMPRODUCT(--($D14=DataCAPEX!$E$14:$E$218),--('Warragul Drouin'!$E14=DataCAPEX!$G$14:$G$218),--(DataCAPEX!AC$14:AC$218)) -> 0 | AD14: =SUMPRODUCT(--($D14=DataCAPEX!$E$14:$E$218),--('Warragul Drouin'!$E14=DataCAPEX!$G$14:$G$218),--(DataCAPEX!AD$14:AD$218)) -> 0 | AE14: =SUMPRODUCT(--($D14=DataCAPEX!$E$14:$E$218),--('Warragul Drouin'!$E14=DataCAPEX!$G$14:$G$218),--(DataCAPEX!AE$14:AE$218)) -> 0 | AF14: =SUMPRODUCT(--($D14=DataCAPEX!$E$14:$E$218),--('Warragul Drouin'!$E14=DataCAPEX!$G$14:$G$218),--(DataCAPEX!AF$14:AF$218)) -> 0 | AG14: =SUMPRODUCT(--($D14=DataCAPEX!$E$14:$E$218),--('Warragul Drouin'!$E14=DataCAPEX!$G$14:$G$218),--(DataCAPEX!AG$14:AG$218)) -> 0 | AH14: =SUMPRODUCT(--($D14=DataCAPEX!$E$14:$E$218),--('Warragul Drouin'!$E14=DataCAPEX!$G$14:$G$218),--(DataCAPEX!AH$14:AH$218)) -> 0 | AI14: =SUMPRODUCT(--($D14=DataCAPEX!$E$14:$E$218),--('Warragul Drouin'!$E14=DataCAPEX!$G$14:$G$218),--(DataCAPEX!AI$14:AI$218)) -> 0 | AJ14: =SUMPRODUCT(--($D14=DataCAPEX!$E$14:$E$218),--('Warragul Drouin'!$E14=DataCAPEX!$G$14:$G$218),--(DataCAPEX!AJ$14:AJ$218)) -> 0 | AK14: =SUMPRODUCT(--($D14=DataCAPEX!$E$14:$E$218),--('Warragul Drouin'!$E14=DataCAPEX!$G$14:$G$218),--(DataCAPEX!AK$14:AK$218)) -> 0 | AL14: =SUMPRODUCT(--($D14=DataCAPEX!$E$14:$E$218),--('Warragul Drouin'!$E14=DataCAPEX!$G$14:$G$218),--(DataCAPEX!AL$14:AL$218)) -> 0 | AM14: =SUMPRODUCT(--($D14=DataCAPEX!$E$14:$E$218),--('Warragul Drouin'!$E14=DataCAPEX!$G$14:$G$218),--(DataCAPEX!AM$14:AM$218)) -> 0 | AN14: =SUMPRODUCT(--($D14=DataCAPEX!$E$14:$E$218),--('Warragul Drouin'!$E14=DataCAPEX!$G$14:$G$218),--(DataCAPEX!AN$14:AN$218)) -> 0 | AO14: =SUMPRODUCT(--($D14=DataCAPEX!$E$14:$E$218),--('Warragul Drouin'!$E14=DataCAPEX!$G$14:$G$218),--(DataCAPEX!AO$14:AO$218)) -> 0 | AP14: =SUMPRODUCT(--($D14=DataCAPEX!$E$14:$E$218),--('Warragul Drouin'!$E14=DataCAPEX!$G$14:$G$218),--(DataCAPEX!AP$14:AP$218)) -> 0
D15: =$A$2 -> Warragul Drouin | E15: Bores | P15: $ | Q15: =NPV('DataCON&ASSUMPTIONS'!$F$48,'Warragul Drouin'!W15:AP15) -> 0 | R15: =SUMPRODUCT(--($D15=DataCAPEX!$E$14:$E$218),--('Warragul Drouin'!$E15=DataCAPEX!$G$14:$G$218),--(DataCAPEX!R$14:R$218)) -> 0 | S15: =SUMPRODUCT(--($D15=DataCAPEX!$E$14:$E$218),--('Warragul Drouin'!$E15=DataCAPEX!$G$14:$G$218),--(DataCAPEX!S$14:S$218)) -> 0 | T15: =SUMPRODUCT(--($D15=DataCAPEX!$E$14:$E$218),--('Warragul Drouin'!$E15=DataCAPEX!$G$14:$G$218),--(DataCAPEX!T$14:T$218)) -> 0 | U15: =SUMPRODUCT(--($D15=DataCAPEX!$E$14:$E$218),--('Warragul Drouin'!$E15=DataCAPEX!$G$14:$G$218),--(DataCAPEX!U$14:U$218)) -> 0 | V15: =SUMPRODUCT(--($D15=DataCAPEX!$E$14:$E$218),--('Warragul Drouin'!$E15=DataCAPEX!$G$14:$G$218),--(DataCAPEX!V$14:V$218)) -> 0 | W15: =SUMPRODUCT(--($D15=DataCAPEX!$E$14:$E$218),--('Warragul Drouin'!$E15=DataCAPEX!$G$14:$G$218),--(DataCAPEX!W$14:W$218)) -> 0 | X15: =SUMPRODUCT(--($D15=DataCAPEX!$E$14:$E$218),--('Warragul Drouin'!$E15=DataCAPEX!$G$14:$G$218),--(DataCAPEX!X$14:X$218)) -> 0 | Y15: =SUMPRODUCT(--($D15=DataCAPEX!$E$14:$E$218),--('Warragul Drouin'!$E15=DataCAPEX!$G$14:$G$218),--(DataCAPEX!Y$14:Y$218)) -> 0 | Z15: =SUMPRODUCT(--($D15=DataCAPEX!$E$14:$E$218),--('Warragul Drouin'!$E15=DataCAPEX!$G$14:$G$218),--(DataCAPEX!Z$14:Z$218)) -> 0 | AA15: =SUMPRODUCT(--($D15=DataCAPEX!$E$14:$E$218),--('Warragul Drouin'!$E15=DataCAPEX!$G$14:$G$218),--(DataCAPEX!AA$14:AA$218)) -> 0 | AB15: =SUMPRODUCT(--($D15=DataCAPEX!$E$14:$E$218),--('Warragul Drouin'!$E15=DataCAPEX!$G$14:$G$218),--(DataCAPEX!AB$14:AB$218)) -> 0 | AC15: =SUMPRODUCT(--($D15=DataCAPEX!$E$14:$E$218),--('Warragul Drouin'!$E15=DataCAPEX!$G$14:$G$218),--(DataCAPEX!AC$14:AC$218)) -> 0 | AD15: =SUMPRODUCT(--($D15=DataCAPEX!$E$14:$E$218),--('Warragul Drouin'!$E15=DataCAPEX!$G$14:$G$218),--(DataCAPEX!AD$14:AD$218)) -> 0 | AE15: =SUMPRODUCT(--($D15=DataCAPEX!$E$14:$E$218),--('Warragul Drouin'!$E15=DataCAPEX!$G$14:$G$218),--(DataCAPEX!AE$14:AE$218)) -> 0 | AF15: =SUMPRODUCT(--($D15=DataCAPEX!$E$14:$E$218),--('Warragul Drouin'!$E15=DataCAPEX!$G$14:$G$218),--(DataCAPEX!AF$14:AF$218)) -> 0 | AG15: =SUMPRODUCT(--($D15=DataCAPEX!$E$14:$E$218),--('Warragul Drouin'!$E15=DataCAPEX!$G$14:$G$218),--(DataCAPEX!AG$14:AG$218)) -> 0 | AH15: =SUMPRODUCT(--($D15=DataCAPEX!$E$14:$E$218),--('Warragul Drouin'!$E15=DataCAPEX!$G$14:$G$218),--(DataCAPEX!AH$14:AH$218)) -> 0 | AI15: =SUMPRODUCT(--($D15=DataCAPEX!$E$14:$E$218),--('Warragul Drouin'!$E15=DataCAPEX!$G$14:$G$218),--(DataCAPEX!AI$14:AI$218)) -> 0 | AJ15: =SUMPRODUCT(--($D15=DataCAPEX!$E$14:$E$218),--('Warragul Drouin'!$E15=DataCAPEX!$G$14:$G$218),--(DataCAPEX!AJ$14:AJ$218)) -> 0 | AK15: =SUMPRODUCT(--($D15=DataCAPEX!$E$14:$E$218),--('Warragul Drouin'!$E15=DataCAPEX!$G$14:$G$218),--(DataCAPEX!AK$14:AK$218)) -> 0 | AL15: =SUMPRODUCT(--($D15=DataCAPEX!$E$14:$E$218),--('Warragul Drouin'!$E15=DataCAPEX!$G$14:$G$218),--(DataCAPEX!AL$14:AL$218)) -> 0 | AM15: =SUMPRODUCT(--($D15=DataCAPEX!$E$14:$E$218),--('Warragul Drouin'!$E15=DataCAPEX!$G$14:$G$218),--(DataCAPEX!AM$14:AM$218)) -> 0 | AN15: =SUMPRODUCT(--($D15=DataCAPEX!$E$14:$E$218),--('Warragul Drouin'!$E15=DataCAPEX!$G$14:$G$218),--(DataCAPEX!AN$14:AN$218)) -> 0 | AO15: =SUMPRODUCT(--($D15=DataCAPEX!$E$14:$E$218),--('Warragul Drouin'!$E15=DataCAPEX!$G$14:$G$218),--(DataCAPEX!AO$14:AO$218)) -> 0 | AP15: =SUMPRODUCT(--($D15=DataCAPEX!$E$14:$E$218),--('Warragul Drouin'!$E15=DataCAPEX!$G$14:$G$218),--(DataCAPEX!AP$14:AP$218)) -> 0
D16: Warragul Drouin | E16: Disinfection | P16: $ | Q16: =NPV('DataCON&ASSUMPTIONS'!$F$48,'Warragul Drouin'!W16:AP16) -> 0 | R16: =SUMPRODUCT(--($D16=DataCAPEX!$E$14:$E$218),--('Warragul Drouin'!$E16=DataCAPEX!$G$14:$G$218),--(DataCAPEX!R$14:R$218)) -> 0 | S16: =SUMPRODUCT(--($D16=DataCAPEX!$E$14:$E$218),--('Warragul Drouin'!$E16=DataCAPEX!$G$14:$G$218),--(DataCAPEX!S$14:S$218)) -> 0 | T16: =SUMPRODUCT(--($D16=DataCAPEX!$E$14:$E$218),--('Warragul Drouin'!$E16=DataCAPEX!$G$14:$G$218),--(DataCAPEX!T$14:T$218)) -> 0 | U16: =SUMPRODUCT(--($D16=DataCAPEX!$E$14:$E$218),--('Warragul Drouin'!$E16=DataCAPEX!$G$14:$G$218),--(DataCAPEX!U$14:U$218)) -> 0 | V16: =SUMPRODUCT(--($D16=DataCAPEX!$E$14:$E$218),--('Warragul Drouin'!$E16=DataCAPEX!$G$14:$G$218),--(DataCAPEX!V$14:V$218)) -> 0 | W16: =SUMPRODUCT(--($D16=DataCAPEX!$E$14:$E$218),--('Warragul Drouin'!$E16=DataCAPEX!$G$14:$G$218),--(DataCAPEX!W$14:W$218)) -> 0 | X16: =SUMPRODUCT(--($D16=DataCAPEX!$E$14:$E$218),--('Warragul Drouin'!$E16=DataCAPEX!$G$14:$G$218),--(DataCAPEX!X$14:X$218)) -> 0 | Y16: =SUMPRODUCT(--($D16=DataCAPEX!$E$14:$E$218),--('Warragul Drouin'!$E16=DataCAPEX!$G$14:$G$218),--(DataCAPEX!Y$14:Y$218)) -> 0 | Z16: =SUMPRODUCT(--($D16=DataCAPEX!$E$14:$E$218),--('Warragul Drouin'!$E16=DataCAPEX!$G$14:$G$218),--(DataCAPEX!Z$14:Z$218)) -> 0 | AA16: =SUMPRODUCT(--($D16=DataCAPEX!$E$14:$E$218),--('Warragul Drouin'!$E16=DataCAPEX!$G$14:$G$218),--(DataCAPEX!AA$14:AA$218)) -> 0 | AB16: =SUMPRODUCT(--($D16=DataCAPEX!$E$14:$E$218),--('Warragul Drouin'!$E16=DataCAPEX!$G$14:$G$218),--(DataCAPEX!AB$14:AB$218)) -> 0 | AC16: =SUMPRODUCT(--($D16=DataCAPEX!$E$14:$E$218),--('Warragul Drouin'!$E16=DataCAPEX!$G$14:$G$218),--(DataCAPEX!AC$14:AC$218)) -> 0 | AD16: =SUMPRODUCT(--($D16=DataCAPEX!$E$14:$E$218),--('Warragul Drouin'!$E16=DataCAPEX!$G$14:$G$218),--(DataCAPEX!AD$14:AD$218)) -> 0 | AE16: =SUMPRODUCT(--($D16=DataCAPEX!$E$14:$E$218),--('Warragul Drouin'!$E16=DataCAPEX!$G$14:$G$218),--(DataCAPEX!AE$14:AE$218)) -> 0 | AF16: =SUMPRODUCT(--($D16=DataCAPEX!$E$14:$E$218),--('Warragul Drouin'!$E16=DataCAPEX!$G$14:$G$218),--(DataCAPEX!AF$14:AF$218)) -> 0 | AG16: =SUMPRODUCT(--($D16=DataCAPEX!$E$14:$E$218),--('Warragul Drouin'!$E16=DataCAPEX!$G$14:$G$218),--(DataCAPEX!AG$14:AG$218)) -> 0 | AH16: =SUMPRODUCT(--($D16=DataCAPEX!$E$14:$E$218),--('Warragul Drouin'!$E16=DataCAPEX!$G$14:$G$218),--(DataCAPEX!AH$14:AH$218)) -> 0 | AI16: =SUMPRODUCT(--($D16=DataCAPEX!$E$14:$E$218),--('Warragul Drouin'!$E16=DataCAPEX!$G$14:$G$218),--(DataCAPEX!AI$14:AI$218)) -> 0 | AJ16: =SUMPRODUCT(--($D16=DataCAPEX!$E$14:$E$218),--('Warragul Drouin'!$E16=DataCAPEX!$G$14:$G$218),--(DataCAPEX!AJ$14:AJ$218)) -> 0 | AK16: =SUMPRODUCT(--($D16=DataCAPEX!$E$14:$E$218),--('Warragul Drouin'!$E16=DataCAPEX!$G$14:$G$218),--(DataCAPEX!AK$14:AK$218)) -> 0 | AL16: =SUMPRODUCT(--($D16=DataCAPEX!$E$14:$E$218),--('Warragul Drouin'!$E16=DataCAPEX!$G$14:$G$218),--(DataCAPEX!AL$14:AL$218)) -> 0 | AM16: =SUMPRODUCT(--($D16=DataCAPEX!$E$14:$E$218),--('Warragul Drouin'!$E16=DataCAPEX!$G$14:$G$218),--(DataCAPEX!AM$14:AM$218)) -> 0 | AN16: =SUMPRODUCT(--($D16=DataCAPEX!$E$14:$E$218),--('Warragul Drouin'!$E16=DataCAPEX!$G$14:$G$218),--(DataCAPEX!AN$14:AN$218)) -> 0 | AO16: =SUMPRODUCT(--($D16=DataCAPEX!$E$14:$E$218),--('Warragul Drouin'!$E16=DataCAPEX!$G$14:$G$218),--(DataCAPEX!AO$14:AO$218)) -> 0 | AP16: =SUMPRODUCT(--($D16=DataCAPEX!$E$14:$E$218),--('Warragul Drouin'!$E16=DataCAPEX!$G$14:$G$218),--(DataCAPEX!AP$14:AP$218)) -> 0
D17: Warragul Drouin | E17: Distribution Main | P17: $ | Q17: =NPV('DataCON&ASSUMPTIONS'!$F$48,'Warragul Drouin'!W17:AP17) -> 0 | R17: =SUMPRODUCT(--($D17=DataCAPEX!$E$14:$E$218),--('Warragul Drouin'!$E17=DataCAPEX!$G$14:$G$218),--(DataCAPEX!R$14:R$218)) -> 0 | S17: =SUMPRODUCT(--($D17=DataCAPEX!$E$14:$E$218),--('Warragul Drouin'!$E17=DataCAPEX!$G$14:$G$218),--(DataCAPEX!S$14:S$218)) -> 0 | T17: =SUMPRODUCT(--($D17=DataCAPEX!$E$14:$E$218),--('Warragul Drouin'!$E17=DataCAPEX!$G$14:$G$218),--(DataCAPEX!T$14:T$218)) -> 0 | U17: =SUMPRODUCT(--($D17=DataCAPEX!$E$14:$E$218),--('Warragul Drouin'!$E17=DataCAPEX!$G$14:$G$218),--(DataCAPEX!U$14:U$218)) -> 0 | V17: =SUMPRODUCT(--($D17=DataCAPEX!$E$14:$E$218),--('Warragul Drouin'!$E17=DataCAPEX!$G$14:$G$218),--(DataCAPEX!V$14:V$218)) -> 0 | W17: =SUMPRODUCT(--($D17=DataCAPEX!$E$14:$E$218),--('Warragul Drouin'!$E17=DataCAPEX!$G$14:$G$218),--(DataCAPEX!W$14:W$218)) -> 0 | X17: =SUMPRODUCT(--($D17=DataCAPEX!$E$14:$E$218),--('Warragul Drouin'!$E17=DataCAPEX!$G$14:$G$218),--(DataCAPEX!X$14:X$218)) -> 0 | Y17: =SUMPRODUCT(--($D17=DataCAPEX!$E$14:$E$218),--('Warragul Drouin'!$E17=DataCAPEX!$G$14:$G$218),--(DataCAPEX!Y$14:Y$218)) -> 0 | Z17: =SUMPRODUCT(--($D17=DataCAPEX!$E$14:$E$218),--('Warragul Drouin'!$E17=DataCAPEX!$G$14:$G$218),--(DataCAPEX!Z$14:Z$218)) -> 0 | AA17: =SUMPRODUCT(--($D17=DataCAPEX!$E$14:$E$218),--('Warragul Drouin'!$E17=DataCAPEX!$G$14:$G$218),--(DataCAPEX!AA$14:AA$218)) -> 0 | AB17: =SUMPRODUCT(--($D17=DataCAPEX!$E$14:$E$218),--('Warragul Drouin'!$E17=DataCAPEX!$G$14:$G$218),--(DataCAPEX!AB$14:AB$218)) -> 0 | AC17: =SUMPRODUCT(--($D17=DataCAPEX!$E$14:$E$218),--('Warragul Drouin'!$E17=DataCAPEX!$G$14:$G$218),--(DataCAPEX!AC$14:AC$218)) -> 0 | AD17: =SUMPRODUCT(--($D17=DataCAPEX!$E$14:$E$218),--('Warragul Drouin'!$E17=DataCAPEX!$G$14:$G$218),--(DataCAPEX!AD$14:AD$218)) -> 0 | AE17: =SUMPRODUCT(--($D17=DataCAPEX!$E$14:$E$218),--('Warragul Drouin'!$E17=DataCAPEX!$G$14:$G$218),--(DataCAPEX!AE$14:AE$218)) -> 0 | AF17: =SUMPRODUCT(--($D17=DataCAPEX!$E$14:$E$218),--('Warragul Drouin'!$E17=DataCAPEX!$G$14:$G$218),--(DataCAPEX!AF$14:AF$218)) -> 0 | AG17: =SUMPRODUCT(--($D17=DataCAPEX!$E$14:$E$218),--('Warragul Drouin'!$E17=DataCAPEX!$G$14:$G$218),--(DataCAPEX!AG$14:AG$218)) -> 0 | AH17: =SUMPRODUCT(--($D17=DataCAPEX!$E$14:$E$218),--('Warragul Drouin'!$E17=DataCAPEX!$G$14:$G$218),--(DataCAPEX!AH$14:AH$218)) -> 0 | AI17: =SUMPRODUCT(--($D17=DataCAPEX!$E$14:$E$218),--('Warragul Drouin'!$E17=DataCAPEX!$G$14:$G$218),--(DataCAPEX!AI$14:AI$218)) -> 0 | AJ17: =SUMPRODUCT(--($D17=DataCAPEX!$E$14:$E$218),--('Warragul Drouin'!$E17=DataCAPEX!$G$14:$G$218),--(DataCAPEX!AJ$14:AJ$218)) -> 0 | AK17: =SUMPRODUCT(--($D17=DataCAPEX!$E$14:$E$218),--('Warragul Drouin'!$E17=DataCAPEX!$G$14:$G$218),--(DataCAPEX!AK$14:AK$218)) -> 0 | AL17: =SUMPRODUCT(--($D17=DataCAPEX!$E$14:$E$218),--('Warragul Drouin'!$E17=DataCAPEX!$G$14:$G$218),--(DataCAPEX!AL$14:AL$218)) -> 0 | AM17: =SUMPRODUCT(--($D17=DataCAPEX!$E$14:$E$218),--('Warragul Drouin'!$E17=DataCAPEX!$G$14:$G$218),--(DataCAPEX!AM$14:AM$218)) -> 0 | AN17: =SUMPRODUCT(--($D17=DataCAPEX!$E$14:$E$218),--('Warragul Drouin'!$E17=DataCAPEX!$G$14:$G$218),--(DataCAPEX!AN$14:AN$218)) -> 0 | AO17: =SUMPRODUCT(--($D17=DataCAPEX!$E$14:$E$218),--('Warragul Drouin'!$E17=DataCAPEX!$G$14:$G$218),--(DataCAPEX!AO$14:AO$218)) -> 0 | AP17: =SUMPRODUCT(--($D17=DataCAPEX!$E$14:$E$218),--('Warragul Drouin'!$E17=DataCAPEX!$G$14:$G$218),--(DataCAPEX!AP$14:AP$218)) -> 0
D18: Warragul Drouin | E18: Reservoir | P18: $ | Q18: =NPV('DataCON&ASSUMPTIONS'!$F$48,'Warragul Drouin'!W18:AP18) -> 0 | R18: =SUMPRODUCT(--($D18=DataCAPEX!$E$14:$E$218),--('Warragul Drouin'!$E18=DataCAPEX!$G$14:$G$218),--(DataCAPEX!R$14:R$218)) -> 0 | S18: =SUMPRODUCT(--($D18=DataCAPEX!$E$14:$E$218),--('Warragul Drouin'!$E18=DataCAPEX!$G$14:$G$218),--(DataCAPEX!S$14:S$218)) -> 0 | T18: =SUMPRODUCT(--($D18=DataCAPEX!$E$14:$E$218),--('Warragul Drouin'!$E18=DataCAPEX!$G$14:$G$218),--(DataCAPEX!T$14:T$218)) -> 0 | U18: =SUMPRODUCT(--($D18=DataCAPEX!$E$14:$E$218),--('Warragul Drouin'!$E18=DataCAPEX!$G$14:$G$218),--(DataCAPEX!U$14:U$218)) -> 0 | V18: =SUMPRODUCT(--($D18=DataCAPEX!$E$14:$E$218),--('Warragul Drouin'!$E18=DataCAPEX!$G$14:$G$218),--(DataCAPEX!V$14:V$218)) -> 0 | W18: =SUMPRODUCT(--($D18=DataCAPEX!$E$14:$E$218),--('Warragul Drouin'!$E18=DataCAPEX!$G$14:$G$218),--(DataCAPEX!W$14:W$218)) -> 0 | X18: =SUMPRODUCT(--($D18=DataCAPEX!$E$14:$E$218),--('Warragul Drouin'!$E18=DataCAPEX!$G$14:$G$218),--(DataCAPEX!X$14:X$218)) -> 0 | Y18: =SUMPRODUCT(--($D18=DataCAPEX!$E$14:$E$218),--('Warragul Drouin'!$E18=DataCAPEX!$G$14:$G$218),--(DataCAPEX!Y$14:Y$218)) -> 0 | Z18: =SUMPRODUCT(--($D18=DataCAPEX!$E$14:$E$218),--('Warragul Drouin'!$E18=DataCAPEX!$G$14:$G$218),--(DataCAPEX!Z$14:Z$218)) -> 0 | AA18: =SUMPRODUCT(--($D18=DataCAPEX!$E$14:$E$218),--('Warragul Drouin'!$E18=DataCAPEX!$G$14:$G$218),--(DataCAPEX!AA$14:AA$218)) -> 0 | AB18: =SUMPRODUCT(--($D18=DataCAPEX!$E$14:$E$218),--('Warragul Drouin'!$E18=DataCAPEX!$G$14:$G$218),--(DataCAPEX!AB$14:AB$218)) -> 0 | AC18: =SUMPRODUCT(--($D18=DataCAPEX!$E$14:$E$218),--('Warragul Drouin'!$E18=DataCAPEX!$G$14:$G$218),--(DataCAPEX!AC$14:AC$218)) -> 0 | AD18: =SUMPRODUCT(--($D18=DataCAPEX!$E$14:$E$218),--('Warragul Drouin'!$E18=DataCAPEX!$G$14:$G$218),--(DataCAPEX!AD$14:AD$218)) -> 0 | AE18: =SUMPRODUCT(--($D18=DataCAPEX!$E$14:$E$218),--('Warragul Drouin'!$E18=DataCAPEX!$G$14:$G$218),--(DataCAPEX!AE$14:AE$218)) -> 0 | AF18: =SUMPRODUCT(--($D18=DataCAPEX!$E$14:$E$218),--('Warragul Drouin'!$E18=DataCAPEX!$G$14:$G$218),--(DataCAPEX!AF$14:AF$218)) -> 0 | AG18: =SUMPRODUCT(--($D18=DataCAPEX!$E$14:$E$218),--('Warragul Drouin'!$E18=DataCAPEX!$G$14:$G$218),--(DataCAPEX!AG$14:AG$218)) -> 0 | AH18: =SUMPRODUCT(--($D18=DataCAPEX!$E$14:$E$218),--('Warragul Drouin'!$E18=DataCAPEX!$G$14:$G$218),--(DataCAPEX!AH$14:AH$218)) -> 0 | AI18: =SUMPRODUCT(--($D18=DataCAPEX!$E$14:$E$218),--('Warragul Drouin'!$E18=DataCAPEX!$G$14:$G$218),--(DataCAPEX!AI$14:AI$218)) -> 0 | AJ18: =SUMPRODUCT(--($D18=DataCAPEX!$E$14:$E$218),--('Warragul Drouin'!$E18=DataCAPEX!$G$14:$G$218),--(DataCAPEX!AJ$14:AJ$218)) -> 0 | AK18: =SUMPRODUCT(--($D18=DataCAPEX!$E$14:$E$218),--('Warragul Drouin'!$E18=DataCAPEX!$G$14:$G$218),--(DataCAPEX!AK$14:AK$218)) -> 0 | AL18: =SUMPRODUCT(--($D18=DataCAPEX!$E$14:$E$218),--('Warragul Drouin'!$E18=DataCAPEX!$G$14:$G$218),--(DataCAPEX!AL$14:AL$218)) -> 0 | AM18: =SUMPRODUCT(--($D18=DataCAPEX!$E$14:$E$218),--('Warragul Drouin'!$E18=DataCAPEX!$G$14:$G$218),--(DataCAPEX!AM$14:AM$218)) -> 0 | AN18: =SUMPRODUCT(--($D18=DataCAPEX!$E$14:$E$218),--('Warragul Drouin'!$E18=DataCAPEX!$G$14:$G$218),--(DataCAPEX!AN$14:AN$218)) -> 0 | AO18: =SUMPRODUCT(--($D18=DataCAPEX!$E$14:$E$218),--('Warragul Drouin'!$E18=DataCAPEX!$G$14:$G$218),--(DataCAPEX!AO$14:AO$218)) -> 0 | AP18: =SUMPRODUCT(--($D18=DataCAPEX!$E$14:$E$218),--('Warragul Drouin'!$E18=DataCAPEX!$G$14:$G$218),--(DataCAPEX!AP$14:AP$218)) -> 0
D19: Warragul Drouin | E19: Tank | P19: $ | Q19: =NPV('DataCON&ASSUMPTIONS'!$F$48,'Warragul Drouin'!W19:AP19) -> 0 | R19: =SUMPRODUCT(--($D19=DataCAPEX!$E$14:$E$218),--('Warragul Drouin'!$E19=DataCAPEX!$G$14:$G$218),--(DataCAPEX!R$14:R$218)) -> 0 | S19: =SUMPRODUCT(--($D19=DataCAPEX!$E$14:$E$218),--('Warragul Drouin'!$E19=DataCAPEX!$G$14:$G$218),--(DataCAPEX!S$14:S$218)) -> 0 | T19: =SUMPRODUCT(--($D19=DataCAPEX!$E$14:$E$218),--('Warragul Drouin'!$E19=DataCAPEX!$G$14:$G$218),--(DataCAPEX!T$14:T$218)) -> 0 | U19: =SUMPRODUCT(--($D19=DataCAPEX!$E$14:$E$218),--('Warragul Drouin'!$E19=DataCAPEX!$G$14:$G$218),--(DataCAPEX!U$14:U$218)) -> 0 | V19: =SUMPRODUCT(--($D19=DataCAPEX!$E$14:$E$218),--('Warragul Drouin'!$E19=DataCAPEX!$G$14:$G$218),--(DataCAPEX!V$14:V$218)) -> 0 | W19: =SUMPRODUCT(--($D19=DataCAPEX!$E$14:$E$218),--('Warragul Drouin'!$E19=DataCAPEX!$G$14:$G$218),--(DataCAPEX!W$14:W$218)) -> 0 | X19: =SUMPRODUCT(--($D19=DataCAPEX!$E$14:$E$218),--('Warragul Drouin'!$E19=DataCAPEX!$G$14:$G$218),--(DataCAPEX!X$14:X$218)) -> 0 | Y19: =SUMPRODUCT(--($D19=DataCAPEX!$E$14:$E$218),--('Warragul Drouin'!$E19=DataCAPEX!$G$14:$G$218),--(DataCAPEX!Y$14:Y$218)) -> 0 | Z19: =SUMPRODUCT(--($D19=DataCAPEX!$E$14:$E$218),--('Warragul Drouin'!$E19=DataCAPEX!$G$14:$G$218),--(DataCAPEX!Z$14:Z$218)) -> 0 | AA19: =SUMPRODUCT(--($D19=DataCAPEX!$E$14:$E$218),--('Warragul Drouin'!$E19=DataCAPEX!$G$14:$G$218),--(DataCAPEX!AA$14:AA$218)) -> 0 | AB19: =SUMPRODUCT(--($D19=DataCAPEX!$E$14:$E$218),--('Warragul Drouin'!$E19=DataCAPEX!$G$14:$G$218),--(DataCAPEX!AB$14:AB$218)) -> 0 | AC19: =SUMPRODUCT(--($D19=DataCAPEX!$E$14:$E$218),--('Warragul Drouin'!$E19=DataCAPEX!$G$14:$G$218),--(DataCAPEX!AC$14:AC$218)) -> 0 | AD19: =SUMPRODUCT(--($D19=DataCAPEX!$E$14:$E$218),--('Warragul Drouin'!$E19=DataCAPEX!$G$14:$G$218),--(DataCAPEX!AD$14:AD$218)) -> 0 | AE19: =SUMPRODUCT(--($D19=DataCAPEX!$E$14:$E$218),--('Warragul Drouin'!$E19=DataCAPEX!$G$14:$G$218),--(DataCAPEX!AE$14:AE$218)) -> 0 | AF19: =SUMPRODUCT(--($D19=DataCAPEX!$E$14:$E$218),--('Warragul Drouin'!$E19=DataCAPEX!$G$14:$G$218),--(DataCAPEX!AF$14:AF$218)) -> 0 | AG19: =SUMPRODUCT(--($D19=DataCAPEX!$E$14:$E$218),--('Warragul Drouin'!$E19=DataCAPEX!$G$14:$G$218),--(DataCAPEX!AG$14:AG$218)) -> 0 | AH19: =SUMPRODUCT(--($D19=DataCAPEX!$E$14:$E$218),--('Warragul Drouin'!$E19=DataCAPEX!$G$14:$G$218),--(DataCAPEX!AH$14:AH$218)) -> 0 | AI19: =SUMPRODUCT(--($D19=DataCAPEX!$E$14:$E$218),--('Warragul Drouin'!$E19=DataCAPEX!$G$14:$G$218),--(DataCAPEX!AI$14:AI$218)) -> 0 | AJ19: =SUMPRODUCT(--($D19=DataCAPEX!$E$14:$E$218),--('Warragul Drouin'!$E19=DataCAPEX!$G$14:$G$218),--(DataCAPEX!AJ$14:AJ$218)) -> 0 | AK19: =SUMPRODUCT(--($D19=DataCAPEX!$E$14:$E$218),--('Warragul Drouin'!$E19=DataCAPEX!$G$14:$G$218),--(DataCAPEX!AK$14:AK$218)) -> 0 | AL19: =SUMPRODUCT(--($D19=DataCAPEX!$E$14:$E$218),--('Warragul Drouin'!$E19=DataCAPEX!$G$14:$G$218),--(DataCAPEX!AL$14:AL$218)) -> 0 | AM19: =SUMPRODUCT(--($D19=DataCAPEX!$E$14:$E$218),--('Warragul Drouin'!$E19=DataCAPEX!$G$14:$G$218),--(DataCAPEX!AM$14:AM$218)) -> 0 | AN19: =SUMPRODUCT(--($D19=DataCAPEX!$E$14:$E$218),--('Warragul Drouin'!$E19=DataCAPEX!$G$14:$G$218),--(DataCAPEX!AN$14:AN$218)) -> 0 | AO19: =SUMPRODUCT(--($D19=DataCAPEX!$E$14:$E$218),--('Warragul Drouin'!$E19=DataCAPEX!$G$14:$G$218),--(DataCAPEX!AO$14:AO$218)) -> 0 | AP19: =SUMPRODUCT(--($D19=DataCAPEX!$E$14:$E$218),--('Warragul Drouin'!$E19=DataCAPEX!$G$14:$G$218),--(DataCAPEX!AP$14:AP$218)) -> 0
D20: Warragul Drouin | E20: Transfer Main | P20: $ | Q20: =NPV('DataCON&ASSUMPTIONS'!$F$48,'Warragul Drouin'!W20:AP20) -> 0 | R20: =SUMPRODUCT(--($D20=DataCAPEX!$E$14:$E$218),--('Warragul Drouin'!$E20=DataCAPEX!$G$14:$G$218),--(DataCAPEX!R$14:R$218)) -> 0 | S20: =SUMPRODUCT(--($D20=DataCAPEX!$E$14:$E$218),--('Warragul Drouin'!$E20=DataCAPEX!$G$14:$G$218),--(DataCAPEX!S$14:S$218)) -> 0 | T20: =SUMPRODUCT(--($D20=DataCAPEX!$E$14:$E$218),--('Warragul Drouin'!$E20=DataCAPEX!$G$14:$G$218),--(DataCAPEX!T$14:T$218)) -> 0 | U20: =SUMPRODUCT(--($D20=DataCAPEX!$E$14:$E$218),--('Warragul Drouin'!$E20=DataCAPEX!$G$14:$G$218),--(DataCAPEX!U$14:U$218)) -> 0 | V20: =SUMPRODUCT(--($D20=DataCAPEX!$E$14:$E$218),--('Warragul Drouin'!$E20=DataCAPEX!$G$14:$G$218),--(DataCAPEX!V$14:V$218)) -> 0 | W20: =SUMPRODUCT(--($D20=DataCAPEX!$E$14:$E$218),--('Warragul Drouin'!$E20=DataCAPEX!$G$14:$G$218),--(DataCAPEX!W$14:W$218)) -> 0 | X20: =SUMPRODUCT(--($D20=DataCAPEX!$E$14:$E$218),--('Warragul Drouin'!$E20=DataCAPEX!$G$14:$G$218),--(DataCAPEX!X$14:X$218)) -> 0 | Y20: =SUMPRODUCT(--($D20=DataCAPEX!$E$14:$E$218),--('Warragul Drouin'!$E20=DataCAPEX!$G$14:$G$218),--(DataCAPEX!Y$14:Y$218)) -> 0 | Z20: =SUMPRODUCT(--($D20=DataCAPEX!$E$14:$E$218),--('Warragul Drouin'!$E20=DataCAPEX!$G$14:$G$218),--(DataCAPEX!Z$14:Z$218)) -> 0 | AA20: =SUMPRODUCT(--($D20=DataCAPEX!$E$14:$E$218),--('Warragul Drouin'!$E20=DataCAPEX!$G$14:$G$218),--(DataCAPEX!AA$14:AA$218)) -> 0 | AB20: =SUMPRODUCT(--($D20=DataCAPEX!$E$14:$E$218),--('Warragul Drouin'!$E20=DataCAPEX!$G$14:$G$218),--(DataCAPEX!AB$14:AB$218)) -> 0 | AC20: =SUMPRODUCT(--($D20=DataCAPEX!$E$14:$E$218),--('Warragul Drouin'!$E20=DataCAPEX!$G$14:$G$218),--(DataCAPEX!AC$14:AC$218)) -> 0 | AD20: =SUMPRODUCT(--($D20=DataCAPEX!$E$14:$E$218),--('Warragul Drouin'!$E20=DataCAPEX!$G$14:$G$218),--(DataCAPEX!AD$14:AD$218)) -> 0 | AE20: =SUMPRODUCT(--($D20=DataCAPEX!$E$14:$E$218),--('Warragul Drouin'!$E20=DataCAPEX!$G$14:$G$218),--(DataCAPEX!AE$14:AE$218)) -> 0 | AF20: =SUMPRODUCT(--($D20=DataCAPEX!$E$14:$E$218),--('Warragul Drouin'!$E20=DataCAPEX!$G$14:$G$218),--(DataCAPEX!AF$14:AF$218)) -> 0 | AG20: =SUMPRODUCT(--($D20=DataCAPEX!$E$14:$E$218),--('Warragul Drouin'!$E20=DataCAPEX!$G$14:$G$218),--(DataCAPEX!AG$14:AG$218)) -> 0 | AH20: =SUMPRODUCT(--($D20=DataCAPEX!$E$14:$E$218),--('Warragul Drouin'!$E20=DataCAPEX!$G$14:$G$218),--(DataCAPEX!AH$14:AH$218)) -> 0 | AI20: =SUMPRODUCT(--($D20=DataCAPEX!$E$14:$E$218),--('Warragul Drouin'!$E20=DataCAPEX!$G$14:$G$218),--(DataCAPEX!AI$14:AI$218)) -> 0 | AJ20: =SUMPRODUCT(--($D20=DataCAPEX!$E$14:$E$218),--('Warragul Drouin'!$E20=DataCAPEX!$G$14:$G$218),--(DataCAPEX!AJ$14:AJ$218)) -> 0 | AK20: =SUMPRODUCT(--($D20=DataCAPEX!$E$14:$E$218),--('Warragul Drouin'!$E20=DataCAPEX!$G$14:$G$218),--(DataCAPEX!AK$14:AK$218)) -> 0 | AL20: =SUMPRODUCT(--($D20=DataCAPEX!$E$14:$E$218),--('Warragul Drouin'!$E20=DataCAPEX!$G$14:$G$218),--(DataCAPEX!AL$14:AL$218)) -> 0 | AM20: =SUMPRODUCT(--($D20=DataCAPEX!$E$14:$E$218),--('Warragul Drouin'!$E20=DataCAPEX!$G$14:$G$218),--(DataCAPEX!AM$14:AM$218)) -> 0 | AN20: =SUMPRODUCT(--($D20=DataCAPEX!$E$14:$E$218),--('Warragul Drouin'!$E20=DataCAPEX!$G$14:$G$218),--(DataCAPEX!AN$14:AN$218)) -> 0 | AO20: =SUMPRODUCT(--($D20=DataCAPEX!$E$14:$E$218),--('Warragul Drouin'!$E20=DataCAPEX!$G$14:$G$218),--(DataCAPEX!AO$14:AO$218)) -> 0 | AP20: =SUMPRODUCT(--($D20=DataCAPEX!$E$14:$E$218),--('Warragul Drouin'!$E20=DataCAPEX!$G$14:$G$218),--(DataCAPEX!AP$14:AP$218)) -> 0
D21: Warragul Drouin | E21: WTP | P21: $ | Q21: =NPV('DataCON&ASSUMPTIONS'!$F$48,'Warragul Drouin'!W21:AP21) -> 38791314.99 | R21: =SUMPRODUCT(--($D21=DataCAPEX!$E$14:$E$218),--('Warragul Drouin'!$E21=DataCAPEX!$G$14:$G$218),--(DataCAPEX!R$14:R$218)) -> 0 | S21: =SUMPRODUCT(--($D21=DataCAPEX!$E$14:$E$218),--('Warragul Drouin'!$E21=DataCAPEX!$G$14:$G$218),--(DataCAPEX!S$14:S$218)) -> 0 | T21: =SUMPRODUCT(--($D21=DataCAPEX!$E$14:$E$218),--('Warragul Drouin'!$E21=DataCAPEX!$G$14:$G$218),--(DataCAPEX!T$14:T$218)) -> 0 | U21: =SUMPRODUCT(--($D21=DataCAPEX!$E$14:$E$218),--('Warragul Drouin'!$E21=DataCAPEX!$G$14:$G$218),--(DataCAPEX!U$14:U$218)) -> 0 | V21: =SUMPRODUCT(--($D21=DataCAPEX!$E$14:$E$218),--('Warragul Drouin'!$E21=DataCAPEX!$G$14:$G$218),--(DataCAPEX!V$14:V$218)) -> 0 | W21: =SUMPRODUCT(--($D21=DataCAPEX!$E$14:$E$218),--('Warragul Drouin'!$E21=DataCAPEX!$G$14:$G$218),--(DataCAPEX!W$14:W$218)) -> 6676538.22 | X21: =SUMPRODUCT(--($D21=DataCAPEX!$E$14:$E$218),--('Warragul Drouin'!$E21=DataCAPEX!$G$14:$G$218),--(DataCAPEX!X$14:X$218)) -> 296143.456 | Y21: =SUMPRODUCT(--($D21=DataCAPEX!$E$14:$E$218),--('Warragul Drouin'!$E21=DataCAPEX!$G$14:$G$218),--(DataCAPEX!Y$14:Y$218)) -> 1061486.888 | Z21: =SUMPRODUCT(--($D21=DataCAPEX!$E$14:$E$218),--('Warragul Drouin'!$E21=DataCAPEX!$G$14:$G$218),--(DataCAPEX!Z$14:Z$218)) -> 1073198.521 | AA21: =SUMPRODUCT(--($D21=DataCAPEX!$E$14:$E$218),--('Warragul Drouin'!$E21=DataCAPEX!$G$14:$G$218),--(DataCAPEX!AA$14:AA$218)) -> 133078.9404 | AB21: =SUMPRODUCT(--($D21=DataCAPEX!$E$14:$E$218),--('Warragul Drouin'!$E21=DataCAPEX!$G$14:$G$218),--(DataCAPEX!AB$14:AB$218)) -> 3165990.464 | AC21: =SUMPRODUCT(--($D21=DataCAPEX!$E$14:$E$218),--('Warragul Drouin'!$E21=DataCAPEX!$G$14:$G$218),--(DataCAPEX!AC$14:AC$218)) -> 2593726.313 | AD21: =SUMPRODUCT(--($D21=DataCAPEX!$E$14:$E$218),--('Warragul Drouin'!$E21=DataCAPEX!$G$14:$G$218),--(DataCAPEX!AD$14:AD$218)) -> 3472096.313 | AE21: =SUMPRODUCT(--($D21=DataCAPEX!$E$14:$E$218),--('Warragul Drouin'!$E21=DataCAPEX!$G$14:$G$218),--(DataCAPEX!AE$14:AE$218)) -> 1626697.34 | AF21: =SUMPRODUCT(--($D21=DataCAPEX!$E$14:$E$218),--('Warragul Drouin'!$E21=DataCAPEX!$G$14:$G$218),--(DataCAPEX!AF$14:AF$218)) -> 708701.6245 | AG21: =SUMPRODUCT(--($D21=DataCAPEX!$E$14:$E$218),--('Warragul Drouin'!$E21=DataCAPEX!$G$14:$G$218),--(DataCAPEX!AG$14:AG$218)) -> 2213100.896 | AH21: =SUMPRODUCT(--($D21=DataCAPEX!$E$14:$E$218),--('Warragul Drouin'!$E21=DataCAPEX!$G$14:$G$218),--(DataCAPEX!AH$14:AH$218)) -> 6793909.492 | AI21: =SUMPRODUCT(--($D21=DataCAPEX!$E$14:$E$218),--('Warragul Drouin'!$E21=DataCAPEX!$G$14:$G$218),--(DataCAPEX!AI$14:AI$218)) -> 5049522.831 | AJ21: =SUMPRODUCT(--($D21=DataCAPEX!$E$14:$E$218),--('Warragul Drouin'!$E21=DataCAPEX!$G$14:$G$218),--(DataCAPEX!AJ$14:AJ$218)) -> 7208296.505 | AK21: =SUMPRODUCT(--($D21=DataCAPEX!$E$14:$E$218),--('Warragul Drouin'!$E21=DataCAPEX!$G$14:$G$218),--(DataCAPEX!AK$14:AK$218)) -> 4568670.608 | AL21: =SUMPRODUCT(--($D21=DataCAPEX!$E$14:$E$218),--('Warragul Drouin'!$E21=DataCAPEX!$G$14:$G$218),--(DataCAPEX!AL$14:AL$218)) -> 227681.5624 | AM21: =SUMPRODUCT(--($D21=DataCAPEX!$E$14:$E$218),--('Warragul Drouin'!$E21=DataCAPEX!$G$14:$G$218),--(DataCAPEX!AM$14:AM$218)) -> 1540523.48 | AN21: =SUMPRODUCT(--($D21=DataCAPEX!$E$14:$E$218),--('Warragul Drouin'!$E21=DataCAPEX!$G$14:$G$218),--(DataCAPEX!AN$14:AN$218)) -> 3583254.886 | AO21: =SUMPRODUCT(--($D21=DataCAPEX!$E$14:$E$218),--('Warragul Drouin'!$E21=DataCAPEX!$G$14:$G$218),--(DataCAPEX!AO$14:AO$218)) -> 0 | AP21: =SUMPRODUCT(--($D21=DataCAPEX!$E$14:$E$218),--('Warragul Drouin'!$E21=DataCAPEX!$G$14:$G$218),--(DataCAPEX!AP$14:AP$218)) -> 0
D22: Warragul Drouin | E22: WPS | P22: $ | Q22: =NPV('DataCON&ASSUMPTIONS'!$F$48,'Warragul Drouin'!W22:AP22) -> 0 | R22: =SUMPRODUCT(--($D22=DataCAPEX!$E$14:$E$218),--('Warragul Drouin'!$E22=DataCAPEX!$G$14:$G$218),--(DataCAPEX!R$14:R$218)) -> 0 | S22: =SUMPRODUCT(--($D22=DataCAPEX!$E$14:$E$218),--('Warragul Drouin'!$E22=DataCAPEX!$G$14:$G$218),--(DataCAPEX!S$14:S$218)) -> 0 | T22: =SUMPRODUCT(--($D22=DataCAPEX!$E$14:$E$218),--('Warragul Drouin'!$E22=DataCAPEX!$G$14:$G$218),--(DataCAPEX!T$14:T$218)) -> 0 | U22: =SUMPRODUCT(--($D22=DataCAPEX!$E$14:$E$218),--('Warragul Drouin'!$E22=DataCAPEX!$G$14:$G$218),--(DataCAPEX!U$14:U$218)) -> 0 | V22: =SUMPRODUCT(--($D22=DataCAPEX!$E$14:$E$218),--('Warragul Drouin'!$E22=DataCAPEX!$G$14:$G$218),--(DataCAPEX!V$14:V$218)) -> 0 | W22: =SUMPRODUCT(--($D22=DataCAPEX!$E$14:$E$218),--('Warragul Drouin'!$E22=DataCAPEX!$G$14:$G$218),--(DataCAPEX!W$14:W$218)) -> 0 | X22: =SUMPRODUCT(--($D22=DataCAPEX!$E$14:$E$218),--('Warragul Drouin'!$E22=DataCAPEX!$G$14:$G$218),--(DataCAPEX!X$14:X$218)) -> 0 | Y22: =SUMPRODUCT(--($D22=DataCAPEX!$E$14:$E$218),--('Warragul Drouin'!$E22=DataCAPEX!$G$14:$G$218),--(DataCAPEX!Y$14:Y$218)) -> 0 | Z22: =SUMPRODUCT(--($D22=DataCAPEX!$E$14:$E$218),--('Warragul Drouin'!$E22=DataCAPEX!$G$14:$G$218),--(DataCAPEX!Z$14:Z$218)) -> 0 | AA22: =SUMPRODUCT(--($D22=DataCAPEX!$E$14:$E$218),--('Warragul Drouin'!$E22=DataCAPEX!$G$14:$G$218),--(DataCAPEX!AA$14:AA$218)) -> 0 | AB22: =SUMPRODUCT(--($D22=DataCAPEX!$E$14:$E$218),--('Warragul Drouin'!$E22=DataCAPEX!$G$14:$G$218),--(DataCAPEX!AB$14:AB$218)) -> 0 | AC22: =SUMPRODUCT(--($D22=DataCAPEX!$E$14:$E$218),--('Warragul Drouin'!$E22=DataCAPEX!$G$14:$G$218),--(DataCAPEX!AC$14:AC$218)) -> 0 | AD22: =SUMPRODUCT(--($D22=DataCAPEX!$E$14:$E$218),--('Warragul Drouin'!$E22=DataCAPEX!$G$14:$G$218),--(DataCAPEX!AD$14:AD$218)) -> 0 | AE22: =SUMPRODUCT(--($D22=DataCAPEX!$E$14:$E$218),--('Warragul Drouin'!$E22=DataCAPEX!$G$14:$G$218),--(DataCAPEX!AE$14:AE$218)) -> 0 | AF22: =SUMPRODUCT(--($D22=DataCAPEX!$E$14:$E$218),--('Warragul Drouin'!$E22=DataCAPEX!$G$14:$G$218),--(DataCAPEX!AF$14:AF$218)) -> 0 | AG22: =SUMPRODUCT(--($D22=DataCAPEX!$E$14:$E$218),--('Warragul Drouin'!$E22=DataCAPEX!$G$14:$G$218),--(DataCAPEX!AG$14:AG$218)) -> 0 | AH22: =SUMPRODUCT(--($D22=DataCAPEX!$E$14:$E$218),--('Warragul Drouin'!$E22=DataCAPEX!$G$14:$G$218),--(DataCAPEX!AH$14:AH$218)) -> 0 | AI22: =SUMPRODUCT(--($D22=DataCAPEX!$E$14:$E$218),--('Warragul Drouin'!$E22=DataCAPEX!$G$14:$G$218),--(DataCAPEX!AI$14:AI$218)) -> 0 | AJ22: =SUMPRODUCT(--($D22=DataCAPEX!$E$14:$E$218),--('Warragul Drouin'!$E22=DataCAPEX!$G$14:$G$218),--(DataCAPEX!AJ$14:AJ$218)) -> 0 | AK22: =SUMPRODUCT(--($D22=DataCAPEX!$E$14:$E$218),--('Warragul Drouin'!$E22=DataCAPEX!$G$14:$G$218),--(DataCAPEX!AK$14:AK$218)) -> 0 | AL22: =SUMPRODUCT(--($D22=DataCAPEX!$E$14:$E$218),--('Warragul Drouin'!$E22=DataCAPEX!$G$14:$G$218),--(DataCAPEX!AL$14:AL$218)) -> 0 | AM22: =SUMPRODUCT(--($D22=DataCAPEX!$E$14:$E$218),--('Warragul Drouin'!$E22=DataCAPEX!$G$14:$G$218),--(DataCAPEX!AM$14:AM$218)) -> 0 | AN22: =SUMPRODUCT(--($D22=DataCAPEX!$E$14:$E$218),--('Warragul Drouin'!$E22=DataCAPEX!$G$14:$G$218),--(DataCAPEX!AN$14:AN$218)) -> 0 | AO22: =SUMPRODUCT(--($D22=DataCAPEX!$E$14:$E$218),--('Warragul Drouin'!$E22=DataCAPEX!$G$14:$G$218),--(DataCAPEX!AO$14:AO$218)) -> 0 | AP22: =SUMPRODUCT(--($D22=DataCAPEX!$E$14:$E$218),--('Warragul Drouin'!$E22=DataCAPEX!$G$14:$G$218),--(DataCAPEX!AP$14:AP$218)) -> 0
D23: Warragul Drouin | E23: WWTP | P23: $ | Q23: =NPV('DataCON&ASSUMPTIONS'!$F$48,'Warragul Drouin'!W23:AP23) -> 0 | R23: =SUMPRODUCT(--($D23=DataCAPEX!$E$14:$E$218),--('Warragul Drouin'!$E23=DataCAPEX!$G$14:$G$218),--(DataCAPEX!R$14:R$218)) -> 0 | S23: =SUMPRODUCT(--($D23=DataCAPEX!$E$14:$E$218),--('Warragul Drouin'!$E23=DataCAPEX!$G$14:$G$218),--(DataCAPEX!S$14:S$218)) -> 0 | T23: =SUMPRODUCT(--($D23=DataCAPEX!$E$14:$E$218),--('Warragul Drouin'!$E23=DataCAPEX!$G$14:$G$218),--(DataCAPEX!T$14:T$218)) -> 0 | U23: =SUMPRODUCT(--($D23=DataCAPEX!$E$14:$E$218),--('Warragul Drouin'!$E23=DataCAPEX!$G$14:$G$218),--(DataCAPEX!U$14:U$218)) -> 0 | V23: =SUMPRODUCT(--($D23=DataCAPEX!$E$14:$E$218),--('Warragul Drouin'!$E23=DataCAPEX!$G$14:$G$218),--(DataCAPEX!V$14:V$218)) -> 0 | W23: =SUMPRODUCT(--($D23=DataCAPEX!$E$14:$E$218),--('Warragul Drouin'!$E23=DataCAPEX!$G$14:$G$218),--(DataCAPEX!W$14:W$218)) -> 0 | X23: =SUMPRODUCT(--($D23=DataCAPEX!$E$14:$E$218),--('Warragul Drouin'!$E23=DataCAPEX!$G$14:$G$218),--(DataCAPEX!X$14:X$218)) -> 0 | Y23: =SUMPRODUCT(--($D23=DataCAPEX!$E$14:$E$218),--('Warragul Drouin'!$E23=DataCAPEX!$G$14:$G$218),--(DataCAPEX!Y$14:Y$218)) -> 0 | Z23: =SUMPRODUCT(--($D23=DataCAPEX!$E$14:$E$218),--('Warragul Drouin'!$E23=DataCAPEX!$G$14:$G$218),--(DataCAPEX!Z$14:Z$218)) -> 0 | AA23: =SUMPRODUCT(--($D23=DataCAPEX!$E$14:$E$218),--('Warragul Drouin'!$E23=DataCAPEX!$G$14:$G$218),--(DataCAPEX!AA$14:AA$218)) -> 0 | AB23: =SUMPRODUCT(--($D23=DataCAPEX!$E$14:$E$218),--('Warragul Drouin'!$E23=DataCAPEX!$G$14:$G$218),--(DataCAPEX!AB$14:AB$218)) -> 0 | AC23: =SUMPRODUCT(--($D23=DataCAPEX!$E$14:$E$218),--('Warragul Drouin'!$E23=DataCAPEX!$G$14:$G$218),--(DataCAPEX!AC$14:AC$218)) -> 0 | AD23: =SUMPRODUCT(--($D23=DataCAPEX!$E$14:$E$218),--('Warragul Drouin'!$E23=DataCAPEX!$G$14:$G$218),--(DataCAPEX!AD$14:AD$218)) -> 0 | AE23: =SUMPRODUCT(--($D23=DataCAPEX!$E$14:$E$218),--('Warragul Drouin'!$E23=DataCAPEX!$G$14:$G$218),--(DataCAPEX!AE$14:AE$218)) -> 0 | AF23: =SUMPRODUCT(--($D23=DataCAPEX!$E$14:$E$218),--('Warragul Drouin'!$E23=DataCAPEX!$G$14:$G$218),--(DataCAPEX!AF$14:AF$218)) -> 0 | AG23: =SUMPRODUCT(--($D23=DataCAPEX!$E$14:$E$218),--('Warragul Drouin'!$E23=DataCAPEX!$G$14:$G$218),--(DataCAPEX!AG$14:AG$218)) -> 0 | AH23: =SUMPRODUCT(--($D23=DataCAPEX!$E$14:$E$218),--('Warragul Drouin'!$E23=DataCAPEX!$G$14:$G$218),--(DataCAPEX!AH$14:AH$218)) -> 0 | AI23: =SUMPRODUCT(--($D23=DataCAPEX!$E$14:$E$218),--('Warragul Drouin'!$E23=DataCAPEX!$G$14:$G$218),--(DataCAPEX!AI$14:AI$218)) -> 0 | AJ23: =SUMPRODUCT(--($D23=DataCAPEX!$E$14:$E$218),--('Warragul Drouin'!$E23=DataCAPEX!$G$14:$G$218),--(DataCAPEX!AJ$14:AJ$218)) -> 0 | AK23: =SUMPRODUCT(--($D23=DataCAPEX!$E$14:$E$218),--('Warragul Drouin'!$E23=DataCAPEX!$G$14:$G$218),--(DataCAPEX!AK$14:AK$218)) -> 0 | AL23: =SUMPRODUCT(--($D23=DataCAPEX!$E$14:$E$218),--('Warragul Drouin'!$E23=DataCAPEX!$G$14:$G$218),--(DataCAPEX!AL$14:AL$218)) -> 0 | AM23: =SUMPRODUCT(--($D23=DataCAPEX!$E$14:$E$218),--('Warragul Drouin'!$E23=DataCAPEX!$G$14:$G$218),--(DataCAPEX!AM$14:AM$218)) -> 0 | AN23: =SUMPRODUCT(--($D23=DataCAPEX!$E$14:$E$218),--('Warragul Drouin'!$E23=DataCAPEX!$G$14:$G$218),--(DataCAPEX!AN$14:AN$218)) -> 0 | AO23: =SUMPRODUCT(--($D23=DataCAPEX!$E$14:$E$218),--('Warragul Drouin'!$E23=DataCAPEX!$G$14:$G$218),--(DataCAPEX!AO$14:AO$218)) -> 0 | AP23: =SUMPRODUCT(--($D23=DataCAPEX!$E$14:$E$218),--('Warragul Drouin'!$E23=DataCAPEX!$G$14:$G$218),--(DataCAPEX!AP$14:AP$218)) -> 0
D24: Warragul Drouin | P24: $ | Q24: =NPV('DataCON&ASSUMPTIONS'!$F$48,'Warragul Drouin'!W24:AP24) -> 0 | R24: =SUMPRODUCT(--($D24=DataCAPEX!$E$14:$E$218),--('Warragul Drouin'!$E24=DataCAPEX!$G$14:$G$218),--(DataCAPEX!R$14:R$218)) -> 0 | S24: =SUMPRODUCT(--($D24=DataCAPEX!$E$14:$E$218),--('Warragul Drouin'!$E24=DataCAPEX!$G$14:$G$218),--(DataCAPEX!S$14:S$218)) -> 0 | T24: =SUMPRODUCT(--($D24=DataCAPEX!$E$14:$E$218),--('Warragul Drouin'!$E24=DataCAPEX!$G$14:$G$218),--(DataCAPEX!T$14:T$218)) -> 0 | U24: =SUMPRODUCT(--($D24=DataCAPEX!$E$14:$E$218),--('Warragul Drouin'!$E24=DataCAPEX!$G$14:$G$218),--(DataCAPEX!U$14:U$218)) -> 0 | V24: =SUMPRODUCT(--($D24=DataCAPEX!$E$14:$E$218),--('Warragul Drouin'!$E24=DataCAPEX!$G$14:$G$218),--(DataCAPEX!V$14:V$218)) -> 0 | W24: =SUMPRODUCT(--($D24=DataCAPEX!$E$14:$E$218),--('Warragul Drouin'!$E24=DataCAPEX!$G$14:$G$218),--(DataCAPEX!W$14:W$218)) -> 0 | X24: =SUMPRODUCT(--($D24=DataCAPEX!$E$14:$E$218),--('Warragul Drouin'!$E24=DataCAPEX!$G$14:$G$218),--(DataCAPEX!X$14:X$218)) -> 0 | Y24: =SUMPRODUCT(--($D24=DataCAPEX!$E$14:$E$218),--('Warragul Drouin'!$E24=DataCAPEX!$G$14:$G$218),--(DataCAPEX!Y$14:Y$218)) -> 0 | Z24: =SUMPRODUCT(--($D24=DataCAPEX!$E$14:$E$218),--('Warragul Drouin'!$E24=DataCAPEX!$G$14:$G$218),--(DataCAPEX!Z$14:Z$218)) -> 0 | AA24: =SUMPRODUCT(--($D24=DataCAPEX!$E$14:$E$218),--('Warragul Drouin'!$E24=DataCAPEX!$G$14:$G$218),--(DataCAPEX!AA$14:AA$218)) -> 0 | AB24: =SUMPRODUCT(--($D24=DataCAPEX!$E$14:$E$218),--('Warragul Drouin'!$E24=DataCAPEX!$G$14:$G$218),--(DataCAPEX!AB$14:AB$218)) -> 0 | AC24: =SUMPRODUCT(--($D24=DataCAPEX!$E$14:$E$218),--('Warragul Drouin'!$E24=DataCAPEX!$G$14:$G$218),--(DataCAPEX!AC$14:AC$218)) -> 0 | AD24: =SUMPRODUCT(--($D24=DataCAPEX!$E$14:$E$218),--('Warragul Drouin'!$E24=DataCAPEX!$G$14:$G$218),--(DataCAPEX!AD$14:AD$218)) -> 0 | AE24: =SUMPRODUCT(--($D24=DataCAPEX!$E$14:$E$218),--('Warragul Drouin'!$E24=DataCAPEX!$G$14:$G$218),--(DataCAPEX!AE$14:AE$218)) -> 0 | AF24: =SUMPRODUCT(--($D24=DataCAPEX!$E$14:$E$218),--('Warragul Drouin'!$E24=DataCAPEX!$G$14:$G$218),--(DataCAPEX!AF$14:AF$218)) -> 0 | AG24: =SUMPRODUCT(--($D24=DataCAPEX!$E$14:$E$218),--('Warragul Drouin'!$E24=DataCAPEX!$G$14:$G$218),--(DataCAPEX!AG$14:AG$218)) -> 0 | AH24: =SUMPRODUCT(--($D24=DataCAPEX!$E$14:$E$218),--('Warragul Drouin'!$E24=DataCAPEX!$G$14:$G$218),--(DataCAPEX!AH$14:AH$218)) -> 0 | AI24: =SUMPRODUCT(--($D24=DataCAPEX!$E$14:$E$218),--('Warragul Drouin'!$E24=DataCAPEX!$G$14:$G$218),--(DataCAPEX!AI$14:AI$218)) -> 0 | AJ24: =SUMPRODUCT(--($D24=DataCAPEX!$E$14:$E$218),--('Warragul Drouin'!$E24=DataCAPEX!$G$14:$G$218),--(DataCAPEX!AJ$14:AJ$218)) -> 0 | AK24: =SUMPRODUCT(--($D24=DataCAPEX!$E$14:$E$218),--('Warragul Drouin'!$E24=DataCAPEX!$G$14:$G$218),--(DataCAPEX!AK$14:AK$218)) -> 0 | AL24: =SUMPRODUCT(--($D24=DataCAPEX!$E$14:$E$218),--('Warragul Drouin'!$E24=DataCAPEX!$G$14:$G$218),--(DataCAPEX!AL$14:AL$218)) -> 0 | AM24: =SUMPRODUCT(--($D24=DataCAPEX!$E$14:$E$218),--('Warragul Drouin'!$E24=DataCAPEX!$G$14:$G$218),--(DataCAPEX!AM$14:AM$218)) -> 0 | AN24: =SUMPRODUCT(--($D24=DataCAPEX!$E$14:$E$218),--('Warragul Drouin'!$E24=DataCAPEX!$G$14:$G$218),--(DataCAPEX!AN$14:AN$218)) -> 0 | AO24: =SUMPRODUCT(--($D24=DataCAPEX!$E$14:$E$218),--('Warragul Drouin'!$E24=DataCAPEX!$G$14:$G$218),--(DataCAPEX!AO$14:AO$218)) -> 0 | AP24: =SUMPRODUCT(--($D24=DataCAPEX!$E$14:$E$218),--('Warragul Drouin'!$E24=DataCAPEX!$G$14:$G$218),--(DataCAPEX!AP$14:AP$218)) -> 0
D25: Warragul Drouin | P25: $ | Q25: =NPV('DataCON&ASSUMPTIONS'!$F$48,'Warragul Drouin'!W25:AP25) -> 0 | R25: =SUMPRODUCT(--($D25=DataCAPEX!$E$14:$E$218),--('Warragul Drouin'!$E25=DataCAPEX!$G$14:$G$218),--(DataCAPEX!R$14:R$218)) -> 0 | S25: =SUMPRODUCT(--($D25=DataCAPEX!$E$14:$E$218),--('Warragul Drouin'!$E25=DataCAPEX!$G$14:$G$218),--(DataCAPEX!S$14:S$218)) -> 0 | T25: =SUMPRODUCT(--($D25=DataCAPEX!$E$14:$E$218),--('Warragul Drouin'!$E25=DataCAPEX!$G$14:$G$218),--(DataCAPEX!T$14:T$218)) -> 0 | U25: =SUMPRODUCT(--($D25=DataCAPEX!$E$14:$E$218),--('Warragul Drouin'!$E25=DataCAPEX!$G$14:$G$218),--(DataCAPEX!U$14:U$218)) -> 0 | V25: =SUMPRODUCT(--($D25=DataCAPEX!$E$14:$E$218),--('Warragul Drouin'!$E25=DataCAPEX!$G$14:$G$218),--(DataCAPEX!V$14:V$218)) -> 0 | W25: =SUMPRODUCT(--($D25=DataCAPEX!$E$14:$E$218),--('Warragul Drouin'!$E25=DataCAPEX!$G$14:$G$218),--(DataCAPEX!W$14:W$218)) -> 0 | X25: =SUMPRODUCT(--($D25=DataCAPEX!$E$14:$E$218),--('Warragul Drouin'!$E25=DataCAPEX!$G$14:$G$218),--(DataCAPEX!X$14:X$218)) -> 0 | Y25: =SUMPRODUCT(--($D25=DataCAPEX!$E$14:$E$218),--('Warragul Drouin'!$E25=DataCAPEX!$G$14:$G$218),--(DataCAPEX!Y$14:Y$218)) -> 0 | Z25: =SUMPRODUCT(--($D25=DataCAPEX!$E$14:$E$218),--('Warragul Drouin'!$E25=DataCAPEX!$G$14:$G$218),--(DataCAPEX!Z$14:Z$218)) -> 0 | AA25: =SUMPRODUCT(--($D25=DataCAPEX!$E$14:$E$218),--('Warragul Drouin'!$E25=DataCAPEX!$G$14:$G$218),--(DataCAPEX!AA$14:AA$218)) -> 0 | AB25: =SUMPRODUCT(--($D25=DataCAPEX!$E$14:$E$218),--('Warragul Drouin'!$E25=DataCAPEX!$G$14:$G$218),--(DataCAPEX!AB$14:AB$218)) -> 0 | AC25: =SUMPRODUCT(--($D25=DataCAPEX!$E$14:$E$218),--('Warragul Drouin'!$E25=DataCAPEX!$G$14:$G$218),--(DataCAPEX!AC$14:AC$218)) -> 0 | AD25: =SUMPRODUCT(--($D25=DataCAPEX!$E$14:$E$218),--('Warragul Drouin'!$E25=DataCAPEX!$G$14:$G$218),--(DataCAPEX!AD$14:AD$218)) -> 0 | AE25: =SUMPRODUCT(--($D25=DataCAPEX!$E$14:$E$218),--('Warragul Drouin'!$E25=DataCAPEX!$G$14:$G$218),--(DataCAPEX!AE$14:AE$218)) -> 0 | AF25: =SUMPRODUCT(--($D25=DataCAPEX!$E$14:$E$218),--('Warragul Drouin'!$E25=DataCAPEX!$G$14:$G$218),--(DataCAPEX!AF$14:AF$218)) -> 0 | AG25: =SUMPRODUCT(--($D25=DataCAPEX!$E$14:$E$218),--('Warragul Drouin'!$E25=DataCAPEX!$G$14:$G$218),--(DataCAPEX!AG$14:AG$218)) -> 0 | AH25: =SUMPRODUCT(--($D25=DataCAPEX!$E$14:$E$218),--('Warragul Drouin'!$E25=DataCAPEX!$G$14:$G$218),--(DataCAPEX!AH$14:AH$218)) -> 0 | AI25: =SUMPRODUCT(--($D25=DataCAPEX!$E$14:$E$218),--('Warragul Drouin'!$E25=DataCAPEX!$G$14:$G$218),--(DataCAPEX!AI$14:AI$218)) -> 0 | AJ25: =SUMPRODUCT(--($D25=DataCAPEX!$E$14:$E$218),--('Warragul Drouin'!$E25=DataCAPEX!$G$14:$G$218),--(DataCAPEX!AJ$14:AJ$218)) -> 0 | AK25: =SUMPRODUCT(--($D25=DataCAPEX!$E$14:$E$218),--('Warragul Drouin'!$E25=DataCAPEX!$G$14:$G$218),--(DataCAPEX!AK$14:AK$218)) -> 0 | AL25: =SUMPRODUCT(--($D25=DataCAPEX!$E$14:$E$218),--('Warragul Drouin'!$E25=DataCAPEX!$G$14:$G$218),--(DataCAPEX!AL$14:AL$218)) -> 0 | AM25: =SUMPRODUCT(--($D25=DataCAPEX!$E$14:$E$218),--('Warragul Drouin'!$E25=DataCAPEX!$G$14:$G$218),--(DataCAPEX!AM$14:AM$218)) -> 0 | AN25: =SUMPRODUCT(--($D25=DataCAPEX!$E$14:$E$218),--('Warragul Drouin'!$E25=DataCAPEX!$G$14:$G$218),--(DataCAPEX!AN$14:AN$218)) -> 0 | AO25: =SUMPRODUCT(--($D25=DataCAPEX!$E$14:$E$218),--('Warragul Drouin'!$E25=DataCAPEX!$G$14:$G$218),--(DataCAPEX!AO$14:AO$218)) -> 0 | AP25: =SUMPRODUCT(--($D25=DataCAPEX!$E$14:$E$218),--('Warragul Drouin'!$E25=DataCAPEX!$G$14:$G$218),--(DataCAPEX!AP$14:AP$218)) -> 0
D26: Warragul Drouin | P26: $ | Q26: =NPV('DataCON&ASSUMPTIONS'!$F$48,'Warragul Drouin'!W26:AP26) -> 0 | R26: =SUMPRODUCT(--($D26=DataCAPEX!$E$14:$E$218),--('Warragul Drouin'!$E26=DataCAPEX!$G$14:$G$218),--(DataCAPEX!R$14:R$218)) -> 0 | S26: =SUMPRODUCT(--($D26=DataCAPEX!$E$14:$E$218),--('Warragul Drouin'!$E26=DataCAPEX!$G$14:$G$218),--(DataCAPEX!S$14:S$218)) -> 0 | T26: =SUMPRODUCT(--($D26=DataCAPEX!$E$14:$E$218),--('Warragul Drouin'!$E26=DataCAPEX!$G$14:$G$218),--(DataCAPEX!T$14:T$218)) -> 0 | U26: =SUMPRODUCT(--($D26=DataCAPEX!$E$14:$E$218),--('Warragul Drouin'!$E26=DataCAPEX!$G$14:$G$218),--(DataCAPEX!U$14:U$218)) -> 0 | V26: =SUMPRODUCT(--($D26=DataCAPEX!$E$14:$E$218),--('Warragul Drouin'!$E26=DataCAPEX!$G$14:$G$218),--(DataCAPEX!V$14:V$218)) -> 0 | W26: =SUMPRODUCT(--($D26=DataCAPEX!$E$14:$E$218),--('Warragul Drouin'!$E26=DataCAPEX!$G$14:$G$218),--(DataCAPEX!W$14:W$218)) -> 0 | X26: =SUMPRODUCT(--($D26=DataCAPEX!$E$14:$E$218),--('Warragul Drouin'!$E26=DataCAPEX!$G$14:$G$218),--(DataCAPEX!X$14:X$218)) -> 0 | Y26: =SUMPRODUCT(--($D26=DataCAPEX!$E$14:$E$218),--('Warragul Drouin'!$E26=DataCAPEX!$G$14:$G$218),--(DataCAPEX!Y$14:Y$218)) -> 0 | Z26: =SUMPRODUCT(--($D26=DataCAPEX!$E$14:$E$218),--('Warragul Drouin'!$E26=DataCAPEX!$G$14:$G$218),--(DataCAPEX!Z$14:Z$218)) -> 0 | AA26: =SUMPRODUCT(--($D26=DataCAPEX!$E$14:$E$218),--('Warragul Drouin'!$E26=DataCAPEX!$G$14:$G$218),--(DataCAPEX!AA$14:AA$218)) -> 0 | AB26: =SUMPRODUCT(--($D26=DataCAPEX!$E$14:$E$218),--('Warragul Drouin'!$E26=DataCAPEX!$G$14:$G$218),--(DataCAPEX!AB$14:AB$218)) -> 0 | AC26: =SUMPRODUCT(--($D26=DataCAPEX!$E$14:$E$218),--('Warragul Drouin'!$E26=DataCAPEX!$G$14:$G$218),--(DataCAPEX!AC$14:AC$218)) -> 0 | AD26: =SUMPRODUCT(--($D26=DataCAPEX!$E$14:$E$218),--('Warragul Drouin'!$E26=DataCAPEX!$G$14:$G$218),--(DataCAPEX!AD$14:AD$218)) -> 0 | AE26: =SUMPRODUCT(--($D26=DataCAPEX!$E$14:$E$218),--('Warragul Drouin'!$E26=DataCAPEX!$G$14:$G$218),--(DataCAPEX!AE$14:AE$218)) -> 0 | AF26: =SUMPRODUCT(--($D26=DataCAPEX!$E$14:$E$218),--('Warragul Drouin'!$E26=DataCAPEX!$G$14:$G$218),--(DataCAPEX!AF$14:AF$218)) -> 0 | AG26: =SUMPRODUCT(--($D26=DataCAPEX!$E$14:$E$218),--('Warragul Drouin'!$E26=DataCAPEX!$G$14:$G$218),--(DataCAPEX!AG$14:AG$218)) -> 0 | AH26: =SUMPRODUCT(--($D26=DataCAPEX!$E$14:$E$218),--('Warragul Drouin'!$E26=DataCAPEX!$G$14:$G$218),--(DataCAPEX!AH$14:AH$218)) -> 0 | AI26: =SUMPRODUCT(--($D26=DataCAPEX!$E$14:$E$218),--('Warragul Drouin'!$E26=DataCAPEX!$G$14:$G$218),--(DataCAPEX!AI$14:AI$218)) -> 0 | AJ26: =SUMPRODUCT(--($D26=DataCAPEX!$E$14:$E$218),--('Warragul Drouin'!$E26=DataCAPEX!$G$14:$G$218),--(DataCAPEX!AJ$14:AJ$218)) -> 0 | AK26: =SUMPRODUCT(--($D26=DataCAPEX!$E$14:$E$218),--('Warragul Drouin'!$E26=DataCAPEX!$G$14:$G$218),--(DataCAPEX!AK$14:AK$218)) -> 0 | AL26: =SUMPRODUCT(--($D26=DataCAPEX!$E$14:$E$218),--('Warragul Drouin'!$E26=DataCAPEX!$G$14:$G$218),--(DataCAPEX!AL$14:AL$218)) -> 0 | AM26: =SUMPRODUCT(--($D26=DataCAPEX!$E$14:$E$218),--('Warragul Drouin'!$E26=DataCAPEX!$G$14:$G$218),--(DataCAPEX!AM$14:AM$218)) -> 0 | AN26: =SUMPRODUCT(--($D26=DataCAPEX!$E$14:$E$218),--('Warragul Drouin'!$E26=DataCAPEX!$G$14:$G$218),--(DataCAPEX!AN$14:AN$218)) -> 0 | AO26: =SUMPRODUCT(--($D26=DataCAPEX!$E$14:$E$218),--('Warragul Drouin'!$E26=DataCAPEX!$G$14:$G$218),--(DataCAPEX!AO$14:AO$218)) -> 0 | AP26: =SUMPRODUCT(--($D26=DataCAPEX!$E$14:$E$218),--('Warragul Drouin'!$E26=DataCAPEX!$G$14:$G$218),--(DataCAPEX!AP$14:AP$218)) -> 0
D27: Warragul Drouin | P27: $ | Q27: =NPV('DataCON&ASSUMPTIONS'!$F$48,'Warragul Drouin'!W27:AP27) -> 0 | R27: =SUMPRODUCT(--($D27=DataCAPEX!$E$14:$E$218),--('Warragul Drouin'!$E27=DataCAPEX!$G$14:$G$218),--(DataCAPEX!R$14:R$218)) -> 0 | S27: =SUMPRODUCT(--($D27=DataCAPEX!$E$14:$E$218),--('Warragul Drouin'!$E27=DataCAPEX!$G$14:$G$218),--(DataCAPEX!S$14:S$218)) -> 0 | T27: =SUMPRODUCT(--($D27=DataCAPEX!$E$14:$E$218),--('Warragul Drouin'!$E27=DataCAPEX!$G$14:$G$218),--(DataCAPEX!T$14:T$218)) -> 0 | U27: =SUMPRODUCT(--($D27=DataCAPEX!$E$14:$E$218),--('Warragul Drouin'!$E27=DataCAPEX!$G$14:$G$218),--(DataCAPEX!U$14:U$218)) -> 0 | V27: =SUMPRODUCT(--($D27=DataCAPEX!$E$14:$E$218),--('Warragul Drouin'!$E27=DataCAPEX!$G$14:$G$218),--(DataCAPEX!V$14:V$218)) -> 0 | W27: =SUMPRODUCT(--($D27=DataCAPEX!$E$14:$E$218),--('Warragul Drouin'!$E27=DataCAPEX!$G$14:$G$218),--(DataCAPEX!W$14:W$218)) -> 0 | X27: =SUMPRODUCT(--($D27=DataCAPEX!$E$14:$E$218),--('Warragul Drouin'!$E27=DataCAPEX!$G$14:$G$218),--(DataCAPEX!X$14:X$218)) -> 0 | Y27: =SUMPRODUCT(--($D27=DataCAPEX!$E$14:$E$218),--('Warragul Drouin'!$E27=DataCAPEX!$G$14:$G$218),--(DataCAPEX!Y$14:Y$218)) -> 0 | Z27: =SUMPRODUCT(--($D27=DataCAPEX!$E$14:$E$218),--('Warragul Drouin'!$E27=DataCAPEX!$G$14:$G$218),--(DataCAPEX!Z$14:Z$218)) -> 0 | AA27: =SUMPRODUCT(--($D27=DataCAPEX!$E$14:$E$218),--('Warragul Drouin'!$E27=DataCAPEX!$G$14:$G$218),--(DataCAPEX!AA$14:AA$218)) -> 0 | AB27: =SUMPRODUCT(--($D27=DataCAPEX!$E$14:$E$218),--('Warragul Drouin'!$E27=DataCAPEX!$G$14:$G$218),--(DataCAPEX!AB$14:AB$218)) -> 0 | AC27: =SUMPRODUCT(--($D27=DataCAPEX!$E$14:$E$218),--('Warragul Drouin'!$E27=DataCAPEX!$G$14:$G$218),--(DataCAPEX!AC$14:AC$218)) -> 0 | AD27: =SUMPRODUCT(--($D27=DataCAPEX!$E$14:$E$218),--('Warragul Drouin'!$E27=DataCAPEX!$G$14:$G$218),--(DataCAPEX!AD$14:AD$218)) -> 0 | AE27: =SUMPRODUCT(--($D27=DataCAPEX!$E$14:$E$218),--('Warragul Drouin'!$E27=DataCAPEX!$G$14:$G$218),--(DataCAPEX!AE$14:AE$218)) -> 0 | AF27: =SUMPRODUCT(--($D27=DataCAPEX!$E$14:$E$218),--('Warragul Drouin'!$E27=DataCAPEX!$G$14:$G$218),--(DataCAPEX!AF$14:AF$218)) -> 0 | AG27: =SUMPRODUCT(--($D27=DataCAPEX!$E$14:$E$218),--('Warragul Drouin'!$E27=DataCAPEX!$G$14:$G$218),--(DataCAPEX!AG$14:AG$218)) -> 0 | AH27: =SUMPRODUCT(--($D27=DataCAPEX!$E$14:$E$218),--('Warragul Drouin'!$E27=DataCAPEX!$G$14:$G$218),--(DataCAPEX!AH$14:AH$218)) -> 0 | AI27: =SUMPRODUCT(--($D27=DataCAPEX!$E$14:$E$218),--('Warragul Drouin'!$E27=DataCAPEX!$G$14:$G$218),--(DataCAPEX!AI$14:AI$218)) -> 0 | AJ27: =SUMPRODUCT(--($D27=DataCAPEX!$E$14:$E$218),--('Warragul Drouin'!$E27=DataCAPEX!$G$14:$G$218),--(DataCAPEX!AJ$14:AJ$218)) -> 0 | AK27: =SUMPRODUCT(--($D27=DataCAPEX!$E$14:$E$218),--('Warragul Drouin'!$E27=DataCAPEX!$G$14:$G$218),--(DataCAPEX!AK$14:AK$218)) -> 0 | AL27: =SUMPRODUCT(--($D27=DataCAPEX!$E$14:$E$218),--('Warragul Drouin'!$E27=DataCAPEX!$G$14:$G$218),--(DataCAPEX!AL$14:AL$218)) -> 0 | AM27: =SUMPRODUCT(--($D27=DataCAPEX!$E$14:$E$218),--('Warragul Drouin'!$E27=DataCAPEX!$G$14:$G$218),--(DataCAPEX!AM$14:AM$218)) -> 0 | AN27: =SUMPRODUCT(--($D27=DataCAPEX!$E$14:$E$218),--('Warragul Drouin'!$E27=DataCAPEX!$G$14:$G$218),--(DataCAPEX!AN$14:AN$218)) -> 0 | AO27: =SUMPRODUCT(--($D27=DataCAPEX!$E$14:$E$218),--('Warragul Drouin'!$E27=DataCAPEX!$G$14:$G$218),--(DataCAPEX!AO$14:AO$218)) -> 0 | AP27: =SUMPRODUCT(--($D27=DataCAPEX!$E$14:$E$218),--('Warragul Drouin'!$E27=DataCAPEX!$G$14:$G$218),--(DataCAPEX!AP$14:AP$218)) -> 0
D28: Warragul Drouin | P28: $ | Q28: =NPV('DataCON&ASSUMPTIONS'!$F$48,'Warragul Drouin'!W28:AP28) -> 0 | R28: =SUMPRODUCT(--($D28=DataCAPEX!$E$14:$E$218),--('Warragul Drouin'!$E28=DataCAPEX!$G$14:$G$218),--(DataCAPEX!R$14:R$218)) -> 0 | S28: =SUMPRODUCT(--($D28=DataCAPEX!$E$14:$E$218),--('Warragul Drouin'!$E28=DataCAPEX!$G$14:$G$218),--(DataCAPEX!S$14:S$218)) -> 0 | T28: =SUMPRODUCT(--($D28=DataCAPEX!$E$14:$E$218),--('Warragul Drouin'!$E28=DataCAPEX!$G$14:$G$218),--(DataCAPEX!T$14:T$218)) -> 0 | U28: =SUMPRODUCT(--($D28=DataCAPEX!$E$14:$E$218),--('Warragul Drouin'!$E28=DataCAPEX!$G$14:$G$218),--(DataCAPEX!U$14:U$218)) -> 0 | V28: =SUMPRODUCT(--($D28=DataCAPEX!$E$14:$E$218),--('Warragul Drouin'!$E28=DataCAPEX!$G$14:$G$218),--(DataCAPEX!V$14:V$218)) -> 0 | W28: =SUMPRODUCT(--($D28=DataCAPEX!$E$14:$E$218),--('Warragul Drouin'!$E28=DataCAPEX!$G$14:$G$218),--(DataCAPEX!W$14:W$218)) -> 0 | X28: =SUMPRODUCT(--($D28=DataCAPEX!$E$14:$E$218),--('Warragul Drouin'!$E28=DataCAPEX!$G$14:$G$218),--(DataCAPEX!X$14:X$218)) -> 0 | Y28: =SUMPRODUCT(--($D28=DataCAPEX!$E$14:$E$218),--('Warragul Drouin'!$E28=DataCAPEX!$G$14:$G$218),--(DataCAPEX!Y$14:Y$218)) -> 0 | Z28: =SUMPRODUCT(--($D28=DataCAPEX!$E$14:$E$218),--('Warragul Drouin'!$E28=DataCAPEX!$G$14:$G$218),--(DataCAPEX!Z$14:Z$218)) -> 0 | AA28: =SUMPRODUCT(--($D28=DataCAPEX!$E$14:$E$218),--('Warragul Drouin'!$E28=DataCAPEX!$G$14:$G$218),--(DataCAPEX!AA$14:AA$218)) -> 0 | AB28: =SUMPRODUCT(--($D28=DataCAPEX!$E$14:$E$218),--('Warragul Drouin'!$E28=DataCAPEX!$G$14:$G$218),--(DataCAPEX!AB$14:AB$218)) -> 0 | AC28: =SUMPRODUCT(--($D28=DataCAPEX!$E$14:$E$218),--('Warragul Drouin'!$E28=DataCAPEX!$G$14:$G$218),--(DataCAPEX!AC$14:AC$218)) -> 0 | AD28: =SUMPRODUCT(--($D28=DataCAPEX!$E$14:$E$218),--('Warragul Drouin'!$E28=DataCAPEX!$G$14:$G$218),--(DataCAPEX!AD$14:AD$218)) -> 0 | AE28: =SUMPRODUCT(--($D28=DataCAPEX!$E$14:$E$218),--('Warragul Drouin'!$E28=DataCAPEX!$G$14:$G$218),--(DataCAPEX!AE$14:AE$218)) -> 0 | AF28: =SUMPRODUCT(--($D28=DataCAPEX!$E$14:$E$218),--('Warragul Drouin'!$E28=DataCAPEX!$G$14:$G$218),--(DataCAPEX!AF$14:AF$218)) -> 0 | AG28: =SUMPRODUCT(--($D28=DataCAPEX!$E$14:$E$218),--('Warragul Drouin'!$E28=DataCAPEX!$G$14:$G$218),--(DataCAPEX!AG$14:AG$218)) -> 0 | AH28: =SUMPRODUCT(--($D28=DataCAPEX!$E$14:$E$218),--('Warragul Drouin'!$E28=DataCAPEX!$G$14:$G$218),--(DataCAPEX!AH$14:AH$218)) -> 0 | AI28: =SUMPRODUCT(--($D28=DataCAPEX!$E$14:$E$218),--('Warragul Drouin'!$E28=DataCAPEX!$G$14:$G$218),--(DataCAPEX!AI$14:AI$218)) -> 0 | AJ28: =SUMPRODUCT(--($D28=DataCAPEX!$E$14:$E$218),--('Warragul Drouin'!$E28=DataCAPEX!$G$14:$G$218),--(DataCAPEX!AJ$14:AJ$218)) -> 0 | AK28: =SUMPRODUCT(--($D28=DataCAPEX!$E$14:$E$218),--('Warragul Drouin'!$E28=DataCAPEX!$G$14:$G$218),--(DataCAPEX!AK$14:AK$218)) -> 0 | AL28: =SUMPRODUCT(--($D28=DataCAPEX!$E$14:$E$218),--('Warragul Drouin'!$E28=DataCAPEX!$G$14:$G$218),--(DataCAPEX!AL$14:AL$218)) -> 0 | AM28: =SUMPRODUCT(--($D28=DataCAPEX!$E$14:$E$218),--('Warragul Drouin'!$E28=DataCAPEX!$G$14:$G$218),--(DataCAPEX!AM$14:AM$218)) -> 0 | AN28: =SUMPRODUCT(--($D28=DataCAPEX!$E$14:$E$218),--('Warragul Drouin'!$E28=DataCAPEX!$G$14:$G$218),--(DataCAPEX!AN$14:AN$218)) -> 0 | AO28: =SUMPRODUCT(--($D28=DataCAPEX!$E$14:$E$218),--('Warragul Drouin'!$E28=DataCAPEX!$G$14:$G$218),--(DataCAPEX!AO$14:AO$218)) -> 0 | AP28: =SUMPRODUCT(--($D28=DataCAPEX!$E$14:$E$218),--('Warragul Drouin'!$E28=DataCAPEX!$G$14:$G$218),--(DataCAPEX!AP$14:AP$218)) -> 0
D29: Warragul Drouin | P29: $ | Q29: =NPV('DataCON&ASSUMPTIONS'!$F$48,'Warragul Drouin'!W29:AP29) -> 0 | R29: =SUMPRODUCT(--($D29=DataCAPEX!$E$14:$E$218),--('Warragul Drouin'!$E29=DataCAPEX!$G$14:$G$218),--(DataCAPEX!R$14:R$218)) -> 0 | S29: =SUMPRODUCT(--($D29=DataCAPEX!$E$14:$E$218),--('Warragul Drouin'!$E29=DataCAPEX!$G$14:$G$218),--(DataCAPEX!S$14:S$218)) -> 0 | T29: =SUMPRODUCT(--($D29=DataCAPEX!$E$14:$E$218),--('Warragul Drouin'!$E29=DataCAPEX!$G$14:$G$218),--(DataCAPEX!T$14:T$218)) -> 0 | U29: =SUMPRODUCT(--($D29=DataCAPEX!$E$14:$E$218),--('Warragul Drouin'!$E29=DataCAPEX!$G$14:$G$218),--(DataCAPEX!U$14:U$218)) -> 0 | V29: =SUMPRODUCT(--($D29=DataCAPEX!$E$14:$E$218),--('Warragul Drouin'!$E29=DataCAPEX!$G$14:$G$218),--(DataCAPEX!V$14:V$218)) -> 0 | W29: =SUMPRODUCT(--($D29=DataCAPEX!$E$14:$E$218),--('Warragul Drouin'!$E29=DataCAPEX!$G$14:$G$218),--(DataCAPEX!W$14:W$218)) -> 0 | X29: =SUMPRODUCT(--($D29=DataCAPEX!$E$14:$E$218),--('Warragul Drouin'!$E29=DataCAPEX!$G$14:$G$218),--(DataCAPEX!X$14:X$218)) -> 0 | Y29: =SUMPRODUCT(--($D29=DataCAPEX!$E$14:$E$218),--('Warragul Drouin'!$E29=DataCAPEX!$G$14:$G$218),--(DataCAPEX!Y$14:Y$218)) -> 0 | Z29: =SUMPRODUCT(--($D29=DataCAPEX!$E$14:$E$218),--('Warragul Drouin'!$E29=DataCAPEX!$G$14:$G$218),--(DataCAPEX!Z$14:Z$218)) -> 0 | AA29: =SUMPRODUCT(--($D29=DataCAPEX!$E$14:$E$218),--('Warragul Drouin'!$E29=DataCAPEX!$G$14:$G$218),--(DataCAPEX!AA$14:AA$218)) -> 0 | AB29: =SUMPRODUCT(--($D29=DataCAPEX!$E$14:$E$218),--('Warragul Drouin'!$E29=DataCAPEX!$G$14:$G$218),--(DataCAPEX!AB$14:AB$218)) -> 0 | AC29: =SUMPRODUCT(--($D29=DataCAPEX!$E$14:$E$218),--('Warragul Drouin'!$E29=DataCAPEX!$G$14:$G$218),--(DataCAPEX!AC$14:AC$218)) -> 0 | AD29: =SUMPRODUCT(--($D29=DataCAPEX!$E$14:$E$218),--('Warragul Drouin'!$E29=DataCAPEX!$G$14:$G$218),--(DataCAPEX!AD$14:AD$218)) -> 0 | AE29: =SUMPRODUCT(--($D29=DataCAPEX!$E$14:$E$218),--('Warragul Drouin'!$E29=DataCAPEX!$G$14:$G$218),--(DataCAPEX!AE$14:AE$218)) -> 0 | AF29: =SUMPRODUCT(--($D29=DataCAPEX!$E$14:$E$218),--('Warragul Drouin'!$E29=DataCAPEX!$G$14:$G$218),--(DataCAPEX!AF$14:AF$218)) -> 0 | AG29: =SUMPRODUCT(--($D29=DataCAPEX!$E$14:$E$218),--('Warragul Drouin'!$E29=DataCAPEX!$G$14:$G$218),--(DataCAPEX!AG$14:AG$218)) -> 0 | AH29: =SUMPRODUCT(--($D29=DataCAPEX!$E$14:$E$218),--('Warragul Drouin'!$E29=DataCAPEX!$G$14:$G$218),--(DataCAPEX!AH$14:AH$218)) -> 0 | AI29: =SUMPRODUCT(--($D29=DataCAPEX!$E$14:$E$218),--('Warragul Drouin'!$E29=DataCAPEX!$G$14:$G$218),--(DataCAPEX!AI$14:AI$218)) -> 0 | AJ29: =SUMPRODUCT(--($D29=DataCAPEX!$E$14:$E$218),--('Warragul Drouin'!$E29=DataCAPEX!$G$14:$G$218),--(DataCAPEX!AJ$14:AJ$218)) -> 0 | AK29: =SUMPRODUCT(--($D29=DataCAPEX!$E$14:$E$218),--('Warragul Drouin'!$E29=DataCAPEX!$G$14:$G$218),--(DataCAPEX!AK$14:AK$218)) -> 0 | AL29: =SUMPRODUCT(--($D29=DataCAPEX!$E$14:$E$218),--('Warragul Drouin'!$E29=DataCAPEX!$G$14:$G$218),--(DataCAPEX!AL$14:AL$218)) -> 0 | AM29: =SUMPRODUCT(--($D29=DataCAPEX!$E$14:$E$218),--('Warragul Drouin'!$E29=DataCAPEX!$G$14:$G$218),--(DataCAPEX!AM$14:AM$218)) -> 0 | AN29: =SUMPRODUCT(--($D29=DataCAPEX!$E$14:$E$218),--('Warragul Drouin'!$E29=DataCAPEX!$G$14:$G$218),--(DataCAPEX!AN$14:AN$218)) -> 0 | AO29: =SUMPRODUCT(--($D29=DataCAPEX!$E$14:$E$218),--('Warragul Drouin'!$E29=DataCAPEX!$G$14:$G$218),--(DataCAPEX!AO$14:AO$218)) -> 0 | AP29: =SUMPRODUCT(--($D29=DataCAPEX!$E$14:$E$218),--('Warragul Drouin'!$E29=DataCAPEX!$G$14:$G$218),--(DataCAPEX!AP$14:AP$218)) -> 0
D30: Warragul Drouin | P30: $ | Q30: =NPV('DataCON&ASSUMPTIONS'!$F$48,'Warragul Drouin'!W30:AP30) -> 0 | R30: =SUMPRODUCT(--($D30=DataCAPEX!$E$14:$E$218),--('Warragul Drouin'!$E30=DataCAPEX!$G$14:$G$218),--(DataCAPEX!R$14:R$218)) -> 0 | S30: =SUMPRODUCT(--($D30=DataCAPEX!$E$14:$E$218),--('Warragul Drouin'!$E30=DataCAPEX!$G$14:$G$218),--(DataCAPEX!S$14:S$218)) -> 0 | T30: =SUMPRODUCT(--($D30=DataCAPEX!$E$14:$E$218),--('Warragul Drouin'!$E30=DataCAPEX!$G$14:$G$218),--(DataCAPEX!T$14:T$218)) -> 0 | U30: =SUMPRODUCT(--($D30=DataCAPEX!$E$14:$E$218),--('Warragul Drouin'!$E30=DataCAPEX!$G$14:$G$218),--(DataCAPEX!U$14:U$218)) -> 0 | V30: =SUMPRODUCT(--($D30=DataCAPEX!$E$14:$E$218),--('Warragul Drouin'!$E30=DataCAPEX!$G$14:$G$218),--(DataCAPEX!V$14:V$218)) -> 0 | W30: =SUMPRODUCT(--($D30=DataCAPEX!$E$14:$E$218),--('Warragul Drouin'!$E30=DataCAPEX!$G$14:$G$218),--(DataCAPEX!W$14:W$218)) -> 0 | X30: =SUMPRODUCT(--($D30=DataCAPEX!$E$14:$E$218),--('Warragul Drouin'!$E30=DataCAPEX!$G$14:$G$218),--(DataCAPEX!X$14:X$218)) -> 0 | Y30: =SUMPRODUCT(--($D30=DataCAPEX!$E$14:$E$218),--('Warragul Drouin'!$E30=DataCAPEX!$G$14:$G$218),--(DataCAPEX!Y$14:Y$218)) -> 0 | Z30: =SUMPRODUCT(--($D30=DataCAPEX!$E$14:$E$218),--('Warragul Drouin'!$E30=DataCAPEX!$G$14:$G$218),--(DataCAPEX!Z$14:Z$218)) -> 0 | AA30: =SUMPRODUCT(--($D30=DataCAPEX!$E$14:$E$218),--('Warragul Drouin'!$E30=DataCAPEX!$G$14:$G$218),--(DataCAPEX!AA$14:AA$218)) -> 0 | AB30: =SUMPRODUCT(--($D30=DataCAPEX!$E$14:$E$218),--('Warragul Drouin'!$E30=DataCAPEX!$G$14:$G$218),--(DataCAPEX!AB$14:AB$218)) -> 0 | AC30: =SUMPRODUCT(--($D30=DataCAPEX!$E$14:$E$218),--('Warragul Drouin'!$E30=DataCAPEX!$G$14:$G$218),--(DataCAPEX!AC$14:AC$218)) -> 0 | AD30: =SUMPRODUCT(--($D30=DataCAPEX!$E$14:$E$218),--('Warragul Drouin'!$E30=DataCAPEX!$G$14:$G$218),--(DataCAPEX!AD$14:AD$218)) -> 0 | AE30: =SUMPRODUCT(--($D30=DataCAPEX!$E$14:$E$218),--('Warragul Drouin'!$E30=DataCAPEX!$G$14:$G$218),--(DataCAPEX!AE$14:AE$218)) -> 0 | AF30: =SUMPRODUCT(--($D30=DataCAPEX!$E$14:$E$218),--('Warragul Drouin'!$E30=DataCAPEX!$G$14:$G$218),--(DataCAPEX!AF$14:AF$218)) -> 0 | AG30: =SUMPRODUCT(--($D30=DataCAPEX!$E$14:$E$218),--('Warragul Drouin'!$E30=DataCAPEX!$G$14:$G$218),--(DataCAPEX!AG$14:AG$218)) -> 0 | AH30: =SUMPRODUCT(--($D30=DataCAPEX!$E$14:$E$218),--('Warragul Drouin'!$E30=DataCAPEX!$G$14:$G$218),--(DataCAPEX!AH$14:AH$218)) -> 0 | AI30: =SUMPRODUCT(--($D30=DataCAPEX!$E$14:$E$218),--('Warragul Drouin'!$E30=DataCAPEX!$G$14:$G$218),--(DataCAPEX!AI$14:AI$218)) -> 0 | AJ30: =SUMPRODUCT(--($D30=DataCAPEX!$E$14:$E$218),--('Warragul Drouin'!$E30=DataCAPEX!$G$14:$G$218),--(DataCAPEX!AJ$14:AJ$218)) -> 0 | AK30: =SUMPRODUCT(--($D30=DataCAPEX!$E$14:$E$218),--('Warragul Drouin'!$E30=DataCAPEX!$G$14:$G$218),--(DataCAPEX!AK$14:AK$218)) -> 0 | AL30: =SUMPRODUCT(--($D30=DataCAPEX!$E$14:$E$218),--('Warragul Drouin'!$E30=DataCAPEX!$G$14:$G$218),--(DataCAPEX!AL$14:AL$218)) -> 0 | AM30: =SUMPRODUCT(--($D30=DataCAPEX!$E$14:$E$218),--('Warragul Drouin'!$E30=DataCAPEX!$G$14:$G$218),--(DataCAPEX!AM$14:AM$218)) -> 0 | AN30: =SUMPRODUCT(--($D30=DataCAPEX!$E$14:$E$218),--('Warragul Drouin'!$E30=DataCAPEX!$G$14:$G$218),--(DataCAPEX!AN$14:AN$218)) -> 0 | AO30: =SUMPRODUCT(--($D30=DataCAPEX!$E$14:$E$218),--('Warragul Drouin'!$E30=DataCAPEX!$G$14:$G$218),--(DataCAPEX!AO$14:AO$218)) -> 0 | AP30: =SUMPRODUCT(--($D30=DataCAPEX!$E$14:$E$218),--('Warragul Drouin'!$E30=DataCAPEX!$G$14:$G$218),--(DataCAPEX!AP$14:AP$218)) -> 0
D31: Warragul Drouin | P31: $ | Q31: =NPV('DataCON&ASSUMPTIONS'!$F$48,'Warragul Drouin'!W31:AP31) -> 0 | R31: =SUMPRODUCT(--($D31=DataCAPEX!$E$14:$E$218),--('Warragul Drouin'!$E31=DataCAPEX!$G$14:$G$218),--(DataCAPEX!R$14:R$218)) -> 0 | S31: =SUMPRODUCT(--($D31=DataCAPEX!$E$14:$E$218),--('Warragul Drouin'!$E31=DataCAPEX!$G$14:$G$218),--(DataCAPEX!S$14:S$218)) -> 0 | T31: =SUMPRODUCT(--($D31=DataCAPEX!$E$14:$E$218),--('Warragul Drouin'!$E31=DataCAPEX!$G$14:$G$218),--(DataCAPEX!T$14:T$218)) -> 0 | U31: =SUMPRODUCT(--($D31=DataCAPEX!$E$14:$E$218),--('Warragul Drouin'!$E31=DataCAPEX!$G$14:$G$218),--(DataCAPEX!U$14:U$218)) -> 0 | V31: =SUMPRODUCT(--($D31=DataCAPEX!$E$14:$E$218),--('Warragul Drouin'!$E31=DataCAPEX!$G$14:$G$218),--(DataCAPEX!V$14:V$218)) -> 0 | W31: =SUMPRODUCT(--($D31=DataCAPEX!$E$14:$E$218),--('Warragul Drouin'!$E31=DataCAPEX!$G$14:$G$218),--(DataCAPEX!W$14:W$218)) -> 0 | X31: =SUMPRODUCT(--($D31=DataCAPEX!$E$14:$E$218),--('Warragul Drouin'!$E31=DataCAPEX!$G$14:$G$218),--(DataCAPEX!X$14:X$218)) -> 0 | Y31: =SUMPRODUCT(--($D31=DataCAPEX!$E$14:$E$218),--('Warragul Drouin'!$E31=DataCAPEX!$G$14:$G$218),--(DataCAPEX!Y$14:Y$218)) -> 0 | Z31: =SUMPRODUCT(--($D31=DataCAPEX!$E$14:$E$218),--('Warragul Drouin'!$E31=DataCAPEX!$G$14:$G$218),--(DataCAPEX!Z$14:Z$218)) -> 0 | AA31: =SUMPRODUCT(--($D31=DataCAPEX!$E$14:$E$218),--('Warragul Drouin'!$E31=DataCAPEX!$G$14:$G$218),--(DataCAPEX!AA$14:AA$218)) -> 0 | AB31: =SUMPRODUCT(--($D31=DataCAPEX!$E$14:$E$218),--('Warragul Drouin'!$E31=DataCAPEX!$G$14:$G$218),--(DataCAPEX!AB$14:AB$218)) -> 0 | AC31: =SUMPRODUCT(--($D31=DataCAPEX!$E$14:$E$218),--('Warragul Drouin'!$E31=DataCAPEX!$G$14:$G$218),--(DataCAPEX!AC$14:AC$218)) -> 0 | AD31: =SUMPRODUCT(--($D31=DataCAPEX!$E$14:$E$218),--('Warragul Drouin'!$E31=DataCAPEX!$G$14:$G$218),--(DataCAPEX!AD$14:AD$218)) -> 0 | AE31: =SUMPRODUCT(--($D31=DataCAPEX!$E$14:$E$218),--('Warragul Drouin'!$E31=DataCAPEX!$G$14:$G$218),--(DataCAPEX!AE$14:AE$218)) -> 0 | AF31: =SUMPRODUCT(--($D31=DataCAPEX!$E$14:$E$218),--('Warragul Drouin'!$E31=DataCAPEX!$G$14:$G$218),--(DataCAPEX!AF$14:AF$218)) -> 0 | AG31: =SUMPRODUCT(--($D31=DataCAPEX!$E$14:$E$218),--('Warragul Drouin'!$E31=DataCAPEX!$G$14:$G$218),--(DataCAPEX!AG$14:AG$218)) -> 0 | AH31: =SUMPRODUCT(--($D31=DataCAPEX!$E$14:$E$218),--('Warragul Drouin'!$E31=DataCAPEX!$G$14:$G$218),--(DataCAPEX!AH$14:AH$218)) -> 0 | AI31: =SUMPRODUCT(--($D31=DataCAPEX!$E$14:$E$218),--('Warragul Drouin'!$E31=DataCAPEX!$G$14:$G$218),--(DataCAPEX!AI$14:AI$218)) -> 0 | AJ31: =SUMPRODUCT(--($D31=DataCAPEX!$E$14:$E$218),--('Warragul Drouin'!$E31=DataCAPEX!$G$14:$G$218),--(DataCAPEX!AJ$14:AJ$218)) -> 0 | AK31: =SUMPRODUCT(--($D31=DataCAPEX!$E$14:$E$218),--('Warragul Drouin'!$E31=DataCAPEX!$G$14:$G$218),--(DataCAPEX!AK$14:AK$218)) -> 0 | AL31: =SUMPRODUCT(--($D31=DataCAPEX!$E$14:$E$218),--('Warragul Drouin'!$E31=DataCAPEX!$G$14:$G$218),--(DataCAPEX!AL$14:AL$218)) -> 0 | AM31: =SUMPRODUCT(--($D31=DataCAPEX!$E$14:$E$218),--('Warragul Drouin'!$E31=DataCAPEX!$G$14:$G$218),--(DataCAPEX!AM$14:AM$218)) -> 0 | AN31: =SUMPRODUCT(--($D31=DataCAPEX!$E$14:$E$218),--('Warragul Drouin'!$E31=DataCAPEX!$G$14:$G$218),--(DataCAPEX!AN$14:AN$218)) -> 0 | AO31: =SUMPRODUCT(--($D31=DataCAPEX!$E$14:$E$218),--('Warragul Drouin'!$E31=DataCAPEX!$G$14:$G$218),--(DataCAPEX!AO$14:AO$218)) -> 0 | AP31: =SUMPRODUCT(--($D31=DataCAPEX!$E$14:$E$218),--('Warragul Drouin'!$E31=DataCAPEX!$G$14:$G$218),--(DataCAPEX!AP$14:AP$218)) -> 0
D32: Warragul Drouin | P32: $ | Q32: =NPV('DataCON&ASSUMPTIONS'!$F$48,'Warragul Drouin'!W32:AP32) -> 0 | R32: =SUMPRODUCT(--($D32=DataCAPEX!$E$14:$E$218),--('Warragul Drouin'!$E32=DataCAPEX!$G$14:$G$218),--(DataCAPEX!R$14:R$218)) -> 0 | S32: =SUMPRODUCT(--($D32=DataCAPEX!$E$14:$E$218),--('Warragul Drouin'!$E32=DataCAPEX!$G$14:$G$218),--(DataCAPEX!S$14:S$218)) -> 0 | T32: =SUMPRODUCT(--($D32=DataCAPEX!$E$14:$E$218),--('Warragul Drouin'!$E32=DataCAPEX!$G$14:$G$218),--(DataCAPEX!T$14:T$218)) -> 0 | U32: =SUMPRODUCT(--($D32=DataCAPEX!$E$14:$E$218),--('Warragul Drouin'!$E32=DataCAPEX!$G$14:$G$218),--(DataCAPEX!U$14:U$218)) -> 0 | V32: =SUMPRODUCT(--($D32=DataCAPEX!$E$14:$E$218),--('Warragul Drouin'!$E32=DataCAPEX!$G$14:$G$218),--(DataCAPEX!V$14:V$218)) -> 0 | W32: =SUMPRODUCT(--($D32=DataCAPEX!$E$14:$E$218),--('Warragul Drouin'!$E32=DataCAPEX!$G$14:$G$218),--(DataCAPEX!W$14:W$218)) -> 0 | X32: =SUMPRODUCT(--($D32=DataCAPEX!$E$14:$E$218),--('Warragul Drouin'!$E32=DataCAPEX!$G$14:$G$218),--(DataCAPEX!X$14:X$218)) -> 0 | Y32: =SUMPRODUCT(--($D32=DataCAPEX!$E$14:$E$218),--('Warragul Drouin'!$E32=DataCAPEX!$G$14:$G$218),--(DataCAPEX!Y$14:Y$218)) -> 0 | Z32: =SUMPRODUCT(--($D32=DataCAPEX!$E$14:$E$218),--('Warragul Drouin'!$E32=DataCAPEX!$G$14:$G$218),--(DataCAPEX!Z$14:Z$218)) -> 0 | AA32: =SUMPRODUCT(--($D32=DataCAPEX!$E$14:$E$218),--('Warragul Drouin'!$E32=DataCAPEX!$G$14:$G$218),--(DataCAPEX!AA$14:AA$218)) -> 0 | AB32: =SUMPRODUCT(--($D32=DataCAPEX!$E$14:$E$218),--('Warragul Drouin'!$E32=DataCAPEX!$G$14:$G$218),--(DataCAPEX!AB$14:AB$218)) -> 0 | AC32: =SUMPRODUCT(--($D32=DataCAPEX!$E$14:$E$218),--('Warragul Drouin'!$E32=DataCAPEX!$G$14:$G$218),--(DataCAPEX!AC$14:AC$218)) -> 0 | AD32: =SUMPRODUCT(--($D32=DataCAPEX!$E$14:$E$218),--('Warragul Drouin'!$E32=DataCAPEX!$G$14:$G$218),--(DataCAPEX!AD$14:AD$218)) -> 0 | AE32: =SUMPRODUCT(--($D32=DataCAPEX!$E$14:$E$218),--('Warragul Drouin'!$E32=DataCAPEX!$G$14:$G$218),--(DataCAPEX!AE$14:AE$218)) -> 0 | AF32: =SUMPRODUCT(--($D32=DataCAPEX!$E$14:$E$218),--('Warragul Drouin'!$E32=DataCAPEX!$G$14:$G$218),--(DataCAPEX!AF$14:AF$218)) -> 0 | AG32: =SUMPRODUCT(--($D32=DataCAPEX!$E$14:$E$218),--('Warragul Drouin'!$E32=DataCAPEX!$G$14:$G$218),--(DataCAPEX!AG$14:AG$218)) -> 0 | AH32: =SUMPRODUCT(--($D32=DataCAPEX!$E$14:$E$218),--('Warragul Drouin'!$E32=DataCAPEX!$G$14:$G$218),--(DataCAPEX!AH$14:AH$218)) -> 0 | AI32: =SUMPRODUCT(--($D32=DataCAPEX!$E$14:$E$218),--('Warragul Drouin'!$E32=DataCAPEX!$G$14:$G$218),--(DataCAPEX!AI$14:AI$218)) -> 0 | AJ32: =SUMPRODUCT(--($D32=DataCAPEX!$E$14:$E$218),--('Warragul Drouin'!$E32=DataCAPEX!$G$14:$G$218),--(DataCAPEX!AJ$14:AJ$218)) -> 0 | AK32: =SUMPRODUCT(--($D32=DataCAPEX!$E$14:$E$218),--('Warragul Drouin'!$E32=DataCAPEX!$G$14:$G$218),--(DataCAPEX!AK$14:AK$218)) -> 0 | AL32: =SUMPRODUCT(--($D32=DataCAPEX!$E$14:$E$218),--('Warragul Drouin'!$E32=DataCAPEX!$G$14:$G$218),--(DataCAPEX!AL$14:AL$218)) -> 0 | AM32: =SUMPRODUCT(--($D32=DataCAPEX!$E$14:$E$218),--('Warragul Drouin'!$E32=DataCAPEX!$G$14:$G$218),--(DataCAPEX!AM$14:AM$218)) -> 0 | AN32: =SUMPRODUCT(--($D32=DataCAPEX!$E$14:$E$218),--('Warragul Drouin'!$E32=DataCAPEX!$G$14:$G$218),--(DataCAPEX!AN$14:AN$218)) -> 0 | AO32: =SUMPRODUCT(--($D32=DataCAPEX!$E$14:$E$218),--('Warragul Drouin'!$E32=DataCAPEX!$G$14:$G$218),--(DataCAPEX!AO$14:AO$218)) -> 0 | AP32: =SUMPRODUCT(--($D32=DataCAPEX!$E$14:$E$218),--('Warragul Drouin'!$E32=DataCAPEX!$G$14:$G$218),--(DataCAPEX!AP$14:AP$218)) -> 0
D33: Warragul Drouin | P33: $ | Q33: =NPV('DataCON&ASSUMPTIONS'!$F$48,'Warragul Drouin'!W33:AP33) -> 0 | R33: =SUMPRODUCT(--($D33=DataCAPEX!$E$14:$E$218),--('Warragul Drouin'!$E33=DataCAPEX!$G$14:$G$218),--(DataCAPEX!R$14:R$218)) -> 0 | S33: =SUMPRODUCT(--($D33=DataCAPEX!$E$14:$E$218),--('Warragul Drouin'!$E33=DataCAPEX!$G$14:$G$218),--(DataCAPEX!S$14:S$218)) -> 0 | T33: =SUMPRODUCT(--($D33=DataCAPEX!$E$14:$E$218),--('Warragul Drouin'!$E33=DataCAPEX!$G$14:$G$218),--(DataCAPEX!T$14:T$218)) -> 0 | U33: =SUMPRODUCT(--($D33=DataCAPEX!$E$14:$E$218),--('Warragul Drouin'!$E33=DataCAPEX!$G$14:$G$218),--(DataCAPEX!U$14:U$218)) -> 0 | V33: =SUMPRODUCT(--($D33=DataCAPEX!$E$14:$E$218),--('Warragul Drouin'!$E33=DataCAPEX!$G$14:$G$218),--(DataCAPEX!V$14:V$218)) -> 0 | W33: =SUMPRODUCT(--($D33=DataCAPEX!$E$14:$E$218),--('Warragul Drouin'!$E33=DataCAPEX!$G$14:$G$218),--(DataCAPEX!W$14:W$218)) -> 0 | X33: =SUMPRODUCT(--($D33=DataCAPEX!$E$14:$E$218),--('Warragul Drouin'!$E33=DataCAPEX!$G$14:$G$218),--(DataCAPEX!X$14:X$218)) -> 0 | Y33: =SUMPRODUCT(--($D33=DataCAPEX!$E$14:$E$218),--('Warragul Drouin'!$E33=DataCAPEX!$G$14:$G$218),--(DataCAPEX!Y$14:Y$218)) -> 0 | Z33: =SUMPRODUCT(--($D33=DataCAPEX!$E$14:$E$218),--('Warragul Drouin'!$E33=DataCAPEX!$G$14:$G$218),--(DataCAPEX!Z$14:Z$218)) -> 0 | AA33: =SUMPRODUCT(--($D33=DataCAPEX!$E$14:$E$218),--('Warragul Drouin'!$E33=DataCAPEX!$G$14:$G$218),--(DataCAPEX!AA$14:AA$218)) -> 0 | AB33: =SUMPRODUCT(--($D33=DataCAPEX!$E$14:$E$218),--('Warragul Drouin'!$E33=DataCAPEX!$G$14:$G$218),--(DataCAPEX!AB$14:AB$218)) -> 0 | AC33: =SUMPRODUCT(--($D33=DataCAPEX!$E$14:$E$218),--('Warragul Drouin'!$E33=DataCAPEX!$G$14:$G$218),--(DataCAPEX!AC$14:AC$218)) -> 0 | AD33: =SUMPRODUCT(--($D33=DataCAPEX!$E$14:$E$218),--('Warragul Drouin'!$E33=DataCAPEX!$G$14:$G$218),--(DataCAPEX!AD$14:AD$218)) -> 0 | AE33: =SUMPRODUCT(--($D33=DataCAPEX!$E$14:$E$218),--('Warragul Drouin'!$E33=DataCAPEX!$G$14:$G$218),--(DataCAPEX!AE$14:AE$218)) -> 0 | AF33: =SUMPRODUCT(--($D33=DataCAPEX!$E$14:$E$218),--('Warragul Drouin'!$E33=DataCAPEX!$G$14:$G$218),--(DataCAPEX!AF$14:AF$218)) -> 0 | AG33: =SUMPRODUCT(--($D33=DataCAPEX!$E$14:$E$218),--('Warragul Drouin'!$E33=DataCAPEX!$G$14:$G$218),--(DataCAPEX!AG$14:AG$218)) -> 0 | AH33: =SUMPRODUCT(--($D33=DataCAPEX!$E$14:$E$218),--('Warragul Drouin'!$E33=DataCAPEX!$G$14:$G$218),--(DataCAPEX!AH$14:AH$218)) -> 0 | AI33: =SUMPRODUCT(--($D33=DataCAPEX!$E$14:$E$218),--('Warragul Drouin'!$E33=DataCAPEX!$G$14:$G$218),--(DataCAPEX!AI$14:AI$218)) -> 0 | AJ33: =SUMPRODUCT(--($D33=DataCAPEX!$E$14:$E$218),--('Warragul Drouin'!$E33=DataCAPEX!$G$14:$G$218),--(DataCAPEX!AJ$14:AJ$218)) -> 0 | AK33: =SUMPRODUCT(--($D33=DataCAPEX!$E$14:$E$218),--('Warragul Drouin'!$E33=DataCAPEX!$G$14:$G$218),--(DataCAPEX!AK$14:AK$218)) -> 0 | AL33: =SUMPRODUCT(--($D33=DataCAPEX!$E$14:$E$218),--('Warragul Drouin'!$E33=DataCAPEX!$G$14:$G$218),--(DataCAPEX!AL$14:AL$218)) -> 0 | AM33: =SUMPRODUCT(--($D33=DataCAPEX!$E$14:$E$218),--('Warragul Drouin'!$E33=DataCAPEX!$G$14:$G$218),--(DataCAPEX!AM$14:AM$218)) -> 0 | AN33: =SUMPRODUCT(--($D33=DataCAPEX!$E$14:$E$218),--('Warragul Drouin'!$E33=DataCAPEX!$G$14:$G$218),--(DataCAPEX!AN$14:AN$218)) -> 0 | AO33: =SUMPRODUCT(--($D33=DataCAPEX!$E$14:$E$218),--('Warragul Drouin'!$E33=DataCAPEX!$G$14:$G$218),--(DataCAPEX!AO$14:AO$218)) -> 0 | AP33: =SUMPRODUCT(--($D33=DataCAPEX!$E$14:$E$218),--('Warragul Drouin'!$E33=DataCAPEX!$G$14:$G$218),--(DataCAPEX!AP$14:AP$218)) -> 0
E34: Total | P34: $ | Q34: =NPV('DataCON&ASSUMPTIONS'!$F$48,'Warragul Drouin'!W34:AP34) -> 38791314.99 | R34: =SUM(R14:R33) -> 0 | S34: =SUM(S14:S33) -> 0 | T34: 0 | U34: 0 | V34: 0 | W34: 6676538.22 | X34: 296143.456 | Y34: 1061486.888 | Z34: 1073198.521 | AA34: 133078.9404 | AB34: 3165990.464 | AC34: 2593726.313 | AD34: 3472096.313 | AE34: 1626697.34 | AF34: 708701.6245 | AG34: 2213100.896 | AH34: 6793909.492 | AI34: 5049522.831 | AJ34: 7208296.505 | AK34: 4568670.608 | AL34: 227681.5624 | AM34: 1540523.48 | AN34: 3583254.886 | AO34: 0 | AP34: 0
C36: Operating expenditure associated with connection
D37: Connection Opex | Q37: NPV
D38: =$A$2 -> Warragul Drouin | E38: =A2 -> Warragul Drouin | P38: $ | Q38: =NPV('DataCON&ASSUMPTIONS'!$F$48,'Warragul Drouin'!W38:AP38) -> 0 | R38: =SUMPRODUCT(--($E$38=DataOPEX!$E$14:$E$88),--(DataOPEX!R14:R88)) -> 0 | S38: =SUMPRODUCT(--($E$38=DataOPEX!$E$14:$E$88),--(DataOPEX!S14:S88)) -> 0 | T38: =SUMPRODUCT(--($E$38=DataOPEX!$E$14:$E$88),--(DataOPEX!T14:T88)) -> 0 | U38: =SUMPRODUCT(--($E$38=DataOPEX!$E$14:$E$88),--(DataOPEX!U14:U88)) -> 0 | V38: =SUMPRODUCT(--($E$38=DataOPEX!$E$14:$E$88),--(DataOPEX!V14:V88)) -> 0 | W38: =SUMPRODUCT(--($E$38=DataOPEX!$E$14:$E$88),--(DataOPEX!W14:W88)) -> 0 | X38: =SUMPRODUCT(--($E$38=DataOPEX!$E$14:$E$88),--(DataOPEX!X14:X88)) -> 0 | Y38: =SUMPRODUCT(--($E$38=DataOPEX!$E$14:$E$88),--(DataOPEX!Y14:Y88)) -> 0 | Z38: =SUMPRODUCT(--($E$38=DataOPEX!$E$14:$E$88),--(DataOPEX!Z14:Z88)) -> 0 | AA38: =SUMPRODUCT(--($E$38=DataOPEX!$E$14:$E$88),--(DataOPEX!AA14:AA88)) -> 0 | AB38: =SUMPRODUCT(--($E$38=DataOPEX!$E$14:$E$88),--(DataOPEX!AB14:AB88)) -> 0 | AC38: =SUMPRODUCT(--($E$38=DataOPEX!$E$14:$E$88),--(DataOPEX!AC14:AC88)) -> 0 | AD38: =SUMPRODUCT(--($E$38=DataOPEX!$E$14:$E$88),--(DataOPEX!AD14:AD88)) -> 0 | AE38: =SUMPRODUCT(--($E$38=DataOPEX!$E$14:$E$88),--(DataOPEX!AE14:AE88)) -> 0 | AF38: =SUMPRODUCT(--($E$38=DataOPEX!$E$14:$E$88),--(DataOPEX!AF14:AF88)) -> 0 | AG38: =SUMPRODUCT(--($E$38=DataOPEX!$E$14:$E$88),--(DataOPEX!AG14:AG88)) -> 0 | AH38: =SUMPRODUCT(--($E$38=DataOPEX!$E$14:$E$88),--(DataOPEX!AH14:AH88)) -> 0 | AI38: =SUMPRODUCT(--($E$38=DataOPEX!$E$14:$E$88),--(DataOPEX!AI14:AI88)) -> 0 | AJ38: =SUMPRODUCT(--($E$38=DataOPEX!$E$14:$E$88),--(DataOPEX!AJ14:AJ88)) -> 0 | AK38: =SUMPRODUCT(--($E$38=DataOPEX!$E$14:$E$88),--(DataOPEX!AK14:AK88)) -> 0 | AL38: =SUMPRODUCT(--($E$38=DataOPEX!$E$14:$E$88),--(DataOPEX!AL14:AL88)) -> 0 | AM38: =SUMPRODUCT(--($E$38=DataOPEX!$E$14:$E$88),--(DataOPEX!AM14:AM88)) -> 0 | AN38: =SUMPRODUCT(--($E$38=DataOPEX!$E$14:$E$88),--(DataOPEX!AN14:AN88)) -> 0 | AO38: =SUMPRODUCT(--($E$38=DataOPEX!$E$14:$E$88),--(DataOPEX!AO14:AO88)) -> 0 | AP38: =SUMPRODUCT(--($E$38=DataOPEX!$E$14:$E$88),--(DataOPEX!AP14:AP88)) -> 0
C40: Total incremental cost
D41: Total incremental cost | Q41: NPV
E42: =D13 -> Growth Capex | P42: $ | Q42: =NPV('DataCON&ASSUMPTIONS'!$F$48,'Warragul Drouin'!W42:AP42) -> 38791314.99 | R42: =R34 -> 0 | S42: =S34 -> 0 | T42: 0 | U42: 0 | V42: 0 | W42: 6676538.22 | X42: 296143.456 | Y42: 1061486.888 | Z42: 1073198.521 | AA42: 133078.9404 | AB42: 3165990.464 | AC42: 2593726.313 | AD42: 3472096.313 | AE42: 1626697.34 | AF42: 708701.6245 | AG42: 2213100.896 | AH42: 6793909.492 | AI42: 5049522.831 | AJ42: 7208296.505 | AK42: 4568670.608 | AL42: 227681.5624 | AM42: 1540523.48 | AN42: 3583254.886 | AO42: 0 | AP42: 0
E43: =D37 -> Connection Opex | P43: $ | Q43: =NPV('DataCON&ASSUMPTIONS'!$F$48,'Warragul Drouin'!W43:AP43) -> 0 | R43: =R38 -> 0 | S43: =S38 -> 0 | T43: 0 | U43: 0 | V43: 0 | W43: 0 | X43: 0 | Y43: 0 | Z43: 0 | AA43: 0 | AB43: 0 | AC43: 0 | AD43: 0 | AE43: 0 | AF43: 0 | AG43: 0 | AH43: 0 | AI43: 0 | AJ43: 0 | AK43: 0 | AL43: 0 | AM43: 0 | AN43: 0 | AO43: 0 | AP43: 0
E44: Total | P44: $ | Q44: =NPV('DataCON&ASSUMPTIONS'!$F$48,'Warragul Drouin'!W44:AP44) -> 38791314.99 | R44: =SUM(R42:R43) -> 0 | S44: 0 | T44: 0 | U44: 0 | V44: 0 | W44: 6676538.22 | X44: 296143.456 | Y44: 1061486.888 | Z44: 1073198.521 | AA44: 133078.9404 | AB44: 3165990.464 | AC44: 2593726.313 | AD44: 3472096.313 | AE44: 1626697.34 | AF44: 708701.6245 | AG44: 2213100.896 | AH44: 6793909.492 | AI44: 5049522.831 | AJ44: 7208296.505 | AK44: 4568670.608 | AL44: 227681.5624 | AM44: 1540523.48 | AN44: 3583254.886 | AO44: 0 | AP44: 0
B46: Tax allowance
C47: Tax allowance
Q48: NPV
D49: =$A$2 -> Warragul Drouin | E49: Gifted Assets | P49: $ | Q49: =NPV('DataCON&ASSUMPTIONS'!$F$48,'Warragul Drouin'!W49:AP49) -> 0 | R49: =SUMPRODUCT(--($D49='DataCON&ASSUMPTIONS'!$E$63:$E$72),--('DataCON&ASSUMPTIONS'!R$63:R$72)) -> 0 | S49: =SUMPRODUCT(--($D49='DataCON&ASSUMPTIONS'!$E$63:$E$72),--('DataCON&ASSUMPTIONS'!S$63:S$72)) -> 0 | T49: =SUMPRODUCT(--($D49='DataCON&ASSUMPTIONS'!$E$63:$E$72),--('DataCON&ASSUMPTIONS'!T$63:T$72)) -> 0 | U49: =SUMPRODUCT(--($D49='DataCON&ASSUMPTIONS'!$E$63:$E$72),--('DataCON&ASSUMPTIONS'!U$63:U$72)) -> 0 | V49: =SUMPRODUCT(--($D49='DataCON&ASSUMPTIONS'!$E$63:$E$72),--('DataCON&ASSUMPTIONS'!V$63:V$72)) -> 0 | W49: =SUMPRODUCT(--($D49='DataCON&ASSUMPTIONS'!$E$63:$E$72),--('DataCON&ASSUMPTIONS'!W$63:W$72)) -> 0 | X49: =SUMPRODUCT(--($D49='DataCON&ASSUMPTIONS'!$E$63:$E$72),--('DataCON&ASSUMPTIONS'!X$63:X$72)) -> 0 | Y49: =SUMPRODUCT(--($D49='DataCON&ASSUMPTIONS'!$E$63:$E$72),--('DataCON&ASSUMPTIONS'!Y$63:Y$72)) -> 0 | Z49: =SUMPRODUCT(--($D49='DataCON&ASSUMPTIONS'!$E$63:$E$72),--('DataCON&ASSUMPTIONS'!Z$63:Z$72)) -> 0 | AA49: =SUMPRODUCT(--($D49='DataCON&ASSUMPTIONS'!$E$63:$E$72),--('DataCON&ASSUMPTIONS'!AA$63:AA$72)) -> 0 | AB49: =SUMPRODUCT(--($D49='DataCON&ASSUMPTIONS'!$E$63:$E$72),--('DataCON&ASSUMPTIONS'!AB$63:AB$72)) -> 0 | AC49: =SUMPRODUCT(--($D49='DataCON&ASSUMPTIONS'!$E$63:$E$72),--('DataCON&ASSUMPTIONS'!AC$63:AC$72)) -> 0 | AD49: =SUMPRODUCT(--($D49='DataCON&ASSUMPTIONS'!$E$63:$E$72),--('DataCON&ASSUMPTIONS'!AD$63:AD$72)) -> 0 | AE49: =SUMPRODUCT(--($D49='DataCON&ASSUMPTIONS'!$E$63:$E$72),--('DataCON&ASSUMPTIONS'!AE$63:AE$72)) -> 0 | AF49: =SUMPRODUCT(--($D49='DataCON&ASSUMPTIONS'!$E$63:$E$72),--('DataCON&ASSUMPTIONS'!AF$63:AF$72)) -> 0 | AG49: =SUMPRODUCT(--($D49='DataCON&ASSUMPTIONS'!$E$63:$E$72),--('DataCON&ASSUMPTIONS'!AG$63:AG$72)) -> 0 | AH49: =SUMPRODUCT(--($D49='DataCON&ASSUMPTIONS'!$E$63:$E$72),--('DataCON&ASSUMPTIONS'!AH$63:AH$72)) -> 0 | AI49: =SUMPRODUCT(--($D49='DataCON&ASSUMPTIONS'!$E$63:$E$72),--('DataCON&ASSUMPTIONS'!AI$63:AI$72)) -> 0 | AJ49: =SUMPRODUCT(--($D49='DataCON&ASSUMPTIONS'!$E$63:$E$72),--('DataCON&ASSUMPTIONS'!AJ$63:AJ$72)) -> 0 | AK49: =SUMPRODUCT(--($D49='DataCON&ASSUMPTIONS'!$E$63:$E$72),--('DataCON&ASSUMPTIONS'!AK$63:AK$72)) -> 0 | AL49: =SUMPRODUCT(--($D49='DataCON&ASSUMPTIONS'!$E$63:$E$72),--('DataCON&ASSUMPTIONS'!AL$63:AL$72)) -> 0 | AM49: =SUMPRODUCT(--($D49='DataCON&ASSUMPTIONS'!$E$63:$E$72),--('DataCON&ASSUMPTIONS'!AM$63:AM$72)) -> 0 | AN49: =SUMPRODUCT(--($D49='DataCON&ASSUMPTIONS'!$E$63:$E$72),--('DataCON&ASSUMPTIONS'!AN$63:AN$72)) -> 0 | AO49: =SUMPRODUCT(--($D49='DataCON&ASSUMPTIONS'!$E$63:$E$72),--('DataCON&ASSUMPTIONS'!AO$63:AO$72)) -> 0 | AP49: =SUMPRODUCT(--($D49='DataCON&ASSUMPTIONS'!$E$63:$E$72),--('DataCON&ASSUMPTIONS'!AP$63:AP$72)) -> 0
D50: =$A$2 -> Warragul Drouin | E50: Pre tax NCC | P50: $ | Q50: =NPV('DataCON&ASSUMPTIONS'!$F$48,'Warragul Drouin'!W50:AP50) -> 38791314.99 | W50: =IFERROR($Q$73*W63,0) -> 2604975.624 | X50: =IFERROR($Q$73*X63,0) -> 2604975.624 | Y50: 2604975.624 | Z50: 2604975.624 | AA50: 2604975.624 | AB50: 2604975.624 | AC50: 2604975.624 | AD50: 2604975.624 | AE50: 2604975.624 | AF50: 2604975.624 | AG50: 2604975.624 | AH50: 2604975.624 | AI50: 2604975.624 | AJ50: 2604975.624 | AK50: 2604975.624 | AL50: 2604975.624 | AM50: 2604975.624 | AN50: 2604975.624 | AO50: 2604975.624 | AP50: 2604975.624
D51: Warragul Drouin | E51: Connection O&M | P51: $ | Q51: =NPV('DataCON&ASSUMPTIONS'!$F$48,'Warragul Drouin'!W51:AP51) -> 0 | W51: =-W38 -> 0 | X51: =-X38 -> 0 | Y51: 0 | Z51: 0 | AA51: 0 | AB51: 0 | AC51: 0 | AD51: 0 | AE51: 0 | AF51: 0 | AG51: 0 | AH51: 0 | AI51: 0 | AJ51: 0 | AK51: 0 | AL51: 0 | AM51: 0 | AN51: 0 | AO51: 0 | AP51: 0
D52: Warragul Drouin | E52: Tax Depreciation | P52: $ | Q52: =NPV('DataCON&ASSUMPTIONS'!$F$48,'Warragul Drouin'!W52:AP52) -> -484891.4374 | R52: =SUMPRODUCT(--($D52='DataCON&ASSUMPTIONS'!$E$77:$E$86),--('DataCON&ASSUMPTIONS'!R$77:R$86)) -> 100 | S52: =SUMPRODUCT(--($D52='DataCON&ASSUMPTIONS'!$E$77:$E$86),--('DataCON&ASSUMPTIONS'!S$77:S$86)) -> 100 | T52: =SUMPRODUCT(--($D52='DataCON&ASSUMPTIONS'!$E$77:$E$86),--('DataCON&ASSUMPTIONS'!T$77:T$86)) -> 100 | U52: =SUMPRODUCT(--($D52='DataCON&ASSUMPTIONS'!$E$77:$E$86),--('DataCON&ASSUMPTIONS'!U$77:U$86)) -> 100 | V52: =SUMPRODUCT(--($D52='DataCON&ASSUMPTIONS'!$E$77:$E$86),--('DataCON&ASSUMPTIONS'!V$77:V$86)) -> 100 | W52: =-SUMPRODUCT(--($D52='DataCON&ASSUMPTIONS'!$E$77:$E$86),--('DataCON&ASSUMPTIONS'!W$77:W$86)) -> -83456.72775 | X52: =-SUMPRODUCT(--($D52='DataCON&ASSUMPTIONS'!$E$77:$E$86),--('DataCON&ASSUMPTIONS'!X$77:X$86)) -> -3701.7932 | Y52: =-SUMPRODUCT(--($D52='DataCON&ASSUMPTIONS'!$E$77:$E$86),--('DataCON&ASSUMPTIONS'!Y$77:Y$86)) -> -13268.5861 | Z52: =-SUMPRODUCT(--($D52='DataCON&ASSUMPTIONS'!$E$77:$E$86),--('DataCON&ASSUMPTIONS'!Z$77:Z$86)) -> -13414.98151 | AA52: =-SUMPRODUCT(--($D52='DataCON&ASSUMPTIONS'!$E$77:$E$86),--('DataCON&ASSUMPTIONS'!AA$77:AA$86)) -> -1663.486755 | AB52: =-SUMPRODUCT(--($D52='DataCON&ASSUMPTIONS'!$E$77:$E$86),--('DataCON&ASSUMPTIONS'!AB$77:AB$86)) -> -39574.8808 | AC52: =-SUMPRODUCT(--($D52='DataCON&ASSUMPTIONS'!$E$77:$E$86),--('DataCON&ASSUMPTIONS'!AC$77:AC$86)) -> -32421.57891 | AD52: =-SUMPRODUCT(--($D52='DataCON&ASSUMPTIONS'!$E$77:$E$86),--('DataCON&ASSUMPTIONS'!AD$77:AD$86)) -> -43401.20392 | AE52: =-SUMPRODUCT(--($D52='DataCON&ASSUMPTIONS'!$E$77:$E$86),--('DataCON&ASSUMPTIONS'!AE$77:AE$86)) -> -20333.71674 | AF52: =-SUMPRODUCT(--($D52='DataCON&ASSUMPTIONS'!$E$77:$E$86),--('DataCON&ASSUMPTIONS'!AF$77:AF$86)) -> -8858.770306 | AG52: =-SUMPRODUCT(--($D52='DataCON&ASSUMPTIONS'!$E$77:$E$86),--('DataCON&ASSUMPTIONS'!AG$77:AG$86)) -> -27663.7612 | AH52: =-SUMPRODUCT(--($D52='DataCON&ASSUMPTIONS'!$E$77:$E$86),--('DataCON&ASSUMPTIONS'!AH$77:AH$86)) -> -84923.86865 | AI52: =-SUMPRODUCT(--($D52='DataCON&ASSUMPTIONS'!$E$77:$E$86),--('DataCON&ASSUMPTIONS'!AI$77:AI$86)) -> -63119.03538 | AJ52: =-SUMPRODUCT(--($D52='DataCON&ASSUMPTIONS'!$E$77:$E$86),--('DataCON&ASSUMPTIONS'!AJ$77:AJ$86)) -> -90103.70631 | AK52: =-SUMPRODUCT(--($D52='DataCON&ASSUMPTIONS'!$E$77:$E$86),--('DataCON&ASSUMPTIONS'!AK$77:AK$86)) -> -57108.38259 | AL52: =-SUMPRODUCT(--($D52='DataCON&ASSUMPTIONS'!$E$77:$E$86),--('DataCON&ASSUMPTIONS'!AL$77:AL$86)) -> -2846.01953 | AM52: =-SUMPRODUCT(--($D52='DataCON&ASSUMPTIONS'!$E$77:$E$86),--('DataCON&ASSUMPTIONS'!AM$77:AM$86)) -> -19256.5435 | AN52: =-SUMPRODUCT(--($D52='DataCON&ASSUMPTIONS'!$E$77:$E$86),--('DataCON&ASSUMPTIONS'!AN$77:AN$86)) -> -44790.68608 | AO52: =-SUMPRODUCT(--($D52='DataCON&ASSUMPTIONS'!$E$77:$E$86),--('DataCON&ASSUMPTIONS'!AO$77:AO$86)) -> 0 | AP52: =-SUMPRODUCT(--($D52='DataCON&ASSUMPTIONS'!$E$77:$E$86),--('DataCON&ASSUMPTIONS'!AP$77:AP$86)) -> 0
D53: Warragul Drouin | E53: Change in Net Taxable Income | P53: $ | Q53: =NPV('DataCON&ASSUMPTIONS'!$F$48,'Warragul Drouin'!W53:AP53) -> 38306423.55 | W53: =SUM(W49:W52) -> 2521518.896 | X53: =SUM(X49:X52) -> 2601273.831 | Y53: 2591707.038 | Z53: 2591560.643 | AA53: 2603312.137 | AB53: 2565400.743 | AC53: 2572554.045 | AD53: 2561574.42 | AE53: 2584641.907 | AF53: 2596116.854 | AG53: 2577311.863 | AH53: 2520051.755 | AI53: 2541856.589 | AJ53: 2514871.918 | AK53: 2547867.241 | AL53: 2602129.605 | AM53: 2585719.081 | AN53: 2560184.938 | AO53: 2604975.624 | AP53: 2604975.624
D54: Warragul Drouin | E54: Change in Tax | P54: $ | Q54: =NPV('DataCON&ASSUMPTIONS'!$F$48,'Warragul Drouin'!W54:AP54) -> 0 | W54: =W53*'DataCON&ASSUMPTIONS'!$F$53 -> 0 | X54: =X53*'DataCON&ASSUMPTIONS'!$F$53 -> 0 | Y54: =Y53*'DataCON&ASSUMPTIONS'!$F$53 -> 0 | Z54: =Z53*'DataCON&ASSUMPTIONS'!$F$53 -> 0 | AA54: =AA53*'DataCON&ASSUMPTIONS'!$F$53 -> 0 | AB54: =AB53*'DataCON&ASSUMPTIONS'!$F$53 -> 0 | AC54: =AC53*'DataCON&ASSUMPTIONS'!$F$53 -> 0 | AD54: =AD53*'DataCON&ASSUMPTIONS'!$F$53 -> 0 | AE54: =AE53*'DataCON&ASSUMPTIONS'!$F$53 -> 0 | AF54: =AF53*'DataCON&ASSUMPTIONS'!$F$53 -> 0 | AG54: =AG53*'DataCON&ASSUMPTIONS'!$F$53 -> 0 | AH54: =AH53*'DataCON&ASSUMPTIONS'!$F$53 -> 0 | AI54: =AI53*'DataCON&ASSUMPTIONS'!$F$53 -> 0 | AJ54: =AJ53*'DataCON&ASSUMPTIONS'!$F$53 -> 0 | AK54: =AK53*'DataCON&ASSUMPTIONS'!$F$53 -> 0 | AL54: =AL53*'DataCON&ASSUMPTIONS'!$F$53 -> 0 | AM54: =AM53*'DataCON&ASSUMPTIONS'!$F$53 -> 0 | AN54: =AN53*'DataCON&ASSUMPTIONS'!$F$53 -> 0 | AO54: =AO53*'DataCON&ASSUMPTIONS'!$F$53 -> 0 | AP54: =AP53*'DataCON&ASSUMPTIONS'!$F$53 -> 0
B56: New customer connections
C57: New customers
C58: Large non-residential customers are treated on an EQT basis
D59: New customer connections | Q59: NPV | R59: There is a mathematical requirement to treat connections in NPV terms as the NCC is a ratio of cost per connection
D60: =$A$2 -> Warragul Drouin | E60: Residential | P60: $ | Q60: =NPV('DataCON&ASSUMPTIONS'!$F$48,'Warragul Drouin'!W60:AP60) -> 10170.71634 | R60: =SUMPRODUCT(--($D60='DataCON&ASSUMPTIONS'!$E$14:$E$43),--($E60='DataCON&ASSUMPTIONS'!$F$14:$F$43),--('DataCON&ASSUMPTIONS'!R$14:R$43)) -> 0 | S60: =SUMPRODUCT(--($D60='DataCON&ASSUMPTIONS'!$E$14:$E$43),--($E60='DataCON&ASSUMPTIONS'!$F$14:$F$43),--('DataCON&ASSUMPTIONS'!S$14:S$43)) -> 0 | T60: =SUMPRODUCT(--($D60='DataCON&ASSUMPTIONS'!$E$14:$E$43),--($E60='DataCON&ASSUMPTIONS'!$F$14:$F$43),--('DataCON&ASSUMPTIONS'!T$14:T$43)) -> 0 | U60: =SUMPRODUCT(--($D60='DataCON&ASSUMPTIONS'!$E$14:$E$43),--($E60='DataCON&ASSUMPTIONS'!$F$14:$F$43),--('DataCON&ASSUMPTIONS'!U$14:U$43)) -> 0 | V60: =SUMPRODUCT(--($D60='DataCON&ASSUMPTIONS'!$E$14:$E$43),--($E60='DataCON&ASSUMPTIONS'!$F$14:$F$43),--('DataCON&ASSUMPTIONS'!V$14:V$43)) -> 0 | W60: =SUMPRODUCT(--($D60='DataCON&ASSUMPTIONS'!$E$14:$E$43),--($E60='DataCON&ASSUMPTIONS'!$F$14:$F$43),--('DataCON&ASSUMPTIONS'!W$14:W$43)) -> 683 | X60: =SUMPRODUCT(--($D60='DataCON&ASSUMPTIONS'!$E$14:$E$43),--($E60='DataCON&ASSUMPTIONS'!$F$14:$F$43),--('DataCON&ASSUMPTIONS'!X$14:X$43)) -> 683 | Y60: =SUMPRODUCT(--($D60='DataCON&ASSUMPTIONS'!$E$14:$E$43),--($E60='DataCON&ASSUMPTIONS'!$F$14:$F$43),--('DataCON&ASSUMPTIONS'!Y$14:Y$43)) -> 683 | Z60: =SUMPRODUCT(--($D60='DataCON&ASSUMPTIONS'!$E$14:$E$43),--($E60='DataCON&ASSUMPTIONS'!$F$14:$F$43),--('DataCON&ASSUMPTIONS'!Z$14:Z$43)) -> 683 | AA60: =SUMPRODUCT(--($D60='DataCON&ASSUMPTIONS'!$E$14:$E$43),--($E60='DataCON&ASSUMPTIONS'!$F$14:$F$43),--('DataCON&ASSUMPTIONS'!AA$14:AA$43)) -> 683 | AB60: =SUMPRODUCT(--($D60='DataCON&ASSUMPTIONS'!$E$14:$E$43),--($E60='DataCON&ASSUMPTIONS'!$F$14:$F$43),--('DataCON&ASSUMPTIONS'!AB$14:AB$43)) -> 683 | AC60: =SUMPRODUCT(--($D60='DataCON&ASSUMPTIONS'!$E$14:$E$43),--($E60='DataCON&ASSUMPTIONS'!$F$14:$F$43),--('DataCON&ASSUMPTIONS'!AC$14:AC$43)) -> 683 | AD60: =SUMPRODUCT(--($D60='DataCON&ASSUMPTIONS'!$E$14:$E$43),--($E60='DataCON&ASSUMPTIONS'!$F$14:$F$43),--('DataCON&ASSUMPTIONS'!AD$14:AD$43)) -> 683 | AE60: =SUMPRODUCT(--($D60='DataCON&ASSUMPTIONS'!$E$14:$E$43),--($E60='DataCON&ASSUMPTIONS'!$F$14:$F$43),--('DataCON&ASSUMPTIONS'!AE$14:AE$43)) -> 683 | AF60: =SUMPRODUCT(--($D60='DataCON&ASSUMPTIONS'!$E$14:$E$43),--($E60='DataCON&ASSUMPTIONS'!$F$14:$F$43),--('DataCON&ASSUMPTIONS'!AF$14:AF$43)) -> 683 | AG60: =SUMPRODUCT(--($D60='DataCON&ASSUMPTIONS'!$E$14:$E$43),--($E60='DataCON&ASSUMPTIONS'!$F$14:$F$43),--('DataCON&ASSUMPTIONS'!AG$14:AG$43)) -> 683 | AH60: =SUMPRODUCT(--($D60='DataCON&ASSUMPTIONS'!$E$14:$E$43),--($E60='DataCON&ASSUMPTIONS'!$F$14:$F$43),--('DataCON&ASSUMPTIONS'!AH$14:AH$43)) -> 683 | AI60: =SUMPRODUCT(--($D60='DataCON&ASSUMPTIONS'!$E$14:$E$43),--($E60='DataCON&ASSUMPTIONS'!$F$14:$F$43),--('DataCON&ASSUMPTIONS'!AI$14:AI$43)) -> 683 | AJ60: =SUMPRODUCT(--($D60='DataCON&ASSUMPTIONS'!$E$14:$E$43),--($E60='DataCON&ASSUMPTIONS'!$F$14:$F$43),--('DataCON&ASSUMPTIONS'!AJ$14:AJ$43)) -> 683 | AK60: =SUMPRODUCT(--($D60='DataCON&ASSUMPTIONS'!$E$14:$E$43),--($E60='DataCON&ASSUMPTIONS'!$F$14:$F$43),--('DataCON&ASSUMPTIONS'!AK$14:AK$43)) -> 683 | AL60: =SUMPRODUCT(--($D60='DataCON&ASSUMPTIONS'!$E$14:$E$43),--($E60='DataCON&ASSUMPTIONS'!$F$14:$F$43),--('DataCON&ASSUMPTIONS'!AL$14:AL$43)) -> 683 | AM60: =SUMPRODUCT(--($D60='DataCON&ASSUMPTIONS'!$E$14:$E$43),--($E60='DataCON&ASSUMPTIONS'!$F$14:$F$43),--('DataCON&ASSUMPTIONS'!AM$14:AM$43)) -> 683 | AN60: =SUMPRODUCT(--($D60='DataCON&ASSUMPTIONS'!$E$14:$E$43),--($E60='DataCON&ASSUMPTIONS'!$F$14:$F$43),--('DataCON&ASSUMPTIONS'!AN$14:AN$43)) -> 683 | AO60: =SUMPRODUCT(--($D60='DataCON&ASSUMPTIONS'!$E$14:$E$43),--($E60='DataCON&ASSUMPTIONS'!$F$14:$F$43),--('DataCON&ASSUMPTIONS'!AO$14:AO$43)) -> 683 | AP60: =SUMPRODUCT(--($D60='DataCON&ASSUMPTIONS'!$E$14:$E$43),--($E60='DataCON&ASSUMPTIONS'!$F$14:$F$43),--('DataCON&ASSUMPTIONS'!AP$14:AP$43)) -> 683
D61: =$A$2 -> Warragul Drouin | E61: Non-residential | P61: $ | Q61: =NPV('DataCON&ASSUMPTIONS'!$F$48,'Warragul Drouin'!W61:AP61) -> 0 | R61: =SUMPRODUCT(--($D61='DataCON&ASSUMPTIONS'!$E$14:$E$43),--($E61='DataCON&ASSUMPTIONS'!$F$14:$F$43),--('DataCON&ASSUMPTIONS'!R$14:R$43)) -> 0 | S61: =SUMPRODUCT(--($D61='DataCON&ASSUMPTIONS'!$E$14:$E$43),--($E61='DataCON&ASSUMPTIONS'!$F$14:$F$43),--('DataCON&ASSUMPTIONS'!S$14:S$43)) -> 0 | T61: =SUMPRODUCT(--($D61='DataCON&ASSUMPTIONS'!$E$14:$E$43),--($E61='DataCON&ASSUMPTIONS'!$F$14:$F$43),--('DataCON&ASSUMPTIONS'!T$14:T$43)) -> 0 | U61: =SUMPRODUCT(--($D61='DataCON&ASSUMPTIONS'!$E$14:$E$43),--($E61='DataCON&ASSUMPTIONS'!$F$14:$F$43),--('DataCON&ASSUMPTIONS'!U$14:U$43)) -> 0 | V61: =SUMPRODUCT(--($D61='DataCON&ASSUMPTIONS'!$E$14:$E$43),--($E61='DataCON&ASSUMPTIONS'!$F$14:$F$43),--('DataCON&ASSUMPTIONS'!V$14:V$43)) -> 0 | W61: =SUMPRODUCT(--($D61='DataCON&ASSUMPTIONS'!$E$14:$E$43),--($E61='DataCON&ASSUMPTIONS'!$F$14:$F$43),--('DataCON&ASSUMPTIONS'!W$14:W$43)) -> 0 | X61: =SUMPRODUCT(--($D61='DataCON&ASSUMPTIONS'!$E$14:$E$43),--($E61='DataCON&ASSUMPTIONS'!$F$14:$F$43),--('DataCON&ASSUMPTIONS'!X$14:X$43)) -> 0 | Y61: =SUMPRODUCT(--($D61='DataCON&ASSUMPTIONS'!$E$14:$E$43),--($E61='DataCON&ASSUMPTIONS'!$F$14:$F$43),--('DataCON&ASSUMPTIONS'!Y$14:Y$43)) -> 0 | Z61: =SUMPRODUCT(--($D61='DataCON&ASSUMPTIONS'!$E$14:$E$43),--($E61='DataCON&ASSUMPTIONS'!$F$14:$F$43),--('DataCON&ASSUMPTIONS'!Z$14:Z$43)) -> 0 | AA61: =SUMPRODUCT(--($D61='DataCON&ASSUMPTIONS'!$E$14:$E$43),--($E61='DataCON&ASSUMPTIONS'!$F$14:$F$43),--('DataCON&ASSUMPTIONS'!AA$14:AA$43)) -> 0 | AB61: =SUMPRODUCT(--($D61='DataCON&ASSUMPTIONS'!$E$14:$E$43),--($E61='DataCON&ASSUMPTIONS'!$F$14:$F$43),--('DataCON&ASSUMPTIONS'!AB$14:AB$43)) -> 0 | AC61: =SUMPRODUCT(--($D61='DataCON&ASSUMPTIONS'!$E$14:$E$43),--($E61='DataCON&ASSUMPTIONS'!$F$14:$F$43),--('DataCON&ASSUMPTIONS'!AC$14:AC$43)) -> 0 | AD61: =SUMPRODUCT(--($D61='DataCON&ASSUMPTIONS'!$E$14:$E$43),--($E61='DataCON&ASSUMPTIONS'!$F$14:$F$43),--('DataCON&ASSUMPTIONS'!AD$14:AD$43)) -> 0 | AE61: =SUMPRODUCT(--($D61='DataCON&ASSUMPTIONS'!$E$14:$E$43),--($E61='DataCON&ASSUMPTIONS'!$F$14:$F$43),--('DataCON&ASSUMPTIONS'!AE$14:AE$43)) -> 0 | AF61: =SUMPRODUCT(--($D61='DataCON&ASSUMPTIONS'!$E$14:$E$43),--($E61='DataCON&ASSUMPTIONS'!$F$14:$F$43),--('DataCON&ASSUMPTIONS'!AF$14:AF$43)) -> 0 | AG61: =SUMPRODUCT(--($D61='DataCON&ASSUMPTIONS'!$E$14:$E$43),--($E61='DataCON&ASSUMPTIONS'!$F$14:$F$43),--('DataCON&ASSUMPTIONS'!AG$14:AG$43)) -> 0 | AH61: =SUMPRODUCT(--($D61='DataCON&ASSUMPTIONS'!$E$14:$E$43),--($E61='DataCON&ASSUMPTIONS'!$F$14:$F$43),--('DataCON&ASSUMPTIONS'!AH$14:AH$43)) -> 0 | AI61: =SUMPRODUCT(--($D61='DataCON&ASSUMPTIONS'!$E$14:$E$43),--($E61='DataCON&ASSUMPTIONS'!$F$14:$F$43),--('DataCON&ASSUMPTIONS'!AI$14:AI$43)) -> 0 | AJ61: =SUMPRODUCT(--($D61='DataCON&ASSUMPTIONS'!$E$14:$E$43),--($E61='DataCON&ASSUMPTIONS'!$F$14:$F$43),--('DataCON&ASSUMPTIONS'!AJ$14:AJ$43)) -> 0 | AK61: =SUMPRODUCT(--($D61='DataCON&ASSUMPTIONS'!$E$14:$E$43),--($E61='DataCON&ASSUMPTIONS'!$F$14:$F$43),--('DataCON&ASSUMPTIONS'!AK$14:AK$43)) -> 0 | AL61: =SUMPRODUCT(--($D61='DataCON&ASSUMPTIONS'!$E$14:$E$43),--($E61='DataCON&ASSUMPTIONS'!$F$14:$F$43),--('DataCON&ASSUMPTIONS'!AL$14:AL$43)) -> 0 | AM61: =SUMPRODUCT(--($D61='DataCON&ASSUMPTIONS'!$E$14:$E$43),--($E61='DataCON&ASSUMPTIONS'!$F$14:$F$43),--('DataCON&ASSUMPTIONS'!AM$14:AM$43)) -> 0 | AN61: =SUMPRODUCT(--($D61='DataCON&ASSUMPTIONS'!$E$14:$E$43),--($E61='DataCON&ASSUMPTIONS'!$F$14:$F$43),--('DataCON&ASSUMPTIONS'!AN$14:AN$43)) -> 0 | AO61: =SUMPRODUCT(--($D61='DataCON&ASSUMPTIONS'!$E$14:$E$43),--($E61='DataCON&ASSUMPTIONS'!$F$14:$F$43),--('DataCON&ASSUMPTIONS'!AO$14:AO$43)) -> 0 | AP61: =SUMPRODUCT(--($D61='DataCON&ASSUMPTIONS'!$E$14:$E$43),--($E61='DataCON&ASSUMPTIONS'!$F$14:$F$43),--('DataCON&ASSUMPTIONS'!AP$14:AP$43)) -> 0
D62: Warragul Drouin | E62: Industrial | P62: $ | Q62: =NPV('DataCON&ASSUMPTIONS'!$F$48,'Warragul Drouin'!W62:AP62) -> 0 | R62: =SUMPRODUCT(--($D62='DataCON&ASSUMPTIONS'!$E$14:$E$43),--($E62='DataCON&ASSUMPTIONS'!$F$14:$F$43),--('DataCON&ASSUMPTIONS'!R$14:R$43)) -> 0 | S62: =SUMPRODUCT(--($D62='DataCON&ASSUMPTIONS'!$E$14:$E$43),--($E62='DataCON&ASSUMPTIONS'!$F$14:$F$43),--('DataCON&ASSUMPTIONS'!S$14:S$43)) -> 0 | T62: =SUMPRODUCT(--($D62='DataCON&ASSUMPTIONS'!$E$14:$E$43),--($E62='DataCON&ASSUMPTIONS'!$F$14:$F$43),--('DataCON&ASSUMPTIONS'!T$14:T$43)) -> 0 | U62: =SUMPRODUCT(--($D62='DataCON&ASSUMPTIONS'!$E$14:$E$43),--($E62='DataCON&ASSUMPTIONS'!$F$14:$F$43),--('DataCON&ASSUMPTIONS'!U$14:U$43)) -> 0 | V62: =SUMPRODUCT(--($D62='DataCON&ASSUMPTIONS'!$E$14:$E$43),--($E62='DataCON&ASSUMPTIONS'!$F$14:$F$43),--('DataCON&ASSUMPTIONS'!V$14:V$43)) -> 0 | W62: =SUMPRODUCT(--($D62='DataCON&ASSUMPTIONS'!$E$14:$E$43),--($E62='DataCON&ASSUMPTIONS'!$F$14:$F$43),--('DataCON&ASSUMPTIONS'!W$14:W$43)) -> 0 | X62: =SUMPRODUCT(--($D62='DataCON&ASSUMPTIONS'!$E$14:$E$43),--($E62='DataCON&ASSUMPTIONS'!$F$14:$F$43),--('DataCON&ASSUMPTIONS'!X$14:X$43)) -> 0 | Y62: =SUMPRODUCT(--($D62='DataCON&ASSUMPTIONS'!$E$14:$E$43),--($E62='DataCON&ASSUMPTIONS'!$F$14:$F$43),--('DataCON&ASSUMPTIONS'!Y$14:Y$43)) -> 0 | Z62: =SUMPRODUCT(--($D62='DataCON&ASSUMPTIONS'!$E$14:$E$43),--($E62='DataCON&ASSUMPTIONS'!$F$14:$F$43),--('DataCON&ASSUMPTIONS'!Z$14:Z$43)) -> 0 | AA62: =SUMPRODUCT(--($D62='DataCON&ASSUMPTIONS'!$E$14:$E$43),--($E62='DataCON&ASSUMPTIONS'!$F$14:$F$43),--('DataCON&ASSUMPTIONS'!AA$14:AA$43)) -> 0 | AB62: =SUMPRODUCT(--($D62='DataCON&ASSUMPTIONS'!$E$14:$E$43),--($E62='DataCON&ASSUMPTIONS'!$F$14:$F$43),--('DataCON&ASSUMPTIONS'!AB$14:AB$43)) -> 0 | AC62: =SUMPRODUCT(--($D62='DataCON&ASSUMPTIONS'!$E$14:$E$43),--($E62='DataCON&ASSUMPTIONS'!$F$14:$F$43),--('DataCON&ASSUMPTIONS'!AC$14:AC$43)) -> 0 | AD62: =SUMPRODUCT(--($D62='DataCON&ASSUMPTIONS'!$E$14:$E$43),--($E62='DataCON&ASSUMPTIONS'!$F$14:$F$43),--('DataCON&ASSUMPTIONS'!AD$14:AD$43)) -> 0 | AE62: =SUMPRODUCT(--($D62='DataCON&ASSUMPTIONS'!$E$14:$E$43),--($E62='DataCON&ASSUMPTIONS'!$F$14:$F$43),--('DataCON&ASSUMPTIONS'!AE$14:AE$43)) -> 0 | AF62: =SUMPRODUCT(--($D62='DataCON&ASSUMPTIONS'!$E$14:$E$43),--($E62='DataCON&ASSUMPTIONS'!$F$14:$F$43),--('DataCON&ASSUMPTIONS'!AF$14:AF$43)) -> 0 | AG62: =SUMPRODUCT(--($D62='DataCON&ASSUMPTIONS'!$E$14:$E$43),--($E62='DataCON&ASSUMPTIONS'!$F$14:$F$43),--('DataCON&ASSUMPTIONS'!AG$14:AG$43)) -> 0 | AH62: =SUMPRODUCT(--($D62='DataCON&ASSUMPTIONS'!$E$14:$E$43),--($E62='DataCON&ASSUMPTIONS'!$F$14:$F$43),--('DataCON&ASSUMPTIONS'!AH$14:AH$43)) -> 0 | AI62: =SUMPRODUCT(--($D62='DataCON&ASSUMPTIONS'!$E$14:$E$43),--($E62='DataCON&ASSUMPTIONS'!$F$14:$F$43),--('DataCON&ASSUMPTIONS'!AI$14:AI$43)) -> 0 | AJ62: =SUMPRODUCT(--($D62='DataCON&ASSUMPTIONS'!$E$14:$E$43),--($E62='DataCON&ASSUMPTIONS'!$F$14:$F$43),--('DataCON&ASSUMPTIONS'!AJ$14:AJ$43)) -> 0 | AK62: =SUMPRODUCT(--($D62='DataCON&ASSUMPTIONS'!$E$14:$E$43),--($E62='DataCON&ASSUMPTIONS'!$F$14:$F$43),--('DataCON&ASSUMPTIONS'!AK$14:AK$43)) -> 0 | AL62: =SUMPRODUCT(--($D62='DataCON&ASSUMPTIONS'!$E$14:$E$43),--($E62='DataCON&ASSUMPTIONS'!$F$14:$F$43),--('DataCON&ASSUMPTIONS'!AL$14:AL$43)) -> 0 | AM62: =SUMPRODUCT(--($D62='DataCON&ASSUMPTIONS'!$E$14:$E$43),--($E62='DataCON&ASSUMPTIONS'!$F$14:$F$43),--('DataCON&ASSUMPTIONS'!AM$14:AM$43)) -> 0 | AN62: =SUMPRODUCT(--($D62='DataCON&ASSUMPTIONS'!$E$14:$E$43),--($E62='DataCON&ASSUMPTIONS'!$F$14:$F$43),--('DataCON&ASSUMPTIONS'!AN$14:AN$43)) -> 0 | AO62: =SUMPRODUCT(--($D62='DataCON&ASSUMPTIONS'!$E$14:$E$43),--($E62='DataCON&ASSUMPTIONS'!$F$14:$F$43),--('DataCON&ASSUMPTIONS'!AO$14:AO$43)) -> 0 | AP62: =SUMPRODUCT(--($D62='DataCON&ASSUMPTIONS'!$E$14:$E$43),--($E62='DataCON&ASSUMPTIONS'!$F$14:$F$43),--('DataCON&ASSUMPTIONS'!AP$14:AP$43)) -> 0
E63: Total | P63: $ | Q63: =NPV('DataCON&ASSUMPTIONS'!$F$48,'Warragul Drouin'!W63:AP63) -> 10170.71634 | R63: =SUM(R60:R62) -> 0 | S63: 0 | T63: 0 | U63: 0 | V63: 0 | W63: 683 | X63: 683 | Y63: 683 | Z63: 683 | AA63: 683 | AB63: 683 | AC63: 683 | AD63: 683 | AE63: 683 | AF63: 683 | AG63: 683 | AH63: 683 | AI63: 683 | AJ63: 683 | AK63: 683 | AL63: 683 | AM63: 683 | AN63: 683 | AO63: 683 | AP63: 683
B65: =(MID(CELL("filename",A1),FIND("]",CELL("filename",A1))+1,255))&" NCC" -> Warragul Drouin NCC
C66: Full cost NCC
D68: Total incremental cost | P68: $ | Q68: =Q44 -> 38791314.99
D69: Tax allowance | P69: $ | Q69: =Q54 -> 0
D70: Value of franking credits | P70: $ | Q70: =-Q69*'DataCON&ASSUMPTIONS'!$F$58 -> 0
D71: New customer connections | P71: Conections | Q71: =Q63 -> 10170.71634
D73: ="Pre Tax "&A2&" NCC" -> Pre Tax Warragul Drouin NCC | P73: $ per connection | Q73: =IFERROR(Q68/Q71,0) -> 3814.019947
D74: =B65 -> Warragul Drouin NCC | P74: $ per connection | Q74: =IFERROR(Q73+(SUM(Q69,Q70)/Q63),0) -> 3814.019947
C76: Capped NCC
C77: Residual is determined as the difference between full cost NCC revenue and capped NCC revenue weighted accounting for the tax allowance by the NPVs for growth capex and connection opex
D79: Cap switch | Q79: Off
D81: Residual capex macro
D83: System based cap | Q83: ='Capping by Avg Land Cost'!D332/2 -> 4812.5
D84: Residual capex | Q84: =(IF(Q79="Off",0,1))*(($Q$74*$Q$71)-($Q$83*$Q$71)-(Q69))*(Q42/$Q$44) -> 0
D85: Residual connection opex | Q85: =(IF(Q79="Off",0,1))*(($Q$74*$Q$71)-($Q$83*$Q$71)-(Q71))*(Q43/$Q$44) -> 0
Q86: 0
D87: Capex adjustment factor | Q87: 0.4768736151
D89: Cap adjusted NCC growth capex
E90: =E14 -> Basin | Q90: =NPV('DataCON&ASSUMPTIONS'!$F$48,'Warragul Drouin'!W90:AP90) -> 0 | W90: =$Q$87*W14 -> 0 | X90: =$Q$87*X14 -> 0 | Y90: 0 | Z90: 0 | AA90: 0 | AB90: 0 | AC90: 0 | AD90: 0 | AE90: 0 | AF90: 0 | AG90: 0 | AH90: 0 | AI90: 0 | AJ90: 0 | AK90: 0 | AL90: 0 | AM90: 0 | AN90: 0 | AO90: 0 | AP90: 0
E91: Bores | Q91: =NPV('DataCON&ASSUMPTIONS'!$F$48,'Warragul Drouin'!W91:AP91) -> 0 | W91: =$Q$87*W15 -> 0 | X91: 0 | Y91: 0 | Z91: 0 | AA91: 0 | AB91: 0 | AC91: 0 | AD91: 0 | AE91: 0 | AF91: 0 | AG91: 0 | AH91: 0 | AI91: 0 | AJ91: 0 | AK91: 0 | AL91: 0 | AM91: 0 | AN91: 0 | AO91: 0 | AP91: 0
E92: Disinfection | Q92: =NPV('DataCON&ASSUMPTIONS'!$F$48,'Warragul Drouin'!W92:AP92) -> 0 | W92: =$Q$87*W16 -> 0 | X92: 0 | Y92: 0 | Z92: 0 | AA92: 0 | AB92: 0 | AC92: 0 | AD92: 0 | AE92: 0 | AF92: 0 | AG92: 0 | AH92: 0 | AI92: 0 | AJ92: 0 | AK92: 0 | AL92: 0 | AM92: 0 | AN92: 0 | AO92: 0 | AP92: 0
E93: Distribution Main | Q93: =NPV('DataCON&ASSUMPTIONS'!$F$48,'Warragul Drouin'!W93:AP93) -> 0 | W93: =$Q$87*W17 -> 0 | X93: 0 | Y93: 0 | Z93: 0 | AA93: 0 | AB93: 0 | AC93: 0 | AD93: 0 | AE93: 0 | AF93: 0 | AG93: 0 | AH93: 0 | AI93: 0 | AJ93: 0 | AK93: 0 | AL93: 0 | AM93: 0 | AN93: 0 | AO93: 0 | AP93: 0
E94: Reservoir | Q94: =NPV('DataCON&ASSUMPTIONS'!$F$48,'Warragul Drouin'!W94:AP94) -> 0 | W94: =$Q$87*W18 -> 0 | X94: 0 | Y94: 0 | Z94: 0 | AA94: 0 | AB94: 0 | AC94: 0 | AD94: 0 | AE94: 0 | AF94: 0 | AG94: 0 | AH94: 0 | AI94: 0 | AJ94: 0 | AK94: 0 | AL94: 0 | AM94: 0 | AN94: 0 | AO94: 0 | AP94: 0
E95: Tank | Q95: =NPV('DataCON&ASSUMPTIONS'!$F$48,'Warragul Drouin'!W95:AP95) -> 0 | W95: =$Q$87*W19 -> 0 | X95: 0 | Y95: 0 | Z95: 0 | AA95: 0 | AB95: 0 | AC95: 0 | AD95: 0 | AE95: 0 | AF95: 0 | AG95: 0 | AH95: 0 | AI95: 0 | AJ95: 0 | AK95: 0 | AL95: 0 | AM95: 0 | AN95: 0 | AO95: 0 | AP95: 0
E96: Transfer Main | Q96: =NPV('DataCON&ASSUMPTIONS'!$F$48,'Warragul Drouin'!W96:AP96) -> 0 | W96: =$Q$87*W20 -> 0 | X96: 0 | Y96: 0 | Z96: 0 | AA96: 0 | AB96: 0 | AC96: 0 | AD96: 0 | AE96: 0 | AF96: 0 | AG96: 0 | AH96: 0 | AI96: 0 | AJ96: 0 | AK96: 0 | AL96: 0 | AM96: 0 | AN96: 0 | AO96: 0 | AP96: 0
E97: WTP | Q97: =NPV('DataCON&ASSUMPTIONS'!$F$48,'Warragul Drouin'!W97:AP97) -> 18498554.61 | W97: =$Q$87*W21 -> 3183864.917 | X97: 141223.0004 | Y97: 506195.0898 | Z97: 511780.0582 | AA97: 63461.83541 | AB97: 1509777.318 | AC97: 1236879.643 | AD97: 1655751.121 | AE97: 775729.0409 | AF97: 337961.1057 | AG97: 1055369.425 | AH97: 3239836.18 | AI97: 2407984.207 | AJ97: 3437446.413 | AK97: 2178678.469 | AL97: 108575.3297 | AM97: 734635.0012 | AN97: 1708759.711 | AO97: 0 | AP97: 0
E98: WPS | Q98: =NPV('DataCON&ASSUMPTIONS'!$F$48,'Warragul Drouin'!W98:AP98) -> 0 | W98: =$Q$87*W22 -> 0 | X98: 0 | Y98: 0 | Z98: 0 | AA98: 0 | AB98: 0 | AC98: 0 | AD98: 0 | AE98: 0 | AF98: 0 | AG98: 0 | AH98: 0 | AI98: 0 | AJ98: 0 | AK98: 0 | AL98: 0 | AM98: 0 | AN98: 0 | AO98: 0 | AP98: 0
E99: WWTP | Q99: =NPV('DataCON&ASSUMPTIONS'!$F$48,'Warragul Drouin'!W99:AP99) -> 0 | W99: =$Q$87*W23 -> 0 | X99: 0 | Y99: 0 | Z99: 0 | AA99: 0 | AB99: 0 | AC99: 0 | AD99: 0 | AE99: 0 | AF99: 0 | AG99: 0 | AH99: 0 | AI99: 0 | AJ99: 0 | AK99: 0 | AL99: 0 | AM99: 0 | AN99: 0 | AO99: 0 | AP99: 0
E100: 0 | Q100: =NPV('DataCON&ASSUMPTIONS'!$F$48,'Warragul Drouin'!W100:AP100) -> 0 | W100: =$Q$87*W24 -> 0 | X100: 0 | Y100: 0 | Z100: 0 | AA100: 0 | AB100: 0 | AC100: 0 | AD100: 0 | AE100: 0 | AF100: 0 | AG100: 0 | AH100: 0 | AI100: 0 | AJ100: 0 | AK100: 0 | AL100: 0 | AM100: 0 | AN100: 0 | AO100: 0 | AP100: 0
E101: 0 | Q101: =NPV('DataCON&ASSUMPTIONS'!$F$48,'Warragul Drouin'!W101:AP101) -> 0 | W101: =$Q$87*W25 -> 0 | X101: 0 | Y101: 0 | Z101: 0 | AA101: 0 | AB101: 0 | AC101: 0 | AD101: 0 | AE101: 0 | AF101: 0 | AG101: 0 | AH101: 0 | AI101: 0 | AJ101: 0 | AK101: 0 | AL101: 0 | AM101: 0 | AN101: 0 | AO101: 0 | AP101: 0
E102: 0 | Q102: =NPV('DataCON&ASSUMPTIONS'!$F$48,'Warragul Drouin'!W102:AP102) -> 0 | W102: =$Q$87*W26 -> 0 | X102: 0 | Y102: 0 | Z102: 0 | AA102: 0 | AB102: 0 | AC102: 0 | AD102: 0 | AE102: 0 | AF102: 0 | AG102: 0 | AH102: 0 | AI102: 0 | AJ102: 0 | AK102: 0 | AL102: 0 | AM102: 0 | AN102: 0 | AO102: 0 | AP102: 0
E103: 0 | Q103: =NPV('DataCON&ASSUMPTIONS'!$F$48,'Warragul Drouin'!W103:AP103) -> 0 | W103: =$Q$87*W27 -> 0 | X103: 0 | Y103: 0 | Z103: 0 | AA103: 0 | AB103: 0 | AC103: 0 | AD103: 0 | AE103: 0 | AF103: 0 | AG103: 0 | AH103: 0 | AI103: 0 | AJ103: 0 | AK103: 0 | AL103: 0 | AM103: 0 | AN103: 0 | AO103: 0 | AP103: 0
E104: 0 | Q104: =NPV('DataCON&ASSUMPTIONS'!$F$48,'Warragul Drouin'!W104:AP104) -> 0 | W104: =$Q$87*W28 -> 0 | X104: 0 | Y104: 0 | Z104: 0 | AA104: 0 | AB104: 0 | AC104: 0 | AD104: 0 | AE104: 0 | AF104: 0 | AG104: 0 | AH104: 0 | AI104: 0 | AJ104: 0 | AK104: 0 | AL104: 0 | AM104: 0 | AN104: 0 | AO104: 0 | AP104: 0
E105: 0 | Q105: =NPV('DataCON&ASSUMPTIONS'!$F$48,'Warragul Drouin'!W105:AP105) -> 0 | W105: =$Q$87*W29 -> 0 | X105: 0 | Y105: 0 | Z105: 0 | AA105: 0 | AB105: 0 | AC105: 0 | AD105: 0 | AE105: 0 | AF105: 0 | AG105: 0 | AH105: 0 | AI105: 0 | AJ105: 0 | AK105: 0 | AL105: 0 | AM105: 0 | AN105: 0 | AO105: 0 | AP105: 0
E106: 0 | Q106: =NPV('DataCON&ASSUMPTIONS'!$F$48,'Warragul Drouin'!W106:AP106) -> 0 | W106: =$Q$87*W30 -> 0 | X106: 0 | Y106: 0 | Z106: 0 | AA106: 0 | AB106: 0 | AC106: 0 | AD106: 0 | AE106: 0 | AF106: 0 | AG106: 0 | AH106: 0 | AI106: 0 | AJ106: 0 | AK106: 0 | AL106: 0 | AM106: 0 | AN106: 0 | AO106: 0 | AP106: 0
E107: 0 | Q107: =NPV('DataCON&ASSUMPTIONS'!$F$48,'Warragul Drouin'!W107:AP107) -> 0 | W107: =$Q$87*W31 -> 0 | X107: 0 | Y107: 0 | Z107: 0 | AA107: 0 | AB107: 0 | AC107: 0 | AD107: 0 | AE107: 0 | AF107: 0 | AG107: 0 | AH107: 0 | AI107: 0 | AJ107: 0 | AK107: 0 | AL107: 0 | AM107: 0 | AN107: 0 | AO107: 0 | AP107: 0
E108: 0 | Q108: =NPV('DataCON&ASSUMPTIONS'!$F$48,'Warragul Drouin'!W108:AP108) -> 0 | W108: =$Q$87*W32 -> 0 | X108: 0 | Y108: 0 | Z108: 0 | AA108: 0 | AB108: 0 | AC108: 0 | AD108: 0 | AE108: 0 | AF108: 0 | AG108: 0 | AH108: 0 | AI108: 0 | AJ108: 0 | AK108: 0 | AL108: 0 | AM108: 0 | AN108: 0 | AO108: 0 | AP108: 0
E109: 0 | Q109: =NPV('DataCON&ASSUMPTIONS'!$F$48,'Warragul Drouin'!W109:AP109) -> 0 | W109: =$Q$87*W33 -> 0 | X109: 0 | Y109: 0 | Z109: 0 | AA109: 0 | AB109: 0 | AC109: 0 | AD109: 0 | AE109: 0 | AF109: 0 | AG109: 0 | AH109: 0 | AI109: 0 | AJ109: 0 | AK109: 0 | AL109: 0 | AM109: 0 | AN109: 0 | AO109: 0 | AP109: 0
E110: Total | Q110: =NPV('DataCON&ASSUMPTIONS'!$F$48,'Warragul Drouin'!W110:AP110) -> 18498554.61 | W110: =SUM(W90:W109) -> 3183864.917 | X110: =SUM(X90:X109) -> 141223.0004 | Y110: 506195.0898 | Z110: 511780.0582 | AA110: 63461.83541 | AB110: 1509777.318 | AC110: 1236879.643 | AD110: 1655751.121 | AE110: 775729.0409 | AF110: 337961.1057 | AG110: 1055369.425 | AH110: 3239836.18 | AI110: 2407984.207 | AJ110: 3437446.413 | AK110: 2178678.469 | AL110: 108575.3297 | AM110: 734635.0012 | AN110: 1708759.711 | AO110: 0 | AP110: 0
E111: Goal Seek Target | Q111: =Q84-Q110 -> -18498554.61
D113: RAB growth capex
E114: =E90 -> Basin | Q114: =NPV('DataCON&ASSUMPTIONS'!$F$48,'Warragul Drouin'!W114:AP114) -> 0 | W114: =W14-W90 -> 0 | X114: =X14-X90 -> 0 | Y114: 0 | Z114: 0 | AA114: 0 | AB114: 0 | AC114: 0 | AD114: 0 | AE114: 0 | AF114: 0 | AG114: 0 | AH114: 0 | AI114: 0 | AJ114: 0 | AK114: 0 | AL114: 0 | AM114: 0 | AN114: 0 | AO114: 0 | AP114: 0
E115: =E91 -> Bores | Q115: =NPV('DataCON&ASSUMPTIONS'!$F$48,'Warragul Drouin'!W115:AP115) -> 0 | W115: =W15-W91 -> 0 | X115: 0 | Y115: 0 | Z115: 0 | AA115: 0 | AB115: 0 | AC115: 0 | AD115: 0 | AE115: 0 | AF115: 0 | AG115: 0 | AH115: 0 | AI115: 0 | AJ115: 0 | AK115: 0 | AL115: 0 | AM115: 0 | AN115: 0 | AO115: 0 | AP115: 0
E116: Disinfection | Q116: =NPV('DataCON&ASSUMPTIONS'!$F$48,'Warragul Drouin'!W116:AP116) -> 0 | W116: =W16-W92 -> 0 | X116: 0 | Y116: 0 | Z116: 0 | AA116: 0 | AB116: 0 | AC116: 0 | AD116: 0 | AE116: 0 | AF116: 0 | AG116: 0 | AH116: 0 | AI116: 0 | AJ116: 0 | AK116: 0 | AL116: 0 | AM116: 0 | AN116: 0 | AO116: 0 | AP116: 0
E117: Distribution Main | Q117: =NPV('DataCON&ASSUMPTIONS'!$F$48,'Warragul Drouin'!W117:AP117) -> 0 | W117: =W17-W93 -> 0 | X117: 0 | Y117: 0 | Z117: 0 | AA117: 0 | AB117: 0 | AC117: 0 | AD117: 0 | AE117: 0 | AF117: 0 | AG117: 0 | AH117: 0 | AI117: 0 | AJ117: 0 | AK117: 0 | AL117: 0 | AM117: 0 | AN117: 0 | AO117: 0 | AP117: 0
E118: Reservoir | Q118: =NPV('DataCON&ASSUMPTIONS'!$F$48,'Warragul Drouin'!W118:AP118) -> 0 | W118: =W18-W94 -> 0 | X118: 0 | Y118: 0 | Z118: 0 | AA118: 0 | AB118: 0 | AC118: 0 | AD118: 0 | AE118: 0 | AF118: 0 | AG118: 0 | AH118: 0 | AI118: 0 | AJ118: 0 | AK118: 0 | AL118: 0 | AM118: 0 | AN118: 0 | AO118: 0 | AP118: 0
E119: Tank | Q119: =NPV('DataCON&ASSUMPTIONS'!$F$48,'Warragul Drouin'!W119:AP119) -> 0 | W119: =W19-W95 -> 0 | X119: 0 | Y119: 0 | Z119: 0 | AA119: 0 | AB119: 0 | AC119: 0 | AD119: 0 | AE119: 0 | AF119: 0 | AG119: 0 | AH119: 0 | AI119: 0 | AJ119: 0 | AK119: 0 | AL119: 0 | AM119: 0 | AN119: 0 | AO119: 0 | AP119: 0
E120: Transfer Main | Q120: =NPV('DataCON&ASSUMPTIONS'!$F$48,'Warragul Drouin'!W120:AP120) -> 0 | W120: =W20-W96 -> 0 | X120: 0 | Y120: 0 | Z120: 0 | AA120: 0 | AB120: 0 | AC120: 0 | AD120: 0 | AE120: 0 | AF120: 0 | AG120: 0 | AH120: 0 | AI120: 0 | AJ120: 0 | AK120: 0 | AL120: 0 | AM120: 0 | AN120: 0 | AO120: 0 | AP120: 0
E121: WTP | Q121: =NPV('DataCON&ASSUMPTIONS'!$F$48,'Warragul Drouin'!W121:AP121) -> 20292760.38 | W121: =W21-W97 -> 3492673.303 | X121: 154920.4556 | Y121: 555291.7986 | Z121: 561418.4624 | AA121: 69617.10501 | AB121: 1656213.146 | AC121: 1356846.669 | AD121: 1816345.193 | AE121: 850968.2986 | AF121: 370740.5188 | AG121: 1157731.471 | AH121: 3554073.312 | AI121: 2641538.624 | AJ121: 3770850.092 | AK121: 2389992.139 | AL121: 119106.2326 | AM121: 805888.4792 | AN121: 1874495.175 | AO121: 0 | AP121: 0
E122: WPS | Q122: =NPV('DataCON&ASSUMPTIONS'!$F$48,'Warragul Drouin'!W122:AP122) -> 0 | W122: =W22-W98 -> 0 | X122: 0 | Y122: 0 | Z122: 0 | AA122: 0 | AB122: 0 | AC122: 0 | AD122: 0 | AE122: 0 | AF122: 0 | AG122: 0 | AH122: 0 | AI122: 0 | AJ122: 0 | AK122: 0 | AL122: 0 | AM122: 0 | AN122: 0 | AO122: 0 | AP122: 0
E123: WWTP | Q123: =NPV('DataCON&ASSUMPTIONS'!$F$48,'Warragul Drouin'!W123:AP123) -> 0 | W123: =W23-W99 -> 0 | X123: 0 | Y123: 0 | Z123: 0 | AA123: 0 | AB123: 0 | AC123: 0 | AD123: 0 | AE123: 0 | AF123: 0 | AG123: 0 | AH123: 0 | AI123: 0 | AJ123: 0 | AK123: 0 | AL123: 0 | AM123: 0 | AN123: 0 | AO123: 0 | AP123: 0
E124: 0 | Q124: =NPV('DataCON&ASSUMPTIONS'!$F$48,'Warragul Drouin'!W124:AP124) -> 0 | W124: =W24-W100 -> 0 | X124: 0 | Y124: 0 | Z124: 0 | AA124: 0 | AB124: 0 | AC124: 0 | AD124: 0 | AE124: 0 | AF124: 0 | AG124: 0 | AH124: 0 | AI124: 0 | AJ124: 0 | AK124: 0 | AL124: 0 | AM124: 0 | AN124: 0 | AO124: 0 | AP124: 0
E125: 0 | Q125: =NPV('DataCON&ASSUMPTIONS'!$F$48,'Warragul Drouin'!W125:AP125) -> 0 | W125: =W25-W101 -> 0 | X125: 0 | Y125: 0 | Z125: 0 | AA125: 0 | AB125: 0 | AC125: 0 | AD125: 0 | AE125: 0 | AF125: 0 | AG125: 0 | AH125: 0 | AI125: 0 | AJ125: 0 | AK125: 0 | AL125: 0 | AM125: 0 | AN125: 0 | AO125: 0 | AP125: 0
E126: 0 | Q126: =NPV('DataCON&ASSUMPTIONS'!$F$48,'Warragul Drouin'!W126:AP126) -> 0 | W126: =W26-W102 -> 0 | X126: 0 | Y126: 0 | Z126: 0 | AA126: 0 | AB126: 0 | AC126: 0 | AD126: 0 | AE126: 0 | AF126: 0 | AG126: 0 | AH126: 0 | AI126: 0 | AJ126: 0 | AK126: 0 | AL126: 0 | AM126: 0 | AN126: 0 | AO126: 0 | AP126: 0
E127: 0 | Q127: =NPV('DataCON&ASSUMPTIONS'!$F$48,'Warragul Drouin'!W127:AP127) -> 0 | W127: =W27-W103 -> 0 | X127: 0 | Y127: 0 | Z127: 0 | AA127: 0 | AB127: 0 | AC127: 0 | AD127: 0 | AE127: 0 | AF127: 0 | AG127: 0 | AH127: 0 | AI127: 0 | AJ127: 0 | AK127: 0 | AL127: 0 | AM127: 0 | AN127: 0 | AO127: 0 | AP127: 0
E128: 0 | Q128: =NPV('DataCON&ASSUMPTIONS'!$F$48,'Warragul Drouin'!W128:AP128) -> 0 | W128: =W28-W104 -> 0 | X128: 0 | Y128: 0 | Z128: 0 | AA128: 0 | AB128: 0 | AC128: 0 | AD128: 0 | AE128: 0 | AF128: 0 | AG128: 0 | AH128: 0 | AI128: 0 | AJ128: 0 | AK128: 0 | AL128: 0 | AM128: 0 | AN128: 0 | AO128: 0 | AP128: 0
E129: 0 | Q129: =NPV('DataCON&ASSUMPTIONS'!$F$48,'Warragul Drouin'!W129:AP129) -> 0 | W129: =W29-W105 -> 0 | X129: 0 | Y129: 0 | Z129: 0 | AA129: 0 | AB129: 0 | AC129: 0 | AD129: 0 | AE129: 0 | AF129: 0 | AG129: 0 | AH129: 0 | AI129: 0 | AJ129: 0 | AK129: 0 | AL129: 0 | AM129: 0 | AN129: 0 | AO129: 0 | AP129: 0
E130: 0 | Q130: =NPV('DataCON&ASSUMPTIONS'!$F$48,'Warragul Drouin'!W130:AP130) -> 0 | W130: =W30-W106 -> 0 | X130: 0 | Y130: 0 | Z130: 0 | AA130: 0 | AB130: 0 | AC130: 0 | AD130: 0 | AE130: 0 | AF130: 0 | AG130: 0 | AH130: 0 | AI130: 0 | AJ130: 0 | AK130: 0 | AL130: 0 | AM130: 0 | AN130: 0 | AO130: 0 | AP130: 0
E131: 0 | Q131: =NPV('DataCON&ASSUMPTIONS'!$F$48,'Warragul Drouin'!W131:AP131) -> 0 | W131: =W31-W107 -> 0 | X131: 0 | Y131: 0 | Z131: 0 | AA131: 0 | AB131: 0 | AC131: 0 | AD131: 0 | AE131: 0 | AF131: 0 | AG131: 0 | AH131: 0 | AI131: 0 | AJ131: 0 | AK131: 0 | AL131: 0 | AM131: 0 | AN131: 0 | AO131: 0 | AP131: 0
E132: 0 | Q132: =NPV('DataCON&ASSUMPTIONS'!$F$48,'Warragul Drouin'!W132:AP132) -> 0 | W132: =W32-W108 -> 0 | X132: 0 | Y132: 0 | Z132: 0 | AA132: 0 | AB132: 0 | AC132: 0 | AD132: 0 | AE132: 0 | AF132: 0 | AG132: 0 | AH132: 0 | AI132: 0 | AJ132: 0 | AK132: 0 | AL132: 0 | AM132: 0 | AN132: 0 | AO132: 0 | AP132: 0
E133: 0 | Q133: =NPV('DataCON&ASSUMPTIONS'!$F$48,'Warragul Drouin'!W133:AP133) -> 0 | W133: =W33-W109 -> 0 | X133: 0 | Y133: 0 | Z133: 0 | AA133: 0 | AB133: 0 | AC133: 0 | AD133: 0 | AE133: 0 | AF133: 0 | AG133: 0 | AH133: 0 | AI133: 0 | AJ133: 0 | AK133: 0 | AL133: 0 | AM133: 0 | AN133: 0 | AO133: 0 | AP133: 0
E134: Total | Q134: =NPV('DataCON&ASSUMPTIONS'!$F$48,'Warragul Drouin'!W134:AP134) -> 20292760.38 | W134: =SUM(W114:W133) -> 3492673.303 | X134: =SUM(X114:X133) -> 154920.4556 | Y134: 555291.7986 | Z134: 561418.4624 | AA134: 69617.10501 | AB134: 1656213.146 | AC134: 1356846.669 | AD134: 1816345.193 | AE134: 850968.2986 | AF134: 370740.5188 | AG134: 1157731.471 | AH134: 3554073.312 | AI134: 2641538.624 | AJ134: 3770850.092 | AK134: 2389992.139 | AL134: 119106.2326 | AM134: 805888.4792 | AN134: 1874495.175 | AO134: 0 | AP134: 0
A137: End

Sheet Traralgon
A1: =UPPER(WorkBookTitle) -> GIPPSLAND WATER - NCC WATER
A2: =MID(CELL("filename",A1),FIND("]",CELL("filename",A1))+1,255) -> Traralgon
A3: =YEAR(Setup!$I$25)&" price period" -> 2023 price period
B5: Timing flags
E7: =Setup!E37 -> Year counter | P7: num | R7: =Setup!R37 -> 1 | S7: =Setup!S37 -> 2 | T7: =Setup!T37 -> 3 | U7: =Setup!U37 -> 4 | V7: =Setup!V37 -> 5 | W7: =Setup!W37 -> 6 | X7: =Setup!X37 -> 7 | Y7: =Setup!Y37 -> 8 | Z7: =Setup!Z37 -> 9 | AA7: =Setup!AA37 -> 10 | AB7: =Setup!AB37 -> 11 | AC7: =Setup!AC37 -> 12 | AD7: =Setup!AD37 -> 13 | AE7: =Setup!AE37 -> 14 | AF7: =Setup!AF37 -> 15 | AG7: =Setup!AG37 -> 16 | AH7: =Setup!AH37 -> 17 | AI7: =Setup!AI37 -> 18 | AJ7: =Setup!AJ37 -> 19 | AK7: =Setup!AK37 -> 20 | AL7: =Setup!AL37 -> 21 | AM7: =Setup!AM37 -> 22 | AN7: =Setup!AN37 -> 23 | AO7: =Setup!AO37 -> 24 | AP7: =Setup!AP37 -> 25
E8: =Setup!E41 -> Financial year | P8: year | R8: =Setup!R41 -> 2018-19 | S8: =Setup!S41 -> 2019-20 | T8: =Setup!T41 -> 2020-21 | U8: =Setup!U41 -> 2021-22 | V8: =Setup!V41 -> 2022-23 | W8: =Setup!W41 -> 2023-24 | X8: =Setup!X41 -> 2024-25 | Y8: =Setup!Y41 -> 2025-26 | Z8: =Setup!Z41 -> 2026-27 | AA8: =Setup!AA41 -> 2027-28 | AB8: =Setup!AB41 -> 2028-29 | AC8: =Setup!AC41 -> 2029-30 | AD8: =Setup!AD41 -> 2030-31 | AE8: =Setup!AE41 -> 2031-32 | AF8: =Setup!AF41 -> 2032-33 | AG8: =Setup!AG41 -> 2033-34 | AH8: =Setup!AH41 -> 2034-35 | AI8: =Setup!AI41 -> 2035-36 | AJ8: =Setup!AJ41 -> 2036-37 | AK8: =Setup!AK41 -> 2037-38 | AL8: =Setup!AL41 -> 2038-39 | AM8: =Setup!AM41 -> 2039-40 | AN8: =Setup!AN41 -> 2040-41 | AO8: =Setup!AO41 -> 2041-42 | AP8: =Setup!AP41 -> 2042-43
E9: =Setup!E46 -> Pricing period | P9: num | R9: =Setup!R46 -> 1 | S9: =Setup!S46 -> 1 | T9: =Setup!T46 -> 1 | U9: =Setup!U46 -> 1 | V9: =Setup!V46 -> 1 | W9: =Setup!W46 -> 2 | X9: =Setup!X46 -> 2 | Y9: =Setup!Y46 -> 2 | Z9: =Setup!Z46 -> 2 | AA9: =Setup!AA46 -> 2 | AB9: =Setup!AB46 -> 3 | AC9: =Setup!AC46 -> 3 | AD9: =Setup!AD46 -> 3 | AE9: =Setup!AE46 -> 3 | AF9: =Setup!AF46 -> 3 | AG9: =Setup!AG46 -> 4 | AH9: =Setup!AH46 -> 4 | AI9: =Setup!AI46 -> 4 | AJ9: =Setup!AJ46 -> 4 | AK9: =Setup!AK46 -> 4 | AL9: =Setup!AL46 -> 5 | AM9: =Setup!AM46 -> 5 | AN9: =Setup!AN46 -> 5 | AO9: =Setup!AO46 -> 5 | AP9: =Setup!AP46 -> 5
B11: Incremental cost
C12: Growth related capital expenditure
D13: Growth Capex | Q13: NPV
D14: =$A$2 -> Traralgon | E14: Basin | P14: $ | Q14: =NPV('DataCON&ASSUMPTIONS'!$F$48,Traralgon!W14:AP14) -> 0 | R14: =SUMPRODUCT(--($D14=DataCAPEX!$E$14:$E$218),--(Traralgon!$E14=DataCAPEX!$G$14:$G$218),--(DataCAPEX!R$14:R$218)) -> 0 | S14: =SUMPRODUCT(--($D14=DataCAPEX!$E$14:$E$218),--(Traralgon!$E14=DataCAPEX!$G$14:$G$218),--(DataCAPEX!S$14:S$218)) -> 0 | T14: =SUMPRODUCT(--($D14=DataCAPEX!$E$14:$E$218),--(Traralgon!$E14=DataCAPEX!$G$14:$G$218),--(DataCAPEX!T$14:T$218)) -> 0 | U14: =SUMPRODUCT(--($D14=DataCAPEX!$E$14:$E$218),--(Traralgon!$E14=DataCAPEX!$G$14:$G$218),--(DataCAPEX!U$14:U$218)) -> 0 | V14: =SUMPRODUCT(--($D14=DataCAPEX!$E$14:$E$218),--(Traralgon!$E14=DataCAPEX!$G$14:$G$218),--(DataCAPEX!V$14:V$218)) -> 0 | W14: =SUMPRODUCT(--($D14=DataCAPEX!$E$14:$E$218),--(Traralgon!$E14=DataCAPEX!$G$14:$G$218),--(DataCAPEX!W$14:W$218)) -> 0 | X14: =SUMPRODUCT(--($D14=DataCAPEX!$E$14:$E$218),--(Traralgon!$E14=DataCAPEX!$G$14:$G$218),--(DataCAPEX!X$14:X$218)) -> 0 | Y14: =SUMPRODUCT(--($D14=DataCAPEX!$E$14:$E$218),--(Traralgon!$E14=DataCAPEX!$G$14:$G$218),--(DataCAPEX!Y$14:Y$218)) -> 0 | Z14: =SUMPRODUCT(--($D14=DataCAPEX!$E$14:$E$218),--(Traralgon!$E14=DataCAPEX!$G$14:$G$218),--(DataCAPEX!Z$14:Z$218)) -> 0 | AA14: =SUMPRODUCT(--($D14=DataCAPEX!$E$14:$E$218),--(Traralgon!$E14=DataCAPEX!$G$14:$G$218),--(DataCAPEX!AA$14:AA$218)) -> 0 | AB14: =SUMPRODUCT(--($D14=DataCAPEX!$E$14:$E$218),--(Traralgon!$E14=DataCAPEX!$G$14:$G$218),--(DataCAPEX!AB$14:AB$218)) -> 0 | AC14: =SUMPRODUCT(--($D14=DataCAPEX!$E$14:$E$218),--(Traralgon!$E14=DataCAPEX!$G$14:$G$218),--(DataCAPEX!AC$14:AC$218)) -> 0 | AD14: =SUMPRODUCT(--($D14=DataCAPEX!$E$14:$E$218),--(Traralgon!$E14=DataCAPEX!$G$14:$G$218),--(DataCAPEX!AD$14:AD$218)) -> 0 | AE14: =SUMPRODUCT(--($D14=DataCAPEX!$E$14:$E$218),--(Traralgon!$E14=DataCAPEX!$G$14:$G$218),--(DataCAPEX!AE$14:AE$218)) -> 0 | AF14: =SUMPRODUCT(--($D14=DataCAPEX!$E$14:$E$218),--(Traralgon!$E14=DataCAPEX!$G$14:$G$218),--(DataCAPEX!AF$14:AF$218)) -> 0 | AG14: =SUMPRODUCT(--($D14=DataCAPEX!$E$14:$E$218),--(Traralgon!$E14=DataCAPEX!$G$14:$G$218),--(DataCAPEX!AG$14:AG$218)) -> 0 | AH14: =SUMPRODUCT(--($D14=DataCAPEX!$E$14:$E$218),--(Traralgon!$E14=DataCAPEX!$G$14:$G$218),--(DataCAPEX!AH$14:AH$218)) -> 0 | AI14: =SUMPRODUCT(--($D14=DataCAPEX!$E$14:$E$218),--(Traralgon!$E14=DataCAPEX!$G$14:$G$218),--(DataCAPEX!AI$14:AI$218)) -> 0 | AJ14: =SUMPRODUCT(--($D14=DataCAPEX!$E$14:$E$218),--(Traralgon!$E14=DataCAPEX!$G$14:$G$218),--(DataCAPEX!AJ$14:AJ$218)) -> 0 | AK14: =SUMPRODUCT(--($D14=DataCAPEX!$E$14:$E$218),--(Traralgon!$E14=DataCAPEX!$G$14:$G$218),--(DataCAPEX!AK$14:AK$218)) -> 0 | AL14: =SUMPRODUCT(--($D14=DataCAPEX!$E$14:$E$218),--(Traralgon!$E14=DataCAPEX!$G$14:$G$218),--(DataCAPEX!AL$14:AL$218)) -> 0 | AM14: =SUMPRODUCT(--($D14=DataCAPEX!$E$14:$E$218),--(Traralgon!$E14=DataCAPEX!$G$14:$G$218),--(DataCAPEX!AM$14:AM$218)) -> 0 | AN14: =SUMPRODUCT(--($D14=DataCAPEX!$E$14:$E$218),--(Traralgon!$E14=DataCAPEX!$G$14:$G$218),--(DataCAPEX!AN$14:AN$218)) -> 0 | AO14: =SUMPRODUCT(--($D14=DataCAPEX!$E$14:$E$218),--(Traralgon!$E14=DataCAPEX!$G$14:$G$218),--(DataCAPEX!AO$14:AO$218)) -> 0 | AP14: =SUMPRODUCT(--($D14=DataCAPEX!$E$14:$E$218),--(Traralgon!$E14=DataCAPEX!$G$14:$G$218),--(DataCAPEX!AP$14:AP$218)) -> 0
D15: =$A$2 -> Traralgon | E15: Bores | P15: $ | Q15: =NPV('DataCON&ASSUMPTIONS'!$F$48,Traralgon!W15:AP15) -> 0 | R15: =SUMPRODUCT(--($D15=DataCAPEX!$E$14:$E$218),--(Traralgon!$E15=DataCAPEX!$G$14:$G$218),--(DataCAPEX!R$14:R$218)) -> 0 | S15: =SUMPRODUCT(--($D15=DataCAPEX!$E$14:$E$218),--(Traralgon!$E15=DataCAPEX!$G$14:$G$218),--(DataCAPEX!S$14:S$218)) -> 0 | T15: =SUMPRODUCT(--($D15=DataCAPEX!$E$14:$E$218),--(Traralgon!$E15=DataCAPEX!$G$14:$G$218),--(DataCAPEX!T$14:T$218)) -> 0 | U15: =SUMPRODUCT(--($D15=DataCAPEX!$E$14:$E$218),--(Traralgon!$E15=DataCAPEX!$G$14:$G$218),--(DataCAPEX!U$14:U$218)) -> 0 | V15: =SUMPRODUCT(--($D15=DataCAPEX!$E$14:$E$218),--(Traralgon!$E15=DataCAPEX!$G$14:$G$218),--(DataCAPEX!V$14:V$218)) -> 0 | W15: =SUMPRODUCT(--($D15=DataCAPEX!$E$14:$E$218),--(Traralgon!$E15=DataCAPEX!$G$14:$G$218),--(DataCAPEX!W$14:W$218)) -> 0 | X15: =SUMPRODUCT(--($D15=DataCAPEX!$E$14:$E$218),--(Traralgon!$E15=DataCAPEX!$G$14:$G$218),--(DataCAPEX!X$14:X$218)) -> 0 | Y15: =SUMPRODUCT(--($D15=DataCAPEX!$E$14:$E$218),--(Traralgon!$E15=DataCAPEX!$G$14:$G$218),--(DataCAPEX!Y$14:Y$218)) -> 0 | Z15: =SUMPRODUCT(--($D15=DataCAPEX!$E$14:$E$218),--(Traralgon!$E15=DataCAPEX!$G$14:$G$218),--(DataCAPEX!Z$14:Z$218)) -> 0 | AA15: =SUMPRODUCT(--($D15=DataCAPEX!$E$14:$E$218),--(Traralgon!$E15=DataCAPEX!$G$14:$G$218),--(DataCAPEX!AA$14:AA$218)) -> 0 | AB15: =SUMPRODUCT(--($D15=DataCAPEX!$E$14:$E$218),--(Traralgon!$E15=DataCAPEX!$G$14:$G$218),--(DataCAPEX!AB$14:AB$218)) -> 0 | AC15: =SUMPRODUCT(--($D15=DataCAPEX!$E$14:$E$218),--(Traralgon!$E15=DataCAPEX!$G$14:$G$218),--(DataCAPEX!AC$14:AC$218)) -> 0 | AD15: =SUMPRODUCT(--($D15=DataCAPEX!$E$14:$E$218),--(Traralgon!$E15=DataCAPEX!$G$14:$G$218),--(DataCAPEX!AD$14:AD$218)) -> 0 | AE15: =SUMPRODUCT(--($D15=DataCAPEX!$E$14:$E$218),--(Traralgon!$E15=DataCAPEX!$G$14:$G$218),--(DataCAPEX!AE$14:AE$218)) -> 0 | AF15: =SUMPRODUCT(--($D15=DataCAPEX!$E$14:$E$218),--(Traralgon!$E15=DataCAPEX!$G$14:$G$218),--(DataCAPEX!AF$14:AF$218)) -> 0 | AG15: =SUMPRODUCT(--($D15=DataCAPEX!$E$14:$E$218),--(Traralgon!$E15=DataCAPEX!$G$14:$G$218),--(DataCAPEX!AG$14:AG$218)) -> 0 | AH15: =SUMPRODUCT(--($D15=DataCAPEX!$E$14:$E$218),--(Traralgon!$E15=DataCAPEX!$G$14:$G$218),--(DataCAPEX!AH$14:AH$218)) -> 0 | AI15: =SUMPRODUCT(--($D15=DataCAPEX!$E$14:$E$218),--(Traralgon!$E15=DataCAPEX!$G$14:$G$218),--(DataCAPEX!AI$14:AI$218)) -> 0 | AJ15: =SUMPRODUCT(--($D15=DataCAPEX!$E$14:$E$218),--(Traralgon!$E15=DataCAPEX!$G$14:$G$218),--(DataCAPEX!AJ$14:AJ$218)) -> 0 | AK15: =SUMPRODUCT(--($D15=DataCAPEX!$E$14:$E$218),--(Traralgon!$E15=DataCAPEX!$G$14:$G$218),--(DataCAPEX!AK$14:AK$218)) -> 0 | AL15: =SUMPRODUCT(--($D15=DataCAPEX!$E$14:$E$218),--(Traralgon!$E15=DataCAPEX!$G$14:$G$218),--(DataCAPEX!AL$14:AL$218)) -> 0 | AM15: =SUMPRODUCT(--($D15=DataCAPEX!$E$14:$E$218),--(Traralgon!$E15=DataCAPEX!$G$14:$G$218),--(DataCAPEX!AM$14:AM$218)) -> 0 | AN15: =SUMPRODUCT(--($D15=DataCAPEX!$E$14:$E$218),--(Traralgon!$E15=DataCAPEX!$G$14:$G$218),--(DataCAPEX!AN$14:AN$218)) -> 0 | AO15: =SUMPRODUCT(--($D15=DataCAPEX!$E$14:$E$218),--(Traralgon!$E15=DataCAPEX!$G$14:$G$218),--(DataCAPEX!AO$14:AO$218)) -> 0 | AP15: =SUMPRODUCT(--($D15=DataCAPEX!$E$14:$E$218),--(Traralgon!$E15=DataCAPEX!$G$14:$G$218),--(DataCAPEX!AP$14:AP$218)) -> 0
D16: Traralgon | E16: Disinfection | P16: $ | Q16: =NPV('DataCON&ASSUMPTIONS'!$F$48,Traralgon!W16:AP16) -> 0 | R16: =SUMPRODUCT(--($D16=DataCAPEX!$E$14:$E$218),--(Traralgon!$E16=DataCAPEX!$G$14:$G$218),--(DataCAPEX!R$14:R$218)) -> 0 | S16: =SUMPRODUCT(--($D16=DataCAPEX!$E$14:$E$218),--(Traralgon!$E16=DataCAPEX!$G$14:$G$218),--(DataCAPEX!S$14:S$218)) -> 0 | T16: =SUMPRODUCT(--($D16=DataCAPEX!$E$14:$E$218),--(Traralgon!$E16=DataCAPEX!$G$14:$G$218),--(DataCAPEX!T$14:T$218)) -> 0 | U16: =SUMPRODUCT(--($D16=DataCAPEX!$E$14:$E$218),--(Traralgon!$E16=DataCAPEX!$G$14:$G$218),--(DataCAPEX!U$14:U$218)) -> 0 | V16: =SUMPRODUCT(--($D16=DataCAPEX!$E$14:$E$218),--(Traralgon!$E16=DataCAPEX!$G$14:$G$218),--(DataCAPEX!V$14:V$218)) -> 0 | W16: =SUMPRODUCT(--($D16=DataCAPEX!$E$14:$E$218),--(Traralgon!$E16=DataCAPEX!$G$14:$G$218),--(DataCAPEX!W$14:W$218)) -> 0 | X16: =SUMPRODUCT(--($D16=DataCAPEX!$E$14:$E$218),--(Traralgon!$E16=DataCAPEX!$G$14:$G$218),--(DataCAPEX!X$14:X$218)) -> 0 | Y16: =SUMPRODUCT(--($D16=DataCAPEX!$E$14:$E$218),--(Traralgon!$E16=DataCAPEX!$G$14:$G$218),--(DataCAPEX!Y$14:Y$218)) -> 0 | Z16: =SUMPRODUCT(--($D16=DataCAPEX!$E$14:$E$218),--(Traralgon!$E16=DataCAPEX!$G$14:$G$218),--(DataCAPEX!Z$14:Z$218)) -> 0 | AA16: =SUMPRODUCT(--($D16=DataCAPEX!$E$14:$E$218),--(Traralgon!$E16=DataCAPEX!$G$14:$G$218),--(DataCAPEX!AA$14:AA$218)) -> 0 | AB16: =SUMPRODUCT(--($D16=DataCAPEX!$E$14:$E$218),--(Traralgon!$E16=DataCAPEX!$G$14:$G$218),--(DataCAPEX!AB$14:AB$218)) -> 0 | AC16: =SUMPRODUCT(--($D16=DataCAPEX!$E$14:$E$218),--(Traralgon!$E16=DataCAPEX!$G$14:$G$218),--(DataCAPEX!AC$14:AC$218)) -> 0 | AD16: =SUMPRODUCT(--($D16=DataCAPEX!$E$14:$E$218),--(Traralgon!$E16=DataCAPEX!$G$14:$G$218),--(DataCAPEX!AD$14:AD$218)) -> 0 | AE16: =SUMPRODUCT(--($D16=DataCAPEX!$E$14:$E$218),--(Traralgon!$E16=DataCAPEX!$G$14:$G$218),--(DataCAPEX!AE$14:AE$218)) -> 0 | AF16: =SUMPRODUCT(--($D16=DataCAPEX!$E$14:$E$218),--(Traralgon!$E16=DataCAPEX!$G$14:$G$218),--(DataCAPEX!AF$14:AF$218)) -> 0 | AG16: =SUMPRODUCT(--($D16=DataCAPEX!$E$14:$E$218),--(Traralgon!$E16=DataCAPEX!$G$14:$G$218),--(DataCAPEX!AG$14:AG$218)) -> 0 | AH16: =SUMPRODUCT(--($D16=DataCAPEX!$E$14:$E$218),--(Traralgon!$E16=DataCAPEX!$G$14:$G$218),--(DataCAPEX!AH$14:AH$218)) -> 0 | AI16: =SUMPRODUCT(--($D16=DataCAPEX!$E$14:$E$218),--(Traralgon!$E16=DataCAPEX!$G$14:$G$218),--(DataCAPEX!AI$14:AI$218)) -> 0 | AJ16: =SUMPRODUCT(--($D16=DataCAPEX!$E$14:$E$218),--(Traralgon!$E16=DataCAPEX!$G$14:$G$218),--(DataCAPEX!AJ$14:AJ$218)) -> 0 | AK16: =SUMPRODUCT(--($D16=DataCAPEX!$E$14:$E$218),--(Traralgon!$E16=DataCAPEX!$G$14:$G$218),--(DataCAPEX!AK$14:AK$218)) -> 0 | AL16: =SUMPRODUCT(--($D16=DataCAPEX!$E$14:$E$218),--(Traralgon!$E16=DataCAPEX!$G$14:$G$218),--(DataCAPEX!AL$14:AL$218)) -> 0 | AM16: =SUMPRODUCT(--($D16=DataCAPEX!$E$14:$E$218),--(Traralgon!$E16=DataCAPEX!$G$14:$G$218),--(DataCAPEX!AM$14:AM$218)) -> 0 | AN16: =SUMPRODUCT(--($D16=DataCAPEX!$E$14:$E$218),--(Traralgon!$E16=DataCAPEX!$G$14:$G$218),--(DataCAPEX!AN$14:AN$218)) -> 0 | AO16: =SUMPRODUCT(--($D16=DataCAPEX!$E$14:$E$218),--(Traralgon!$E16=DataCAPEX!$G$14:$G$218),--(DataCAPEX!AO$14:AO$218)) -> 0 | AP16: =SUMPRODUCT(--($D16=DataCAPEX!$E$14:$E$218),--(Traralgon!$E16=DataCAPEX!$G$14:$G$218),--(DataCAPEX!AP$14:AP$218)) -> 0
D17: Traralgon | E17: Distribution Main | P17: $ | Q17: =NPV('DataCON&ASSUMPTIONS'!$F$48,Traralgon!W17:AP17) -> 0 | R17: =SUMPRODUCT(--($D17=DataCAPEX!$E$14:$E$218),--(Traralgon!$E17=DataCAPEX!$G$14:$G$218),--(DataCAPEX!R$14:R$218)) -> 0 | S17: =SUMPRODUCT(--($D17=DataCAPEX!$E$14:$E$218),--(Traralgon!$E17=DataCAPEX!$G$14:$G$218),--(DataCAPEX!S$14:S$218)) -> 0 | T17: =SUMPRODUCT(--($D17=DataCAPEX!$E$14:$E$218),--(Traralgon!$E17=DataCAPEX!$G$14:$G$218),--(DataCAPEX!T$14:T$218)) -> 0 | U17: =SUMPRODUCT(--($D17=DataCAPEX!$E$14:$E$218),--(Traralgon!$E17=DataCAPEX!$G$14:$G$218),--(DataCAPEX!U$14:U$218)) -> 0 | V17: =SUMPRODUCT(--($D17=DataCAPEX!$E$14:$E$218),--(Traralgon!$E17=DataCAPEX!$G$14:$G$218),--(DataCAPEX!V$14:V$218)) -> 0 | W17: =SUMPRODUCT(--($D17=DataCAPEX!$E$14:$E$218),--(Traralgon!$E17=DataCAPEX!$G$14:$G$218),--(DataCAPEX!W$14:W$218)) -> 0 | X17: =SUMPRODUCT(--($D17=DataCAPEX!$E$14:$E$218),--(Traralgon!$E17=DataCAPEX!$G$14:$G$218),--(DataCAPEX!X$14:X$218)) -> 0 | Y17: =SUMPRODUCT(--($D17=DataCAPEX!$E$14:$E$218),--(Traralgon!$E17=DataCAPEX!$G$14:$G$218),--(DataCAPEX!Y$14:Y$218)) -> 0 | Z17: =SUMPRODUCT(--($D17=DataCAPEX!$E$14:$E$218),--(Traralgon!$E17=DataCAPEX!$G$14:$G$218),--(DataCAPEX!Z$14:Z$218)) -> 0 | AA17: =SUMPRODUCT(--($D17=DataCAPEX!$E$14:$E$218),--(Traralgon!$E17=DataCAPEX!$G$14:$G$218),--(DataCAPEX!AA$14:AA$218)) -> 0 | AB17: =SUMPRODUCT(--($D17=DataCAPEX!$E$14:$E$218),--(Traralgon!$E17=DataCAPEX!$G$14:$G$218),--(DataCAPEX!AB$14:AB$218)) -> 0 | AC17: =SUMPRODUCT(--($D17=DataCAPEX!$E$14:$E$218),--(Traralgon!$E17=DataCAPEX!$G$14:$G$218),--(DataCAPEX!AC$14:AC$218)) -> 0 | AD17: =SUMPRODUCT(--($D17=DataCAPEX!$E$14:$E$218),--(Traralgon!$E17=DataCAPEX!$G$14:$G$218),--(DataCAPEX!AD$14:AD$218)) -> 0 | AE17: =SUMPRODUCT(--($D17=DataCAPEX!$E$14:$E$218),--(Traralgon!$E17=DataCAPEX!$G$14:$G$218),--(DataCAPEX!AE$14:AE$218)) -> 0 | AF17: =SUMPRODUCT(--($D17=DataCAPEX!$E$14:$E$218),--(Traralgon!$E17=DataCAPEX!$G$14:$G$218),--(DataCAPEX!AF$14:AF$218)) -> 0 | AG17: =SUMPRODUCT(--($D17=DataCAPEX!$E$14:$E$218),--(Traralgon!$E17=DataCAPEX!$G$14:$G$218),--(DataCAPEX!AG$14:AG$218)) -> 0 | AH17: =SUMPRODUCT(--($D17=DataCAPEX!$E$14:$E$218),--(Traralgon!$E17=DataCAPEX!$G$14:$G$218),--(DataCAPEX!AH$14:AH$218)) -> 0 | AI17: =SUMPRODUCT(--($D17=DataCAPEX!$E$14:$E$218),--(Traralgon!$E17=DataCAPEX!$G$14:$G$218),--(DataCAPEX!AI$14:AI$218)) -> 0 | AJ17: =SUMPRODUCT(--($D17=DataCAPEX!$E$14:$E$218),--(Traralgon!$E17=DataCAPEX!$G$14:$G$218),--(DataCAPEX!AJ$14:AJ$218)) -> 0 | AK17: =SUMPRODUCT(--($D17=DataCAPEX!$E$14:$E$218),--(Traralgon!$E17=DataCAPEX!$G$14:$G$218),--(DataCAPEX!AK$14:AK$218)) -> 0 | AL17: =SUMPRODUCT(--($D17=DataCAPEX!$E$14:$E$218),--(Traralgon!$E17=DataCAPEX!$G$14:$G$218),--(DataCAPEX!AL$14:AL$218)) -> 0 | AM17: =SUMPRODUCT(--($D17=DataCAPEX!$E$14:$E$218),--(Traralgon!$E17=DataCAPEX!$G$14:$G$218),--(DataCAPEX!AM$14:AM$218)) -> 0 | AN17: =SUMPRODUCT(--($D17=DataCAPEX!$E$14:$E$218),--(Traralgon!$E17=DataCAPEX!$G$14:$G$218),--(DataCAPEX!AN$14:AN$218)) -> 0 | AO17: =SUMPRODUCT(--($D17=DataCAPEX!$E$14:$E$218),--(Traralgon!$E17=DataCAPEX!$G$14:$G$218),--(DataCAPEX!AO$14:AO$218)) -> 0 | AP17: =SUMPRODUCT(--($D17=DataCAPEX!$E$14:$E$218),--(Traralgon!$E17=DataCAPEX!$G$14:$G$218),--(DataCAPEX!AP$14:AP$218)) -> 0
D18: Traralgon | E18: Reservoir | P18: $ | Q18: =NPV('DataCON&ASSUMPTIONS'!$F$48,Traralgon!W18:AP18) -> 0 | R18: =SUMPRODUCT(--($D18=DataCAPEX!$E$14:$E$218),--(Traralgon!$E18=DataCAPEX!$G$14:$G$218),--(DataCAPEX!R$14:R$218)) -> 0 | S18: =SUMPRODUCT(--($D18=DataCAPEX!$E$14:$E$218),--(Traralgon!$E18=DataCAPEX!$G$14:$G$218),--(DataCAPEX!S$14:S$218)) -> 0 | T18: =SUMPRODUCT(--($D18=DataCAPEX!$E$14:$E$218),--(Traralgon!$E18=DataCAPEX!$G$14:$G$218),--(DataCAPEX!T$14:T$218)) -> 0 | U18: =SUMPRODUCT(--($D18=DataCAPEX!$E$14:$E$218),--(Traralgon!$E18=DataCAPEX!$G$14:$G$218),--(DataCAPEX!U$14:U$218)) -> 0 | V18: =SUMPRODUCT(--($D18=DataCAPEX!$E$14:$E$218),--(Traralgon!$E18=DataCAPEX!$G$14:$G$218),--(DataCAPEX!V$14:V$218)) -> 0 | W18: =SUMPRODUCT(--($D18=DataCAPEX!$E$14:$E$218),--(Traralgon!$E18=DataCAPEX!$G$14:$G$218),--(DataCAPEX!W$14:W$218)) -> 0 | X18: =SUMPRODUCT(--($D18=DataCAPEX!$E$14:$E$218),--(Traralgon!$E18=DataCAPEX!$G$14:$G$218),--(DataCAPEX!X$14:X$218)) -> 0 | Y18: =SUMPRODUCT(--($D18=DataCAPEX!$E$14:$E$218),--(Traralgon!$E18=DataCAPEX!$G$14:$G$218),--(DataCAPEX!Y$14:Y$218)) -> 0 | Z18: =SUMPRODUCT(--($D18=DataCAPEX!$E$14:$E$218),--(Traralgon!$E18=DataCAPEX!$G$14:$G$218),--(DataCAPEX!Z$14:Z$218)) -> 0 | AA18: =SUMPRODUCT(--($D18=DataCAPEX!$E$14:$E$218),--(Traralgon!$E18=DataCAPEX!$G$14:$G$218),--(DataCAPEX!AA$14:AA$218)) -> 0 | AB18: =SUMPRODUCT(--($D18=DataCAPEX!$E$14:$E$218),--(Traralgon!$E18=DataCAPEX!$G$14:$G$218),--(DataCAPEX!AB$14:AB$218)) -> 0 | AC18: =SUMPRODUCT(--($D18=DataCAPEX!$E$14:$E$218),--(Traralgon!$E18=DataCAPEX!$G$14:$G$218),--(DataCAPEX!AC$14:AC$218)) -> 0 | AD18: =SUMPRODUCT(--($D18=DataCAPEX!$E$14:$E$218),--(Traralgon!$E18=DataCAPEX!$G$14:$G$218),--(DataCAPEX!AD$14:AD$218)) -> 0 | AE18: =SUMPRODUCT(--($D18=DataCAPEX!$E$14:$E$218),--(Traralgon!$E18=DataCAPEX!$G$14:$G$218),--(DataCAPEX!AE$14:AE$218)) -> 0 | AF18: =SUMPRODUCT(--($D18=DataCAPEX!$E$14:$E$218),--(Traralgon!$E18=DataCAPEX!$G$14:$G$218),--(DataCAPEX!AF$14:AF$218)) -> 0 | AG18: =SUMPRODUCT(--($D18=DataCAPEX!$E$14:$E$218),--(Traralgon!$E18=DataCAPEX!$G$14:$G$218),--(DataCAPEX!AG$14:AG$218)) -> 0 | AH18: =SUMPRODUCT(--($D18=DataCAPEX!$E$14:$E$218),--(Traralgon!$E18=DataCAPEX!$G$14:$G$218),--(DataCAPEX!AH$14:AH$218)) -> 0 | AI18: =SUMPRODUCT(--($D18=DataCAPEX!$E$14:$E$218),--(Traralgon!$E18=DataCAPEX!$G$14:$G$218),--(DataCAPEX!AI$14:AI$218)) -> 0 | AJ18: =SUMPRODUCT(--($D18=DataCAPEX!$E$14:$E$218),--(Traralgon!$E18=DataCAPEX!$G$14:$G$218),--(DataCAPEX!AJ$14:AJ$218)) -> 0 | AK18: =SUMPRODUCT(--($D18=DataCAPEX!$E$14:$E$218),--(Traralgon!$E18=DataCAPEX!$G$14:$G$218),--(DataCAPEX!AK$14:AK$218)) -> 0 | AL18: =SUMPRODUCT(--($D18=DataCAPEX!$E$14:$E$218),--(Traralgon!$E18=DataCAPEX!$G$14:$G$218),--(DataCAPEX!AL$14:AL$218)) -> 0 | AM18: =SUMPRODUCT(--($D18=DataCAPEX!$E$14:$E$218),--(Traralgon!$E18=DataCAPEX!$G$14:$G$218),--(DataCAPEX!AM$14:AM$218)) -> 0 | AN18: =SUMPRODUCT(--($D18=DataCAPEX!$E$14:$E$218),--(Traralgon!$E18=DataCAPEX!$G$14:$G$218),--(DataCAPEX!AN$14:AN$218)) -> 0 | AO18: =SUMPRODUCT(--($D18=DataCAPEX!$E$14:$E$218),--(Traralgon!$E18=DataCAPEX!$G$14:$G$218),--(DataCAPEX!AO$14:AO$218)) -> 0 | AP18: =SUMPRODUCT(--($D18=DataCAPEX!$E$14:$E$218),--(Traralgon!$E18=DataCAPEX!$G$14:$G$218),--(DataCAPEX!AP$14:AP$218)) -> 0
D19: Traralgon | E19: Tank | P19: $ | Q19: =NPV('DataCON&ASSUMPTIONS'!$F$48,Traralgon!W19:AP19) -> 0 | R19: =SUMPRODUCT(--($D19=DataCAPEX!$E$14:$E$218),--(Traralgon!$E19=DataCAPEX!$G$14:$G$218),--(DataCAPEX!R$14:R$218)) -> 0 | S19: =SUMPRODUCT(--($D19=DataCAPEX!$E$14:$E$218),--(Traralgon!$E19=DataCAPEX!$G$14:$G$218),--(DataCAPEX!S$14:S$218)) -> 0 | T19: =SUMPRODUCT(--($D19=DataCAPEX!$E$14:$E$218),--(Traralgon!$E19=DataCAPEX!$G$14:$G$218),--(DataCAPEX!T$14:T$218)) -> 0 | U19: =SUMPRODUCT(--($D19=DataCAPEX!$E$14:$E$218),--(Traralgon!$E19=DataCAPEX!$G$14:$G$218),--(DataCAPEX!U$14:U$218)) -> 0 | V19: =SUMPRODUCT(--($D19=DataCAPEX!$E$14:$E$218),--(Traralgon!$E19=DataCAPEX!$G$14:$G$218),--(DataCAPEX!V$14:V$218)) -> 0 | W19: =SUMPRODUCT(--($D19=DataCAPEX!$E$14:$E$218),--(Traralgon!$E19=DataCAPEX!$G$14:$G$218),--(DataCAPEX!W$14:W$218)) -> 0 | X19: =SUMPRODUCT(--($D19=DataCAPEX!$E$14:$E$218),--(Traralgon!$E19=DataCAPEX!$G$14:$G$218),--(DataCAPEX!X$14:X$218)) -> 0 | Y19: =SUMPRODUCT(--($D19=DataCAPEX!$E$14:$E$218),--(Traralgon!$E19=DataCAPEX!$G$14:$G$218),--(DataCAPEX!Y$14:Y$218)) -> 0 | Z19: =SUMPRODUCT(--($D19=DataCAPEX!$E$14:$E$218),--(Traralgon!$E19=DataCAPEX!$G$14:$G$218),--(DataCAPEX!Z$14:Z$218)) -> 0 | AA19: =SUMPRODUCT(--($D19=DataCAPEX!$E$14:$E$218),--(Traralgon!$E19=DataCAPEX!$G$14:$G$218),--(DataCAPEX!AA$14:AA$218)) -> 0 | AB19: =SUMPRODUCT(--($D19=DataCAPEX!$E$14:$E$218),--(Traralgon!$E19=DataCAPEX!$G$14:$G$218),--(DataCAPEX!AB$14:AB$218)) -> 0 | AC19: =SUMPRODUCT(--($D19=DataCAPEX!$E$14:$E$218),--(Traralgon!$E19=DataCAPEX!$G$14:$G$218),--(DataCAPEX!AC$14:AC$218)) -> 0 | AD19: =SUMPRODUCT(--($D19=DataCAPEX!$E$14:$E$218),--(Traralgon!$E19=DataCAPEX!$G$14:$G$218),--(DataCAPEX!AD$14:AD$218)) -> 0 | AE19: =SUMPRODUCT(--($D19=DataCAPEX!$E$14:$E$218),--(Traralgon!$E19=DataCAPEX!$G$14:$G$218),--(DataCAPEX!AE$14:AE$218)) -> 0 | AF19: =SUMPRODUCT(--($D19=DataCAPEX!$E$14:$E$218),--(Traralgon!$E19=DataCAPEX!$G$14:$G$218),--(DataCAPEX!AF$14:AF$218)) -> 0 | AG19: =SUMPRODUCT(--($D19=DataCAPEX!$E$14:$E$218),--(Traralgon!$E19=DataCAPEX!$G$14:$G$218),--(DataCAPEX!AG$14:AG$218)) -> 0 | AH19: =SUMPRODUCT(--($D19=DataCAPEX!$E$14:$E$218),--(Traralgon!$E19=DataCAPEX!$G$14:$G$218),--(DataCAPEX!AH$14:AH$218)) -> 0 | AI19: =SUMPRODUCT(--($D19=DataCAPEX!$E$14:$E$218),--(Traralgon!$E19=DataCAPEX!$G$14:$G$218),--(DataCAPEX!AI$14:AI$218)) -> 0 | AJ19: =SUMPRODUCT(--($D19=DataCAPEX!$E$14:$E$218),--(Traralgon!$E19=DataCAPEX!$G$14:$G$218),--(DataCAPEX!AJ$14:AJ$218)) -> 0 | AK19: =SUMPRODUCT(--($D19=DataCAPEX!$E$14:$E$218),--(Traralgon!$E19=DataCAPEX!$G$14:$G$218),--(DataCAPEX!AK$14:AK$218)) -> 0 | AL19: =SUMPRODUCT(--($D19=DataCAPEX!$E$14:$E$218),--(Traralgon!$E19=DataCAPEX!$G$14:$G$218),--(DataCAPEX!AL$14:AL$218)) -> 0 | AM19: =SUMPRODUCT(--($D19=DataCAPEX!$E$14:$E$218),--(Traralgon!$E19=DataCAPEX!$G$14:$G$218),--(DataCAPEX!AM$14:AM$218)) -> 0 | AN19: =SUMPRODUCT(--($D19=DataCAPEX!$E$14:$E$218),--(Traralgon!$E19=DataCAPEX!$G$14:$G$218),--(DataCAPEX!AN$14:AN$218)) -> 0 | AO19: =SUMPRODUCT(--($D19=DataCAPEX!$E$14:$E$218),--(Traralgon!$E19=DataCAPEX!$G$14:$G$218),--(DataCAPEX!AO$14:AO$218)) -> 0 | AP19: =SUMPRODUCT(--($D19=DataCAPEX!$E$14:$E$218),--(Traralgon!$E19=DataCAPEX!$G$14:$G$218),--(DataCAPEX!AP$14:AP$218)) -> 0
D20: Traralgon | E20: Transfer Main | P20: $ | Q20: =NPV('DataCON&ASSUMPTIONS'!$F$48,Traralgon!W20:AP20) -> 0 | R20: =SUMPRODUCT(--($D20=DataCAPEX!$E$14:$E$218),--(Traralgon!$E20=DataCAPEX!$G$14:$G$218),--(DataCAPEX!R$14:R$218)) -> 0 | S20: =SUMPRODUCT(--($D20=DataCAPEX!$E$14:$E$218),--(Traralgon!$E20=DataCAPEX!$G$14:$G$218),--(DataCAPEX!S$14:S$218)) -> 0 | T20: =SUMPRODUCT(--($D20=DataCAPEX!$E$14:$E$218),--(Traralgon!$E20=DataCAPEX!$G$14:$G$218),--(DataCAPEX!T$14:T$218)) -> 0 | U20: =SUMPRODUCT(--($D20=DataCAPEX!$E$14:$E$218),--(Traralgon!$E20=DataCAPEX!$G$14:$G$218),--(DataCAPEX!U$14:U$218)) -> 0 | V20: =SUMPRODUCT(--($D20=DataCAPEX!$E$14:$E$218),--(Traralgon!$E20=DataCAPEX!$G$14:$G$218),--(DataCAPEX!V$14:V$218)) -> 0 | W20: =SUMPRODUCT(--($D20=DataCAPEX!$E$14:$E$218),--(Traralgon!$E20=DataCAPEX!$G$14:$G$218),--(DataCAPEX!W$14:W$218)) -> 0 | X20: =SUMPRODUCT(--($D20=DataCAPEX!$E$14:$E$218),--(Traralgon!$E20=DataCAPEX!$G$14:$G$218),--(DataCAPEX!X$14:X$218)) -> 0 | Y20: =SUMPRODUCT(--($D20=DataCAPEX!$E$14:$E$218),--(Traralgon!$E20=DataCAPEX!$G$14:$G$218),--(DataCAPEX!Y$14:Y$218)) -> 0 | Z20: =SUMPRODUCT(--($D20=DataCAPEX!$E$14:$E$218),--(Traralgon!$E20=DataCAPEX!$G$14:$G$218),--(DataCAPEX!Z$14:Z$218)) -> 0 | AA20: =SUMPRODUCT(--($D20=DataCAPEX!$E$14:$E$218),--(Traralgon!$E20=DataCAPEX!$G$14:$G$218),--(DataCAPEX!AA$14:AA$218)) -> 0 | AB20: =SUMPRODUCT(--($D20=DataCAPEX!$E$14:$E$218),--(Traralgon!$E20=DataCAPEX!$G$14:$G$218),--(DataCAPEX!AB$14:AB$218)) -> 0 | AC20: =SUMPRODUCT(--($D20=DataCAPEX!$E$14:$E$218),--(Traralgon!$E20=DataCAPEX!$G$14:$G$218),--(DataCAPEX!AC$14:AC$218)) -> 0 | AD20: =SUMPRODUCT(--($D20=DataCAPEX!$E$14:$E$218),--(Traralgon!$E20=DataCAPEX!$G$14:$G$218),--(DataCAPEX!AD$14:AD$218)) -> 0 | AE20: =SUMPRODUCT(--($D20=DataCAPEX!$E$14:$E$218),--(Traralgon!$E20=DataCAPEX!$G$14:$G$218),--(DataCAPEX!AE$14:AE$218)) -> 0 | AF20: =SUMPRODUCT(--($D20=DataCAPEX!$E$14:$E$218),--(Traralgon!$E20=DataCAPEX!$G$14:$G$218),--(DataCAPEX!AF$14:AF$218)) -> 0 | AG20: =SUMPRODUCT(--($D20=DataCAPEX!$E$14:$E$218),--(Traralgon!$E20=DataCAPEX!$G$14:$G$218),--(DataCAPEX!AG$14:AG$218)) -> 0 | AH20: =SUMPRODUCT(--($D20=DataCAPEX!$E$14:$E$218),--(Traralgon!$E20=DataCAPEX!$G$14:$G$218),--(DataCAPEX!AH$14:AH$218)) -> 0 | AI20: =SUMPRODUCT(--($D20=DataCAPEX!$E$14:$E$218),--(Traralgon!$E20=DataCAPEX!$G$14:$G$218),--(DataCAPEX!AI$14:AI$218)) -> 0 | AJ20: =SUMPRODUCT(--($D20=DataCAPEX!$E$14:$E$218),--(Traralgon!$E20=DataCAPEX!$G$14:$G$218),--(DataCAPEX!AJ$14:AJ$218)) -> 0 | AK20: =SUMPRODUCT(--($D20=DataCAPEX!$E$14:$E$218),--(Traralgon!$E20=DataCAPEX!$G$14:$G$218),--(DataCAPEX!AK$14:AK$218)) -> 0 | AL20: =SUMPRODUCT(--($D20=DataCAPEX!$E$14:$E$218),--(Traralgon!$E20=DataCAPEX!$G$14:$G$218),--(DataCAPEX!AL$14:AL$218)) -> 0 | AM20: =SUMPRODUCT(--($D20=DataCAPEX!$E$14:$E$218),--(Traralgon!$E20=DataCAPEX!$G$14:$G$218),--(DataCAPEX!AM$14:AM$218)) -> 0 | AN20: =SUMPRODUCT(--($D20=DataCAPEX!$E$14:$E$218),--(Traralgon!$E20=DataCAPEX!$G$14:$G$218),--(DataCAPEX!AN$14:AN$218)) -> 0 | AO20: =SUMPRODUCT(--($D20=DataCAPEX!$E$14:$E$218),--(Traralgon!$E20=DataCAPEX!$G$14:$G$218),--(DataCAPEX!AO$14:AO$218)) -> 0 | AP20: =SUMPRODUCT(--($D20=DataCAPEX!$E$14:$E$218),--(Traralgon!$E20=DataCAPEX!$G$14:$G$218),--(DataCAPEX!AP$14:AP$218)) -> 0
D21: Traralgon | E21: WTP | P21: $ | Q21: =NPV('DataCON&ASSUMPTIONS'!$F$48,Traralgon!W21:AP21) -> 7953867.608 | R21: =SUMPRODUCT(--($D21=DataCAPEX!$E$14:$E$218),--(Traralgon!$E21=DataCAPEX!$G$14:$G$218),--(DataCAPEX!R$14:R$218)) -> 0 | S21: =SUMPRODUCT(--($D21=DataCAPEX!$E$14:$E$218),--(Traralgon!$E21=DataCAPEX!$G$14:$G$218),--(DataCAPEX!S$14:S$218)) -> 0 | T21: =SUMPRODUCT(--($D21=DataCAPEX!$E$14:$E$218),--(Traralgon!$E21=DataCAPEX!$G$14:$G$218),--(DataCAPEX!T$14:T$218)) -> 0 | U21: =SUMPRODUCT(--($D21=DataCAPEX!$E$14:$E$218),--(Traralgon!$E21=DataCAPEX!$G$14:$G$218),--(DataCAPEX!U$14:U$218)) -> 0 | V21: =SUMPRODUCT(--($D21=DataCAPEX!$E$14:$E$218),--(Traralgon!$E21=DataCAPEX!$G$14:$G$218),--(DataCAPEX!V$14:V$218)) -> 0 | W21: =SUMPRODUCT(--($D21=DataCAPEX!$E$14:$E$218),--(Traralgon!$E21=DataCAPEX!$G$14:$G$218),--(DataCAPEX!W$14:W$218)) -> 134706.987 | X21: =SUMPRODUCT(--($D21=DataCAPEX!$E$14:$E$218),--(Traralgon!$E21=DataCAPEX!$G$14:$G$218),--(DataCAPEX!X$14:X$218)) -> 567595.9504 | Y21: =SUMPRODUCT(--($D21=DataCAPEX!$E$14:$E$218),--(Traralgon!$E21=DataCAPEX!$G$14:$G$218),--(DataCAPEX!Y$14:Y$218)) -> 1112070.719 | Z21: =SUMPRODUCT(--($D21=DataCAPEX!$E$14:$E$218),--(Traralgon!$E21=DataCAPEX!$G$14:$G$218),--(DataCAPEX!Z$14:Z$218)) -> 182543.3205 | AA21: =SUMPRODUCT(--($D21=DataCAPEX!$E$14:$E$218),--(Traralgon!$E21=DataCAPEX!$G$14:$G$218),--(DataCAPEX!AA$14:AA$218)) -> 0 | AB21: =SUMPRODUCT(--($D21=DataCAPEX!$E$14:$E$218),--(Traralgon!$E21=DataCAPEX!$G$14:$G$218),--(DataCAPEX!AB$14:AB$218)) -> 46220.0028 | AC21: =SUMPRODUCT(--($D21=DataCAPEX!$E$14:$E$218),--(Traralgon!$E21=DataCAPEX!$G$14:$G$218),--(DataCAPEX!AC$14:AC$218)) -> 67843.00362 | AD21: =SUMPRODUCT(--($D21=DataCAPEX!$E$14:$E$218),--(Traralgon!$E21=DataCAPEX!$G$14:$G$218),--(DataCAPEX!AD$14:AD$218)) -> 67843.00362 | AE21: =SUMPRODUCT(--($D21=DataCAPEX!$E$14:$E$218),--(Traralgon!$E21=DataCAPEX!$G$14:$G$218),--(DataCAPEX!AE$14:AE$218)) -> 0 | AF21: =SUMPRODUCT(--($D21=DataCAPEX!$E$14:$E$218),--(Traralgon!$E21=DataCAPEX!$G$14:$G$218),--(DataCAPEX!AF$14:AF$218)) -> 0 | AG21: =SUMPRODUCT(--($D21=DataCAPEX!$E$14:$E$218),--(Traralgon!$E21=DataCAPEX!$G$14:$G$218),--(DataCAPEX!AG$14:AG$218)) -> 0 | AH21: =SUMPRODUCT(--($D21=DataCAPEX!$E$14:$E$218),--(Traralgon!$E21=DataCAPEX!$G$14:$G$218),--(DataCAPEX!AH$14:AH$218)) -> 0 | AI21: =SUMPRODUCT(--($D21=DataCAPEX!$E$14:$E$218),--(Traralgon!$E21=DataCAPEX!$G$14:$G$218),--(DataCAPEX!AI$14:AI$218)) -> 226091.1699 | AJ21: =SUMPRODUCT(--($D21=DataCAPEX!$E$14:$E$218),--(Traralgon!$E21=DataCAPEX!$G$14:$G$218),--(DataCAPEX!AJ$14:AJ$218)) -> 327855.6754 | AK21: =SUMPRODUCT(--($D21=DataCAPEX!$E$14:$E$218),--(Traralgon!$E21=DataCAPEX!$G$14:$G$218),--(DataCAPEX!AK$14:AK$218)) -> 1243512.615 | AL21: =SUMPRODUCT(--($D21=DataCAPEX!$E$14:$E$218),--(Traralgon!$E21=DataCAPEX!$G$14:$G$218),--(DataCAPEX!AL$14:AL$218)) -> 2267933.396 | AM21: =SUMPRODUCT(--($D21=DataCAPEX!$E$14:$E$218),--(Traralgon!$E21=DataCAPEX!$G$14:$G$218),--(DataCAPEX!AM$14:AM$218)) -> 2267933.396 | AN21: =SUMPRODUCT(--($D21=DataCAPEX!$E$14:$E$218),--(Traralgon!$E21=DataCAPEX!$G$14:$G$218),--(DataCAPEX!AN$14:AN$218)) -> 3398495.635 | AO21: =SUMPRODUCT(--($D21=DataCAPEX!$E$14:$E$218),--(Traralgon!$E21=DataCAPEX!$G$14:$G$218),--(DataCAPEX!AO$14:AO$218)) -> 0 | AP21: =SUMPRODUCT(--($D21=DataCAPEX!$E$14:$E$218),--(Traralgon!$E21=DataCAPEX!$G$14:$G$218),--(DataCAPEX!AP$14:AP$218)) -> 0
D22: Traralgon | E22: WPS | P22: $ | Q22: =NPV('DataCON&ASSUMPTIONS'!$F$48,Traralgon!W22:AP22) -> 0 | R22: =SUMPRODUCT(--($D22=DataCAPEX!$E$14:$E$218),--(Traralgon!$E22=DataCAPEX!$G$14:$G$218),--(DataCAPEX!R$14:R$218)) -> 0 | S22: =SUMPRODUCT(--($D22=DataCAPEX!$E$14:$E$218),--(Traralgon!$E22=DataCAPEX!$G$14:$G$218),--(DataCAPEX!S$14:S$218)) -> 0 | T22: =SUMPRODUCT(--($D22=DataCAPEX!$E$14:$E$218),--(Traralgon!$E22=DataCAPEX!$G$14:$G$218),--(DataCAPEX!T$14:T$218)) -> 0 | U22: =SUMPRODUCT(--($D22=DataCAPEX!$E$14:$E$218),--(Traralgon!$E22=DataCAPEX!$G$14:$G$218),--(DataCAPEX!U$14:U$218)) -> 0 | V22: =SUMPRODUCT(--($D22=DataCAPEX!$E$14:$E$218),--(Traralgon!$E22=DataCAPEX!$G$14:$G$218),--(DataCAPEX!V$14:V$218)) -> 0 | W22: =SUMPRODUCT(--($D22=DataCAPEX!$E$14:$E$218),--(Traralgon!$E22=DataCAPEX!$G$14:$G$218),--(DataCAPEX!W$14:W$218)) -> 0 | X22: =SUMPRODUCT(--($D22=DataCAPEX!$E$14:$E$218),--(Traralgon!$E22=DataCAPEX!$G$14:$G$218),--(DataCAPEX!X$14:X$218)) -> 0 | Y22: =SUMPRODUCT(--($D22=DataCAPEX!$E$14:$E$218),--(Traralgon!$E22=DataCAPEX!$G$14:$G$218),--(DataCAPEX!Y$14:Y$218)) -> 0 | Z22: =SUMPRODUCT(--($D22=DataCAPEX!$E$14:$E$218),--(Traralgon!$E22=DataCAPEX!$G$14:$G$218),--(DataCAPEX!Z$14:Z$218)) -> 0 | AA22: =SUMPRODUCT(--($D22=DataCAPEX!$E$14:$E$218),--(Traralgon!$E22=DataCAPEX!$G$14:$G$218),--(DataCAPEX!AA$14:AA$218)) -> 0 | AB22: =SUMPRODUCT(--($D22=DataCAPEX!$E$14:$E$218),--(Traralgon!$E22=DataCAPEX!$G$14:$G$218),--(DataCAPEX!AB$14:AB$218)) -> 0 | AC22: =SUMPRODUCT(--($D22=DataCAPEX!$E$14:$E$218),--(Traralgon!$E22=DataCAPEX!$G$14:$G$218),--(DataCAPEX!AC$14:AC$218)) -> 0 | AD22: =SUMPRODUCT(--($D22=DataCAPEX!$E$14:$E$218),--(Traralgon!$E22=DataCAPEX!$G$14:$G$218),--(DataCAPEX!AD$14:AD$218)) -> 0 | AE22: =SUMPRODUCT(--($D22=DataCAPEX!$E$14:$E$218),--(Traralgon!$E22=DataCAPEX!$G$14:$G$218),--(DataCAPEX!AE$14:AE$218)) -> 0 | AF22: =SUMPRODUCT(--($D22=DataCAPEX!$E$14:$E$218),--(Traralgon!$E22=DataCAPEX!$G$14:$G$218),--(DataCAPEX!AF$14:AF$218)) -> 0 | AG22: =SUMPRODUCT(--($D22=DataCAPEX!$E$14:$E$218),--(Traralgon!$E22=DataCAPEX!$G$14:$G$218),--(DataCAPEX!AG$14:AG$218)) -> 0 | AH22: =SUMPRODUCT(--($D22=DataCAPEX!$E$14:$E$218),--(Traralgon!$E22=DataCAPEX!$G$14:$G$218),--(DataCAPEX!AH$14:AH$218)) -> 0 | AI22: =SUMPRODUCT(--($D22=DataCAPEX!$E$14:$E$218),--(Traralgon!$E22=DataCAPEX!$G$14:$G$218),--(DataCAPEX!AI$14:AI$218)) -> 0 | AJ22: =SUMPRODUCT(--($D22=DataCAPEX!$E$14:$E$218),--(Traralgon!$E22=DataCAPEX!$G$14:$G$218),--(DataCAPEX!AJ$14:AJ$218)) -> 0 | AK22: =SUMPRODUCT(--($D22=DataCAPEX!$E$14:$E$218),--(Traralgon!$E22=DataCAPEX!$G$14:$G$218),--(DataCAPEX!AK$14:AK$218)) -> 0 | AL22: =SUMPRODUCT(--($D22=DataCAPEX!$E$14:$E$218),--(Traralgon!$E22=DataCAPEX!$G$14:$G$218),--(DataCAPEX!AL$14:AL$218)) -> 0 | AM22: =SUMPRODUCT(--($D22=DataCAPEX!$E$14:$E$218),--(Traralgon!$E22=DataCAPEX!$G$14:$G$218),--(DataCAPEX!AM$14:AM$218)) -> 0 | AN22: =SUMPRODUCT(--($D22=DataCAPEX!$E$14:$E$218),--(Traralgon!$E22=DataCAPEX!$G$14:$G$218),--(DataCAPEX!AN$14:AN$218)) -> 0 | AO22: =SUMPRODUCT(--($D22=DataCAPEX!$E$14:$E$218),--(Traralgon!$E22=DataCAPEX!$G$14:$G$218),--(DataCAPEX!AO$14:AO$218)) -> 0 | AP22: =SUMPRODUCT(--($D22=DataCAPEX!$E$14:$E$218),--(Traralgon!$E22=DataCAPEX!$G$14:$G$218),--(DataCAPEX!AP$14:AP$218)) -> 0
D23: Traralgon | E23: WWTP | P23: $ | Q23: =NPV('DataCON&ASSUMPTIONS'!$F$48,Traralgon!W23:AP23) -> 0 | R23: =SUMPRODUCT(--($D23=DataCAPEX!$E$14:$E$218),--(Traralgon!$E23=DataCAPEX!$G$14:$G$218),--(DataCAPEX!R$14:R$218)) -> 0 | S23: =SUMPRODUCT(--($D23=DataCAPEX!$E$14:$E$218),--(Traralgon!$E23=DataCAPEX!$G$14:$G$218),--(DataCAPEX!S$14:S$218)) -> 0 | T23: =SUMPRODUCT(--($D23=DataCAPEX!$E$14:$E$218),--(Traralgon!$E23=DataCAPEX!$G$14:$G$218),--(DataCAPEX!T$14:T$218)) -> 0 | U23: =SUMPRODUCT(--($D23=DataCAPEX!$E$14:$E$218),--(Traralgon!$E23=DataCAPEX!$G$14:$G$218),--(DataCAPEX!U$14:U$218)) -> 0 | V23: =SUMPRODUCT(--($D23=DataCAPEX!$E$14:$E$218),--(Traralgon!$E23=DataCAPEX!$G$14:$G$218),--(DataCAPEX!V$14:V$218)) -> 0 | W23: =SUMPRODUCT(--($D23=DataCAPEX!$E$14:$E$218),--(Traralgon!$E23=DataCAPEX!$G$14:$G$218),--(DataCAPEX!W$14:W$218)) -> 0 | X23: =SUMPRODUCT(--($D23=DataCAPEX!$E$14:$E$218),--(Traralgon!$E23=DataCAPEX!$G$14:$G$218),--(DataCAPEX!X$14:X$218)) -> 0 | Y23: =SUMPRODUCT(--($D23=DataCAPEX!$E$14:$E$218),--(Traralgon!$E23=DataCAPEX!$G$14:$G$218),--(DataCAPEX!Y$14:Y$218)) -> 0 | Z23: =SUMPRODUCT(--($D23=DataCAPEX!$E$14:$E$218),--(Traralgon!$E23=DataCAPEX!$G$14:$G$218),--(DataCAPEX!Z$14:Z$218)) -> 0 | AA23: =SUMPRODUCT(--($D23=DataCAPEX!$E$14:$E$218),--(Traralgon!$E23=DataCAPEX!$G$14:$G$218),--(DataCAPEX!AA$14:AA$218)) -> 0 | AB23: =SUMPRODUCT(--($D23=DataCAPEX!$E$14:$E$218),--(Traralgon!$E23=DataCAPEX!$G$14:$G$218),--(DataCAPEX!AB$14:AB$218)) -> 0 | AC23: =SUMPRODUCT(--($D23=DataCAPEX!$E$14:$E$218),--(Traralgon!$E23=DataCAPEX!$G$14:$G$218),--(DataCAPEX!AC$14:AC$218)) -> 0 | AD23: =SUMPRODUCT(--($D23=DataCAPEX!$E$14:$E$218),--(Traralgon!$E23=DataCAPEX!$G$14:$G$218),--(DataCAPEX!AD$14:AD$218)) -> 0 | AE23: =SUMPRODUCT(--($D23=DataCAPEX!$E$14:$E$218),--(Traralgon!$E23=DataCAPEX!$G$14:$G$218),--(DataCAPEX!AE$14:AE$218)) -> 0 | AF23: =SUMPRODUCT(--($D23=DataCAPEX!$E$14:$E$218),--(Traralgon!$E23=DataCAPEX!$G$14:$G$218),--(DataCAPEX!AF$14:AF$218)) -> 0 | AG23: =SUMPRODUCT(--($D23=DataCAPEX!$E$14:$E$218),--(Traralgon!$E23=DataCAPEX!$G$14:$G$218),--(DataCAPEX!AG$14:AG$218)) -> 0 | AH23: =SUMPRODUCT(--($D23=DataCAPEX!$E$14:$E$218),--(Traralgon!$E23=DataCAPEX!$G$14:$G$218),--(DataCAPEX!AH$14:AH$218)) -> 0 | AI23: =SUMPRODUCT(--($D23=DataCAPEX!$E$14:$E$218),--(Traralgon!$E23=DataCAPEX!$G$14:$G$218),--(DataCAPEX!AI$14:AI$218)) -> 0 | AJ23: =SUMPRODUCT(--($D23=DataCAPEX!$E$14:$E$218),--(Traralgon!$E23=DataCAPEX!$G$14:$G$218),--(DataCAPEX!AJ$14:AJ$218)) -> 0 | AK23: =SUMPRODUCT(--($D23=DataCAPEX!$E$14:$E$218),--(Traralgon!$E23=DataCAPEX!$G$14:$G$218),--(DataCAPEX!AK$14:AK$218)) -> 0 | AL23: =SUMPRODUCT(--($D23=DataCAPEX!$E$14:$E$218),--(Traralgon!$E23=DataCAPEX!$G$14:$G$218),--(DataCAPEX!AL$14:AL$218)) -> 0 | AM23: =SUMPRODUCT(--($D23=DataCAPEX!$E$14:$E$218),--(Traralgon!$E23=DataCAPEX!$G$14:$G$218),--(DataCAPEX!AM$14:AM$218)) -> 0 | AN23: =SUMPRODUCT(--($D23=DataCAPEX!$E$14:$E$218),--(Traralgon!$E23=DataCAPEX!$G$14:$G$218),--(DataCAPEX!AN$14:AN$218)) -> 0 | AO23: =SUMPRODUCT(--($D23=DataCAPEX!$E$14:$E$218),--(Traralgon!$E23=DataCAPEX!$G$14:$G$218),--(DataCAPEX!AO$14:AO$218)) -> 0 | AP23: =SUMPRODUCT(--($D23=DataCAPEX!$E$14:$E$218),--(Traralgon!$E23=DataCAPEX!$G$14:$G$218),--(DataCAPEX!AP$14:AP$218)) -> 0
D24: Traralgon | P24: $ | Q24: =NPV('DataCON&ASSUMPTIONS'!$F$48,Traralgon!W24:AP24) -> 0 | R24: =SUMPRODUCT(--($D24=DataCAPEX!$E$14:$E$218),--(Traralgon!$E24=DataCAPEX!$G$14:$G$218),--(DataCAPEX!R$14:R$218)) -> 0 | S24: =SUMPRODUCT(--($D24=DataCAPEX!$E$14:$E$218),--(Traralgon!$E24=DataCAPEX!$G$14:$G$218),--(DataCAPEX!S$14:S$218)) -> 0 | T24: =SUMPRODUCT(--($D24=DataCAPEX!$E$14:$E$218),--(Traralgon!$E24=DataCAPEX!$G$14:$G$218),--(DataCAPEX!T$14:T$218)) -> 0 | U24: =SUMPRODUCT(--($D24=DataCAPEX!$E$14:$E$218),--(Traralgon!$E24=DataCAPEX!$G$14:$G$218),--(DataCAPEX!U$14:U$218)) -> 0 | V24: =SUMPRODUCT(--($D24=DataCAPEX!$E$14:$E$218),--(Traralgon!$E24=DataCAPEX!$G$14:$G$218),--(DataCAPEX!V$14:V$218)) -> 0 | W24: =SUMPRODUCT(--($D24=DataCAPEX!$E$14:$E$218),--(Traralgon!$E24=DataCAPEX!$G$14:$G$218),--(DataCAPEX!W$14:W$218)) -> 0 | X24: =SUMPRODUCT(--($D24=DataCAPEX!$E$14:$E$218),--(Traralgon!$E24=DataCAPEX!$G$14:$G$218),--(DataCAPEX!X$14:X$218)) -> 0 | Y24: =SUMPRODUCT(--($D24=DataCAPEX!$E$14:$E$218),--(Traralgon!$E24=DataCAPEX!$G$14:$G$218),--(DataCAPEX!Y$14:Y$218)) -> 0 | Z24: =SUMPRODUCT(--($D24=DataCAPEX!$E$14:$E$218),--(Traralgon!$E24=DataCAPEX!$G$14:$G$218),--(DataCAPEX!Z$14:Z$218)) -> 0 | AA24: =SUMPRODUCT(--($D24=DataCAPEX!$E$14:$E$218),--(Traralgon!$E24=DataCAPEX!$G$14:$G$218),--(DataCAPEX!AA$14:AA$218)) -> 0 | AB24: =SUMPRODUCT(--($D24=DataCAPEX!$E$14:$E$218),--(Traralgon!$E24=DataCAPEX!$G$14:$G$218),--(DataCAPEX!AB$14:AB$218)) -> 0 | AC24: =SUMPRODUCT(--($D24=DataCAPEX!$E$14:$E$218),--(Traralgon!$E24=DataCAPEX!$G$14:$G$218),--(DataCAPEX!AC$14:AC$218)) -> 0 | AD24: =SUMPRODUCT(--($D24=DataCAPEX!$E$14:$E$218),--(Traralgon!$E24=DataCAPEX!$G$14:$G$218),--(DataCAPEX!AD$14:AD$218)) -> 0 | AE24: =SUMPRODUCT(--($D24=DataCAPEX!$E$14:$E$218),--(Traralgon!$E24=DataCAPEX!$G$14:$G$218),--(DataCAPEX!AE$14:AE$218)) -> 0 | AF24: =SUMPRODUCT(--($D24=DataCAPEX!$E$14:$E$218),--(Traralgon!$E24=DataCAPEX!$G$14:$G$218),--(DataCAPEX!AF$14:AF$218)) -> 0 | AG24: =SUMPRODUCT(--($D24=DataCAPEX!$E$14:$E$218),--(Traralgon!$E24=DataCAPEX!$G$14:$G$218),--(DataCAPEX!AG$14:AG$218)) -> 0 | AH24: =SUMPRODUCT(--($D24=DataCAPEX!$E$14:$E$218),--(Traralgon!$E24=DataCAPEX!$G$14:$G$218),--(DataCAPEX!AH$14:AH$218)) -> 0 | AI24: =SUMPRODUCT(--($D24=DataCAPEX!$E$14:$E$218),--(Traralgon!$E24=DataCAPEX!$G$14:$G$218),--(DataCAPEX!AI$14:AI$218)) -> 0 | AJ24: =SUMPRODUCT(--($D24=DataCAPEX!$E$14:$E$218),--(Traralgon!$E24=DataCAPEX!$G$14:$G$218),--(DataCAPEX!AJ$14:AJ$218)) -> 0 | AK24: =SUMPRODUCT(--($D24=DataCAPEX!$E$14:$E$218),--(Traralgon!$E24=DataCAPEX!$G$14:$G$218),--(DataCAPEX!AK$14:AK$218)) -> 0 | AL24: =SUMPRODUCT(--($D24=DataCAPEX!$E$14:$E$218),--(Traralgon!$E24=DataCAPEX!$G$14:$G$218),--(DataCAPEX!AL$14:AL$218)) -> 0 | AM24: =SUMPRODUCT(--($D24=DataCAPEX!$E$14:$E$218),--(Traralgon!$E24=DataCAPEX!$G$14:$G$218),--(DataCAPEX!AM$14:AM$218)) -> 0 | AN24: =SUMPRODUCT(--($D24=DataCAPEX!$E$14:$E$218),--(Traralgon!$E24=DataCAPEX!$G$14:$G$218),--(DataCAPEX!AN$14:AN$218)) -> 0 | AO24: =SUMPRODUCT(--($D24=DataCAPEX!$E$14:$E$218),--(Traralgon!$E24=DataCAPEX!$G$14:$G$218),--(DataCAPEX!AO$14:AO$218)) -> 0 | AP24: =SUMPRODUCT(--($D24=DataCAPEX!$E$14:$E$218),--(Traralgon!$E24=DataCAPEX!$G$14:$G$218),--(DataCAPEX!AP$14:AP$218)) -> 0
D25: Traralgon | P25: $ | Q25: =NPV('DataCON&ASSUMPTIONS'!$F$48,Traralgon!W25:AP25) -> 0 | R25: =SUMPRODUCT(--($D25=DataCAPEX!$E$14:$E$218),--(Traralgon!$E25=DataCAPEX!$G$14:$G$218),--(DataCAPEX!R$14:R$218)) -> 0 | S25: =SUMPRODUCT(--($D25=DataCAPEX!$E$14:$E$218),--(Traralgon!$E25=DataCAPEX!$G$14:$G$218),--(DataCAPEX!S$14:S$218)) -> 0 | T25: =SUMPRODUCT(--($D25=DataCAPEX!$E$14:$E$218),--(Traralgon!$E25=DataCAPEX!$G$14:$G$218),--(DataCAPEX!T$14:T$218)) -> 0 | U25: =SUMPRODUCT(--($D25=DataCAPEX!$E$14:$E$218),--(Traralgon!$E25=DataCAPEX!$G$14:$G$218),--(DataCAPEX!U$14:U$218)) -> 0 | V25: =SUMPRODUCT(--($D25=DataCAPEX!$E$14:$E$218),--(Traralgon!$E25=DataCAPEX!$G$14:$G$218),--(DataCAPEX!V$14:V$218)) -> 0 | W25: =SUMPRODUCT(--($D25=DataCAPEX!$E$14:$E$218),--(Traralgon!$E25=DataCAPEX!$G$14:$G$218),--(DataCAPEX!W$14:W$218)) -> 0 | X25: =SUMPRODUCT(--($D25=DataCAPEX!$E$14:$E$218),--(Traralgon!$E25=DataCAPEX!$G$14:$G$218),--(DataCAPEX!X$14:X$218)) -> 0 | Y25: =SUMPRODUCT(--($D25=DataCAPEX!$E$14:$E$218),--(Traralgon!$E25=DataCAPEX!$G$14:$G$218),--(DataCAPEX!Y$14:Y$218)) -> 0 | Z25: =SUMPRODUCT(--($D25=DataCAPEX!$E$14:$E$218),--(Traralgon!$E25=DataCAPEX!$G$14:$G$218),--(DataCAPEX!Z$14:Z$218)) -> 0 | AA25: =SUMPRODUCT(--($D25=DataCAPEX!$E$14:$E$218),--(Traralgon!$E25=DataCAPEX!$G$14:$G$218),--(DataCAPEX!AA$14:AA$218)) -> 0 | AB25: =SUMPRODUCT(--($D25=DataCAPEX!$E$14:$E$218),--(Traralgon!$E25=DataCAPEX!$G$14:$G$218),--(DataCAPEX!AB$14:AB$218)) -> 0 | AC25: =SUMPRODUCT(--($D25=DataCAPEX!$E$14:$E$218),--(Traralgon!$E25=DataCAPEX!$G$14:$G$218),--(DataCAPEX!AC$14:AC$218)) -> 0 | AD25: =SUMPRODUCT(--($D25=DataCAPEX!$E$14:$E$218),--(Traralgon!$E25=DataCAPEX!$G$14:$G$218),--(DataCAPEX!AD$14:AD$218)) -> 0 | AE25: =SUMPRODUCT(--($D25=DataCAPEX!$E$14:$E$218),--(Traralgon!$E25=DataCAPEX!$G$14:$G$218),--(DataCAPEX!AE$14:AE$218)) -> 0 | AF25: =SUMPRODUCT(--($D25=DataCAPEX!$E$14:$E$218),--(Traralgon!$E25=DataCAPEX!$G$14:$G$218),--(DataCAPEX!AF$14:AF$218)) -> 0 | AG25: =SUMPRODUCT(--($D25=DataCAPEX!$E$14:$E$218),--(Traralgon!$E25=DataCAPEX!$G$14:$G$218),--(DataCAPEX!AG$14:AG$218)) -> 0 | AH25: =SUMPRODUCT(--($D25=DataCAPEX!$E$14:$E$218),--(Traralgon!$E25=DataCAPEX!$G$14:$G$218),--(DataCAPEX!AH$14:AH$218)) -> 0 | AI25: =SUMPRODUCT(--($D25=DataCAPEX!$E$14:$E$218),--(Traralgon!$E25=DataCAPEX!$G$14:$G$218),--(DataCAPEX!AI$14:AI$218)) -> 0 | AJ25: =SUMPRODUCT(--($D25=DataCAPEX!$E$14:$E$218),--(Traralgon!$E25=DataCAPEX!$G$14:$G$218),--(DataCAPEX!AJ$14:AJ$218)) -> 0 | AK25: =SUMPRODUCT(--($D25=DataCAPEX!$E$14:$E$218),--(Traralgon!$E25=DataCAPEX!$G$14:$G$218),--(DataCAPEX!AK$14:AK$218)) -> 0 | AL25: =SUMPRODUCT(--($D25=DataCAPEX!$E$14:$E$218),--(Traralgon!$E25=DataCAPEX!$G$14:$G$218),--(DataCAPEX!AL$14:AL$218)) -> 0 | AM25: =SUMPRODUCT(--($D25=DataCAPEX!$E$14:$E$218),--(Traralgon!$E25=DataCAPEX!$G$14:$G$218),--(DataCAPEX!AM$14:AM$218)) -> 0 | AN25: =SUMPRODUCT(--($D25=DataCAPEX!$E$14:$E$218),--(Traralgon!$E25=DataCAPEX!$G$14:$G$218),--(DataCAPEX!AN$14:AN$218)) -> 0 | AO25: =SUMPRODUCT(--($D25=DataCAPEX!$E$14:$E$218),--(Traralgon!$E25=DataCAPEX!$G$14:$G$218),--(DataCAPEX!AO$14:AO$218)) -> 0 | AP25: =SUMPRODUCT(--($D25=DataCAPEX!$E$14:$E$218),--(Traralgon!$E25=DataCAPEX!$G$14:$G$218),--(DataCAPEX!AP$14:AP$218)) -> 0
D26: Traralgon | P26: $ | Q26: =NPV('DataCON&ASSUMPTIONS'!$F$48,Traralgon!W26:AP26) -> 0 | R26: =SUMPRODUCT(--($D26=DataCAPEX!$E$14:$E$218),--(Traralgon!$E26=DataCAPEX!$G$14:$G$218),--(DataCAPEX!R$14:R$218)) -> 0 | S26: =SUMPRODUCT(--($D26=DataCAPEX!$E$14:$E$218),--(Traralgon!$E26=DataCAPEX!$G$14:$G$218),--(DataCAPEX!S$14:S$218)) -> 0 | T26: =SUMPRODUCT(--($D26=DataCAPEX!$E$14:$E$218),--(Traralgon!$E26=DataCAPEX!$G$14:$G$218),--(DataCAPEX!T$14:T$218)) -> 0 | U26: =SUMPRODUCT(--($D26=DataCAPEX!$E$14:$E$218),--(Traralgon!$E26=DataCAPEX!$G$14:$G$218),--(DataCAPEX!U$14:U$218)) -> 0 | V26: =SUMPRODUCT(--($D26=DataCAPEX!$E$14:$E$218),--(Traralgon!$E26=DataCAPEX!$G$14:$G$218),--(DataCAPEX!V$14:V$218)) -> 0 | W26: =SUMPRODUCT(--($D26=DataCAPEX!$E$14:$E$218),--(Traralgon!$E26=DataCAPEX!$G$14:$G$218),--(DataCAPEX!W$14:W$218)) -> 0 | X26: =SUMPRODUCT(--($D26=DataCAPEX!$E$14:$E$218),--(Traralgon!$E26=DataCAPEX!$G$14:$G$218),--(DataCAPEX!X$14:X$218)) -> 0 | Y26: =SUMPRODUCT(--($D26=DataCAPEX!$E$14:$E$218),--(Traralgon!$E26=DataCAPEX!$G$14:$G$218),--(DataCAPEX!Y$14:Y$218)) -> 0 | Z26: =SUMPRODUCT(--($D26=DataCAPEX!$E$14:$E$218),--(Traralgon!$E26=DataCAPEX!$G$14:$G$218),--(DataCAPEX!Z$14:Z$218)) -> 0 | AA26: =SUMPRODUCT(--($D26=DataCAPEX!$E$14:$E$218),--(Traralgon!$E26=DataCAPEX!$G$14:$G$218),--(DataCAPEX!AA$14:AA$218)) -> 0 | AB26: =SUMPRODUCT(--($D26=DataCAPEX!$E$14:$E$218),--(Traralgon!$E26=DataCAPEX!$G$14:$G$218),--(DataCAPEX!AB$14:AB$218)) -> 0 | AC26: =SUMPRODUCT(--($D26=DataCAPEX!$E$14:$E$218),--(Traralgon!$E26=DataCAPEX!$G$14:$G$218),--(DataCAPEX!AC$14:AC$218)) -> 0 | AD26: =SUMPRODUCT(--($D26=DataCAPEX!$E$14:$E$218),--(Traralgon!$E26=DataCAPEX!$G$14:$G$218),--(DataCAPEX!AD$14:AD$218)) -> 0 | AE26: =SUMPRODUCT(--($D26=DataCAPEX!$E$14:$E$218),--(Traralgon!$E26=DataCAPEX!$G$14:$G$218),--(DataCAPEX!AE$14:AE$218)) -> 0 | AF26: =SUMPRODUCT(--($D26=DataCAPEX!$E$14:$E$218),--(Traralgon!$E26=DataCAPEX!$G$14:$G$218),--(DataCAPEX!AF$14:AF$218)) -> 0 | AG26: =SUMPRODUCT(--($D26=DataCAPEX!$E$14:$E$218),--(Traralgon!$E26=DataCAPEX!$G$14:$G$218),--(DataCAPEX!AG$14:AG$218)) -> 0 | AH26: =SUMPRODUCT(--($D26=DataCAPEX!$E$14:$E$218),--(Traralgon!$E26=DataCAPEX!$G$14:$G$218),--(DataCAPEX!AH$14:AH$218)) -> 0 | AI26: =SUMPRODUCT(--($D26=DataCAPEX!$E$14:$E$218),--(Traralgon!$E26=DataCAPEX!$G$14:$G$218),--(DataCAPEX!AI$14:AI$218)) -> 0 | AJ26: =SUMPRODUCT(--($D26=DataCAPEX!$E$14:$E$218),--(Traralgon!$E26=DataCAPEX!$G$14:$G$218),--(DataCAPEX!AJ$14:AJ$218)) -> 0 | AK26: =SUMPRODUCT(--($D26=DataCAPEX!$E$14:$E$218),--(Traralgon!$E26=DataCAPEX!$G$14:$G$218),--(DataCAPEX!AK$14:AK$218)) -> 0 | AL26: =SUMPRODUCT(--($D26=DataCAPEX!$E$14:$E$218),--(Traralgon!$E26=DataCAPEX!$G$14:$G$218),--(DataCAPEX!AL$14:AL$218)) -> 0 | AM26: =SUMPRODUCT(--($D26=DataCAPEX!$E$14:$E$218),--(Traralgon!$E26=DataCAPEX!$G$14:$G$218),--(DataCAPEX!AM$14:AM$218)) -> 0 | AN26: =SUMPRODUCT(--($D26=DataCAPEX!$E$14:$E$218),--(Traralgon!$E26=DataCAPEX!$G$14:$G$218),--(DataCAPEX!AN$14:AN$218)) -> 0 | AO26: =SUMPRODUCT(--($D26=DataCAPEX!$E$14:$E$218),--(Traralgon!$E26=DataCAPEX!$G$14:$G$218),--(DataCAPEX!AO$14:AO$218)) -> 0 | AP26: =SUMPRODUCT(--($D26=DataCAPEX!$E$14:$E$218),--(Traralgon!$E26=DataCAPEX!$G$14:$G$218),--(DataCAPEX!AP$14:AP$218)) -> 0
D27: Traralgon | P27: $ | Q27: =NPV('DataCON&ASSUMPTIONS'!$F$48,Traralgon!W27:AP27) -> 0 | R27: =SUMPRODUCT(--($D27=DataCAPEX!$E$14:$E$218),--(Traralgon!$E27=DataCAPEX!$G$14:$G$218),--(DataCAPEX!R$14:R$218)) -> 0 | S27: =SUMPRODUCT(--($D27=DataCAPEX!$E$14:$E$218),--(Traralgon!$E27=DataCAPEX!$G$14:$G$218),--(DataCAPEX!S$14:S$218)) -> 0 | T27: =SUMPRODUCT(--($D27=DataCAPEX!$E$14:$E$218),--(Traralgon!$E27=DataCAPEX!$G$14:$G$218),--(DataCAPEX!T$14:T$218)) -> 0 | U27: =SUMPRODUCT(--($D27=DataCAPEX!$E$14:$E$218),--(Traralgon!$E27=DataCAPEX!$G$14:$G$218),--(DataCAPEX!U$14:U$218)) -> 0 | V27: =SUMPRODUCT(--($D27=DataCAPEX!$E$14:$E$218),--(Traralgon!$E27=DataCAPEX!$G$14:$G$218),--(DataCAPEX!V$14:V$218)) -> 0 | W27: =SUMPRODUCT(--($D27=DataCAPEX!$E$14:$E$218),--(Traralgon!$E27=DataCAPEX!$G$14:$G$218),--(DataCAPEX!W$14:W$218)) -> 0 | X27: =SUMPRODUCT(--($D27=DataCAPEX!$E$14:$E$218),--(Traralgon!$E27=DataCAPEX!$G$14:$G$218),--(DataCAPEX!X$14:X$218)) -> 0 | Y27: =SUMPRODUCT(--($D27=DataCAPEX!$E$14:$E$218),--(Traralgon!$E27=DataCAPEX!$G$14:$G$218),--(DataCAPEX!Y$14:Y$218)) -> 0 | Z27: =SUMPRODUCT(--($D27=DataCAPEX!$E$14:$E$218),--(Traralgon!$E27=DataCAPEX!$G$14:$G$218),--(DataCAPEX!Z$14:Z$218)) -> 0 | AA27: =SUMPRODUCT(--($D27=DataCAPEX!$E$14:$E$218),--(Traralgon!$E27=DataCAPEX!$G$14:$G$218),--(DataCAPEX!AA$14:AA$218)) -> 0 | AB27: =SUMPRODUCT(--($D27=DataCAPEX!$E$14:$E$218),--(Traralgon!$E27=DataCAPEX!$G$14:$G$218),--(DataCAPEX!AB$14:AB$218)) -> 0 | AC27: =SUMPRODUCT(--($D27=DataCAPEX!$E$14:$E$218),--(Traralgon!$E27=DataCAPEX!$G$14:$G$218),--(DataCAPEX!AC$14:AC$218)) -> 0 | AD27: =SUMPRODUCT(--($D27=DataCAPEX!$E$14:$E$218),--(Traralgon!$E27=DataCAPEX!$G$14:$G$218),--(DataCAPEX!AD$14:AD$218)) -> 0 | AE27: =SUMPRODUCT(--($D27=DataCAPEX!$E$14:$E$218),--(Traralgon!$E27=DataCAPEX!$G$14:$G$218),--(DataCAPEX!AE$14:AE$218)) -> 0 | AF27: =SUMPRODUCT(--($D27=DataCAPEX!$E$14:$E$218),--(Traralgon!$E27=DataCAPEX!$G$14:$G$218),--(DataCAPEX!AF$14:AF$218)) -> 0 | AG27: =SUMPRODUCT(--($D27=DataCAPEX!$E$14:$E$218),--(Traralgon!$E27=DataCAPEX!$G$14:$G$218),--(DataCAPEX!AG$14:AG$218)) -> 0 | AH27: =SUMPRODUCT(--($D27=DataCAPEX!$E$14:$E$218),--(Traralgon!$E27=DataCAPEX!$G$14:$G$218),--(DataCAPEX!AH$14:AH$218)) -> 0 | AI27: =SUMPRODUCT(--($D27=DataCAPEX!$E$14:$E$218),--(Traralgon!$E27=DataCAPEX!$G$14:$G$218),--(DataCAPEX!AI$14:AI$218)) -> 0 | AJ27: =SUMPRODUCT(--($D27=DataCAPEX!$E$14:$E$218),--(Traralgon!$E27=DataCAPEX!$G$14:$G$218),--(DataCAPEX!AJ$14:AJ$218)) -> 0 | AK27: =SUMPRODUCT(--($D27=DataCAPEX!$E$14:$E$218),--(Traralgon!$E27=DataCAPEX!$G$14:$G$218),--(DataCAPEX!AK$14:AK$218)) -> 0 | AL27: =SUMPRODUCT(--($D27=DataCAPEX!$E$14:$E$218),--(Traralgon!$E27=DataCAPEX!$G$14:$G$218),--(DataCAPEX!AL$14:AL$218)) -> 0 | AM27: =SUMPRODUCT(--($D27=DataCAPEX!$E$14:$E$218),--(Traralgon!$E27=DataCAPEX!$G$14:$G$218),--(DataCAPEX!AM$14:AM$218)) -> 0 | AN27: =SUMPRODUCT(--($D27=DataCAPEX!$E$14:$E$218),--(Traralgon!$E27=DataCAPEX!$G$14:$G$218),--(DataCAPEX!AN$14:AN$218)) -> 0 | AO27: =SUMPRODUCT(--($D27=DataCAPEX!$E$14:$E$218),--(Traralgon!$E27=DataCAPEX!$G$14:$G$218),--(DataCAPEX!AO$14:AO$218)) -> 0 | AP27: =SUMPRODUCT(--($D27=DataCAPEX!$E$14:$E$218),--(Traralgon!$E27=DataCAPEX!$G$14:$G$218),--(DataCAPEX!AP$14:AP$218)) -> 0
D28: Traralgon | P28: $ | Q28: =NPV('DataCON&ASSUMPTIONS'!$F$48,Traralgon!W28:AP28) -> 0 | R28: =SUMPRODUCT(--($D28=DataCAPEX!$E$14:$E$218),--(Traralgon!$E28=DataCAPEX!$G$14:$G$218),--(DataCAPEX!R$14:R$218)) -> 0 | S28: =SUMPRODUCT(--($D28=DataCAPEX!$E$14:$E$218),--(Traralgon!$E28=DataCAPEX!$G$14:$G$218),--(DataCAPEX!S$14:S$218)) -> 0 | T28: =SUMPRODUCT(--($D28=DataCAPEX!$E$14:$E$218),--(Traralgon!$E28=DataCAPEX!$G$14:$G$218),--(DataCAPEX!T$14:T$218)) -> 0 | U28: =SUMPRODUCT(--($D28=DataCAPEX!$E$14:$E$218),--(Traralgon!$E28=DataCAPEX!$G$14:$G$218),--(DataCAPEX!U$14:U$218)) -> 0 | V28: =SUMPRODUCT(--($D28=DataCAPEX!$E$14:$E$218),--(Traralgon!$E28=DataCAPEX!$G$14:$G$218),--(DataCAPEX!V$14:V$218)) -> 0 | W28: =SUMPRODUCT(--($D28=DataCAPEX!$E$14:$E$218),--(Traralgon!$E28=DataCAPEX!$G$14:$G$218),--(DataCAPEX!W$14:W$218)) -> 0 | X28: =SUMPRODUCT(--($D28=DataCAPEX!$E$14:$E$218),--(Traralgon!$E28=DataCAPEX!$G$14:$G$218),--(DataCAPEX!X$14:X$218)) -> 0 | Y28: =SUMPRODUCT(--($D28=DataCAPEX!$E$14:$E$218),--(Traralgon!$E28=DataCAPEX!$G$14:$G$218),--(DataCAPEX!Y$14:Y$218)) -> 0 | Z28: =SUMPRODUCT(--($D28=DataCAPEX!$E$14:$E$218),--(Traralgon!$E28=DataCAPEX!$G$14:$G$218),--(DataCAPEX!Z$14:Z$218)) -> 0 | AA28: =SUMPRODUCT(--($D28=DataCAPEX!$E$14:$E$218),--(Traralgon!$E28=DataCAPEX!$G$14:$G$218),--(DataCAPEX!AA$14:AA$218)) -> 0 | AB28: =SUMPRODUCT(--($D28=DataCAPEX!$E$14:$E$218),--(Traralgon!$E28=DataCAPEX!$G$14:$G$218),--(DataCAPEX!AB$14:AB$218)) -> 0 | AC28: =SUMPRODUCT(--($D28=DataCAPEX!$E$14:$E$218),--(Traralgon!$E28=DataCAPEX!$G$14:$G$218),--(DataCAPEX!AC$14:AC$218)) -> 0 | AD28: =SUMPRODUCT(--($D28=DataCAPEX!$E$14:$E$218),--(Traralgon!$E28=DataCAPEX!$G$14:$G$218),--(DataCAPEX!AD$14:AD$218)) -> 0 | AE28: =SUMPRODUCT(--($D28=DataCAPEX!$E$14:$E$218),--(Traralgon!$E28=DataCAPEX!$G$14:$G$218),--(DataCAPEX!AE$14:AE$218)) -> 0 | AF28: =SUMPRODUCT(--($D28=DataCAPEX!$E$14:$E$218),--(Traralgon!$E28=DataCAPEX!$G$14:$G$218),--(DataCAPEX!AF$14:AF$218)) -> 0 | AG28: =SUMPRODUCT(--($D28=DataCAPEX!$E$14:$E$218),--(Traralgon!$E28=DataCAPEX!$G$14:$G$218),--(DataCAPEX!AG$14:AG$218)) -> 0 | AH28: =SUMPRODUCT(--($D28=DataCAPEX!$E$14:$E$218),--(Traralgon!$E28=DataCAPEX!$G$14:$G$218),--(DataCAPEX!AH$14:AH$218)) -> 0 | AI28: =SUMPRODUCT(--($D28=DataCAPEX!$E$14:$E$218),--(Traralgon!$E28=DataCAPEX!$G$14:$G$218),--(DataCAPEX!AI$14:AI$218)) -> 0 | AJ28: =SUMPRODUCT(--($D28=DataCAPEX!$E$14:$E$218),--(Traralgon!$E28=DataCAPEX!$G$14:$G$218),--(DataCAPEX!AJ$14:AJ$218)) -> 0 | AK28: =SUMPRODUCT(--($D28=DataCAPEX!$E$14:$E$218),--(Traralgon!$E28=DataCAPEX!$G$14:$G$218),--(DataCAPEX!AK$14:AK$218)) -> 0 | AL28: =SUMPRODUCT(--($D28=DataCAPEX!$E$14:$E$218),--(Traralgon!$E28=DataCAPEX!$G$14:$G$218),--(DataCAPEX!AL$14:AL$218)) -> 0 | AM28: =SUMPRODUCT(--($D28=DataCAPEX!$E$14:$E$218),--(Traralgon!$E28=DataCAPEX!$G$14:$G$218),--(DataCAPEX!AM$14:AM$218)) -> 0 | AN28: =SUMPRODUCT(--($D28=DataCAPEX!$E$14:$E$218),--(Traralgon!$E28=DataCAPEX!$G$14:$G$218),--(DataCAPEX!AN$14:AN$218)) -> 0 | AO28: =SUMPRODUCT(--($D28=DataCAPEX!$E$14:$E$218),--(Traralgon!$E28=DataCAPEX!$G$14:$G$218),--(DataCAPEX!AO$14:AO$218)) -> 0 | AP28: =SUMPRODUCT(--($D28=DataCAPEX!$E$14:$E$218),--(Traralgon!$E28=DataCAPEX!$G$14:$G$218),--(DataCAPEX!AP$14:AP$218)) -> 0
D29: Traralgon | P29: $ | Q29: =NPV('DataCON&ASSUMPTIONS'!$F$48,Traralgon!W29:AP29) -> 0 | R29: =SUMPRODUCT(--($D29=DataCAPEX!$E$14:$E$218),--(Traralgon!$E29=DataCAPEX!$G$14:$G$218),--(DataCAPEX!R$14:R$218)) -> 0 | S29: =SUMPRODUCT(--($D29=DataCAPEX!$E$14:$E$218),--(Traralgon!$E29=DataCAPEX!$G$14:$G$218),--(DataCAPEX!S$14:S$218)) -> 0 | T29: =SUMPRODUCT(--($D29=DataCAPEX!$E$14:$E$218),--(Traralgon!$E29=DataCAPEX!$G$14:$G$218),--(DataCAPEX!T$14:T$218)) -> 0 | U29: =SUMPRODUCT(--($D29=DataCAPEX!$E$14:$E$218),--(Traralgon!$E29=DataCAPEX!$G$14:$G$218),--(DataCAPEX!U$14:U$218)) -> 0 | V29: =SUMPRODUCT(--($D29=DataCAPEX!$E$14:$E$218),--(Traralgon!$E29=DataCAPEX!$G$14:$G$218),--(DataCAPEX!V$14:V$218)) -> 0 | W29: =SUMPRODUCT(--($D29=DataCAPEX!$E$14:$E$218),--(Traralgon!$E29=DataCAPEX!$G$14:$G$218),--(DataCAPEX!W$14:W$218)) -> 0 | X29: =SUMPRODUCT(--($D29=DataCAPEX!$E$14:$E$218),--(Traralgon!$E29=DataCAPEX!$G$14:$G$218),--(DataCAPEX!X$14:X$218)) -> 0 | Y29: =SUMPRODUCT(--($D29=DataCAPEX!$E$14:$E$218),--(Traralgon!$E29=DataCAPEX!$G$14:$G$218),--(DataCAPEX!Y$14:Y$218)) -> 0 | Z29: =SUMPRODUCT(--($D29=DataCAPEX!$E$14:$E$218),--(Traralgon!$E29=DataCAPEX!$G$14:$G$218),--(DataCAPEX!Z$14:Z$218)) -> 0 | AA29: =SUMPRODUCT(--($D29=DataCAPEX!$E$14:$E$218),--(Traralgon!$E29=DataCAPEX!$G$14:$G$218),--(DataCAPEX!AA$14:AA$218)) -> 0 | AB29: =SUMPRODUCT(--($D29=DataCAPEX!$E$14:$E$218),--(Traralgon!$E29=DataCAPEX!$G$14:$G$218),--(DataCAPEX!AB$14:AB$218)) -> 0 | AC29: =SUMPRODUCT(--($D29=DataCAPEX!$E$14:$E$218),--(Traralgon!$E29=DataCAPEX!$G$14:$G$218),--(DataCAPEX!AC$14:AC$218)) -> 0 | AD29: =SUMPRODUCT(--($D29=DataCAPEX!$E$14:$E$218),--(Traralgon!$E29=DataCAPEX!$G$14:$G$218),--(DataCAPEX!AD$14:AD$218)) -> 0 | AE29: =SUMPRODUCT(--($D29=DataCAPEX!$E$14:$E$218),--(Traralgon!$E29=DataCAPEX!$G$14:$G$218),--(DataCAPEX!AE$14:AE$218)) -> 0 | AF29: =SUMPRODUCT(--($D29=DataCAPEX!$E$14:$E$218),--(Traralgon!$E29=DataCAPEX!$G$14:$G$218),--(DataCAPEX!AF$14:AF$218)) -> 0 | AG29: =SUMPRODUCT(--($D29=DataCAPEX!$E$14:$E$218),--(Traralgon!$E29=DataCAPEX!$G$14:$G$218),--(DataCAPEX!AG$14:AG$218)) -> 0 | AH29: =SUMPRODUCT(--($D29=DataCAPEX!$E$14:$E$218),--(Traralgon!$E29=DataCAPEX!$G$14:$G$218),--(DataCAPEX!AH$14:AH$218)) -> 0 | AI29: =SUMPRODUCT(--($D29=DataCAPEX!$E$14:$E$218),--(Traralgon!$E29=DataCAPEX!$G$14:$G$218),--(DataCAPEX!AI$14:AI$218)) -> 0 | AJ29: =SUMPRODUCT(--($D29=DataCAPEX!$E$14:$E$218),--(Traralgon!$E29=DataCAPEX!$G$14:$G$218),--(DataCAPEX!AJ$14:AJ$218)) -> 0 | AK29: =SUMPRODUCT(--($D29=DataCAPEX!$E$14:$E$218),--(Traralgon!$E29=DataCAPEX!$G$14:$G$218),--(DataCAPEX!AK$14:AK$218)) -> 0 | AL29: =SUMPRODUCT(--($D29=DataCAPEX!$E$14:$E$218),--(Traralgon!$E29=DataCAPEX!$G$14:$G$218),--(DataCAPEX!AL$14:AL$218)) -> 0 | AM29: =SUMPRODUCT(--($D29=DataCAPEX!$E$14:$E$218),--(Traralgon!$E29=DataCAPEX!$G$14:$G$218),--(DataCAPEX!AM$14:AM$218)) -> 0 | AN29: =SUMPRODUCT(--($D29=DataCAPEX!$E$14:$E$218),--(Traralgon!$E29=DataCAPEX!$G$14:$G$218),--(DataCAPEX!AN$14:AN$218)) -> 0 | AO29: =SUMPRODUCT(--($D29=DataCAPEX!$E$14:$E$218),--(Traralgon!$E29=DataCAPEX!$G$14:$G$218),--(DataCAPEX!AO$14:AO$218)) -> 0 | AP29: =SUMPRODUCT(--($D29=DataCAPEX!$E$14:$E$218),--(Traralgon!$E29=DataCAPEX!$G$14:$G$218),--(DataCAPEX!AP$14:AP$218)) -> 0
D30: Traralgon | P30: $ | Q30: =NPV('DataCON&ASSUMPTIONS'!$F$48,Traralgon!W30:AP30) -> 0 | R30: =SUMPRODUCT(--($D30=DataCAPEX!$E$14:$E$218),--(Traralgon!$E30=DataCAPEX!$G$14:$G$218),--(DataCAPEX!R$14:R$218)) -> 0 | S30: =SUMPRODUCT(--($D30=DataCAPEX!$E$14:$E$218),--(Traralgon!$E30=DataCAPEX!$G$14:$G$218),--(DataCAPEX!S$14:S$218)) -> 0 | T30: =SUMPRODUCT(--($D30=DataCAPEX!$E$14:$E$218),--(Traralgon!$E30=DataCAPEX!$G$14:$G$218),--(DataCAPEX!T$14:T$218)) -> 0 | U30: =SUMPRODUCT(--($D30=DataCAPEX!$E$14:$E$218),--(Traralgon!$E30=DataCAPEX!$G$14:$G$218),--(DataCAPEX!U$14:U$218)) -> 0 | V30: =SUMPRODUCT(--($D30=DataCAPEX!$E$14:$E$218),--(Traralgon!$E30=DataCAPEX!$G$14:$G$218),--(DataCAPEX!V$14:V$218)) -> 0 | W30: =SUMPRODUCT(--($D30=DataCAPEX!$E$14:$E$218),--(Traralgon!$E30=DataCAPEX!$G$14:$G$218),--(DataCAPEX!W$14:W$218)) -> 0 | X30: =SUMPRODUCT(--($D30=DataCAPEX!$E$14:$E$218),--(Traralgon!$E30=DataCAPEX!$G$14:$G$218),--(DataCAPEX!X$14:X$218)) -> 0 | Y30: =SUMPRODUCT(--($D30=DataCAPEX!$E$14:$E$218),--(Traralgon!$E30=DataCAPEX!$G$14:$G$218),--(DataCAPEX!Y$14:Y$218)) -> 0 | Z30: =SUMPRODUCT(--($D30=DataCAPEX!$E$14:$E$218),--(Traralgon!$E30=DataCAPEX!$G$14:$G$218),--(DataCAPEX!Z$14:Z$218)) -> 0 | AA30: =SUMPRODUCT(--($D30=DataCAPEX!$E$14:$E$218),--(Traralgon!$E30=DataCAPEX!$G$14:$G$218),--(DataCAPEX!AA$14:AA$218)) -> 0 | AB30: =SUMPRODUCT(--($D30=DataCAPEX!$E$14:$E$218),--(Traralgon!$E30=DataCAPEX!$G$14:$G$218),--(DataCAPEX!AB$14:AB$218)) -> 0 | AC30: =SUMPRODUCT(--($D30=DataCAPEX!$E$14:$E$218),--(Traralgon!$E30=DataCAPEX!$G$14:$G$218),--(DataCAPEX!AC$14:AC$218)) -> 0 | AD30: =SUMPRODUCT(--($D30=DataCAPEX!$E$14:$E$218),--(Traralgon!$E30=DataCAPEX!$G$14:$G$218),--(DataCAPEX!AD$14:AD$218)) -> 0 | AE30: =SUMPRODUCT(--($D30=DataCAPEX!$E$14:$E$218),--(Traralgon!$E30=DataCAPEX!$G$14:$G$218),--(DataCAPEX!AE$14:AE$218)) -> 0 | AF30: =SUMPRODUCT(--($D30=DataCAPEX!$E$14:$E$218),--(Traralgon!$E30=DataCAPEX!$G$14:$G$218),--(DataCAPEX!AF$14:AF$218)) -> 0 | AG30: =SUMPRODUCT(--($D30=DataCAPEX!$E$14:$E$218),--(Traralgon!$E30=DataCAPEX!$G$14:$G$218),--(DataCAPEX!AG$14:AG$218)) -> 0 | AH30: =SUMPRODUCT(--($D30=DataCAPEX!$E$14:$E$218),--(Traralgon!$E30=DataCAPEX!$G$14:$G$218),--(DataCAPEX!AH$14:AH$218)) -> 0 | AI30: =SUMPRODUCT(--($D30=DataCAPEX!$E$14:$E$218),--(Traralgon!$E30=DataCAPEX!$G$14:$G$218),--(DataCAPEX!AI$14:AI$218)) -> 0 | AJ30: =SUMPRODUCT(--($D30=DataCAPEX!$E$14:$E$218),--(Traralgon!$E30=DataCAPEX!$G$14:$G$218),--(DataCAPEX!AJ$14:AJ$218)) -> 0 | AK30: =SUMPRODUCT(--($D30=DataCAPEX!$E$14:$E$218),--(Traralgon!$E30=DataCAPEX!$G$14:$G$218),--(DataCAPEX!AK$14:AK$218)) -> 0 | AL30: =SUMPRODUCT(--($D30=DataCAPEX!$E$14:$E$218),--(Traralgon!$E30=DataCAPEX!$G$14:$G$218),--(DataCAPEX!AL$14:AL$218)) -> 0 | AM30: =SUMPRODUCT(--($D30=DataCAPEX!$E$14:$E$218),--(Traralgon!$E30=DataCAPEX!$G$14:$G$218),--(DataCAPEX!AM$14:AM$218)) -> 0 | AN30: =SUMPRODUCT(--($D30=DataCAPEX!$E$14:$E$218),--(Traralgon!$E30=DataCAPEX!$G$14:$G$218),--(DataCAPEX!AN$14:AN$218)) -> 0 | AO30: =SUMPRODUCT(--($D30=DataCAPEX!$E$14:$E$218),--(Traralgon!$E30=DataCAPEX!$G$14:$G$218),--(DataCAPEX!AO$14:AO$218)) -> 0 | AP30: =SUMPRODUCT(--($D30=DataCAPEX!$E$14:$E$218),--(Traralgon!$E30=DataCAPEX!$G$14:$G$218),--(DataCAPEX!AP$14:AP$218)) -> 0
D31: Traralgon | P31: $ | Q31: =NPV('DataCON&ASSUMPTIONS'!$F$48,Traralgon!W31:AP31) -> 0 | R31: =SUMPRODUCT(--($D31=DataCAPEX!$E$14:$E$218),--(Traralgon!$E31=DataCAPEX!$G$14:$G$218),--(DataCAPEX!R$14:R$218)) -> 0 | S31: =SUMPRODUCT(--($D31=DataCAPEX!$E$14:$E$218),--(Traralgon!$E31=DataCAPEX!$G$14:$G$218),--(DataCAPEX!S$14:S$218)) -> 0 | T31: =SUMPRODUCT(--($D31=DataCAPEX!$E$14:$E$218),--(Traralgon!$E31=DataCAPEX!$G$14:$G$218),--(DataCAPEX!T$14:T$218)) -> 0 | U31: =SUMPRODUCT(--($D31=DataCAPEX!$E$14:$E$218),--(Traralgon!$E31=DataCAPEX!$G$14:$G$218),--(DataCAPEX!U$14:U$218)) -> 0 | V31: =SUMPRODUCT(--($D31=DataCAPEX!$E$14:$E$218),--(Traralgon!$E31=DataCAPEX!$G$14:$G$218),--(DataCAPEX!V$14:V$218)) -> 0 | W31: =SUMPRODUCT(--($D31=DataCAPEX!$E$14:$E$218),--(Traralgon!$E31=DataCAPEX!$G$14:$G$218),--(DataCAPEX!W$14:W$218)) -> 0 | X31: =SUMPRODUCT(--($D31=DataCAPEX!$E$14:$E$218),--(Traralgon!$E31=DataCAPEX!$G$14:$G$218),--(DataCAPEX!X$14:X$218)) -> 0 | Y31: =SUMPRODUCT(--($D31=DataCAPEX!$E$14:$E$218),--(Traralgon!$E31=DataCAPEX!$G$14:$G$218),--(DataCAPEX!Y$14:Y$218)) -> 0 | Z31: =SUMPRODUCT(--($D31=DataCAPEX!$E$14:$E$218),--(Traralgon!$E31=DataCAPEX!$G$14:$G$218),--(DataCAPEX!Z$14:Z$218)) -> 0 | AA31: =SUMPRODUCT(--($D31=DataCAPEX!$E$14:$E$218),--(Traralgon!$E31=DataCAPEX!$G$14:$G$218),--(DataCAPEX!AA$14:AA$218)) -> 0 | AB31: =SUMPRODUCT(--($D31=DataCAPEX!$E$14:$E$218),--(Traralgon!$E31=DataCAPEX!$G$14:$G$218),--(DataCAPEX!AB$14:AB$218)) -> 0 | AC31: =SUMPRODUCT(--($D31=DataCAPEX!$E$14:$E$218),--(Traralgon!$E31=DataCAPEX!$G$14:$G$218),--(DataCAPEX!AC$14:AC$218)) -> 0 | AD31: =SUMPRODUCT(--($D31=DataCAPEX!$E$14:$E$218),--(Traralgon!$E31=DataCAPEX!$G$14:$G$218),--(DataCAPEX!AD$14:AD$218)) -> 0 | AE31: =SUMPRODUCT(--($D31=DataCAPEX!$E$14:$E$218),--(Traralgon!$E31=DataCAPEX!$G$14:$G$218),--(DataCAPEX!AE$14:AE$218)) -> 0 | AF31: =SUMPRODUCT(--($D31=DataCAPEX!$E$14:$E$218),--(Traralgon!$E31=DataCAPEX!$G$14:$G$218),--(DataCAPEX!AF$14:AF$218)) -> 0 | AG31: =SUMPRODUCT(--($D31=DataCAPEX!$E$14:$E$218),--(Traralgon!$E31=DataCAPEX!$G$14:$G$218),--(DataCAPEX!AG$14:AG$218)) -> 0 | AH31: =SUMPRODUCT(--($D31=DataCAPEX!$E$14:$E$218),--(Traralgon!$E31=DataCAPEX!$G$14:$G$218),--(DataCAPEX!AH$14:AH$218)) -> 0 | AI31: =SUMPRODUCT(--($D31=DataCAPEX!$E$14:$E$218),--(Traralgon!$E31=DataCAPEX!$G$14:$G$218),--(DataCAPEX!AI$14:AI$218)) -> 0 | AJ31: =SUMPRODUCT(--($D31=DataCAPEX!$E$14:$E$218),--(Traralgon!$E31=DataCAPEX!$G$14:$G$218),--(DataCAPEX!AJ$14:AJ$218)) -> 0 | AK31: =SUMPRODUCT(--($D31=DataCAPEX!$E$14:$E$218),--(Traralgon!$E31=DataCAPEX!$G$14:$G$218),--(DataCAPEX!AK$14:AK$218)) -> 0 | AL31: =SUMPRODUCT(--($D31=DataCAPEX!$E$14:$E$218),--(Traralgon!$E31=DataCAPEX!$G$14:$G$218),--(DataCAPEX!AL$14:AL$218)) -> 0 | AM31: =SUMPRODUCT(--($D31=DataCAPEX!$E$14:$E$218),--(Traralgon!$E31=DataCAPEX!$G$14:$G$218),--(DataCAPEX!AM$14:AM$218)) -> 0 | AN31: =SUMPRODUCT(--($D31=DataCAPEX!$E$14:$E$218),--(Traralgon!$E31=DataCAPEX!$G$14:$G$218),--(DataCAPEX!AN$14:AN$218)) -> 0 | AO31: =SUMPRODUCT(--($D31=DataCAPEX!$E$14:$E$218),--(Traralgon!$E31=DataCAPEX!$G$14:$G$218),--(DataCAPEX!AO$14:AO$218)) -> 0 | AP31: =SUMPRODUCT(--($D31=DataCAPEX!$E$14:$E$218),--(Traralgon!$E31=DataCAPEX!$G$14:$G$218),--(DataCAPEX!AP$14:AP$218)) -> 0
D32: Traralgon | P32: $ | Q32: =NPV('DataCON&ASSUMPTIONS'!$F$48,Traralgon!W32:AP32) -> 0 | R32: =SUMPRODUCT(--($D32=DataCAPEX!$E$14:$E$218),--(Traralgon!$E32=DataCAPEX!$G$14:$G$218),--(DataCAPEX!R$14:R$218)) -> 0 | S32: =SUMPRODUCT(--($D32=DataCAPEX!$E$14:$E$218),--(Traralgon!$E32=DataCAPEX!$G$14:$G$218),--(DataCAPEX!S$14:S$218)) -> 0 | T32: =SUMPRODUCT(--($D32=DataCAPEX!$E$14:$E$218),--(Traralgon!$E32=DataCAPEX!$G$14:$G$218),--(DataCAPEX!T$14:T$218)) -> 0 | U32: =SUMPRODUCT(--($D32=DataCAPEX!$E$14:$E$218),--(Traralgon!$E32=DataCAPEX!$G$14:$G$218),--(DataCAPEX!U$14:U$218)) -> 0 | V32: =SUMPRODUCT(--($D32=DataCAPEX!$E$14:$E$218),--(Traralgon!$E32=DataCAPEX!$G$14:$G$218),--(DataCAPEX!V$14:V$218)) -> 0 | W32: =SUMPRODUCT(--($D32=DataCAPEX!$E$14:$E$218),--(Traralgon!$E32=DataCAPEX!$G$14:$G$218),--(DataCAPEX!W$14:W$218)) -> 0 | X32: =SUMPRODUCT(--($D32=DataCAPEX!$E$14:$E$218),--(Traralgon!$E32=DataCAPEX!$G$14:$G$218),--(DataCAPEX!X$14:X$218)) -> 0 | Y32: =SUMPRODUCT(--($D32=DataCAPEX!$E$14:$E$218),--(Traralgon!$E32=DataCAPEX!$G$14:$G$218),--(DataCAPEX!Y$14:Y$218)) -> 0 | Z32: =SUMPRODUCT(--($D32=DataCAPEX!$E$14:$E$218),--(Traralgon!$E32=DataCAPEX!$G$14:$G$218),--(DataCAPEX!Z$14:Z$218)) -> 0 | AA32: =SUMPRODUCT(--($D32=DataCAPEX!$E$14:$E$218),--(Traralgon!$E32=DataCAPEX!$G$14:$G$218),--(DataCAPEX!AA$14:AA$218)) -> 0 | AB32: =SUMPRODUCT(--($D32=DataCAPEX!$E$14:$E$218),--(Traralgon!$E32=DataCAPEX!$G$14:$G$218),--(DataCAPEX!AB$14:AB$218)) -> 0 | AC32: =SUMPRODUCT(--($D32=DataCAPEX!$E$14:$E$218),--(Traralgon!$E32=DataCAPEX!$G$14:$G$218),--(DataCAPEX!AC$14:AC$218)) -> 0 | AD32: =SUMPRODUCT(--($D32=DataCAPEX!$E$14:$E$218),--(Traralgon!$E32=DataCAPEX!$G$14:$G$218),--(DataCAPEX!AD$14:AD$218)) -> 0 | AE32: =SUMPRODUCT(--($D32=DataCAPEX!$E$14:$E$218),--(Traralgon!$E32=DataCAPEX!$G$14:$G$218),--(DataCAPEX!AE$14:AE$218)) -> 0 | AF32: =SUMPRODUCT(--($D32=DataCAPEX!$E$14:$E$218),--(Traralgon!$E32=DataCAPEX!$G$14:$G$218),--(DataCAPEX!AF$14:AF$218)) -> 0 | AG32: =SUMPRODUCT(--($D32=DataCAPEX!$E$14:$E$218),--(Traralgon!$E32=DataCAPEX!$G$14:$G$218),--(DataCAPEX!AG$14:AG$218)) -> 0 | AH32: =SUMPRODUCT(--($D32=DataCAPEX!$E$14:$E$218),--(Traralgon!$E32=DataCAPEX!$G$14:$G$218),--(DataCAPEX!AH$14:AH$218)) -> 0 | AI32: =SUMPRODUCT(--($D32=DataCAPEX!$E$14:$E$218),--(Traralgon!$E32=DataCAPEX!$G$14:$G$218),--(DataCAPEX!AI$14:AI$218)) -> 0 | AJ32: =SUMPRODUCT(--($D32=DataCAPEX!$E$14:$E$218),--(Traralgon!$E32=DataCAPEX!$G$14:$G$218),--(DataCAPEX!AJ$14:AJ$218)) -> 0 | AK32: =SUMPRODUCT(--($D32=DataCAPEX!$E$14:$E$218),--(Traralgon!$E32=DataCAPEX!$G$14:$G$218),--(DataCAPEX!AK$14:AK$218)) -> 0 | AL32: =SUMPRODUCT(--($D32=DataCAPEX!$E$14:$E$218),--(Traralgon!$E32=DataCAPEX!$G$14:$G$218),--(DataCAPEX!AL$14:AL$218)) -> 0 | AM32: =SUMPRODUCT(--($D32=DataCAPEX!$E$14:$E$218),--(Traralgon!$E32=DataCAPEX!$G$14:$G$218),--(DataCAPEX!AM$14:AM$218)) -> 0 | AN32: =SUMPRODUCT(--($D32=DataCAPEX!$E$14:$E$218),--(Traralgon!$E32=DataCAPEX!$G$14:$G$218),--(DataCAPEX!AN$14:AN$218)) -> 0 | AO32: =SUMPRODUCT(--($D32=DataCAPEX!$E$14:$E$218),--(Traralgon!$E32=DataCAPEX!$G$14:$G$218),--(DataCAPEX!AO$14:AO$218)) -> 0 | AP32: =SUMPRODUCT(--($D32=DataCAPEX!$E$14:$E$218),--(Traralgon!$E32=DataCAPEX!$G$14:$G$218),--(DataCAPEX!AP$14:AP$218)) -> 0
D33: Traralgon | P33: $ | Q33: =NPV('DataCON&ASSUMPTIONS'!$F$48,Traralgon!W33:AP33) -> 0 | R33: =SUMPRODUCT(--($D33=DataCAPEX!$E$14:$E$218),--(Traralgon!$E33=DataCAPEX!$G$14:$G$218),--(DataCAPEX!R$14:R$218)) -> 0 | S33: =SUMPRODUCT(--($D33=DataCAPEX!$E$14:$E$218),--(Traralgon!$E33=DataCAPEX!$G$14:$G$218),--(DataCAPEX!S$14:S$218)) -> 0 | T33: =SUMPRODUCT(--($D33=DataCAPEX!$E$14:$E$218),--(Traralgon!$E33=DataCAPEX!$G$14:$G$218),--(DataCAPEX!T$14:T$218)) -> 0 | U33: =SUMPRODUCT(--($D33=DataCAPEX!$E$14:$E$218),--(Traralgon!$E33=DataCAPEX!$G$14:$G$218),--(DataCAPEX!U$14:U$218)) -> 0 | V33: =SUMPRODUCT(--($D33=DataCAPEX!$E$14:$E$218),--(Traralgon!$E33=DataCAPEX!$G$14:$G$218),--(DataCAPEX!V$14:V$218)) -> 0 | W33: =SUMPRODUCT(--($D33=DataCAPEX!$E$14:$E$218),--(Traralgon!$E33=DataCAPEX!$G$14:$G$218),--(DataCAPEX!W$14:W$218)) -> 0 | X33: =SUMPRODUCT(--($D33=DataCAPEX!$E$14:$E$218),--(Traralgon!$E33=DataCAPEX!$G$14:$G$218),--(DataCAPEX!X$14:X$218)) -> 0 | Y33: =SUMPRODUCT(--($D33=DataCAPEX!$E$14:$E$218),--(Traralgon!$E33=DataCAPEX!$G$14:$G$218),--(DataCAPEX!Y$14:Y$218)) -> 0 | Z33: =SUMPRODUCT(--($D33=DataCAPEX!$E$14:$E$218),--(Traralgon!$E33=DataCAPEX!$G$14:$G$218),--(DataCAPEX!Z$14:Z$218)) -> 0 | AA33: =SUMPRODUCT(--($D33=DataCAPEX!$E$14:$E$218),--(Traralgon!$E33=DataCAPEX!$G$14:$G$218),--(DataCAPEX!AA$14:AA$218)) -> 0 | AB33: =SUMPRODUCT(--($D33=DataCAPEX!$E$14:$E$218),--(Traralgon!$E33=DataCAPEX!$G$14:$G$218),--(DataCAPEX!AB$14:AB$218)) -> 0 | AC33: =SUMPRODUCT(--($D33=DataCAPEX!$E$14:$E$218),--(Traralgon!$E33=DataCAPEX!$G$14:$G$218),--(DataCAPEX!AC$14:AC$218)) -> 0 | AD33: =SUMPRODUCT(--($D33=DataCAPEX!$E$14:$E$218),--(Traralgon!$E33=DataCAPEX!$G$14:$G$218),--(DataCAPEX!AD$14:AD$218)) -> 0 | AE33: =SUMPRODUCT(--($D33=DataCAPEX!$E$14:$E$218),--(Traralgon!$E33=DataCAPEX!$G$14:$G$218),--(DataCAPEX!AE$14:AE$218)) -> 0 | AF33: =SUMPRODUCT(--($D33=DataCAPEX!$E$14:$E$218),--(Traralgon!$E33=DataCAPEX!$G$14:$G$218),--(DataCAPEX!AF$14:AF$218)) -> 0 | AG33: =SUMPRODUCT(--($D33=DataCAPEX!$E$14:$E$218),--(Traralgon!$E33=DataCAPEX!$G$14:$G$218),--(DataCAPEX!AG$14:AG$218)) -> 0 | AH33: =SUMPRODUCT(--($D33=DataCAPEX!$E$14:$E$218),--(Traralgon!$E33=DataCAPEX!$G$14:$G$218),--(DataCAPEX!AH$14:AH$218)) -> 0 | AI33: =SUMPRODUCT(--($D33=DataCAPEX!$E$14:$E$218),--(Traralgon!$E33=DataCAPEX!$G$14:$G$218),--(DataCAPEX!AI$14:AI$218)) -> 0 | AJ33: =SUMPRODUCT(--($D33=DataCAPEX!$E$14:$E$218),--(Traralgon!$E33=DataCAPEX!$G$14:$G$218),--(DataCAPEX!AJ$14:AJ$218)) -> 0 | AK33: =SUMPRODUCT(--($D33=DataCAPEX!$E$14:$E$218),--(Traralgon!$E33=DataCAPEX!$G$14:$G$218),--(DataCAPEX!AK$14:AK$218)) -> 0 | AL33: =SUMPRODUCT(--($D33=DataCAPEX!$E$14:$E$218),--(Traralgon!$E33=DataCAPEX!$G$14:$G$218),--(DataCAPEX!AL$14:AL$218)) -> 0 | AM33: =SUMPRODUCT(--($D33=DataCAPEX!$E$14:$E$218),--(Traralgon!$E33=DataCAPEX!$G$14:$G$218),--(DataCAPEX!AM$14:AM$218)) -> 0 | AN33: =SUMPRODUCT(--($D33=DataCAPEX!$E$14:$E$218),--(Traralgon!$E33=DataCAPEX!$G$14:$G$218),--(DataCAPEX!AN$14:AN$218)) -> 0 | AO33: =SUMPRODUCT(--($D33=DataCAPEX!$E$14:$E$218),--(Traralgon!$E33=DataCAPEX!$G$14:$G$218),--(DataCAPEX!AO$14:AO$218)) -> 0 | AP33: =SUMPRODUCT(--($D33=DataCAPEX!$E$14:$E$218),--(Traralgon!$E33=DataCAPEX!$G$14:$G$218),--(DataCAPEX!AP$14:AP$218)) -> 0
E34: Total | P34: $ | Q34: =NPV('DataCON&ASSUMPTIONS'!$F$48,Traralgon!W34:AP34) -> 7953867.608 | R34: =SUM(R14:R33) -> 0 | S34: =SUM(S14:S33) -> 0 | T34: 0 | U34: 0 | V34: 0 | W34: 134706.987 | X34: 567595.9504 | Y34: 1112070.719 | Z34: 182543.3205 | AA34: 0 | AB34: 46220.0028 | AC34: 67843.00362 | AD34: 67843.00362 | AE34: 0 | AF34: 0 | AG34: 0 | AH34: 0 | AI34: 226091.1699 | AJ34: 327855.6754 | AK34: 1243512.615 | AL34: 2267933.396 | AM34: 2267933.396 | AN34: 3398495.635 | AO34: 0 | AP34: 0
C36: Operating expenditure associated with connection
D37: Connection Opex | Q37: NPV
D38: =$A$2 -> Traralgon | E38: =A2 -> Traralgon | P38: $ | Q38: =NPV('DataCON&ASSUMPTIONS'!$F$48,Traralgon!W38:AP38) -> 0 | R38: =SUMPRODUCT(--($E$38=DataOPEX!$E$14:$E$88),--(DataOPEX!R14:R88)) -> 0 | S38: =SUMPRODUCT(--($E$38=DataOPEX!$E$14:$E$88),--(DataOPEX!S14:S88)) -> 0 | T38: =SUMPRODUCT(--($E$38=DataOPEX!$E$14:$E$88),--(DataOPEX!T14:T88)) -> 0 | U38: =SUMPRODUCT(--($E$38=DataOPEX!$E$14:$E$88),--(DataOPEX!U14:U88)) -> 0 | V38: =SUMPRODUCT(--($E$38=DataOPEX!$E$14:$E$88),--(DataOPEX!V14:V88)) -> 0 | W38: =SUMPRODUCT(--($E$38=DataOPEX!$E$14:$E$88),--(DataOPEX!W14:W88)) -> 0 | X38: =SUMPRODUCT(--($E$38=DataOPEX!$E$14:$E$88),--(DataOPEX!X14:X88)) -> 0 | Y38: =SUMPRODUCT(--($E$38=DataOPEX!$E$14:$E$88),--(DataOPEX!Y14:Y88)) -> 0 | Z38: =SUMPRODUCT(--($E$38=DataOPEX!$E$14:$E$88),--(DataOPEX!Z14:Z88)) -> 0 | AA38: =SUMPRODUCT(--($E$38=DataOPEX!$E$14:$E$88),--(DataOPEX!AA14:AA88)) -> 0 | AB38: =SUMPRODUCT(--($E$38=DataOPEX!$E$14:$E$88),--(DataOPEX!AB14:AB88)) -> 0 | AC38: =SUMPRODUCT(--($E$38=DataOPEX!$E$14:$E$88),--(DataOPEX!AC14:AC88)) -> 0 | AD38: =SUMPRODUCT(--($E$38=DataOPEX!$E$14:$E$88),--(DataOPEX!AD14:AD88)) -> 0 | AE38: =SUMPRODUCT(--($E$38=DataOPEX!$E$14:$E$88),--(DataOPEX!AE14:AE88)) -> 0 | AF38: =SUMPRODUCT(--($E$38=DataOPEX!$E$14:$E$88),--(DataOPEX!AF14:AF88)) -> 0 | AG38: =SUMPRODUCT(--($E$38=DataOPEX!$E$14:$E$88),--(DataOPEX!AG14:AG88)) -> 0 | AH38: =SUMPRODUCT(--($E$38=DataOPEX!$E$14:$E$88),--(DataOPEX!AH14:AH88)) -> 0 | AI38: =SUMPRODUCT(--($E$38=DataOPEX!$E$14:$E$88),--(DataOPEX!AI14:AI88)) -> 0 | AJ38: =SUMPRODUCT(--($E$38=DataOPEX!$E$14:$E$88),--(DataOPEX!AJ14:AJ88)) -> 0 | AK38: =SUMPRODUCT(--($E$38=DataOPEX!$E$14:$E$88),--(DataOPEX!AK14:AK88)) -> 0 | AL38: =SUMPRODUCT(--($E$38=DataOPEX!$E$14:$E$88),--(DataOPEX!AL14:AL88)) -> 0 | AM38: =SUMPRODUCT(--($E$38=DataOPEX!$E$14:$E$88),--(DataOPEX!AM14:AM88)) -> 0 | AN38: =SUMPRODUCT(--($E$38=DataOPEX!$E$14:$E$88),--(DataOPEX!AN14:AN88)) -> 0 | AO38: =SUMPRODUCT(--($E$38=DataOPEX!$E$14:$E$88),--(DataOPEX!AO14:AO88)) -> 0 | AP38: =SUMPRODUCT(--($E$38=DataOPEX!$E$14:$E$88),--(DataOPEX!AP14:AP88)) -> 0
C40: Total incremental cost
D41: Total incremental cost | Q41: NPV
E42: =D13 -> Growth Capex | P42: $ | Q42: =NPV('DataCON&ASSUMPTIONS'!$F$48,Traralgon!W42:AP42) -> 7953867.608 | R42: =R34 -> 0 | S42: =S34 -> 0 | T42: 0 | U42: 0 | V42: 0 | W42: 134706.987 | X42: 567595.9504 | Y42: 1112070.719 | Z42: 182543.3205 | AA42: 0 | AB42: 46220.0028 | AC42: 67843.00362 | AD42: 67843.00362 | AE42: 0 | AF42: 0 | AG42: 0 | AH42: 0 | AI42: 226091.1699 | AJ42: 327855.6754 | AK42: 1243512.615 | AL42: 2267933.396 | AM42: 2267933.396 | AN42: 3398495.635 | AO42: 0 | AP42: 0
E43: =D37 -> Connection Opex | P43: $ | Q43: =NPV('DataCON&ASSUMPTIONS'!$F$48,Traralgon!W43:AP43) -> 0 | R43: =R38 -> 0 | S43: =S38 -> 0 | T43: 0 | U43: 0 | V43: 0 | W43: 0 | X43: 0 | Y43: 0 | Z43: 0 | AA43: 0 | AB43: 0 | AC43: 0 | AD43: 0 | AE43: 0 | AF43: 0 | AG43: 0 | AH43: 0 | AI43: 0 | AJ43: 0 | AK43: 0 | AL43: 0 | AM43: 0 | AN43: 0 | AO43: 0 | AP43: 0
E44: Total | P44: $ | Q44: =NPV('DataCON&ASSUMPTIONS'!$F$48,Traralgon!W44:AP44) -> 7953867.608 | R44: =SUM(R42:R43) -> 0 | S44: 0 | T44: 0 | U44: 0 | V44: 0 | W44: 134706.987 | X44: 567595.9504 | Y44: 1112070.719 | Z44: 182543.3205 | AA44: 0 | AB44: 46220.0028 | AC44: 67843.00362 | AD44: 67843.00362 | AE44: 0 | AF44: 0 | AG44: 0 | AH44: 0 | AI44: 226091.1699 | AJ44: 327855.6754 | AK44: 1243512.615 | AL44: 2267933.396 | AM44: 2267933.396 | AN44: 3398495.635 | AO44: 0 | AP44: 0
B46: Tax allowance
C47: Tax allowance
Q48: NPV
D49: =$A$2 -> Traralgon | E49: Gifted Assets | P49: $ | Q49: =NPV('DataCON&ASSUMPTIONS'!$F$48,Traralgon!W49:AP49) -> 0 | R49: =SUMPRODUCT(--($D49='DataCON&ASSUMPTIONS'!$E$63:$E$72),--('DataCON&ASSUMPTIONS'!R$63:R$72)) -> 0 | S49: =SUMPRODUCT(--($D49='DataCON&ASSUMPTIONS'!$E$63:$E$72),--('DataCON&ASSUMPTIONS'!S$63:S$72)) -> 0 | T49: =SUMPRODUCT(--($D49='DataCON&ASSUMPTIONS'!$E$63:$E$72),--('DataCON&ASSUMPTIONS'!T$63:T$72)) -> 0 | U49: =SUMPRODUCT(--($D49='DataCON&ASSUMPTIONS'!$E$63:$E$72),--('DataCON&ASSUMPTIONS'!U$63:U$72)) -> 0 | V49: =SUMPRODUCT(--($D49='DataCON&ASSUMPTIONS'!$E$63:$E$72),--('DataCON&ASSUMPTIONS'!V$63:V$72)) -> 0 | W49: =SUMPRODUCT(--($D49='DataCON&ASSUMPTIONS'!$E$63:$E$72),--('DataCON&ASSUMPTIONS'!W$63:W$72)) -> 0 | X49: =SUMPRODUCT(--($D49='DataCON&ASSUMPTIONS'!$E$63:$E$72),--('DataCON&ASSUMPTIONS'!X$63:X$72)) -> 0 | Y49: =SUMPRODUCT(--($D49='DataCON&ASSUMPTIONS'!$E$63:$E$72),--('DataCON&ASSUMPTIONS'!Y$63:Y$72)) -> 0 | Z49: =SUMPRODUCT(--($D49='DataCON&ASSUMPTIONS'!$E$63:$E$72),--('DataCON&ASSUMPTIONS'!Z$63:Z$72)) -> 0 | AA49: =SUMPRODUCT(--($D49='DataCON&ASSUMPTIONS'!$E$63:$E$72),--('DataCON&ASSUMPTIONS'!AA$63:AA$72)) -> 0 | AB49: =SUMPRODUCT(--($D49='DataCON&ASSUMPTIONS'!$E$63:$E$72),--('DataCON&ASSUMPTIONS'!AB$63:AB$72)) -> 0 | AC49: =SUMPRODUCT(--($D49='DataCON&ASSUMPTIONS'!$E$63:$E$72),--('DataCON&ASSUMPTIONS'!AC$63:AC$72)) -> 0 | AD49: =SUMPRODUCT(--($D49='DataCON&ASSUMPTIONS'!$E$63:$E$72),--('DataCON&ASSUMPTIONS'!AD$63:AD$72)) -> 0 | AE49: =SUMPRODUCT(--($D49='DataCON&ASSUMPTIONS'!$E$63:$E$72),--('DataCON&ASSUMPTIONS'!AE$63:AE$72)) -> 0 | AF49: =SUMPRODUCT(--($D49='DataCON&ASSUMPTIONS'!$E$63:$E$72),--('DataCON&ASSUMPTIONS'!AF$63:AF$72)) -> 0 | AG49: =SUMPRODUCT(--($D49='DataCON&ASSUMPTIONS'!$E$63:$E$72),--('DataCON&ASSUMPTIONS'!AG$63:AG$72)) -> 0 | AH49: =SUMPRODUCT(--($D49='DataCON&ASSUMPTIONS'!$E$63:$E$72),--('DataCON&ASSUMPTIONS'!AH$63:AH$72)) -> 0 | AI49: =SUMPRODUCT(--($D49='DataCON&ASSUMPTIONS'!$E$63:$E$72),--('DataCON&ASSUMPTIONS'!AI$63:AI$72)) -> 0 | AJ49: =SUMPRODUCT(--($D49='DataCON&ASSUMPTIONS'!$E$63:$E$72),--('DataCON&ASSUMPTIONS'!AJ$63:AJ$72)) -> 0 | AK49: =SUMPRODUCT(--($D49='DataCON&ASSUMPTIONS'!$E$63:$E$72),--('DataCON&ASSUMPTIONS'!AK$63:AK$72)) -> 0 | AL49: =SUMPRODUCT(--($D49='DataCON&ASSUMPTIONS'!$E$63:$E$72),--('DataCON&ASSUMPTIONS'!AL$63:AL$72)) -> 0 | AM49: =SUMPRODUCT(--($D49='DataCON&ASSUMPTIONS'!$E$63:$E$72),--('DataCON&ASSUMPTIONS'!AM$63:AM$72)) -> 0 | AN49: =SUMPRODUCT(--($D49='DataCON&ASSUMPTIONS'!$E$63:$E$72),--('DataCON&ASSUMPTIONS'!AN$63:AN$72)) -> 0 | AO49: =SUMPRODUCT(--($D49='DataCON&ASSUMPTIONS'!$E$63:$E$72),--('DataCON&ASSUMPTIONS'!AO$63:AO$72)) -> 0 | AP49: =SUMPRODUCT(--($D49='DataCON&ASSUMPTIONS'!$E$63:$E$72),--('DataCON&ASSUMPTIONS'!AP$63:AP$72)) -> 0
D50: =$A$2 -> Traralgon | E50: Pre tax NCC | P50: $ | Q50: =NPV('DataCON&ASSUMPTIONS'!$F$48,Traralgon!W50:AP50) -> 7953867.608 | W50: =IFERROR($Q$73*W63,0) -> 534130.6744 | X50: =IFERROR($Q$73*X63,0) -> 534130.6744 | Y50: 534130.6744 | Z50: 534130.6744 | AA50: 534130.6744 | AB50: 534130.6744 | AC50: 534130.6744 | AD50: 534130.6744 | AE50: 534130.6744 | AF50: 534130.6744 | AG50: 534130.6744 | AH50: 534130.6744 | AI50: 534130.6744 | AJ50: 534130.6744 | AK50: 534130.6744 | AL50: 534130.6744 | AM50: 534130.6744 | AN50: 534130.6744 | AO50: 534130.6744 | AP50: 534130.6744
D51: Traralgon | E51: Connection O&M | P51: $ | Q51: =NPV('DataCON&ASSUMPTIONS'!$F$48,Traralgon!W51:AP51) -> 0 | W51: =-W38 -> 0 | X51: =-X38 -> 0 | Y51: 0 | Z51: 0 | AA51: 0 | AB51: 0 | AC51: 0 | AD51: 0 | AE51: 0 | AF51: 0 | AG51: 0 | AH51: 0 | AI51: 0 | AJ51: 0 | AK51: 0 | AL51: 0 | AM51: 0 | AN51: 0 | AO51: 0 | AP51: 0
D52: Traralgon | E52: Tax Depreciation | P52: $ | Q52: =NPV('DataCON&ASSUMPTIONS'!$F$48,Traralgon!W52:AP52) -> -99423.3451 | R52: =SUMPRODUCT(--($D52='DataCON&ASSUMPTIONS'!$E$77:$E$86),--('DataCON&ASSUMPTIONS'!R$77:R$86)) -> 0 | S52: =SUMPRODUCT(--($D52='DataCON&ASSUMPTIONS'!$E$77:$E$86),--('DataCON&ASSUMPTIONS'!S$77:S$86)) -> 0 | T52: =SUMPRODUCT(--($D52='DataCON&ASSUMPTIONS'!$E$77:$E$86),--('DataCON&ASSUMPTIONS'!T$77:T$86)) -> 0 | U52: =SUMPRODUCT(--($D52='DataCON&ASSUMPTIONS'!$E$77:$E$86),--('DataCON&ASSUMPTIONS'!U$77:U$86)) -> 0 | V52: =SUMPRODUCT(--($D52='DataCON&ASSUMPTIONS'!$E$77:$E$86),--('DataCON&ASSUMPTIONS'!V$77:V$86)) -> 0 | W52: =-SUMPRODUCT(--($D52='DataCON&ASSUMPTIONS'!$E$77:$E$86),--('DataCON&ASSUMPTIONS'!W$77:W$86)) -> -1683.837338 | X52: =-SUMPRODUCT(--($D52='DataCON&ASSUMPTIONS'!$E$77:$E$86),--('DataCON&ASSUMPTIONS'!X$77:X$86)) -> -7094.94938 | Y52: =-SUMPRODUCT(--($D52='DataCON&ASSUMPTIONS'!$E$77:$E$86),--('DataCON&ASSUMPTIONS'!Y$77:Y$86)) -> -13900.88399 | Z52: =-SUMPRODUCT(--($D52='DataCON&ASSUMPTIONS'!$E$77:$E$86),--('DataCON&ASSUMPTIONS'!Z$77:Z$86)) -> -2281.791506 | AA52: =-SUMPRODUCT(--($D52='DataCON&ASSUMPTIONS'!$E$77:$E$86),--('DataCON&ASSUMPTIONS'!AA$77:AA$86)) -> 0 | AB52: =-SUMPRODUCT(--($D52='DataCON&ASSUMPTIONS'!$E$77:$E$86),--('DataCON&ASSUMPTIONS'!AB$77:AB$86)) -> -577.750035 | AC52: =-SUMPRODUCT(--($D52='DataCON&ASSUMPTIONS'!$E$77:$E$86),--('DataCON&ASSUMPTIONS'!AC$77:AC$86)) -> -848.0375453 | AD52: =-SUMPRODUCT(--($D52='DataCON&ASSUMPTIONS'!$E$77:$E$86),--('DataCON&ASSUMPTIONS'!AD$77:AD$86)) -> -848.0375453 | AE52: =-SUMPRODUCT(--($D52='DataCON&ASSUMPTIONS'!$E$77:$E$86),--('DataCON&ASSUMPTIONS'!AE$77:AE$86)) -> 0 | AF52: =-SUMPRODUCT(--($D52='DataCON&ASSUMPTIONS'!$E$77:$E$86),--('DataCON&ASSUMPTIONS'!AF$77:AF$86)) -> 0 | AG52: =-SUMPRODUCT(--($D52='DataCON&ASSUMPTIONS'!$E$77:$E$86),--('DataCON&ASSUMPTIONS'!AG$77:AG$86)) -> 0 | AH52: =-SUMPRODUCT(--($D52='DataCON&ASSUMPTIONS'!$E$77:$E$86),--('DataCON&ASSUMPTIONS'!AH$77:AH$86)) -> 0 | AI52: =-SUMPRODUCT(--($D52='DataCON&ASSUMPTIONS'!$E$77:$E$86),--('DataCON&ASSUMPTIONS'!AI$77:AI$86)) -> -2826.139624 | AJ52: =-SUMPRODUCT(--($D52='DataCON&ASSUMPTIONS'!$E$77:$E$86),--('DataCON&ASSUMPTIONS'!AJ$77:AJ$86)) -> -4098.195942 | AK52: =-SUMPRODUCT(--($D52='DataCON&ASSUMPTIONS'!$E$77:$E$86),--('DataCON&ASSUMPTIONS'!AK$77:AK$86)) -> -15543.90769 | AL52: =-SUMPRODUCT(--($D52='DataCON&ASSUMPTIONS'!$E$77:$E$86),--('DataCON&ASSUMPTIONS'!AL$77:AL$86)) -> -28349.16745 | AM52: =-SUMPRODUCT(--($D52='DataCON&ASSUMPTIONS'!$E$77:$E$86),--('DataCON&ASSUMPTIONS'!AM$77:AM$86)) -> -28349.16745 | AN52: =-SUMPRODUCT(--($D52='DataCON&ASSUMPTIONS'!$E$77:$E$86),--('DataCON&ASSUMPTIONS'!AN$77:AN$86)) -> -42481.19544 | AO52: =-SUMPRODUCT(--($D52='DataCON&ASSUMPTIONS'!$E$77:$E$86),--('DataCON&ASSUMPTIONS'!AO$77:AO$86)) -> 0 | AP52: =-SUMPRODUCT(--($D52='DataCON&ASSUMPTIONS'!$E$77:$E$86),--('DataCON&ASSUMPTIONS'!AP$77:AP$86)) -> 0
D53: Traralgon | E53: Change in Net Taxable Income | P53: $ | Q53: =NPV('DataCON&ASSUMPTIONS'!$F$48,Traralgon!W53:AP53) -> 7854444.263 | W53: =SUM(W49:W52) -> 532446.8371 | X53: =SUM(X49:X52) -> 527035.725 | Y53: 520229.7904 | Z53: 531848.8829 | AA53: 534130.6744 | AB53: 533552.9244 | AC53: 533282.6368 | AD53: 533282.6368 | AE53: 534130.6744 | AF53: 534130.6744 | AG53: 534130.6744 | AH53: 534130.6744 | AI53: 531304.5348 | AJ53: 530032.4784 | AK53: 518586.7667 | AL53: 505781.5069 | AM53: 505781.5069 | AN53: 491649.479 | AO53: 534130.6744 | AP53: 534130.6744
